Workbook

Sheet 1473 FX
A1: 1473 Service Hours (Fixed Route) | AB1: 1473 Mileage (Fixed Route)
A2: ACTUAL (Fixed) | N2: REVENUE (Fixed) | AB2: ACTUAL (Fixed) | AP2: REVENUE (Fixed)
A3: Date | B3: 1st Start | C3: 1st End | D3: 2nd Start | E3: 2nd End | F3: 3rd Start | G3: 3rd End | H3: Difference | I3: Hours Converted | N3: Date | O3: 1st Start | P3: 1st End | Q3: 2nd Start | R3: 2nd End | S3: 3rd Start | T3: 3rd End | U3: Difference | V3: Hours Converted | AA3: Cross-Check | AB3: Date | AC3: 1st Start | AD3: 1st End | AE3: 2nd Start | AF3: 2nd End | AG3: 3rd Start | AH3: 3rd End | AI3: End of Day | AJ3: Extraneous | AK3: Difference | AP3: Date | AQ3: 1st Start | AR3: 1st End | AS3: 2nd Start | AT3: 2nd End | AU3: 3rd Start | AV3: 3rd End | AW3: End of Day | AX3: Extraneous | AY3: Difference | BD3: Cross-Check
A4: 2017-01-01 | H4: =(C4-B4)+(E4-D4)+(G4-F4) -> 0 | I4: =H4*24 -> 0.00 | M4: =IF(H4>0, 1, 0) -> 0 | N4: 2017-01-01 | U4: =(P4-O4)+(R4-Q4)+(T4-S4) -> 0 | V4: =U4*24 -> 0.00 | Z4: =IF(U4>0, 1, 0) -> 0 | AA4: =IF(H4<U4,"Actual less than Revenue",IF(AND(T4>G4,F4<>G4,S4<>T4),"Rev Over Act End 3rd", IF(AND(S4<F4,F4<>G4,S4<>T4),"Rev Less Act Start 3rd",IF(AND(R4>E4,D4<>E4,Q4<>R4),"Rev Over Act End 2nd",IF(AND(Q4<D4,D4<>E4,Q4<>R4),"Rev Less Act Start 2nd",IF(AND(P4>C4,B4<>C4,O4<>P4),"Rev Over Act End 1st",IF(AND(O4<B4,B4<>C4,O4<>P4),"Rev Less Act Start 1st",IF(AND(T4=G4,F4<>G4,S4<>T4),"Same End 3rd",IF(AND(S4=F4,F4<>G4,S4<>T4),"Same Start 3rd",IF(AND(R4=E4,D4<>E4,Q4<>R4),"Same End 2nd",IF(AND(Q4=D4,D4<>E4,Q4<>R4),"Same Start 2nd",IF(AND(P4=C4,B4<>C4,O4<>P4),"Same End 1st",IF(AND(O4=B4,B4<>C4,O4<>P4),"Same Start 1st",""))))))))))))) ->  | AB4: 2017-01-01 | AC4: 37,625 | AD4: =AC4 -> 37,625 | AE4: =AD4 -> 37,625 | AF4: 37,625 | AG4: 37,625 | AH4: 37,625 | AI4: =MAX(AD4, AF4, AH4) -> 37,625 | AK4: =(AD4-AC4)+(AF4-AE4)+(AH4-AG4) -> 0 | AO4: =IF(AK4>0, 1, 0) -> 0 | AP4: 2017-01-01 | AQ4: 37,625 | AR4: =AQ4 -> 37,625 | AS4: 37,625 | AT4: 37,625 | AU4: 37,625 | AV4: 37,625 | AW4: =MAX(AR4, AT4, AV4) -> 37,625 | AY4: =(AR4-AQ4)+(AT4-AS4)+(AV4-AU4) -> 0 | BC4: =IF(AY4>0, 1, 0) -> 0 | BD4: =IF(AK4<AY4,"Actual less than Revenue",IF(AND(AV4>AH4,AG4<>AH4,AU4<>AV4),"Rev Over Act End 3rd",IF(AND(AU4<AG4,AG4<>AH4,AU4<>AV4),"Rev Less Act Start 3rd",IF(AND(AT4>AF4,AE4<>AF4,AS4<>AT4),"Rev Over Act End 2nd",IF(AND(AS4<AE4,AE4<>AF4,AS4<>AT4),"Rev Less Act Start 2nd",IF(AND(AR4>AD4,AC4<>AD4,AQ4<>AR4),"Rev Over Act End 1st",IF(AND(AQ4<AC4,AC4<>AD4,AQ4<>AR4),"Rev Less Act Start 1st",IF(AND(AV4=AH4,AG4<>AH4,AU4<>AV4),"Same End 3rd",IF(AND(AU4=AG4,AG4<>AH4,AU4<>AV4),"Same Start 3rd",IF(AND(AT4=AF4,AE4<>AF4,AS4<>AT4),"Same End 2nd",IF(AND(AS4=AE4,AE4<>AF4,AS4<>AT4),"Same Start 2nd",IF(AND(AR4=AD4,AC4<>AD4,AQ4<>AR4),"Same End 1st",IF(AND(AQ4=AC4,AC4<>AD4,AQ4<>AR4),"Same Start 1st",""))))))))))))) -> 
A5: 2017-01-02 | B5: 0.2847222222 | C5: 0.5381944444 | D5: 0.5381944444 | E5: 0.8138888889 | H5: 0.5291666667 | I5: =H5*24 -> 12.70 | M5: 1 | N5: 2017-01-02 | O5: 0.2881944444 | P5: 0.5381944444 | Q5: 0.5381944444 | R5: 0.7881944444 | U5: 0.5 | V5: =U5*24 -> 12.00 | Z5: 1 | AA5: =IF(H5<U5,"Actual less than Revenue",IF(AND(T5>G5,F5<>G5,S5<>T5),"Rev Over Act End 3rd", IF(AND(S5<F5,F5<>G5,S5<>T5),"Rev Less Act Start 3rd",IF(AND(R5>E5,D5<>E5,Q5<>R5),"Rev Over Act End 2nd",IF(AND(Q5<D5,D5<>E5,Q5<>R5),"Rev Less Act Start 2nd",IF(AND(P5>C5,B5<>C5,O5<>P5),"Rev Over Act End 1st",IF(AND(O5<B5,B5<>C5,O5<>P5),"Rev Less Act Start 1st",IF(AND(T5=G5,F5<>G5,S5<>T5),"Same End 3rd",IF(AND(S5=F5,F5<>G5,S5<>T5),"Same Start 3rd",IF(AND(R5=E5,D5<>E5,Q5<>R5),"Same End 2nd",IF(AND(Q5=D5,D5<>E5,Q5<>R5),"Same Start 2nd",IF(AND(P5=C5,B5<>C5,O5<>P5),"Same End 1st",IF(AND(O5=B5,B5<>C5,O5<>P5),"Same Start 1st",""))))))))))))) -> Same Start 2nd | AB5: 2017-01-02 | AC5: 37,625 | AD5: 37,688 | AE5: =AD5 -> 37,688 | AF5: 37,754 | AG5: 37,754 | AH5: 37,754 | AI5: =MAX(AD5, AF5, AH5) -> 37,754 | AJ5: =IF(AC5=AI4, 0, AC5-AI4) -> 0 | AK5: 129 | AO5: =IF(AK5>0, 1, 0) -> 1 | AP5: 2017-01-02 | AQ5: 37,626 | AR5: 37,688 | AS5: 37,688 | AT5: 37,749 | AU5: 37,749 | AV5: 37,749 | AW5: =MAX(AR5, AT5, AV5) -> 37,749 | AX5: =IF(AQ5=AW4, 0, AQ5-AW4) -> 1 | AY5: =(AR5-AQ5)+(AT5-AS5)+(AV5-AU5) -> 123 | BC5: 1 | BD5: =IF(AK5<AY5,"Actual less than Revenue",IF(AND(AV5>AH5,AG5<>AH5,AU5<>AV5),"Rev Over Act End 3rd",IF(AND(AU5<AG5,AG5<>AH5,AU5<>AV5),"Rev Less Act Start 3rd",IF(AND(AT5>AF5,AE5<>AF5,AS5<>AT5),"Rev Over Act End 2nd",IF(AND(AS5<AE5,AE5<>AF5,AS5<>AT5),"Rev Less Act Start 2nd",IF(AND(AR5>AD5,AC5<>AD5,AQ5<>AR5),"Rev Over Act End 1st",IF(AND(AQ5<AC5,AC5<>AD5,AQ5<>AR5),"Rev Less Act Start 1st",IF(AND(AV5=AH5,AG5<>AH5,AU5<>AV5),"Same End 3rd",IF(AND(AU5=AG5,AG5<>AH5,AU5<>AV5),"Same Start 3rd",IF(AND(AT5=AF5,AE5<>AF5,AS5<>AT5),"Same End 2nd",IF(AND(AS5=AE5,AE5<>AF5,AS5<>AT5),"Same Start 2nd",IF(AND(AR5=AD5,AC5<>AD5,AQ5<>AR5),"Same End 1st",IF(AND(AQ5=AC5,AC5<>AD5,AQ5<>AR5),"Same Start 1st",""))))))))))))) -> Same Start 2nd
A6: 2017-01-03 | B6: 0.2847222222 | C6: 0.5381944444 | D6: 0.5381944444 | E6: 0.8173611111 | H6: 0.5326388889 | I6: 12.78 | M6: 1 | N6: 2017-01-03 | O6: 0.2881944444 | P6: 0.5381944444 | Q6: 0.5381944444 | R6: 0.7951388889 | U6: 0.5069444444 | V6: 12.17 | Z6: 1 | AA6: =IF(H6<U6,"Actual less than Revenue",IF(AND(T6>G6,F6<>G6,S6<>T6),"Rev Over Act End 3rd", IF(AND(S6<F6,F6<>G6,S6<>T6),"Rev Less Act Start 3rd",IF(AND(R6>E6,D6<>E6,Q6<>R6),"Rev Over Act End 2nd",IF(AND(Q6<D6,D6<>E6,Q6<>R6),"Rev Less Act Start 2nd",IF(AND(P6>C6,B6<>C6,O6<>P6),"Rev Over Act End 1st",IF(AND(O6<B6,B6<>C6,O6<>P6),"Rev Less Act Start 1st",IF(AND(T6=G6,F6<>G6,S6<>T6),"Same End 3rd",IF(AND(S6=F6,F6<>G6,S6<>T6),"Same Start 3rd",IF(AND(R6=E6,D6<>E6,Q6<>R6),"Same End 2nd",IF(AND(Q6=D6,D6<>E6,Q6<>R6),"Same Start 2nd",IF(AND(P6=C6,B6<>C6,O6<>P6),"Same End 1st",IF(AND(O6=B6,B6<>C6,O6<>P6),"Same Start 1st",""))))))))))))) -> Same Start 2nd | AB6: 2017-01-03 | AC6: =AI5 -> 37,754 | AD6: 37,829 | AE6: =AD6 -> 37,829 | AF6: 37,910 | AG6: 37,910 | AH6: 37,910 | AI6: 37,910 | AJ6: =IF(AC6=AI5, 0, AC6-AI5) -> 0 | AK6: 156 | AO6: 1 | AP6: 2017-01-03 | AQ6: 37,755 | AR6: 37,829 | AS6: 37,829 | AT6: 37,905 | AU6: 37,905 | AV6: 37,905 | AW6: 37,905 | AX6: 6 | AY6: 150 | BC6: 1 | BD6: Same Start 2nd
A7: 2017-01-04 | B7: 0.2847222222 | C7: 0.5381944444 | D7: 0.5381944444 | E7: 0.8131944444 | H7: 0.5284722222 | I7: 12.68 | M7: 1 | N7: 2017-01-04 | O7: 0.2881944444 | P7: 0.5381944444 | Q7: 0.5381944444 | R7: 0.7881944444 | U7: 0.5 | V7: 12.00 | Z7: 1 | AA7: =IF(H7<U7,"Actual less than Revenue",IF(AND(T7>G7,F7<>G7,S7<>T7),"Rev Over Act End 3rd", IF(AND(S7<F7,F7<>G7,S7<>T7),"Rev Less Act Start 3rd",IF(AND(R7>E7,D7<>E7,Q7<>R7),"Rev Over Act End 2nd",IF(AND(Q7<D7,D7<>E7,Q7<>R7),"Rev Less Act Start 2nd",IF(AND(P7>C7,B7<>C7,O7<>P7),"Rev Over Act End 1st",IF(AND(O7<B7,B7<>C7,O7<>P7),"Rev Less Act Start 1st",IF(AND(T7=G7,F7<>G7,S7<>T7),"Same End 3rd",IF(AND(S7=F7,F7<>G7,S7<>T7),"Same Start 3rd",IF(AND(R7=E7,D7<>E7,Q7<>R7),"Same End 2nd",IF(AND(Q7=D7,D7<>E7,Q7<>R7),"Same Start 2nd",IF(AND(P7=C7,B7<>C7,O7<>P7),"Same End 1st",IF(AND(O7=B7,B7<>C7,O7<>P7),"Same Start 1st",""))))))))))))) -> Same Start 2nd | AB7: 2017-01-04 | AC7: 37,910 | AD7: 37,972 | AE7: =AD7 -> 37,972 | AF7: 38,039 | AG7: 38,039 | AH7: 38,039 | AI7: 38,039 | AJ7: =IF(AC7=AI6, 0, AC7-AI6) -> 0 | AK7: 129 | AO7: 1 | AP7: 2017-01-04 | AQ7: 37,911 | AR7: 37,972 | AS7: 37,972 | AT7: 38,035 | AU7: 38,035 | AV7: 38,035 | AW7: 38,035 | AX7: 6 | AY7: 124 | BC7: =IF(AY7>0, 1, 0) -> 1 | BD7: Same Start 2nd
A8: 2017-01-05 | B8: 0.2847222222 | C8: 0.5381944444 | D8: 0.5381944444 | E8: 0.8173611111 | H8: 0.5326388889 | I8: 12.78 | M8: 1 | N8: 2017-01-05 | O8: 0.2881944444 | P8: 0.5381944444 | Q8: 0.5381944444 | R8: 0.7951388889 | U8: 0.5069444444 | V8: 12.17 | Z8: 1 | AA8: =IF(H8<U8,"Actual less than Revenue",IF(AND(T8>G8,F8<>G8,S8<>T8),"Rev Over Act End 3rd", IF(AND(S8<F8,F8<>G8,S8<>T8),"Rev Less Act Start 3rd",IF(AND(R8>E8,D8<>E8,Q8<>R8),"Rev Over Act End 2nd",IF(AND(Q8<D8,D8<>E8,Q8<>R8),"Rev Less Act Start 2nd",IF(AND(P8>C8,B8<>C8,O8<>P8),"Rev Over Act End 1st",IF(AND(O8<B8,B8<>C8,O8<>P8),"Rev Less Act Start 1st",IF(AND(T8=G8,F8<>G8,S8<>T8),"Same End 3rd",IF(AND(S8=F8,F8<>G8,S8<>T8),"Same Start 3rd",IF(AND(R8=E8,D8<>E8,Q8<>R8),"Same End 2nd",IF(AND(Q8=D8,D8<>E8,Q8<>R8),"Same Start 2nd",IF(AND(P8=C8,B8<>C8,O8<>P8),"Same End 1st",IF(AND(O8=B8,B8<>C8,O8<>P8),"Same Start 1st",""))))))))))))) -> Same Start 2nd | AB8: 2017-01-05 | AC8: 38,039 | AD8: 38,114 | AE8: =AD8 -> 38,114 | AF8: 38,196 | AG8: 38,196 | AH8: 38,196 | AI8: 38,196 | AJ8: 0 | AK8: 157 | AO8: 1 | AP8: 2017-01-05 | AQ8: 38,040 | AR8: 38,114 | AS8: 38,114 | AT8: 38,191 | AU8: 38,191 | AV8: 38,191 | AW8: 38,191 | AX8: 5 | AY8: 151 | BC8: 1 | BD8: Same Start 2nd
A9: 2017-01-06 | B9: 0.2847222222 | C9: 0.5381944444 | D9: 0.5381944444 | E9: 0.8104166667 | H9: 0.5256944444 | I9: 12.62 | M9: 1 | N9: 2017-01-06 | O9: 0.2881944444 | P9: 0.5381944444 | Q9: 0.5381944444 | R9: 0.7881944444 | U9: 0.5 | V9: 12.00 | Z9: 1 | AA9: Same Start 2nd | AB9: 2017-01-06 | AC9: 38,196 | AD9: 38,259 | AE9: =AD9 -> 38,259 | AF9: 38,325 | AG9: 38,325 | AH9: 38,325 | AI9: 38,325 | AJ9: 0 | AK9: 129 | AO9: 1 | AP9: 2017-01-06 | AQ9: 38,197 | AR9: 38,259 | AS9: 38,259 | AT9: 38,321 | AU9: 38,321 | AV9: 38,321 | AW9: 38,321 | AX9: 6 | AY9: 124 | BC9: 1 | BD9: Same Start 2nd
A10: 2017-01-07 | H10: 0 | I10: =H10*24 -> 0.00 | M10: 0 | N10: 2017-01-07 | U10: 0 | V10: 0.00 | Z10: 0 | AA10: =IF(H10<U10,"Actual less than Revenue",IF(AND(T10>G10,F10<>G10,S10<>T10),"Rev Over Act End 3rd", IF(AND(S10<F10,F10<>G10,S10<>T10),"Rev Less Act Start 3rd",IF(AND(R10>E10,D10<>E10,Q10<>R10),"Rev Over Act End 2nd",IF(AND(Q10<D10,D10<>E10,Q10<>R10),"Rev Less Act Start 2nd",IF(AND(P10>C10,B10<>C10,O10<>P10),"Rev Over Act End 1st",IF(AND(O10<B10,B10<>C10,O10<>P10),"Rev Less Act Start 1st",IF(AND(T10=G10,F10<>G10,S10<>T10),"Same End 3rd",IF(AND(S10=F10,F10<>G10,S10<>T10),"Same Start 3rd",IF(AND(R10=E10,D10<>E10,Q10<>R10),"Same End 2nd",IF(AND(Q10=D10,D10<>E10,Q10<>R10),"Same Start 2nd",IF(AND(P10=C10,B10<>C10,O10<>P10),"Same End 1st",IF(AND(O10=B10,B10<>C10,O10<>P10),"Same Start 1st",""))))))))))))) ->  | AB10: 2017-01-07 | AC10: 38,325 | AD10: 38,325 | AE10: =AD10 -> 38,325 | AF10: 38,325 | AG10: 38,325 | AH10: 38,325 | AI10: 38,325 | AJ10: 0 | AK10: =(AD10-AC10)+(AF10-AE10)+(AH10-AG10) -> 0 | AO10: 0 | AP10: 2017-01-07 | AQ10: =AW9 -> 38,321 | AR10: 38,321 | AS10: 38,321 | AT10: 38,321 | AU10: 38,321 | AV10: 38,321 | AW10: 38,321 | AX10: 0 | AY10: =(AR10-AQ10)+(AT10-AS10)+(AV10-AU10) -> 0 | BC10: 0
A11: 2017-01-08 | H11: 0 | I11: 0.00 | M11: 0 | N11: 2017-01-08 | U11: =(P11-O11)+(R11-Q11)+(T11-S11) -> 0 | V11: 0.00 | Z11: 0 | AB11: 2017-01-08 | AC11: 38,325 | AD11: 38,325 | AE11: =AD11 -> 38,325 | AF11: 38,325 | AG11: 38,325 | AH11: 38,325 | AI11: =MAX(AD11, AF11, AH11) -> 38,325 | AJ11: 0 | AK11: 0 | AO11: 0 | AP11: 2017-01-08 | AQ11: 38,321 | AR11: 38,321 | AS11: 38,321 | AT11: 38,321 | AU11: 38,321 | AV11: 38,321 | AW11: =MAX(AR11, AT11, AV11) -> 38,321 | AX11: 0 | AY11: 0 | BC11: 0
A12: 2017-01-09 | B12: 0.2847222222 | C12: 0.8194444444 | H12: 0.5347222222 | I12: 12.83 | M12: 1 | N12: 2017-01-09 | O12: 0.2881944444 | P12: 0.7951388889 | U12: 0.5069444444 | V12: 12.17 | Z12: 1 | AB12: 2017-01-09 | AC12: =AI11 -> 38,325 | AD12: 38,482 | AE12: =AD12 -> 38,482 | AF12: =AE12 -> 38,482 | AG12: =AF12 -> 38,482 | AH12: =AG12 -> 38,482 | AI12: =MAX(AD12, AF12, AH12) -> 38,482 | AJ12: 0 | AK12: 157 | AO12: 1 | AP12: 2017-01-09 | AQ12: 38,326 | AR12: 38,477 | AS12: =AR12 -> 38,477 | AT12: =AS12 -> 38,477 | AU12: =AT12 -> 38,477 | AV12: =AU12 -> 38,477 | AW12: 38,477 | AX12: 5 | AY12: 151 | BC12: 1
A13: 2017-01-10 | B13: 0.2847222222 | C13: 0.5381944444 | D13: 0.5381944444 | E13: 0.8097222222 | H13: 0.525 | I13: 12.60 | M13: 1 | N13: 2017-01-10 | O13: 0.2881944444 | P13: 0.5381944444 | Q13: 0.5381944444 | R13: 0.7881944444 | U13: 0.5 | V13: 12.00 | Z13: 1 | AA13: =IF(H13<U13,"Actual less than Revenue",IF(AND(T13>G13,F13<>G13,S13<>T13),"Rev Over Act End 3rd", IF(AND(S13<F13,F13<>G13,S13<>T13),"Rev Less Act Start 3rd",IF(AND(R13>E13,D13<>E13,Q13<>R13),"Rev Over Act End 2nd",IF(AND(Q13<D13,D13<>E13,Q13<>R13),"Rev Less Act Start 2nd",IF(AND(P13>C13,B13<>C13,O13<>P13),"Rev Over Act End 1st",IF(AND(O13<B13,B13<>C13,O13<>P13),"Rev Less Act Start 1st",IF(AND(T13=G13,F13<>G13,S13<>T13),"Same End 3rd",IF(AND(S13=F13,F13<>G13,S13<>T13),"Same Start 3rd",IF(AND(R13=E13,D13<>E13,Q13<>R13),"Same End 2nd",IF(AND(Q13=D13,D13<>E13,Q13<>R13),"Same Start 2nd",IF(AND(P13=C13,B13<>C13,O13<>P13),"Same End 1st",IF(AND(O13=B13,B13<>C13,O13<>P13),"Same Start 1st",""))))))))))))) -> Same Start 2nd | AB13: 2017-01-10 | AC13: =AI12 -> 38,482 | AD13: 38,513 | AE13: =AD13 -> 38,513 | AF13: 38,610 | AG13: 38,610 | AH13: 38,610 | AI13: 38,610 | AJ13: 0 | AK13: 128 | AO13: 1 | AP13: 2017-01-10 | AQ13: 38,483 | AR13: 38,513 | AS13: 38,513 | AT13: 38,605 | AU13: 38,605 | AV13: 38,605 | AW13: 38,605 | AX13: 6 | AY13: 122 | BC13: 1 | BD13: Same Start 2nd
A14: 2017-01-11 | B14: 0.2847222222 | C14: 0.5381944444 | D14: 0.5381944444 | E14: 0.8159722222 | H14: 0.53125 | I14: 12.75 | M14: 1 | N14: 2017-01-11 | O14: 0.2881944444 | P14: 0.5381944444 | Q14: 0.5381944444 | R14: 0.7951388889 | U14: 0.5069444444 | V14: 12.17 | Z14: 1 | AA14: Same Start 2nd | AB14: 2017-01-11 | AC14: 38,610 | AD14: 38,685 | AE14: =AD14 -> 38,685 | AF14: 38,766 | AG14: 38,766 | AH14: 38,766 | AI14: 38,766 | AJ14: 0 | AK14: 156 | AO14: 1 | AP14: 2017-01-11 | AQ14: 38,611 | AR14: 38,685 | AS14: 38,685 | AT14: 38,762 | AU14: 38,762 | AV14: 38,762 | AW14: 38,762 | AX14: 6 | AY14: 151 | BC14: 1 | BD14: Same Start 2nd
A15: 2017-01-12 | B15: 0.2847222222 | C15: 0.5381944444 | D15: 0.5381944444 | E15: 0.8152777778 | H15: 0.5305555556 | I15: 12.73 | M15: 1 | N15: 2017-01-12 | O15: 0.2881944444 | P15: 0.5381944444 | Q15: 0.5381944444 | R15: 0.7881944444 | U15: =(P15-O15)+(R15-Q15)+(T15-S15) -> 0.5 | V15: 12.00 | Z15: 1 | AA15: =IF(H15<U15,"Actual less than Revenue",IF(AND(T15>G15,F15<>G15,S15<>T15),"Rev Over Act End 3rd", IF(AND(S15<F15,F15<>G15,S15<>T15),"Rev Less Act Start 3rd",IF(AND(R15>E15,D15<>E15,Q15<>R15),"Rev Over Act End 2nd",IF(AND(Q15<D15,D15<>E15,Q15<>R15),"Rev Less Act Start 2nd",IF(AND(P15>C15,B15<>C15,O15<>P15),"Rev Over Act End 1st",IF(AND(O15<B15,B15<>C15,O15<>P15),"Rev Less Act Start 1st",IF(AND(T15=G15,F15<>G15,S15<>T15),"Same End 3rd",IF(AND(S15=F15,F15<>G15,S15<>T15),"Same Start 3rd",IF(AND(R15=E15,D15<>E15,Q15<>R15),"Same End 2nd",IF(AND(Q15=D15,D15<>E15,Q15<>R15),"Same Start 2nd",IF(AND(P15=C15,B15<>C15,O15<>P15),"Same End 1st",IF(AND(O15=B15,B15<>C15,O15<>P15),"Same Start 1st",""))))))))))))) -> Same Start 2nd | AB15: 2017-01-12 | AC15: 38,766 | AD15: 38,829 | AE15: =AD15 -> 38,829 | AF15: 38,895 | AG15: 38,895 | AH15: 38,895 | AI15: 38,895 | AJ15: 0 | AK15: 129 | AO15: 1 | AP15: 2017-01-12 | AQ15: 38,767 | AR15: 38,829 | AS15: 38,829 | AT15: 38,890 | AU15: 38,890 | AV15: 38,890 | AW15: 38,890 | AX15: 5 | AY15: 123 | BC15: 1 | BD15: Same Start 2nd
A16: 2017-01-13 | B16: 0.2847222222 | C16: 0.5381944444 | D16: 0.5381944444 | E16: 0.8194444444 | H16: 0.5347222222 | I16: 12.83 | M16: 1 | N16: 2017-01-13 | O16: 0.2881944444 | P16: 0.5381944444 | Q16: 0.5381944444 | R16: 0.7951388889 | U16: 0.5069444444 | V16: 12.17 | Z16: 1 | AA16: Same Start 2nd | AB16: 2017-01-13 | AC16: 38,895 | AD16: 38,969 | AE16: =AD16 -> 38,969 | AF16: 39,050 | AG16: 39,050 | AH16: 39,050 | AI16: 39,050 | AJ16: 0 | AK16: 155 | AO16: 1 | AP16: 2017-01-13 | AQ16: 38,896 | AR16: 38,969 | AS16: 38,969 | AT16: 39,045 | AU16: 39,045 | AV16: 39,045 | AW16: 39,045 | AX16: 6 | AY16: 149 | BC16: 1 | BD16: Same Start 2nd
A17: 2017-01-14 | H17: 0 | I17: 0.00 | M17: 0 | N17: 2017-01-14 | U17: 0 | V17: 0.00 | Z17: 0 | AB17: 2017-01-14 | AC17: 39,050 | AD17: =AC17 -> 39,050 | AE17: =AD17 -> 39,050 | AF17: 39,050 | AG17: 39,050 | AH17: 39,050 | AI17: 39,050 | AJ17: 0 | AK17: 0 | AO17: 0 | AP17: 2017-01-14 | AQ17: =AW16 -> 39,045 | AR17: 39,045 | AS17: 39,045 | AT17: 39,045 | AU17: 39,045 | AV17: 39,045 | AW17: =MAX(AR17, AT17, AV17) -> 39,045 | AX17: 0 | AY17: 0 | BC17: 0
A18: 2017-01-15 | H18: 0 | I18: 0.00 | M18: 0 | N18: 2017-01-15 | U18: 0 | V18: 0.00 | Z18: 0 | AB18: 2017-01-15 | AC18: 39,050 | AD18: 39,050 | AE18: =AD18 -> 39,050 | AF18: 39,050 | AG18: 39,050 | AH18: 39,050 | AI18: 39,050 | AJ18: 0 | AK18: 0 | AO18: 0 | AP18: 2017-01-15 | AQ18: 39,045 | AR18: 39,045 | AS18: 39,045 | AT18: 39,045 | AU18: 39,045 | AV18: 39,045 | AW18: 39,045 | AX18: 0 | AY18: =(AR18-AQ18)+(AT18-AS18)+(AV18-AU18) -> 0 | BC18: 0
A19: 2017-01-16 | B19: 0.2847222222 | C19: 0.8145833333 | H19: 0.5298611111 | I19: 12.72 | M19: 1 | N19: 2017-01-16 | O19: 0.2881944444 | P19: 0.7881944444 | U19: 0.5 | V19: 12.00 | Z19: 1 | AB19: 2017-01-16 | AC19: 39,050 | AD19: 39,179 | AE19: =AD19 -> 39,179 | AF19: 39,179 | AG19: 39,179 | AH19: 39,179 | AI19: 39,179 | AJ19: 0 | AK19: 129 | AO19: 1 | AP19: 2017-01-16 | AQ19: 39,051 | AR19: 39,174 | AS19: 39,174 | AT19: 39,174 | AU19: 39,174 | AV19: 39,174 | AW19: 39,174 | AX19: 6 | AY19: 123 | BC19: 1
A20: 2017-01-17 | B20: 0.2847222222 | C20: 0.5381944444 | D20: 0.5381944444 | E20: 0.8194444444 | H20: 0.5347222222 | I20: 12.83 | M20: 1 | N20: 2017-01-17 | O20: 0.2881944444 | P20: 0.5381944444 | Q20: 0.5381944444 | R20: 0.7951388889 | U20: 0.5069444444 | V20: 12.17 | Z20: 1 | AA20: Same Start 2nd | AB20: 2017-01-17 | AC20: 39,179 | AD20: 39,252 | AE20: =AD20 -> 39,252 | AF20: 39,334 | AG20: 39,334 | AH20: 39,334 | AI20: 39,334 | AJ20: 0 | AK20: 155 | AO20: 1 | AP20: 2017-01-17 | AQ20: 39,180 | AR20: 39,252 | AS20: =AR20 -> 39,252 | AT20: 39,329 | AU20: 39,329 | AV20: 39,329 | AW20: 39,329 | AX20: 6 | AY20: 149 | BC20: 1 | BD20: Same Start 2nd
A21: 2017-01-18 | B21: 0.2847222222 | C21: 0.5381944444 | D21: 0.5381944444 | E21: 0.8125 | H21: 0.5277777778 | I21: 12.67 | M21: 1 | N21: 2017-01-18 | O21: 0.2881944444 | P21: 0.5381944444 | Q21: 0.5381944444 | R21: 0.7881944444 | U21: 0.5 | V21: 12.00 | Z21: 1 | AA21: Same Start 2nd | AB21: 2017-01-18 | AC21: 39,334 | AD21: 39,396 | AE21: =AD21 -> 39,396 | AF21: 39,396 | AG21: 39,396 | AH21: 39,396 | AI21: 39,396 | AJ21: 0 | AK21: 62 | AO21: 1 | AP21: 2017-01-18 | AQ21: 39,335 | AR21: 39,396 | AS21: 39,396 | AT21: 39,396 | AU21: 39,396 | AV21: 39,396 | AW21: 39,396 | AX21: 6 | AY21: 61 | BC21: 1 | BD21: Same End 1st
A22: 2017-01-19 | B22: 0.2847222222 | C22: 0.5381944444 | D22: 0.5381944444 | E22: 0.8125 | H22: 0.5277777778 | I22: 12.67 | M22: 1 | N22: 2017-01-19 | O22: 0.2881944444 | P22: 0.5381944444 | Q22: 0.5381944444 | R22: 0.7951388889 | U22: 0.5069444444 | V22: 12.17 | Z22: 1 | AA22: Same Start 2nd | AB22: 2017-01-19 | AC22: 39,452 | AD22: 39,536 | AE22: =AD22 -> 39,536 | AF22: 39,617 | AG22: 39,617 | AH22: 39,617 | AI22: 39,617 | AJ22: 56 | AK22: 165 | AO22: 1 | AP22: 2017-01-19 | AQ22: 39,453 | AR22: 39,536 | AS22: 39,536 | AT22: 39,615 | AU22: 39,615 | AV22: 39,615 | AW22: 39,615 | AX22: 57 | AY22: 162 | BC22: 1 | BD22: Same Start 2nd
A23: 2017-01-20 | B23: 0.2847222222 | C23: 0.5381944444 | D23: 0.5381944444 | E23: 0.8138888889 | H23: 0.5291666667 | I23: 12.70 | M23: 1 | N23: 2017-01-20 | O23: 0.2881944444 | P23: 0.5381944444 | Q23: 0.5381944444 | R23: 0.7881944444 | U23: 0.5 | V23: 12.00 | Z23: 1 | AA23: Same Start 2nd | AB23: 2017-01-20 | AC23: 39,617 | AD23: 39,680 | AE23: =AD23 -> 39,680 | AF23: 39,746 | AG23: 39,746 | AH23: 39,746 | AI23: 39,746 | AJ23: 0 | AK23: 129 | AO23: 1 | AP23: 2017-01-20 | AQ23: 39,618 | AR23: 39,680 | AS23: 39,680 | AT23: 39,741 | AU23: 39,741 | AV23: 39,741 | AW23: 39,741 | AX23: 3 | AY23: 123 | BC23: 1 | BD23: Same Start 2nd
A24: 2017-01-21 | H24: 0 | I24: 0.00 | M24: 0 | N24: 2017-01-21 | U24: 0 | V24: 0.00 | Z24: 0 | AB24: 2017-01-21 | AC24: 39,746 | AD24: 39,746 | AE24: =AD24 -> 39,746 | AF24: 39,746 | AG24: 39,746 | AH24: 39,746 | AI24: 39,746 | AJ24: 0 | AK24: 0 | AO24: 0 | AP24: 2017-01-21 | AQ24: 39,741 | AR24: 39,741 | AS24: 39,741 | AT24: 39,741 | AU24: 39,741 | AV24: 39,741 | AW24: 39,741 | AX24: 0 | AY24: 0 | BC24: 0
A25: 2017-01-22 | H25: 0 | I25: 0.00 | M25: 0 | N25: 2017-01-22 | U25: 0 | V25: 0.00 | Z25: 0 | AB25: 2017-01-22 | AC25: 39,746 | AD25: 39,746 | AE25: =AD25 -> 39,746 | AF25: 39,746 | AG25: 39,746 | AH25: 39,746 | AI25: 39,746 | AJ25: 0 | AK25: 0 | AO25: 0 | AP25: 2017-01-22 | AQ25: 39,741 | AR25: 39,741 | AS25: 39,741 | AT25: 39,741 | AU25: 39,741 | AV25: 39,741 | AW25: 39,741 | AX25: 0 | AY25: 0 | BC25: 0
A26: 2017-01-23 | H26: =(C26-B26)+(E26-D26)+(G26-F26) -> 0 | I26: 0.00 | M26: 0 | N26: 2017-01-23 | U26: 0 | V26: 0.00 | Z26: 0 | AB26: 2017-01-23 | AC26: 39,746 | AD26: 39,746 | AE26: =AD26 -> 39,746 | AF26: 39,746 | AG26: 39,746 | AH26: 39,746 | AI26: 39,746 | AJ26: 0 | AK26: 0 | AO26: 0 | AP26: 2017-01-23 | AQ26: 39,741 | AR26: 39,741 | AS26: 39,741 | AT26: 39,741 | AU26: 39,741 | AV26: 39,741 | AW26: 39,741 | AX26: 0 | AY26: 0 | BC26: 0
A27: 2017-01-24 | B27: 0.2847222222 | C27: 0.5381944444 | D27: 0.5381944444 | E27: 0.8173611111 | H27: =(C27-B27)+(E27-D27)+(G27-F27) -> 0.5326388889 | I27: 12.78 | M27: 1 | N27: 2017-01-24 | O27: 0.2881944444 | P27: 0.5381944444 | Q27: 0.5381944444 | R27: 0.7881944444 | U27: 0.5 | V27: 12.00 | Z27: 1 | AA27: Same Start 2nd | AB27: 2017-01-24 | AC27: 39,762 | AD27: 39,825 | AE27: =AD27 -> 39,825 | AF27: 39,891 | AG27: 39,891 | AH27: 39,891 | AI27: 39,891 | AJ27: 16 | AK27: 129 | AO27: 1 | AP27: 2017-01-24 | AQ27: 39,763 | AR27: 39,825 | AS27: 39,825 | AT27: 39,891 | AU27: 39,891 | AV27: 39,891 | AW27: 39,891 | AX27: 22 | AY27: 128 | BC27: 1 | BD27: Same End 2nd
A28: 2017-01-25 | H28: 0 | I28: 0.00 | M28: 0 | N28: 2017-01-25 | U28: 0 | V28: 0.00 | Z28: 0 | AB28: 2017-01-25 | AC28: 39,891 | AD28: 39,891 | AE28: =AD28 -> 39,891 | AF28: 39,891 | AG28: 39,891 | AH28: 39,891 | AI28: 39,891 | AJ28: 0 | AK28: 0 | AO28: 0 | AP28: 2017-01-25 | AQ28: 39,891 | AR28: 39,891 | AS28: 39,891 | AT28: 39,891 | AU28: 39,891 | AV28: 39,891 | AW28: 39,891 | AX28: 0 | AY28: 0 | BC28: 0
A29: 2017-01-26 | B29: 0.2847222222 | C29: 0.3125 | H29: 0.02777777778 | I29: 0.67 | M29: 1 | N29: 2017-01-26 | O29: 0.2881944444 | P29: 0.3125 | U29: 0.02430555556 | V29: 0.58 | Z29: 1 | AA29: Same End 1st | AB29: 2017-01-26 | AC29: 40,045 | AD29: 40,045 | AE29: =AD29 -> 40,045 | AF29: 40,045 | AG29: 40,045 | AH29: 40,045 | AI29: 40,045 | AJ29: 154 | AK29: 0 | AO29: 0 | AP29: 2017-01-26 | AQ29: 40,046 | AR29: 40,046 | AS29: 40,046 | AT29: 40,046 | AU29: 40,046 | AV29: 40,046 | AW29: 40,046 | AX29: 155 | AY29: 0 | BC29: 0
A30: 2017-01-27 | H30: 0 | I30: 0.00 | M30: 0 | N30: 2017-01-27 | U30: 0 | V30: 0.00 | Z30: 0 | AB30: 2017-01-27 | AC30: 40,045 | AD30: 40,045 | AE30: =AD30 -> 40,045 | AF30: 40,045 | AG30: 40,045 | AH30: 40,045 | AI30: 40,045 | AJ30: 0 | AK30: 0 | AO30: 0 | AP30: 2017-01-27 | AQ30: 40,046 | AR30: 40,046 | AS30: 40,046 | AT30: 40,046 | AU30: 40,046 | AV30: 40,046 | AW30: 40,046 | AX30: 0 | AY30: 0 | BC30: 0
A31: 2017-01-28 | H31: 0 | I31: 0.00 | M31: 0 | N31: 2017-01-28 | U31: 0 | V31: 0.00 | Z31: 0 | AB31: 2017-01-28 | AC31: 40,045 | AD31: 40,045 | AE31: =AD31 -> 40,045 | AF31: 40,045 | AG31: 40,045 | AH31: 40,045 | AI31: 40,045 | AJ31: 0 | AK31: 0 | AO31: 0 | AP31: 2017-01-28 | AQ31: 40,046 | AR31: 40,046 | AS31: 40,046 | AT31: 40,046 | AU31: 40,046 | AV31: 40,046 | AW31: 40,046 | AX31: 0 | AY31: 0 | BC31: 0
A32: 2017-01-29 | H32: 0 | I32: 0.00 | M32: 0 | N32: 2017-01-29 | U32: 0 | V32: 0.00 | Z32: 0 | AB32: 2017-01-29 | AC32: 40,045 | AD32: 40,045 | AE32: =AD32 -> 40,045 | AF32: 40,045 | AG32: 40,045 | AH32: 40,045 | AI32: 40,045 | AJ32: 0 | AK32: 0 | AO32: 0 | AP32: 2017-01-29 | AQ32: 40,046 | AR32: 40,046 | AS32: 40,046 | AT32: 40,046 | AU32: 40,046 | AV32: 40,046 | AW32: 40,046 | AX32: 0 | AY32: 0 | BC32: 0
A33: 2017-01-30 | H33: 0 | I33: 0.00 | M33: 0 | N33: 2017-01-30 | U33: 0 | V33: 0.00 | Z33: 0 | AB33: 2017-01-30 | AC33: 40,045 | AD33: 40,045 | AE33: =AD33 -> 40,045 | AF33: 40,045 | AG33: 40,045 | AH33: 40,045 | AI33: 40,045 | AJ33: 0 | AK33: 0 | AO33: 0 | AP33: 2017-01-30 | AQ33: 40,046 | AR33: 40,046 | AS33: 40,046 | AT33: 40,046 | AU33: 40,046 | AV33: 40,046 | AW33: 40,046 | AX33: 0 | AY33: 0 | BC33: 0
A34: 2017-01-31 | H34: 0 | I34: 0.00 | M34: 0 | N34: 2017-01-31 | U34: 0 | V34: 0.00 | Z34: 0 | AB34: 2017-01-31 | AC34: 40,045 | AD34: 40,045 | AE34: =AD34 -> 40,045 | AF34: 40,045 | AG34: 40,045 | AH34: 40,045 | AI34: 40,045 | AJ34: 0 | AK34: 0 | AO34: 0 | AP34: 2017-01-31 | AQ34: 40,046 | AR34: 40,046 | AS34: 40,046 | AT34: 40,046 | AU34: 40,046 | AV34: 40,046 | AW34: 40,046 | AX34: 0 | AY34: 0 | BC34: 0
A35: 2017-02-01 | H35: 0 | I35: 0.00 | M35: 0 | N35: 2017-02-01 | U35: 0 | V35: 0.00 | Z35: 0 | AB35: 2017-02-01 | AC35: 40,045 | AD35: 40,045 | AE35: =AD35 -> 40,045 | AF35: 40,045 | AG35: 40,045 | AH35: 40,045 | AI35: 40,045 | AJ35: 0 | AK35: 0 | AO35: 0 | AP35: 2017-02-01 | AQ35: 40,046 | AR35: 40,046 | AS35: 40,046 | AT35: 40,046 | AU35: 40,046 | AV35: 40,046 | AW35: 40,046 | AX35: 0 | AY35: 0 | BC35: 0
A36: 2017-02-02 | H36: 0 | I36: 0.00 | M36: 0 | N36: 2017-02-02 | U36: 0 | V36: 0.00 | Z36: 0 | AB36: 2017-02-02 | AC36: 40,045 | AD36: 40,045 | AE36: =AD36 -> 40,045 | AF36: 40,045 | AG36: 40,045 | AH36: 40,045 | AI36: 40,045 | AJ36: 0 | AK36: 0 | AO36: 0 | AP36: 2017-02-02 | AQ36: 40,046 | AR36: 40,046 | AS36: 40,046 | AT36: 40,046 | AU36: 40,046 | AV36: 40,046 | AW36: 40,046 | AX36: 0 | AY36: 0 | BC36: 0
A37: 2017-02-03 | H37: 0 | I37: 0.00 | M37: 0 | N37: 2017-02-03 | U37: 0 | V37: 0.00 | Z37: 0 | AB37: 2017-02-03 | AC37: 40,045 | AD37: 40,045 | AE37: =AD37 -> 40,045 | AF37: 40,045 | AG37: 40,045 | AH37: 40,045 | AI37: 40,045 | AJ37: 0 | AK37: 0 | AO37: 0 | AP37: 2017-02-03 | AQ37: 40,046 | AR37: 40,046 | AS37: 40,046 | AT37: 40,046 | AU37: 40,046 | AV37: 40,046 | AW37: 40,046 | AX37: 0 | AY37: 0 | BC37: 0
A38: 2017-02-04 | H38: 0 | I38: 0.00 | M38: 0 | N38: 2017-02-04 | U38: 0 | V38: 0.00 | Z38: 0 | AB38: 2017-02-04 | AC38: 40,045 | AD38: 40,045 | AE38: =AD38 -> 40,045 | AF38: 40,045 | AG38: 40,045 | AH38: 40,045 | AI38: 40,045 | AJ38: 0 | AK38: 0 | AO38: 0 | AP38: 2017-02-04 | AQ38: 40,046 | AR38: 40,046 | AS38: 40,046 | AT38: 40,046 | AU38: 40,046 | AV38: 40,046 | AW38: 40,046 | AX38: 0 | AY38: 0 | BC38: 0
A39: 2017-02-05 | H39: 0 | I39: 0.00 | M39: 0 | N39: 2017-02-05 | U39: 0 | V39: 0.00 | Z39: 0 | AB39: 2017-02-05 | AC39: 40,045 | AD39: 40,045 | AE39: =AD39 -> 40,045 | AF39: 40,045 | AG39: 40,045 | AH39: 40,045 | AI39: 40,045 | AJ39: 0 | AK39: 0 | AO39: 0 | AP39: 2017-02-05 | AQ39: 40,046 | AR39: 40,046 | AS39: 40,046 | AT39: 40,046 | AU39: 40,046 | AV39: 40,046 | AW39: 40,046 | AX39: 0 | AY39: 0 | BC39: 0
A40: 2017-02-06 | H40: 0 | I40: 0.00 | M40: 0 | N40: 2017-02-06 | U40: 0 | V40: 0.00 | Z40: 0 | AB40: 2017-02-06 | AC40: 40,045 | AD40: 40,045 | AE40: =AD40 -> 40,045 | AF40: 40,045 | AG40: 40,045 | AH40: 40,045 | AI40: 40,045 | AJ40: 0 | AK40: 0 | AO40: 0 | AP40: 2017-02-06 | AQ40: 40,046 | AR40: 40,046 | AS40: 40,046 | AT40: 40,046 | AU40: 40,046 | AV40: 40,046 | AW40: 40,046 | AX40: 0 | AY40: 0 | BC40: 0
A41: 2017-02-07 | H41: 0 | I41: 0.00 | M41: 0 | N41: 2017-02-07 | U41: 0 | V41: 0.00 | Z41: 0 | AB41: 2017-02-07 | AC41: 40,045 | AD41: 40,045 | AE41: =AD41 -> 40,045 | AF41: 40,045 | AG41: 40,045 | AH41: 40,045 | AI41: 40,045 | AJ41: 0 | AK41: 0 | AO41: 0 | AP41: 2017-02-07 | AQ41: 40,046 | AR41: 40,046 | AS41: 40,046 | AT41: 40,046 | AU41: 40,046 | AV41: 40,046 | AW41: 40,046 | AX41: 0 | AY41: 0 | BC41: 0
A42: 2017-02-08 | H42: 0 | I42: 0.00 | M42: 0 | N42: 2017-02-08 | U42: 0 | V42: 0.00 | Z42: 0 | AB42: 2017-02-08 | AC42: 40,045 | AD42: 40,045 | AE42: =AD42 -> 40,045 | AF42: 40,045 | AG42: 40,045 | AH42: 40,045 | AI42: 40,045 | AJ42: 0 | AK42: 0 | AO42: 0 | AP42: 2017-02-08 | AQ42: 40,046 | AR42: 40,046 | AS42: 40,046 | AT42: 40,046 | AU42: 40,046 | AV42: 40,046 | AW42: 40,046 | AX42: 0 | AY42: 0 | BC42: 0
A43: 2017-02-09 | B43: 0.2847222222 | C43: 0.8125 | H43: 0.5277777778 | I43: 12.67 | M43: 1 | N43: 2017-02-09 | O43: 0.2881944444 | P43: 0.7881944444 | U43: 0.5 | V43: 12.00 | Z43: 1 | AB43: 2017-02-09 | AC43: 40,079 | AD43: 40,207 | AE43: =AD43 -> 40,207 | AF43: 40,207 | AG43: 40,207 | AH43: 40,207 | AI43: 40,207 | AJ43: 34 | AK43: 128 | AO43: 1 | AP43: 2017-02-09 | AQ43: 40,080 | AR43: 40,203 | AS43: 40,203 | AT43: 40,203 | AU43: 40,203 | AV43: 40,203 | AW43: 40,203 | AX43: 34 | AY43: 123 | BC43: 1
A44: 2017-02-10 | B44: 0.2847222222 | C44: 0.5381944444 | D44: 0.5381944444 | E44: 0.8166666667 | H44: 0.5319444444 | I44: 12.77 | M44: 1 | N44: 2017-02-10 | O44: 0.2881944444 | P44: 0.5381944444 | Q44: 0.5381944444 | R44: 0.7951388889 | U44: 0.5069444444 | V44: 12.17 | Z44: 1 | AA44: Same Start 2nd | AB44: 2017-02-10 | AC44: 40,207 | AD44: 40,279 | AE44: =AD44 -> 40,279 | AF44: 40,362 | AG44: 40,362 | AH44: 40,362 | AI44: 40,362 | AJ44: 0 | AK44: 155 | AO44: 1 | AP44: 2017-02-10 | AQ44: 40,208 | AR44: 40,279 | AS44: 40,279 | AT44: 40,360 | AU44: 40,360 | AV44: 40,360 | AW44: 40,360 | AX44: 5 | AY44: 152 | BC44: 1 | BD44: Same Start 2nd
A45: 2017-02-11 | H45: 0 | I45: 0.00 | M45: 0 | N45: 2017-02-11 | U45: 0 | V45: 0.00 | Z45: 0 | AB45: 2017-02-11 | AC45: 40,362 | AD45: 40,362 | AE45: =AD45 -> 40,362 | AF45: 40,362 | AG45: 40,362 | AH45: 40,362 | AI45: 40,362 | AJ45: 0 | AK45: 0 | AO45: 0 | AP45: 2017-02-11 | AQ45: 40,360 | AR45: 40,360 | AS45: 40,360 | AT45: 40,360 | AU45: 40,360 | AV45: 40,360 | AW45: 40,360 | AX45: 0 | AY45: 0 | BC45: 0
A46: 2017-02-12 | H46: 0 | I46: 0.00 | M46: 0 | N46: 2017-02-12 | U46: 0 | V46: 0.00 | Z46: 0 | AB46: 2017-02-12 | AC46: 40,362 | AD46: 40,362 | AE46: =AD46 -> 40,362 | AF46: 40,362 | AG46: 40,362 | AH46: 40,362 | AI46: 40,362 | AJ46: 0 | AK46: 0 | AO46: 0 | AP46: 2017-02-12 | AQ46: 40,360 | AR46: 40,360 | AS46: 40,360 | AT46: 40,360 | AU46: 40,360 | AV46: 40,360 | AW46: 40,360 | AX46: 0 | AY46: 0 | BC46: 0
A47: 2017-02-13 | B47: 0.2847222222 | C47: 0.5381944444 | D47: 0.5381944444 | E47: 0.8180555556 | H47: 0.5333333333 | I47: 12.80 | M47: 1 | N47: 2017-02-13 | O47: 0.2881944444 | P47: 0.5381944444 | Q47: 0.5381944444 | R47: 0.7881944444 | U47: 0.5 | V47: 12.00 | Z47: 1 | AA47: Same Start 2nd | AB47: 2017-02-13 | AC47: 40,362 | AD47: 40,425 | AE47: =AD47 -> 40,425 | AF47: 40,491 | AG47: 40,491 | AH47: 40,491 | AI47: 40,491 | AJ47: 0 | AK47: 129 | AO47: 1 | AP47: 2017-02-13 | AQ47: 40,363 | AR47: 40,425 | AS47: 40,425 | AT47: 40,486 | AU47: 40,486 | AV47: 40,486 | AW47: 40,486 | AX47: 3 | AY47: 123 | BC47: 1 | BD47: Same Start 2nd
A48: 2017-02-14 | B48: 0.2847222222 | C48: 0.5381944444 | D48: 0.5381944444 | E48: 0.8222222222 | H48: 0.5375 | I48: 12.90 | M48: 1 | N48: 2017-02-14 | O48: 0.2881944444 | P48: 0.5381944444 | Q48: 0.5381944444 | R48: 0.7951388889 | U48: 0.5069444444 | V48: 12.17 | Z48: 1 | AA48: Same Start 2nd | AB48: 2017-02-14 | AC48: 40,491 | AD48: 40,564 | AE48: =AD48 -> 40,564 | AF48: 40,645 | AG48: 40,645 | AH48: 40,645 | AI48: 40,645 | AJ48: 0 | AK48: 154 | AO48: 1 | AP48: 2017-02-14 | AQ48: 40,492 | AR48: 40,564 | AS48: 40,564 | AT48: 40,641 | AU48: 40,641 | AV48: 40,641 | AW48: 40,641 | AX48: 6 | AY48: 149 | BC48: 1 | BD48: Same Start 2nd
A49: 2017-02-15 | B49: 0.2847222222 | C49: 0.8125 | H49: 0.5277777778 | I49: 12.67 | M49: 1 | N49: 2017-02-15 | O49: 0.2881944444 | P49: 0.7881944444 | U49: 0.5 | V49: 12.00 | Z49: 1 | AB49: 2017-02-15 | AC49: 40,645 | AD49: 40,774 | AE49: =AD49 -> 40,774 | AF49: 40,774 | AG49: 40,774 | AH49: 40,774 | AI49: 40,774 | AJ49: 0 | AK49: 129 | AO49: 1 | AP49: 2017-02-15 | AQ49: 40,646 | AR49: 40,769 | AS49: 40,769 | AT49: 40,769 | AU49: 40,769 | AV49: 40,769 | AW49: 40,769 | AX49: 5 | AY49: 123 | BC49: 1
A50: 2017-02-16 | B50: 0.2847222222 | C50: 0.8159722222 | H50: 0.53125 | I50: 12.75 | M50: 1 | N50: 2017-02-16 | O50: 0.2881944444 | P50: 0.7951388889 | U50: 0.5069444444 | V50: 12.17 | Z50: 1 | AB50: 2017-02-16 | AC50: 40,774 | AD50: 40,926 | AE50: =AD50 -> 40,926 | AF50: 40,926 | AG50: 40,926 | AH50: 40,926 | AI50: 40,926 | AJ50: 0 | AK50: 152 | AO50: 1 | AP50: 2017-02-16 | AQ50: 40,775 | AR50: 40,922 | AS50: 40,922 | AT50: 40,922 | AU50: 40,922 | AV50: 40,922 | AW50: 40,922 | AX50: 6 | AY50: 147 | BC50: 1
A51: 2017-02-17 | B51: 0.2847222222 | C51: 0.8131944444 | H51: 0.5284722222 | I51: 12.68 | M51: 1 | N51: 2017-02-17 | O51: 0.2881944444 | P51: 0.7881944444 | U51: 0.5 | V51: 12.00 | Z51: 1 | AB51: 2017-02-17 | AC51: 40,926 | AD51: 41,055 | AE51: =AD51 -> 41,055 | AF51: 41,055 | AG51: 41,055 | AH51: 41,055 | AI51: 41,055 | AJ51: 0 | AK51: 129 | AO51: 1 | AP51: 2017-02-17 | AQ51: 40,927 | AR51: 41,050 | AS51: 41,050 | AT51: 41,050 | AU51: 41,050 | AV51: 41,050 | AW51: 41,050 | AX51: 5 | AY51: 123 | BC51: 1
A52: 2017-02-18 | H52: 0 | I52: 0.00 | M52: 0 | N52: 2017-02-18 | U52: 0 | V52: 0.00 | Z52: 0 | AB52: 2017-02-18 | AC52: 41,055 | AD52: 41,055 | AE52: =AD52 -> 41,055 | AF52: 41,055 | AG52: 41,055 | AH52: 41,055 | AI52: 41,055 | AJ52: 0 | AK52: 0 | AO52: 0 | AP52: 2017-02-18 | AQ52: 41,050 | AR52: 41,050 | AS52: 41,050 | AT52: 41,050 | AU52: 41,050 | AV52: 41,050 | AW52: 41,050 | AX52: 0 | AY52: 0 | BC52: 0
A53: 2017-02-19 | H53: 0 | I53: 0.00 | M53: 0 | N53: 2017-02-19 | U53: 0 | V53: 0.00 | Z53: 0 | AB53: 2017-02-19 | AC53: 41,055 | AD53: 41,055 | AE53: =AD53 -> 41,055 | AF53: 41,055 | AG53: 41,055 | AH53: 41,055 | AI53: 41,055 | AJ53: 0 | AK53: 0 | AO53: 0 | AP53: 2017-02-19 | AQ53: 41,050 | AR53: 41,050 | AS53: 41,050 | AT53: 41,050 | AU53: 41,050 | AV53: 41,050 | AW53: 41,050 | AX53: 0 | AY53: 0 | BC53: 0
A54: 2017-02-20 | H54: 0 | I54: 0.00 | M54: 0 | N54: 2017-02-20 | U54: 0 | V54: 0.00 | Z54: 0 | AB54: 2017-02-20 | AC54: 41,055 | AD54: 41,055 | AE54: =AD54 -> 41,055 | AF54: 41,055 | AG54: 41,055 | AH54: 41,055 | AI54: 41,055 | AJ54: 0 | AK54: 0 | AO54: 0 | AP54: 2017-02-20 | AQ54: 41,050 | AR54: 41,050 | AS54: 41,050 | AT54: 41,050 | AU54: 41,050 | AV54: 41,050 | AW54: 41,050 | AX54: 0 | AY54: 0 | BC54: 0
A55: 2017-02-21 | B55: 0.2847222222 | C55: 0.5381944444 | D55: 0.5381944444 | E55: 0.8131944444 | H55: 0.5284722222 | I55: 12.68 | M55: 1 | N55: 2017-02-21 | O55: 0.2881944444 | P55: 0.5381944444 | Q55: 0.5381944444 | R55: 0.7881944444 | U55: 0.5 | V55: 12.00 | Z55: 1 | AA55: Same Start 2nd | AB55: 2017-02-21 | AC55: 41,208 | AD55: 41,271 | AE55: =AD55 -> 41,271 | AF55: 41,337 | AG55: 41,337 | AH55: 41,337 | AI55: 41,337 | AJ55: 153 | AK55: 129 | AO55: 1 | AP55: 2017-02-21 | AQ55: 41,209 | AR55: 41,271 | AS55: 41,271 | AT55: 41,332 | AU55: 41,332 | AV55: 41,332 | AW55: 41,332 | AX55: 159 | AY55: 123 | BC55: 1 | BD55: Same Start 2nd
A56: 2017-02-22 | B56: 0.2847222222 | C56: 0.8194444444 | H56: 0.5347222222 | I56: 12.83 | M56: 1 | N56: 2017-02-22 | O56: 0.2881944444 | P56: 0.7951388889 | U56: 0.5069444444 | V56: 12.17 | Z56: 1 | AB56: 2017-02-22 | AC56: 41,337 | AD56: 41,490 | AE56: =AD56 -> 41,490 | AF56: 41,490 | AG56: 41,490 | AH56: 41,490 | AI56: 41,490 | AJ56: 0 | AK56: 153 | AO56: 1 | AP56: 2017-02-22 | AQ56: 41,337 | AR56: 41,488 | AS56: 41,488 | AT56: 41,488 | AU56: 41,488 | AV56: 41,488 | AW56: 41,488 | AX56: 5 | AY56: 151 | BC56: 1 | BD56: Same Start 1st
A57: 2017-02-23 | B57: 0.2847222222 | C57: 0.8125 | H57: 0.5277777778 | I57: 12.67 | M57: 1 | N57: 2017-02-23 | O57: 0.2881944444 | P57: 0.7881944444 | U57: 0.5 | V57: 12.00 | Z57: 1 | AB57: 2017-02-23 | AC57: 41,490 | AD57: 41,626 | AE57: =AD57 -> 41,626 | AF57: 41,626 | AG57: 41,626 | AH57: 41,626 | AI57: 41,626 | AJ57: 0 | AK57: 136 | AO57: 1 | AP57: 2017-02-23 | AQ57: 41,491 | AR57: 41,642 | AS57: 41,642 | AT57: 41,642 | AU57: 41,642 | AV57: 41,642 | AW57: 41,642 | AX57: 3 | AY57: 151 | BC57: 1 | BD57: Actual less than Revenue
A58: 2017-02-24 | B58: 0.2847222222 | C58: 0.8166666667 | H58: 0.5319444444 | I58: 12.77 | M58: 1 | N58: 2017-02-24 | O58: 0.2881944444 | P58: 0.7951388889 | U58: 0.5069444444 | V58: 12.17 | Z58: 1 | AB58: 2017-02-24 | AC58: 41,646 | AD58: 41,799 | AE58: =AD58 -> 41,799 | AF58: 41,799 | AG58: 41,799 | AH58: 41,799 | AI58: 41,799 | AJ58: 20 | AK58: 153 | AO58: 1 | AP58: 2017-02-24 | AQ58: 41,647 | AR58: 41,793 | AS58: 41,793 | AT58: 41,793 | AU58: 41,793 | AV58: 41,793 | AW58: 41,793 | AX58: 5 | AY58: 146 | BC58: 1
A59: 2017-02-25 | H59: 0 | I59: 0.00 | M59: 0 | N59: 2017-02-25 | U59: 0 | V59: 0.00 | Z59: 0 | AB59: 2017-02-25 | AC59: 41,799 | AD59: 41,799 | AE59: =AD59 -> 41,799 | AF59: 41,799 | AG59: 41,799 | AH59: 41,799 | AI59: 41,799 | AJ59: 0 | AK59: 0 | AO59: 0 | AP59: 2017-02-25 | AQ59: 41,793 | AR59: 41,793 | AS59: 41,793 | AT59: 41,793 | AU59: 41,793 | AV59: 41,793 | AW59: 41,793 | AX59: 0 | AY59: 0 | BC59: 0
A60: 2017-02-26 | H60: 0 | I60: 0.00 | M60: 0 | N60: 2017-02-26 | U60: 0 | V60: 0.00 | Z60: 0 | AB60: 2017-02-26 | AC60: 41,799 | AD60: 41,799 | AE60: =AD60 -> 41,799 | AF60: 41,799 | AG60: 41,799 | AH60: 41,799 | AI60: 41,799 | AJ60: 0 | AK60: 0 | AO60: 0 | AP60: 2017-02-26 | AQ60: 41,793 | AR60: 41,793 | AS60: 41,793 | AT60: 41,793 | AU60: 41,793 | AV60: 41,793 | AW60: =MAX(AR60, AT60, AV60) -> 41,793 | AX60: 0 | AY60: 0 | BC60: 0
A61: 2017-02-27 | B61: 0.2847222222 | C61: 0.8125 | H61: 0.5277777778 | I61: 12.67 | M61: 1 | N61: 2017-02-27 | O61: 0.2881944444 | P61: 0.7881944444 | U61: 0.5 | V61: 12.00 | Z61: 1 | AB61: 2017-02-27 | AC61: 41,799 | AD61: 41,928 | AE61: =AD61 -> 41,928 | AF61: 41,928 | AG61: 41,928 | AH61: 41,928 | AI61: 41,928 | AJ61: 0 | AK61: 129 | AO61: 1 | AP61: 2017-02-27 | AQ61: 41,800 | AR61: 41,923 | AS61: 41,923 | AT61: 41,923 | AU61: 41,923 | AV61: 41,923 | AW61: 41,923 | AX61: 7 | AY61: 123 | BC61: 1
A62: 2017-02-28 | B62: 0.2847222222 | C62: 0.8159722222 | H62: 0.53125 | I62: 12.75 | M62: 1 | N62: 2017-02-28 | O62: 0.2881944444 | P62: 0.7951388889 | U62: 0.5069444444 | V62: 12.17 | Z62: 1 | AB62: 2017-02-28 | AC62: 41,928 | AD62: 42,080 | AE62: =AD62 -> 42,080 | AF62: 42,080 | AG62: 42,080 | AH62: 42,080 | AI62: 42,080 | AJ62: 0 | AK62: 152 | AO62: 1 | AP62: 2017-02-28 | AQ62: 41,929 | AR62: 42,078 | AS62: 42,078 | AT62: 42,078 | AU62: 42,078 | AV62: 42,078 | AW62: 42,078 | AX62: 6 | AY62: 149 | BC62: 1
A63: 2017-03-01 | B63: 0.2847222222 | C63: 0.8229166667 | H63: 0.5381944444 | I63: 12.92 | M63: 1 | N63: 2017-03-01 | O63: 0.2881944444 | P63: 0.7881944444 | U63: 0.5 | V63: 12.00 | Z63: 1 | AB63: 2017-03-01 | AC63: 42,080 | AD63: 42,209 | AE63: =AD63 -> 42,209 | AF63: 42,209 | AG63: 42,209 | AH63: 42,209 | AI63: 42,209 | AJ63: 0 | AK63: 129 | AO63: 1 | AP63: 2017-03-01 | AQ63: 42,081 | AR63: 42,204 | AS63: 42,204 | AT63: 42,204 | AU63: 42,204 | AV63: 42,204 | AW63: 42,204 | AX63: 3 | AY63: 123 | BC63: 1
A64: 2017-03-02 | B64: 0.2847222222 | C64: 0.8201388889 | H64: 0.5354166667 | I64: 12.85 | M64: 1 | N64: 2017-03-02 | O64: 0.2881944444 | P64: 0.7951388889 | U64: 0.5069444444 | V64: 12.17 | Z64: 1 | AB64: 2017-03-02 | AC64: 42,209 | AD64: 42,361 | AE64: =AD64 -> 42,361 | AF64: 42,361 | AG64: 42,361 | AH64: 42,361 | AI64: 42,361 | AJ64: 0 | AK64: 152 | AO64: 1 | AP64: 2017-03-02 | AQ64: 42,210 | AR64: 42,356 | AS64: 42,356 | AT64: 42,356 | AU64: 42,362 | AV64: 42,362 | AW64: 42,362 | AX64: 6 | AY64: 146 | BC64: 1
A65: 2017-03-03 | B65: 0.2847222222 | C65: 0.5798611111 | D65: 0.5798611111 | E65: 0.8131944444 | H65: 0.5284722222 | I65: 12.68 | M65: 1 | N65: 2017-03-03 | O65: 0.2881944444 | P65: 0.5798611111 | Q65: 0.5798611111 | R65: 0.7881944444 | U65: 0.5 | V65: 12.00 | Z65: 1 | AA65: Same Start 2nd | AB65: 2017-03-03 | AC65: 42,361 | AD65: 42,434 | AE65: =AD65 -> 42,434 | AF65: 42,489 | AG65: 42,489 | AH65: 42,489 | AI65: 42,489 | AJ65: 0 | AK65: 128 | AO65: 1 | AP65: 2017-03-03 | AQ65: 42,362 | AR65: 42,434 | AS65: 42,434 | AT65: 42,485 | AU65: 42,485 | AV65: 42,485 | AW65: 42,485 | AX65: 0 | AY65: 123 | BC65: 1 | BD65: Same Start 2nd
A66: 2017-03-04 | H66: 0 | I66: 0.00 | M66: 0 | N66: 2017-03-04 | U66: 0 | V66: 0.00 | Z66: 0 | AB66: 2017-03-04 | AC66: 42,489 | AD66: 42,489 | AE66: =AD66 -> 42,489 | AF66: 42,489 | AG66: 42,489 | AH66: 42,489 | AI66: 42,489 | AJ66: 0 | AK66: 0 | AO66: 0 | AP66: 2017-03-04 | AQ66: 42,485 | AR66: 42,485 | AS66: 42,485 | AT66: 42,485 | AU66: 42,485 | AV66: 42,485 | AW66: 42,485 | AX66: 0 | AY66: 0 | BC66: 0
A67: 2017-03-05 | H67: 0 | I67: 0.00 | M67: 0 | N67: 2017-03-05 | U67: 0 | V67: 0.00 | Z67: 0 | AB67: 2017-03-05 | AC67: 42,489 | AD67: 42,489 | AE67: =AD67 -> 42,489 | AF67: 42,489 | AG67: 42,489 | AH67: 42,489 | AI67: 42,489 | AJ67: 0 | AK67: 0 | AO67: 0 | AP67: 2017-03-05 | AQ67: 42,485 | AR67: 42,485 | AS67: 42,485 | AT67: 42,485 | AU67: 42,485 | AV67: 42,485 | AW67: 42,485 | AX67: 0 | AY67: 0 | BC67: 0
A68: 2017-03-06 | B68: 0.2847222222 | C68: 0.8125 | H68: 0.5277777778 | I68: 12.67 | M68: =IF(H68>0, 1, 0) -> 1 | N68: 2017-03-06 | O68: 0.2881944444 | P68: 0.7986111111 | U68: 0.5104166667 | V68: 12.25 | Z68: =IF(U68>0, 1, 0) -> 1 | AB68: 2017-03-06 | AC68: 42,489 | AD68: 42,642 | AE68: =AD68 -> 42,642 | AF68: 42,642 | AG68: 42,642 | AH68: 42,642 | AI68: 42,642 | AJ68: 0 | AK68: 153 | AO68: 1 | AP68: 2017-03-06 | AQ68: 42,490 | AR68: 42,638 | AS68: 42,638 | AT68: 42,638 | AU68: 42,638 | AV68: 42,638 | AW68: 42,638 | AX68: 5 | AY68: 148 | BC68: =IF(AY68>0, 1, 0) -> 1
A69: 2017-03-07 | H69: 0 | I69: =H69*24 -> 0.00 | M69: 0 | N69: 2017-03-07 | U69: 0 | V69: =U69*24 -> 0.00 | Z69: 0 | AA69: =IF(H69<U69,"Actual less than Revenue",IF(AND(T69>G69,F69<>G69,S69<>T69),"Rev Over Act End 3rd", IF(AND(S69<F69,F69<>G69,S69<>T69),"Rev Less Act Start 3rd",IF(AND(R69>E69,D69<>E69,Q69<>R69),"Rev Over Act End 2nd",IF(AND(Q69<D69,D69<>E69,Q69<>R69),"Rev Less Act Start 2nd",IF(AND(P69>C69,B69<>C69,O69<>P69),"Rev Over Act End 1st",IF(AND(O69<B69,B69<>C69,O69<>P69),"Rev Less Act Start 1st",IF(AND(T69=G69,F69<>G69,S69<>T69),"Same End 3rd",IF(AND(S69=F69,F69<>G69,S69<>T69),"Same Start 3rd",IF(AND(R69=E69,D69<>E69,Q69<>R69),"Same End 2nd",IF(AND(Q69=D69,D69<>E69,Q69<>R69),"Same Start 2nd",IF(AND(P69=C69,B69<>C69,O69<>P69),"Same End 1st",IF(AND(O69=B69,B69<>C69,O69<>P69),"Same Start 1st",""))))))))))))) ->  | AB69: 2017-03-07 | AC69: 42,642 | AD69: 42,642 | AE69: =AD69 -> 42,642 | AF69: 42,642 | AG69: 42,642 | AH69: 42,642 | AI69: 42,642 | AJ69: 0 | AK69: 0 | AO69: =IF(AK69>0, 1, 0) -> 0 | AP69: 2017-03-07 | AQ69: 42,638 | AR69: 42,638 | AS69: 42,638 | AT69: 42,638 | AU69: 42,638 | AV69: 42,638 | AW69: 42,638 | AX69: =IF(AQ69=AW68, 0, AQ69-AW68) -> 0 | AY69: 0 | BC69: 0 | BD69: =IF(AK69<AY69,"Actual less than Revenue",IF(AND(AV69>AH69,AG69<>AH69,AU69<>AV69),"Rev Over Act End 3rd",IF(AND(AU69<AG69,AG69<>AH69,AU69<>AV69),"Rev Less Act Start 3rd",IF(AND(AT69>AF69,AE69<>AF69,AS69<>AT69),"Rev Over Act End 2nd",IF(AND(AS69<AE69,AE69<>AF69,AS69<>AT69),"Rev Less Act Start 2nd",IF(AND(AR69>AD69,AC69<>AD69,AQ69<>AR69),"Rev Over Act End 1st",IF(AND(AQ69<AC69,AC69<>AD69,AQ69<>AR69),"Rev Less Act Start 1st",IF(AND(AV69=AH69,AG69<>AH69,AU69<>AV69),"Same End 3rd",IF(AND(AU69=AG69,AG69<>AH69,AU69<>AV69),"Same Start 3rd",IF(AND(AT69=AF69,AE69<>AF69,AS69<>AT69),"Same End 2nd",IF(AND(AS69=AE69,AE69<>AF69,AS69<>AT69),"Same Start 2nd",IF(AND(AR69=AD69,AC69<>AD69,AQ69<>AR69),"Same End 1st",IF(AND(AQ69=AC69,AC69<>AD69,AQ69<>AR69),"Same Start 1st",""))))))))))))) -> 
A70: 2017-03-08 | B70: 0.2847222222 | C70: 0.5381944444 | D70: 0.5381944444 | E70: 0.8194444444 | H70: 0.5347222222 | I70: 12.83 | M70: 1 | N70: 2017-03-08 | O70: 0.2881944444 | P70: 0.5381944444 | Q70: 0.5381944444 | R70: 0.7986111111 | U70: 0.5104166667 | V70: 12.25 | Z70: 1 | AA70: Same Start 2nd | AB70: 2017-03-08 | AC70: 42,642 | AD70: 42,704 | AE70: =AD70 -> 42,704 | AF70: 42,796 | AG70: 42,796 | AH70: 42,796 | AI70: 42,796 | AJ70: 0 | AK70: 154 | AO70: 1 | AP70: 2017-03-08 | AQ70: 42,643 | AR70: 42,704 | AS70: 42,704 | AT70: 42,792 | AU70: 42,792 | AV70: 42,792 | AW70: 42,792 | AX70: 5 | AY70: 149 | BC70: 1 | BD70: Same Start 2nd
A71: 2017-03-09 | B71: 0.2847222222 | C71: 0.5798611111 | D71: 0.5798611111 | E71: 0.8159722222 | H71: 0.53125 | I71: 12.75 | M71: 1 | N71: 2017-03-09 | O71: 0.2881944444 | P71: 0.5798611111 | Q71: 0.5798611111 | R71: 0.7881944444 | U71: 0.5 | V71: 12.00 | Z71: 1 | AA71: Same Start 2nd | AB71: 2017-03-09 | AC71: 42,796 | AD71: 42,882 | AE71: =AD71 -> 42,882 | AF71: 42,950 | AG71: 42,950 | AH71: 42,950 | AI71: 42,950 | AJ71: =IF(AC71=AI70, 0, AC71-AI70) -> 0 | AK71: 154 | AO71: 1 | AP71: 2017-03-09 | AQ71: 42,797 | AR71: 42,882 | AS71: =AR71 -> 42,882 | AT71: 42,943 | AU71: 42,943 | AV71: 42,943 | AW71: 42,943 | AX71: 5 | AY71: 146 | BC71: 1 | BD71: Same Start 2nd
A72: 2017-03-10 | B72: 0.2847222222 | C72: 0.8152777778 | H72: 0.5305555556 | I72: 12.73 | M72: 1 | N72: 2017-03-10 | O72: 0.2881944444 | P72: 0.7881944444 | U72: 0.5 | V72: 12.00 | Z72: 1 | AB72: 2017-03-10 | AC72: 42,950 | AD72: 43,107 | AE72: =AD72 -> 43,107 | AF72: 43,107 | AG72: 43,107 | AH72: 43,107 | AI72: 43,107 | AJ72: 0 | AK72: 157 | AO72: 1 | AP72: 2017-03-10 | AQ72: 42,952 | AR72: 43,100 | AS72: 43,100 | AT72: 43,100 | AU72: 43,100 | AV72: 43,100 | AW72: 43,100 | AX72: 9 | AY72: 148 | BC72: 1
A73: 2017-03-11 | H73: 0 | I73: 0.00 | M73: 0 | N73: 2017-03-11 | U73: 0 | V73: 0.00 | Z73: 0 | AB73: 2017-03-11 | AC73: 43,107 | AD73: 43,107 | AE73: =AD73 -> 43,107 | AF73: 43,107 | AG73: 43,107 | AH73: 43,107 | AI73: 43,107 | AJ73: 0 | AK73: 0 | AO73: 0 | AP73: 2017-03-11 | AQ73: 43,100 | AR73: 43,100 | AS73: 43,100 | AT73: 43,100 | AU73: 43,100 | AV73: 43,100 | AW73: 43,100 | AX73: 0 | AY73: 0 | BC73: 0
A74: 2017-03-12 | H74: 0 | I74: 0.00 | M74: 0 | N74: 2017-03-12 | U74: =(P74-O74)+(R74-Q74)+(T74-S74) -> 0 | V74: 0.00 | Z74: 0 | AB74: 2017-03-12 | AC74: 43,107 | AD74: 43,107 | AE74: =AD74 -> 43,107 | AF74: 43,107 | AG74: 43,107 | AH74: 43,107 | AI74: 43,107 | AJ74: 0 | AK74: =(AD74-AC74)+(AF74-AE74)+(AH74-AG74) -> 0 | AO74: 0 | AP74: 2017-03-12 | AQ74: 43,100 | AR74: 43,100 | AS74: 43,100 | AT74: 43,100 | AU74: 43,100 | AV74: 43,100 | AW74: 43,100 | AX74: 0 | AY74: =(AR74-AQ74)+(AT74-AS74)+(AV74-AU74) -> 0 | BC74: 0
A75: 2017-03-13 | B75: 0.2847222222 | C75: 0.5381944444 | D75: 0.5381944444 | E75: 0.8125 | H75: 0.5277777778 | I75: 12.67 | M75: 1 | N75: 2017-03-13 | O75: 0.2881944444 | P75: 0.5381944444 | Q75: 0.5381944444 | R75: 0.7951388889 | U75: 0.5069444444 | V75: 12.17 | Z75: 1 | AA75: Same Start 2nd | AB75: 2017-03-13 | AC75: 43,107 | AD75: 43,261 | AE75: =AD75 -> 43,261 | AF75: 43,261 | AG75: 43,261 | AH75: 43,261 | AI75: 43,261 | AJ75: 0 | AK75: 154 | AO75: 1 | AP75: 2017-03-13 | AQ75: 43,108 | AR75: 43,257 | AS75: 43,257 | AT75: 43,257 | AU75: 43,257 | AV75: 43,257 | AW75: 43,257 | AX75: 8 | AY75: 149 | BC75: 1
A76: 2017-03-14 | B76: 0.2847222222 | C76: 0.8138888889 | H76: 0.5291666667 | I76: 12.70 | M76: 1 | N76: 2017-03-14 | O76: 0.2881944444 | P76: 0.7951388889 | U76: 0.5069444444 | V76: 12.17 | Z76: 1 | AB76: 2017-03-14 | AC76: 43,261 | AD76: 43,414 | AE76: =AD76 -> 43,414 | AF76: 43,414 | AG76: 43,414 | AH76: 43,414 | AI76: =MAX(AD76, AF76, AH76) -> 43,414 | AJ76: 0 | AK76: 153 | AO76: 1 | AP76: 2017-03-14 | AQ76: 43,262 | AR76: 43,410 | AS76: 43,410 | AT76: 43,410 | AU76: 43,410 | AV76: 43,410 | AW76: 43,410 | AX76: 5 | AY76: 148 | BC76: 1
A77: 2017-03-15 | H77: 0 | I77: 0.00 | M77: 0 | N77: 2017-03-15 | U77: 0 | V77: 0.00 | Z77: 0 | AB77: 2017-03-15 | AC77: =AI76 -> 43,414 | AD77: =AC77 -> 43,414 | AE77: =AD77 -> 43,414 | AF77: 43,414 | AG77: 43,414 | AH77: 43,414 | AI77: 43,414 | AJ77: 0 | AK77: 0 | AO77: 0 | AP77: 2017-03-15 | AQ77: =AW76 -> 43,410 | AR77: 43,410 | AS77: 43,410 | AT77: 43,410 | AU77: 43,410 | AV77: 43,410 | AW77: 43,410 | AX77: 0 | AY77: 0 | BC77: 0
A78: 2017-03-16 | B78: 0.2847222222 | C78: 0.8159722222 | H78: 0.53125 | I78: 12.75 | M78: 1 | N78: 2017-03-16 | O78: 0.2881944444 | P78: 0.7972222222 | U78: 0.5090277778 | V78: 12.22 | Z78: 1 | AB78: 2017-03-16 | AC78: 43,414 | AD78: 43,567 | AE78: =AD78 -> 43,567 | AF78: 43,567 | AG78: 43,567 | AH78: 43,567 | AI78: 43,567 | AJ78: 0 | AK78: 153 | AO78: 1 | AP78: 2017-03-16 | AQ78: 43,415 | AR78: 43,562 | AS78: 43,562 | AT78: 43,562 | AU78: 43,562 | AV78: 43,562 | AW78: 43,562 | AX78: 5 | AY78: 147 | BC78: 1
A79: 2017-03-17 | B79: 0.2847222222 | C79: 0.5381944444 | D79: 0.5381944444 | E79: 0.8104166667 | H79: 0.5256944444 | I79: 12.62 | M79: 1 | N79: 2017-03-17 | O79: 0.2881944444 | P79: 0.5381944444 | Q79: 0.5381944444 | R79: 0.7951388889 | U79: 0.5069444444 | V79: 12.17 | Z79: 1 | AA79: Same Start 2nd | AB79: 2017-03-17 | AC79: 43,567 | AD79: 43,641 | AE79: =AD79 -> 43,641 | AF79: 43,724 | AG79: 43,724 | AH79: 43,724 | AI79: 43,724 | AJ79: 0 | AK79: 157 | AO79: 1 | AP79: 2017-03-17 | AQ79: 43,568 | AR79: 43,641 | AS79: 43,641 | AT79: 43,720 | AU79: 43,720 | AV79: 43,720 | AW79: 43,720 | AX79: 6 | AY79: 152 | BC79: 1 | BD79: Same Start 2nd
A80: 2017-03-18 | H80: 0 | I80: 0.00 | M80: 0 | N80: 2017-03-18 | U80: 0 | V80: 0.00 | Z80: 0 | AB80: 2017-03-18 | AC80: 43,724 | AD80: 43,724 | AE80: =AD80 -> 43,724 | AF80: 43,724 | AG80: 43,724 | AH80: 43,724 | AI80: 43,724 | AJ80: 0 | AK80: 0 | AO80: 0 | AP80: 2017-03-18 | AQ80: 43,720 | AR80: 43,720 | AS80: 43,720 | AT80: 43,720 | AU80: 43,720 | AV80: 43,720 | AW80: 43,720 | AX80: 0 | AY80: 0 | BC80: 0
A81: 2017-03-19 | H81: 0 | I81: 0.00 | M81: 0 | N81: 2017-03-19 | U81: 0 | V81: 0.00 | Z81: 0 | AB81: 2017-03-19 | AC81: 43,724 | AD81: 43,724 | AE81: =AD81 -> 43,724 | AF81: 43,724 | AG81: 43,724 | AH81: 43,724 | AI81: 43,724 | AJ81: 0 | AK81: 0 | AO81: 0 | AP81: 2017-03-19 | AQ81: 43,720 | AR81: 43,720 | AS81: 43,720 | AT81: 43,720 | AU81: 43,720 | AV81: 43,720 | AW81: =MAX(AR81, AT81, AV81) -> 43,720 | AX81: 0 | AY81: 0 | BC81: 0
A82: 2017-03-20 | B82: 0.2847222222 | C82: 0.3305555556 | H82: 0.04583333333 | I82: 1.10 | M82: 1 | N82: 2017-03-20 | O82: 0.2881944444 | P82: 0.3305555556 | U82: 0.04236111111 | V82: 1.02 | Z82: 1 | AA82: Same End 1st | AB82: 2017-03-20 | AC82: 43,724 | AD82: 43,731 | AE82: =AD82 -> 43,731 | AF82: 43,731 | AG82: 43,731 | AH82: 43,731 | AI82: 43,731 | AJ82: 0 | AK82: 7 | AO82: 1 | AP82: 2017-03-20 | AQ82: 43,725 | AR82: 43,731 | AS82: 43,731 | AT82: 43,731 | AU82: 43,731 | AV82: 43,731 | AW82: 43,731 | AX82: 5 | AY82: 6 | BC82: 1 | BD82: Same End 1st
A83: 2017-03-21 | H83: 0 | I83: 0.00 | M83: 0 | N83: 2017-03-21 | U83: 0 | V83: 0.00 | Z83: 0 | AB83: 2017-03-21 | AC83: 43,731 | AD83: 43,731 | AE83: =AD83 -> 43,731 | AF83: 43,731 | AG83: 43,731 | AH83: 43,731 | AI83: 43,731 | AJ83: 0 | AK83: 0 | AO83: 0 | AP83: 2017-03-21 | AQ83: 43,731 | AR83: 43,731 | AS83: 43,731 | AT83: 43,731 | AU83: 43,731 | AV83: 43,731 | AW83: 43,731 | AX83: 0 | AY83: 0 | BC83: 0
A84: 2017-03-22 | H84: 0 | I84: 0.00 | M84: 0 | N84: 2017-03-22 | U84: 0 | V84: 0.00 | Z84: 0 | AB84: 2017-03-22 | AC84: 43,731 | AD84: 43,731 | AE84: =AD84 -> 43,731 | AF84: 43,731 | AG84: 43,731 | AH84: 43,731 | AI84: 43,731 | AJ84: 0 | AK84: 0 | AO84: 0 | AP84: 2017-03-22 | AQ84: 43,731 | AR84: 43,731 | AS84: 43,731 | AT84: 43,731 | AU84: 43,731 | AV84: 43,731 | AW84: 43,731 | AX84: 0 | AY84: 0 | BC84: 0
A85: 2017-03-23 | H85: 0 | I85: 0.00 | M85: 0 | N85: 2017-03-23 | U85: 0 | V85: 0.00 | Z85: 0 | AB85: 2017-03-23 | AC85: 43,731 | AD85: 43,731 | AE85: =AD85 -> 43,731 | AF85: 43,731 | AG85: 43,731 | AH85: 43,731 | AI85: 43,731 | AJ85: 0 | AK85: 0 | AO85: 0 | AP85: 2017-03-23 | AQ85: 43,731 | AR85: 43,731 | AS85: 43,731 | AT85: 43,731 | AU85: 43,731 | AV85: 43,731 | AW85: 43,731 | AX85: 0 | AY85: 0 | BC85: 0
A86: 2017-03-24 | H86: 0 | I86: 0.00 | M86: 0 | N86: 2017-03-24 | U86: 0 | V86: 0.00 | Z86: 0 | AB86: 2017-03-24 | AC86: 43,731 | AD86: 43,731 | AE86: =AD86 -> 43,731 | AF86: 43,731 | AG86: 43,731 | AH86: 43,731 | AI86: 43,731 | AJ86: 0 | AK86: 0 | AO86: 0 | AP86: 2017-03-24 | AQ86: 43,731 | AR86: 43,731 | AS86: 43,731 | AT86: 43,731 | AU86: 43,731 | AV86: 43,731 | AW86: 43,731 | AX86: 0 | AY86: 0 | BC86: 0
A87: 2017-03-25 | H87: 0 | I87: 0.00 | M87: 0 | N87: 2017-03-25 | U87: 0 | V87: 0.00 | Z87: 0 | AB87: 2017-03-25 | AC87: 43,731 | AD87: 43,731 | AE87: =AD87 -> 43,731 | AF87: 43,731 | AG87: 43,731 | AH87: 43,731 | AI87: 43,731 | AJ87: 0 | AK87: 0 | AO87: 0 | AP87: 2017-03-25 | AQ87: 43,731 | AR87: 43,731 | AS87: 43,731 | AT87: 43,731 | AU87: 43,731 | AV87: 43,731 | AW87: 43,731 | AX87: 0 | AY87: 0 | BC87: 0
A88: 2017-03-26 | H88: 0 | I88: 0.00 | M88: 0 | N88: 2017-03-26 | U88: 0 | V88: 0.00 | Z88: 0 | AB88: 2017-03-26 | AC88: 43,731 | AD88: 43,731 | AE88: =AD88 -> 43,731 | AF88: 43,731 | AG88: 43,731 | AH88: 43,731 | AI88: 43,731 | AJ88: 0 | AK88: 0 | AO88: 0 | AP88: 2017-03-26 | AQ88: 43,731 | AR88: 43,731 | AS88: 43,731 | AT88: 43,731 | AU88: 43,731 | AV88: 43,731 | AW88: 43,731 | AX88: 0 | AY88: 0 | BC88: 0
A89: 2017-03-27 | H89: 0 | I89: 0.00 | M89: 0 | N89: 2017-03-27 | U89: 0 | V89: 0.00 | Z89: 0 | AB89: 2017-03-27 | AC89: 43,731 | AD89: 43,731 | AE89: =AD89 -> 43,731 | AF89: 43,731 | AG89: 43,731 | AH89: 43,731 | AI89: 43,731 | AJ89: 0 | AK89: 0 | AO89: 0 | AP89: 2017-03-27 | AQ89: 43,731 | AR89: 43,731 | AS89: 43,731 | AT89: 43,731 | AU89: 43,731 | AV89: 43,731 | AW89: 43,731 | AX89: 0 | AY89: 0 | BC89: 0
A90: 2017-03-28 | H90: 0 | I90: 0.00 | M90: 0 | N90: 2017-03-28 | U90: 0 | V90: 0.00 | Z90: 0 | AB90: 2017-03-28 | AC90: 43,731 | AD90: 43,731 | AE90: =AD90 -> 43,731 | AF90: 43,731 | AG90: 43,731 | AH90: 43,731 | AI90: 43,731 | AJ90: 0 | AK90: 0 | AO90: 0 | AP90: 2017-03-28 | AQ90: 43,731 | AR90: 43,731 | AS90: 43,731 | AT90: 43,731 | AU90: 43,731 | AV90: 43,731 | AW90: 43,731 | AX90: 0 | AY90: 0 | BC90: 0
A91: 2017-03-29 | H91: =(C91-B91)+(E91-D91)+(G91-F91) -> 0 | I91: 0.00 | M91: 0 | N91: 2017-03-29 | U91: 0 | V91: 0.00 | Z91: 0 | AB91: 2017-03-29 | AC91: 43,731 | AD91: 43,731 | AE91: =AD91 -> 43,731 | AF91: 43,731 | AG91: 43,731 | AH91: 43,731 | AI91: 43,731 | AJ91: 0 | AK91: 0 | AO91: 0 | AP91: 2017-03-29 | AQ91: 43,731 | AR91: 43,731 | AS91: 43,731 | AT91: 43,731 | AU91: 43,731 | AV91: 43,731 | AW91: 43,731 | AX91: 0 | AY91: 0 | BC91: 0
A92: 2017-03-30 | H92: 0 | I92: 0.00 | M92: 0 | N92: 2017-03-30 | U92: 0 | V92: 0.00 | Z92: 0 | AB92: 2017-03-30 | AC92: 43,731 | AD92: 43,731 | AE92: =AD92 -> 43,731 | AF92: 43,731 | AG92: 43,731 | AH92: 43,731 | AI92: 43,731 | AJ92: 0 | AK92: 0 | AO92: 0 | AP92: 2017-03-30 | AQ92: 43,731 | AR92: 43,731 | AS92: 43,731 | AT92: 43,731 | AU92: 43,731 | AV92: 43,731 | AW92: 43,731 | AX92: 0 | AY92: 0 | BC92: 0
A93: 2017-03-31 | H93: 0 | I93: 0.00 | M93: 0 | N93: 2017-03-31 | U93: 0 | V93: 0.00 | Z93: 0 | AB93: 2017-03-31 | AC93: 43,731 | AD93: 43,731 | AE93: =AD93 -> 43,731 | AF93: 43,731 | AG93: 43,731 | AH93: 43,731 | AI93: 43,731 | AJ93: 0 | AK93: 0 | AO93: 0 | AP93: 2017-03-31 | AQ93: 43,731 | AR93: 43,731 | AS93: 43,731 | AT93: 43,731 | AU93: 43,731 | AV93: 43,731 | AW93: 43,731 | AX93: 0 | AY93: 0 | BC93: 0
A94: 2017-04-01 | H94: 0 | I94: 0.00 | M94: 0 | N94: 2017-04-01 | U94: 0 | V94: 0.00 | Z94: 0 | AB94: 2017-04-01 | AC94: 43,731 | AD94: 43,731 | AE94: =AD94 -> 43,731 | AF94: 43,731 | AG94: 43,731 | AH94: 43,731 | AI94: 43,731 | AJ94: 0 | AK94: 0 | AO94: 0 | AP94: 2017-04-01 | AQ94: 43,731 | AR94: 43,731 | AS94: 43,731 | AT94: 43,731 | AU94: 43,731 | AV94: 43,731 | AW94: 43,731 | AX94: 0 | AY94: 0 | BC94: 0
A95: 2017-04-02 | H95: 0 | I95: 0.00 | M95: 0 | N95: 2017-04-02 | U95: 0 | V95: 0.00 | Z95: 0 | AB95: 2017-04-02 | AC95: 43,731 | AD95: 43,731 | AE95: =AD95 -> 43,731 | AF95: 43,731 | AG95: 43,731 | AH95: 43,731 | AI95: 43,731 | AJ95: 0 | AK95: 0 | AO95: 0 | AP95: 2017-04-02 | AQ95: 43,731 | AR95: 43,731 | AS95: 43,731 | AT95: 43,731 | AU95: 43,731 | AV95: 43,731 | AW95: 43,731 | AX95: 0 | AY95: 0 | BC95: 0
A96: 2017-04-03 | H96: 0 | I96: 0.00 | M96: 0 | N96: 2017-04-03 | U96: 0 | V96: 0.00 | Z96: 0 | AB96: 2017-04-03 | AC96: 43,731 | AD96: 43,731 | AE96: =AD96 -> 43,731 | AF96: 43,731 | AG96: 43,731 | AH96: 43,731 | AI96: 43,731 | AJ96: 0 | AK96: 0 | AO96: 0 | AP96: 2017-04-03 | AQ96: 43,731 | AR96: 43,731 | AS96: 43,731 | AT96: 43,731 | AU96: 43,731 | AV96: 43,731 | AW96: 43,731 | AX96: 0 | AY96: 0 | BC96: 0
A97: 2017-04-04 | H97: 0 | I97: 0.00 | M97: 0 | N97: 2017-04-04 | U97: 0 | V97: 0.00 | Z97: 0 | AB97: 2017-04-04 | AC97: 43,731 | AD97: 43,731 | AE97: =AD97 -> 43,731 | AF97: 43,731 | AG97: 43,731 | AH97: 43,731 | AI97: 43,731 | AJ97: 0 | AK97: 0 | AO97: 0 | AP97: 2017-04-04 | AQ97: 43,731 | AR97: 43,731 | AS97: 43,731 | AT97: 43,731 | AU97: 43,731 | AV97: 43,731 | AW97: 43,731 | AX97: 0 | AY97: 0 | BC97: 0
A98: 2017-04-05 | H98: 0 | I98: 0.00 | M98: 0 | N98: 2017-04-05 | U98: 0 | V98: 0.00 | Z98: 0 | AB98: 2017-04-05 | AC98: 43,731 | AD98: 43,731 | AE98: =AD98 -> 43,731 | AF98: 43,731 | AG98: 43,731 | AH98: 43,731 | AI98: 43,731 | AJ98: 0 | AK98: 0 | AO98: 0 | AP98: 2017-04-05 | AQ98: 43,731 | AR98: 43,731 | AS98: 43,731 | AT98: 43,731 | AU98: 43,731 | AV98: 43,731 | AW98: 43,731 | AX98: 0 | AY98: 0 | BC98: 0
A99: 2017-04-06 | H99: 0 | I99: 0.00 | M99: 0 | N99: 2017-04-06 | U99: 0 | V99: 0.00 | Z99: 0 | AB99: 2017-04-06 | AC99: 43,731 | AD99: 43,731 | AE99: =AD99 -> 43,731 | AF99: 43,731 | AG99: 43,731 | AH99: 43,731 | AI99: 43,731 | AJ99: 0 | AK99: 0 | AO99: 0 | AP99: 2017-04-06 | AQ99: 43,731 | AR99: 43,731 | AS99: 43,731 | AT99: 43,731 | AU99: 43,731 | AV99: 43,731 | AW99: 43,731 | AX99: 0 | AY99: 0 | BC99: 0
A100: 2017-04-07 | H100: 0 | I100: 0.00 | M100: 0 | N100: 2017-04-07 | U100: 0 | V100: 0.00 | Z100: 0 | AB100: 2017-04-07 | AC100: 43,731 | AD100: 43,731 | AE100: =AD100 -> 43,731 | AF100: 43,731 | AG100: 43,731 | AH100: 43,731 | AI100: 43,731 | AJ100: 0 | AK100: 0 | AO100: 0 | AP100: 2017-04-07 | AQ100: 43,731 | AR100: 43,731 | AS100: 43,731 | AT100: 43,731 | AU100: 43,731 | AV100: 43,731 | AW100: 43,731 | AX100: 0 | AY100: 0 | BC100: 0
A101: 2017-04-08 | H101: 0 | I101: 0.00 | M101: 0 | N101: 2017-04-08 | U101: 0 | V101: 0.00 | Z101: 0 | AB101: 2017-04-08 | AC101: 43,731 | AD101: 43,731 | AE101: =AD101 -> 43,731 | AF101: 43,731 | AG101: 43,731 | AH101: 43,731 | AI101: 43,731 | AJ101: 0 | AK101: 0 | AO101: 0 | AP101: 2017-04-08 | AQ101: 43,731 | AR101: 43,731 | AS101: 43,731 | AT101: 43,731 | AU101: 43,731 | AV101: 43,731 | AW101: 43,731 | AX101: 0 | AY101: 0 | BC101: 0
A102: 2017-04-09 | H102: 0 | I102: 0.00 | M102: 0 | N102: 2017-04-09 | U102: 0 | V102: 0.00 | Z102: 0 | AB102: 2017-04-09 | AC102: 43,731 | AD102: 43,731 | AE102: =AD102 -> 43,731 | AF102: 43,731 | AG102: 43,731 | AH102: 43,731 | AI102: 43,731 | AJ102: 0 | AK102: 0 | AO102: 0 | AP102: 2017-04-09 | AQ102: 43,731 | AR102: 43,731 | AS102: 43,731 | AT102: 43,731 | AU102: 43,731 | AV102: 43,731 | AW102: 43,731 | AX102: 0 | AY102: 0 | BC102: 0
A103: 2017-04-10 | H103: 0 | I103: 0.00 | M103: 0 | N103: 2017-04-10 | U103: 0 | V103: 0.00 | Z103: 0 | AB103: 2017-04-10 | AC103: 43,731 | AD103: 43,731 | AE103: =AD103 -> 43,731 | AF103: 43,731 | AG103: 43,731 | AH103: 43,731 | AI103: 43,731 | AJ103: 0 | AK103: 0 | AO103: 0 | AP103: 2017-04-10 | AQ103: 43,731 | AR103: 43,731 | AS103: 43,731 | AT103: 43,731 | AU103: 43,731 | AV103: 43,731 | AW103: 43,731 | AX103: 0 | AY103: 0 | BC103: 0
A104: 2017-04-11 | H104: 0 | I104: 0.00 | M104: 0 | N104: 2017-04-11 | U104: 0 | V104: 0.00 | Z104: 0 | AB104: 2017-04-11 | AC104: 43,731 | AD104: 43,731 | AE104: =AD104 -> 43,731 | AF104: 43,731 | AG104: 43,731 | AH104: 43,731 | AI104: 43,731 | AJ104: 0 | AK104: 0 | AO104: 0 | AP104: 2017-04-11 | AQ104: 43,731 | AR104: 43,731 | AS104: 43,731 | AT104: 43,731 | AU104: 43,731 | AV104: 43,731 | AW104: 43,731 | AX104: 0 | AY104: 0 | BC104: 0
A105: 2017-04-12 | H105: 0 | I105: 0.00 | M105: 0 | N105: 2017-04-12 | U105: 0 | V105: 0.00 | Z105: 0 | AB105: 2017-04-12 | AC105: 43,731 | AD105: 43,731 | AE105: =AD105 -> 43,731 | AF105: 43,731 | AG105: 43,731 | AH105: 43,731 | AI105: 43,731 | AJ105: 0 | AK105: 0 | AO105: 0 | AP105: 2017-04-12 | AQ105: 43,731 | AR105: 43,731 | AS105: 43,731 | AT105: 43,731 | AU105: 43,731 | AV105: 43,731 | AW105: 43,731 | AX105: 0 | AY105: 0 | BC105: 0
A106: 2017-04-13 | H106: 0 | I106: 0.00 | M106: 0 | N106: 2017-04-13 | U106: 0 | V106: 0.00 | Z106: 0 | AB106: 2017-04-13 | AC106: 43,731 | AD106: 43,731 | AE106: =AD106 -> 43,731 | AF106: 43,731 | AG106: 43,731 | AH106: 43,731 | AI106: 43,731 | AJ106: 0 | AK106: 0 | AO106: 0 | AP106: 2017-04-13 | AQ106: 43,731 | AR106: 43,731 | AS106: 43,731 | AT106: 43,731 | AU106: 43,731 | AV106: 43,731 | AW106: 43,731 | AX106: 0 | AY106: 0 | BC106: 0
A107: 2017-04-14 | H107: 0 | I107: 0.00 | M107: 0 | N107: 2017-04-14 | U107: 0 | V107: 0.00 | Z107: 0 | AB107: 2017-04-14 | AC107: 43,731 | AD107: 43,731 | AE107: =AD107 -> 43,731 | AF107: 43,731 | AG107: 43,731 | AH107: 43,731 | AI107: 43,731 | AJ107: 0 | AK107: 0 | AO107: 0 | AP107: 2017-04-14 | AQ107: 43,731 | AR107: 43,731 | AS107: 43,731 | AT107: 43,731 | AU107: 43,731 | AV107: 43,731 | AW107: 43,731 | AX107: 0 | AY107: 0 | BC107: 0
A108: 2017-04-15 | B108: 0.2847222222 | C108: 0.5381944444 | D108: 0.5381944444 | E108: 0.8125 | H108: 0.5277777778 | I108: 12.67 | M108: 1 | N108: 2017-04-15 | O108: 0.2881944444 | P108: 0.5381944444 | Q108: 0.5381944444 | R108: 0.7951388889 | U108: 0.5069444444 | V108: 12.17 | Z108: 1 | AA108: Same Start 2nd | AB108: 2017-04-15 | AC108: 43,731 | AD108: 43,810 | AE108: =AD108 -> 43,810 | AF108: 43,890 | AG108: 43,890 | AH108: 43,890 | AI108: 43,890 | AJ108: 0 | AK108: 159 | AO108: 1 | AP108: 2017-04-15 | AQ108: 43,732 | AR108: 43,810 | AS108: 43,810 | AT108: 43,886 | AU108: 43,886 | AV108: 43,886 | AW108: 43,886 | AX108: 1 | AY108: 154 | BC108: 1 | BD108: Same Start 2nd
A109: 2017-04-16 | H109: 0 | I109: 0.00 | M109: 0 | N109: 2017-04-16 | U109: 0 | V109: 0.00 | Z109: 0 | AB109: 2017-04-16 | AC109: 43,890 | AD109: 43,890 | AE109: =AD109 -> 43,890 | AF109: 43,890 | AG109: 43,890 | AH109: 43,890 | AI109: 43,890 | AJ109: 0 | AK109: 0 | AO109: 0 | AP109: 2017-04-16 | AQ109: 43,886 | AR109: 43,886 | AS109: 43,886 | AT109: 43,886 | AU109: 43,886 | AV109: 43,886 | AW109: 43,886 | AX109: 0 | AY109: 0 | BC109: 0
A110: 2017-04-17 | B110: 0.2847222222 | C110: 0.5381944444 | D110: 0.5381944444 | E110: 0.8097222222 | H110: 0.525 | I110: 12.60 | M110: 1 | N110: 2017-04-17 | O110: 0.2881944444 | P110: 0.5381944444 | Q110: 0.5381944444 | R110: 0.7881944444 | U110: 0.5 | V110: 12.00 | Z110: 1 | AA110: Same Start 2nd | AB110: 2017-04-17 | AC110: 43,890 | AD110: 43,890 | AE110: =AD110 -> 43,890 | AF110: 44,018 | AG110: 44,018 | AH110: 44,018 | AI110: 44,018 | AJ110: 0 | AK110: 128 | AO110: 1 | AP110: 2017-04-17 | AQ110: 43,891 | AR110: 43,891 | AS110: 43,891 | AT110: 44,014 | AU110: 44,014 | AV110: 44,014 | AW110: 44,014 | AX110: 5 | AY110: 123 | BC110: 1
A111: 2017-04-18 | B111: 0.2847222222 | C111: 0.5381944444 | D111: 0.5381944444 | E111: 0.8125 | H111: 0.5277777778 | I111: 12.67 | M111: 1 | N111: 2017-04-18 | O111: 0.2881944444 | P111: 0.5381944444 | Q111: 0.5381944444 | R111: 0.7951388889 | U111: 0.5069444444 | V111: 12.17 | Z111: 1 | AA111: Same Start 2nd | AB111: 2017-04-18 | AC111: 44,018 | AD111: 44,110 | AE111: =AD111 -> 44,110 | AF111: 44,174 | AG111: 44,174 | AH111: 44,174 | AI111: 44,174 | AJ111: 0 | AK111: 156 | AO111: 1 | AP111: 2017-04-18 | AQ111: 44,019 | AR111: 44,110 | AS111: 44,110 | AT111: 44,170 | AU111: 44,170 | AV111: 44,170 | AW111: 44,170 | AX111: 5 | AY111: 151 | BC111: 1 | BD111: Same Start 2nd
A112: 2017-04-19 | B112: 0.2847222222 | C112: 0.5381944444 | D112: 0.5381944444 | E112: 0.8020833333 | H112: 0.5173611111 | I112: 12.42 | M112: 1 | N112: 2017-04-19 | O112: 0.2881944444 | P112: 0.5381944444 | Q112: 0.5381944444 | R112: 0.7881944444 | U112: 0.5 | V112: 12.00 | Z112: 1 | AA112: Same Start 2nd | AB112: 2017-04-19 | AC112: 44,174 | AD112: 44,237 | AE112: =AD112 -> 44,237 | AF112: 44,299 | AG112: 44,299 | AH112: 44,299 | AI112: 44,299 | AJ112: 0 | AK112: 125 | AO112: 1 | AP112: 2017-04-19 | AQ112: 44,175 | AR112: 44,237 | AS112: 44,237 | AT112: 44,296 | AU112: 44,296 | AV112: 44,296 | AW112: 44,296 | AX112: 5 | AY112: 121 | BC112: 1 | BD112: Same Start 2nd
A113: 2017-04-20 | B113: 0.2847222222 | C113: 0.5381944444 | H113: 0.2534722222 | I113: 6.08 | M113: 1 | N113: 2017-04-20 | O113: 0.2881944444 | P113: 0.5381944444 | U113: 0.25 | V113: 6.00 | Z113: 1 | AA113: Same End 1st | AB113: 2017-04-20 | AC113: 44,299 | AD113: 44,299 | AE113: =AD113 -> 44,299 | AF113: 44,299 | AG113: 44,299 | AH113: 44,299 | AI113: 44,299 | AJ113: 0 | AK113: 0 | AO113: 0 | AP113: 2017-04-20 | AQ113: 44,296 | AR113: 44,296 | AS113: 44,296 | AT113: 44,296 | AU113: 44,296 | AV113: 44,296 | AW113: 44,296 | AX113: 0 | AY113: 0 | BC113: 0
A114: 2017-04-21 | B114: 0.2847222222 | C114: 0.5381944444 | D114: 0.5381944444 | E114: 0.8090277778 | H114: 0.5243055556 | I114: 12.58 | M114: 1 | N114: 2017-04-21 | O114: 0.2881944444 | P114: 0.5381944444 | Q114: 0.5381944444 | R114: 0.7951388889 | U114: 0.5069444444 | V114: 12.17 | Z114: 1 | AA114: Same Start 2nd | AB114: 2017-04-21 | AC114: 44,456 | AD114: 44,518 | AE114: =AD114 -> 44,518 | AF114: 44,584 | AG114: 44,584 | AH114: 44,584 | AI114: 44,584 | AJ114: 157 | AK114: 128 | AO114: 1 | AP114: 2017-04-21 | AQ114: 44,457 | AR114: 44,518 | AS114: 44,518 | AT114: 44,580 | AU114: 44,580 | AV114: 44,580 | AW114: 44,580 | AX114: 161 | AY114: 123 | BC114: 1 | BD114: Same Start 2nd
A115: 2017-04-22 | H115: 0 | I115: 0.00 | M115: 0 | N115: 2017-04-22 | U115: 0 | V115: 0.00 | Z115: 0 | AB115: 2017-04-22 | AC115: 44,584 | AD115: 44,584 | AE115: =AD115 -> 44,584 | AF115: 44,584 | AG115: 44,584 | AH115: 44,584 | AI115: 44,584 | AJ115: 0 | AK115: 0 | AO115: 0 | AP115: 2017-04-22 | AQ115: 44,580 | AR115: 44,580 | AS115: 44,580 | AT115: 44,580 | AU115: 44,580 | AV115: 44,580 | AW115: 44,580 | AX115: 0 | AY115: 0 | BC115: 0
A116: 2017-04-23 | H116: 0 | I116: 0.00 | M116: 0 | N116: 2017-04-23 | U116: 0 | V116: 0.00 | Z116: 0 | AB116: 2017-04-23 | AC116: 44,584 | AD116: 44,584 | AE116: =AD116 -> 44,584 | AF116: 44,584 | AG116: 44,584 | AH116: 44,584 | AI116: 44,584 | AJ116: 0 | AK116: 0 | AO116: 0 | AP116: 2017-04-23 | AQ116: 44,580 | AR116: 44,580 | AS116: 44,580 | AT116: 44,580 | AU116: 44,580 | AV116: 44,580 | AW116: 44,580 | AX116: 0 | AY116: 0 | BC116: 0
A117: 2017-04-24 | B117: 0.2847222222 | C117: 0.5381944444 | D117: 0.5381944444 | E117: 0.8111111111 | H117: 0.5263888889 | I117: 12.63 | M117: 1 | N117: 2017-04-24 | O117: 0.2881944444 | P117: 0.5381944444 | Q117: 12:55:00 | R117: 0.7951388889 | U117: 0.5069444444 | V117: 12.17 | Z117: 1 | AA117: Same Start 2nd | AB117: 2017-04-24 | AC117: 44,584 | AD117: 44,659 | AE117: =AD117 -> 44,659 | AF117: 44,740 | AG117: 44,740 | AH117: 44,740 | AI117: 44,740 | AJ117: 0 | AK117: 156 | AO117: 1 | AP117: 2017-04-24 | AQ117: 44,585 | AR117: 44,659 | AS117: 44,659 | AT117: 44,733 | AU117: 44,733 | AV117: 44,733 | AW117: 44,733 | AX117: 5 | AY117: 148 | BC117: 1 | BD117: Same Start 2nd
A118: 2017-04-25 | B118: 0.2847222222 | C118: 0.5381944444 | D118: 0.5381944444 | E118: 0.8125 | H118: 0.5277777778 | I118: 12.67 | M118: 1 | N118: 2017-04-25 | O118: 0.2881944444 | P118: 0.5381944444 | Q118: 0.5381944444 | R118: 0.7881944444 | U118: 0.5 | V118: 12.00 | Z118: 1 | AA118: Same Start 2nd | AB118: 2017-04-25 | AC118: 44,740 | AD118: 44,803 | AE118: =AD118 -> 44,803 | AF118: 44,869 | AG118: 44,869 | AH118: 44,869 | AI118: 44,869 | AJ118: 0 | AK118: 129 | AO118: 1 | AP118: 2017-04-25 | AQ118: 44,741 | AR118: 44,803 | AS118: 44,803 | AT118: 44,865 | AU118: 44,865 | AV118: 44,865 | AW118: 44,865 | AX118: 8 | AY118: 124 | BC118: 1 | BD118: Same Start 2nd
A119: 2017-04-26 | B119: 0.2847222222 | C119: 0.5381944444 | D119: 0.5381944444 | E119: 0.8125 | H119: 0.5277777778 | I119: 12.67 | M119: 1 | N119: 2017-04-26 | O119: 0.2881944444 | P119: 0.5381944444 | Q119: 0.5381944444 | R119: 0.7951388889 | U119: 0.5069444444 | V119: 12.17 | Z119: 1 | AA119: Same Start 2nd | AB119: 2017-04-26 | AC119: 44,869 | AD119: 44,944 | AE119: =AD119 -> 44,944 | AF119: 45,024 | AG119: 45,024 | AH119: 45,024 | AI119: 45,024 | AJ119: 0 | AK119: 155 | AO119: 1 | AP119: 2017-04-26 | AQ119: 44,870 | AR119: 44,944 | AS119: 44,944 | AT119: 45,020 | AU119: 45,020 | AV119: 45,020 | AW119: 45,020 | AX119: 5 | AY119: 150 | BC119: 1 | BD119: Same Start 2nd
A120: 2017-04-27 | B120: 0.2847222222 | C120: 0.5381944444 | D120: 0.5381944444 | E120: 0.8125 | H120: 0.5277777778 | I120: 12.67 | M120: 1 | N120: 2017-04-27 | O120: 0.2881944444 | P120: 0.5381944444 | Q120: 0.5381944444 | R120: 0.7881944444 | U120: 0.5 | V120: 12.00 | Z120: 1 | AA120: Same Start 2nd | AB120: 2017-04-27 | AC120: 45,024 | AD120: 45,087 | AE120: =AD120 -> 45,087 | AF120: 45,152 | AG120: 45,152 | AH120: 45,152 | AI120: 45,152 | AJ120: 0 | AK120: 128 | AO120: 1 | AP120: 2017-04-27 | AQ120: 45,087 | AR120: 45,087 | AS120: 45,087 | AT120: 45,148 | AU120: 45,148 | AV120: 45,148 | AW120: 45,148 | AX120: 67 | AY120: 61 | BC120: 1 | BD120: Same Start 2nd
A121: 2017-04-28 | B121: 0.2847222222 | C121: 0.5381944444 | D121: 0.5381944444 | E121: 0.8125 | H121: 0.5277777778 | I121: 12.67 | M121: 1 | N121: 2017-04-28 | O121: 0.2881944444 | P121: 0.5381944444 | Q121: 0.5381944444 | R121: 0.7951388889 | U121: 0.5069444444 | V121: 12.17 | Z121: 1 | AA121: Same Start 2nd | AB121: 2017-04-28 | AC121: 45,152 | AD121: 45,232 | AE121: =AD121 -> 45,232 | AF121: 45,313 | AG121: 45,313 | AH121: 45,313 | AI121: 45,313 | AJ121: 0 | AK121: 161 | AO121: 1 | AP121: 2017-04-28 | AQ121: 45,154 | AR121: 45,232 | AS121: 45,232 | AT121: 45,309 | AU121: 45,309 | AV121: 45,309 | AW121: 45,309 | AX121: 6 | AY121: 155 | BC121: 1 | BD121: Same Start 2nd
A122: 2017-04-29 | H122: 0 | I122: 0.00 | M122: 0 | N122: 2017-04-29 | U122: 0 | V122: 0.00 | Z122: 0 | AB122: 2017-04-29 | AC122: 45,313 | AD122: 45,313 | AE122: =AD122 -> 45,313 | AF122: 45,313 | AG122: 45,313 | AH122: 45,313 | AI122: 45,313 | AJ122: 0 | AK122: 0 | AO122: 0 | AP122: 2017-04-29 | AQ122: 45,309 | AR122: =AQ122 -> 45,309 | AS122: 45,309 | AT122: 45,309 | AU122: 45,309 | AV122: 45,309 | AW122: 45,309 | AX122: 0 | AY122: 0 | BC122: 0
A123: 2017-04-30 | H123: 0 | I123: 0.00 | M123: 0 | N123: 2017-04-30 | U123: 0 | V123: 0.00 | Z123: 0 | AB123: 2017-04-30 | AC123: 45,313 | AD123: 45,313 | AE123: =AD123 -> 45,313 | AF123: 45,313 | AG123: 45,313 | AH123: 45,313 | AI123: 45,313 | AJ123: 0 | AK123: 0 | AO123: 0 | AP123: 2017-04-30 | AQ123: 45,309 | AR123: 45,309 | AS123: 45,309 | AT123: 45,309 | AU123: 45,309 | AV123: 45,309 | AW123: 45,309 | AX123: 0 | AY123: 0 | BC123: 0
A124: 2017-05-01 | H124: 0 | I124: 0.00 | M124: 0 | N124: 2017-05-01 | U124: 0 | V124: 0.00 | Z124: 0 | AB124: 2017-05-01 | AC124: 45,313 | AD124: 45,313 | AE124: =AD124 -> 45,313 | AF124: 45,313 | AG124: 45,313 | AH124: 45,313 | AI124: 45,313 | AJ124: 0 | AK124: 0 | AO124: 0 | AP124: 2017-05-01 | AQ124: 45,309 | AR124: 45,309 | AS124: 45,309 | AT124: 45,309 | AU124: 45,309 | AV124: 45,309 | AW124: 45,309 | AX124: 0 | AY124: 0 | BC124: 0
A125: 2017-05-02 | H125: 0 | I125: 0.00 | M125: 0 | N125: 2017-05-02 | U125: 0 | V125: 0.00 | Z125: 0 | AB125: 2017-05-02 | AC125: 45,313 | AD125: 45,313 | AE125: =AD125 -> 45,313 | AF125: 45,313 | AG125: 45,313 | AH125: 45,313 | AI125: 45,313 | AJ125: 0 | AK125: 0 | AO125: 0 | AP125: 2017-05-02 | AQ125: 45,309 | AR125: 45,309 | AS125: 45,309 | AT125: 45,309 | AU125: 45,309 | AV125: 45,309 | AW125: 45,309 | AX125: 0 | AY125: 0 | BC125: 0
A126: 2017-05-03 | H126: 0 | I126: 0.00 | M126: 0 | N126: 2017-05-03 | U126: 0 | V126: 0.00 | Z126: 0 | AB126: 2017-05-03 | AC126: 45,313 | AD126: 45,313 | AE126: =AD126 -> 45,313 | AF126: 45,313 | AG126: 45,313 | AH126: 45,313 | AI126: 45,313 | AJ126: 0 | AK126: 0 | AO126: 0 | AP126: 2017-05-03 | AQ126: 45,309 | AR126: 45,309 | AS126: 45,309 | AT126: 45,309 | AU126: 45,309 | AV126: 45,309 | AW126: 45,309 | AX126: 0 | AY126: 0 | BC126: 0
A127: 2017-05-04 | H127: 0 | I127: 0.00 | M127: 0 | N127: 2017-05-04 | U127: 0 | V127: 0.00 | Z127: 0 | AB127: 2017-05-04 | AC127: 45,313 | AD127: 45,313 | AE127: =AD127 -> 45,313 | AF127: 45,313 | AG127: 45,313 | AH127: 45,313 | AI127: 45,313 | AJ127: 0 | AK127: 0 | AO127: 0 | AP127: 2017-05-04 | AQ127: 45,309 | AR127: 45,309 | AS127: 45,309 | AT127: 45,309 | AU127: 45,309 | AV127: 45,309 | AW127: 45,309 | AX127: 0 | AY127: 0 | BC127: 0
A128: 2017-05-05 | H128: 0 | I128: 0.00 | M128: 0 | N128: 2017-05-05 | U128: 0 | V128: 0.00 | Z128: 0 | AB128: 2017-05-05 | AC128: 45,313 | AD128: 45,313 | AE128: =AD128 -> 45,313 | AF128: 45,313 | AG128: 45,313 | AH128: 45,313 | AI128: 45,313 | AJ128: 0 | AK128: 0 | AO128: 0 | AP128: 2017-05-05 | AQ128: 45,309 | AR128: 45,309 | AS128: 45,309 | AT128: 45,309 | AU128: 45,309 | AV128: 45,309 | AW128: 45,309 | AX128: 0 | AY128: 0 | BC128: 0
A129: 2017-05-06 | H129: 0 | I129: 0.00 | M129: 0 | N129: 2017-05-06 | U129: 0 | V129: 0.00 | Z129: 0 | AB129: 2017-05-06 | AC129: 45,313 | AD129: 45,313 | AE129: =AD129 -> 45,313 | AF129: 45,313 | AG129: 45,313 | AH129: 45,313 | AI129: 45,313 | AJ129: 0 | AK129: 0 | AO129: 0 | AP129: 2017-05-06 | AQ129: 45,309 | AR129: 45,309 | AS129: 45,309 | AT129: 45,309 | AU129: 45,309 | AV129: 45,309 | AW129: 45,309 | AX129: 0 | AY129: 0 | BC129: 0
A130: 2017-05-07 | H130: 0 | I130: 0.00 | M130: 0 | N130: 2017-05-07 | U130: 0 | V130: 0.00 | Z130: 0 | AB130: 2017-05-07 | AC130: 45,313 | AD130: 45,313 | AE130: =AD130 -> 45,313 | AF130: 45,313 | AG130: 45,313 | AH130: 45,313 | AI130: 45,313 | AJ130: 0 | AK130: 0 | AO130: 0 | AP130: 2017-05-07 | AQ130: 45,309 | AR130: 45,309 | AS130: 45,309 | AT130: 45,309 | AU130: 45,309 | AV130: 45,309 | AW130: 45,309 | AX130: 0 | AY130: 0 | BC130: 0
A131: 2017-05-08 | H131: 0 | I131: 0.00 | M131: 0 | N131: 2017-05-08 | U131: 0 | V131: 0.00 | Z131: 0 | AB131: 2017-05-08 | AC131: 45,313 | AD131: 45,313 | AE131: =AD131 -> 45,313 | AF131: 45,313 | AG131: 45,313 | AH131: 45,313 | AI131: 45,313 | AJ131: 0 | AK131: 0 | AO131: 0 | AP131: 2017-05-08 | AQ131: 45,309 | AR131: 45,309 | AS131: 45,309 | AT131: 45,309 | AU131: 45,309 | AV131: 45,309 | AW131: 45,309 | AX131: 0 | AY131: 0 | BC131: 0
A132: 2017-05-09 | H132: 0 | I132: 0.00 | M132: =IF(H132>0, 1, 0) -> 0 | N132: 2017-05-09 | U132: 0 | V132: 0.00 | Z132: =IF(U132>0, 1, 0) -> 0 | AB132: 2017-05-09 | AC132: 45,313 | AD132: 45,313 | AE132: =AD132 -> 45,313 | AF132: 45,313 | AG132: 45,313 | AH132: 45,313 | AI132: 45,313 | AJ132: 0 | AK132: 0 | AO132: 0 | AP132: 2017-05-09 | AQ132: 45,309 | AR132: 45,309 | AS132: 45,309 | AT132: 45,309 | AU132: 45,309 | AV132: 45,309 | AW132: 45,309 | AX132: 0 | AY132: 0 | BC132: =IF(AY132>0, 1, 0) -> 0
A133: 2017-05-10 | H133: 0 | I133: =H133*24 -> 0.00 | M133: 0 | N133: 2017-05-10 | U133: 0 | V133: =U133*24 -> 0.00 | Z133: 0 | AA133: =IF(H133<U133,"Actual less than Revenue",IF(AND(T133>G133,F133<>G133,S133<>T133),"Rev Over Act End 3rd", IF(AND(S133<F133,F133<>G133,S133<>T133),"Rev Less Act Start 3rd",IF(AND(R133>E133,D133<>E133,Q133<>R133),"Rev Over Act End 2nd",IF(AND(Q133<D133,D133<>E133,Q133<>R133),"Rev Less Act Start 2nd",IF(AND(P133>C133,B133<>C133,O133<>P133),"Rev Over Act End 1st",IF(AND(O133<B133,B133<>C133,O133<>P133),"Rev Less Act Start 1st",IF(AND(T133=G133,F133<>G133,S133<>T133),"Same End 3rd",IF(AND(S133=F133,F133<>G133,S133<>T133),"Same Start 3rd",IF(AND(R133=E133,D133<>E133,Q133<>R133),"Same End 2nd",IF(AND(Q133=D133,D133<>E133,Q133<>R133),"Same Start 2nd",IF(AND(P133=C133,B133<>C133,O133<>P133),"Same End 1st",IF(AND(O133=B133,B133<>C133,O133<>P133),"Same Start 1st",""))))))))))))) ->  | AB133: 2017-05-10 | AC133: 45,313 | AD133: 45,313 | AE133: =AD133 -> 45,313 | AF133: 45,313 | AG133: 45,313 | AH133: 45,313 | AI133: 45,313 | AJ133: 0 | AK133: 0 | AO133: =IF(AK133>0, 1, 0) -> 0 | AP133: 2017-05-10 | AQ133: 45,309 | AR133: 45,309 | AS133: 45,309 | AT133: 45,309 | AU133: 45,309 | AV133: 45,309 | AW133: 45,309 | AX133: =IF(AQ133=AW132, 0, AQ133-AW132) -> 0 | AY133: 0 | BC133: 0 | BD133: =IF(AK133<AY133,"Actual less than Revenue",IF(AND(AV133>AH133,AG133<>AH133,AU133<>AV133),"Rev Over Act End 3rd",IF(AND(AU133<AG133,AG133<>AH133,AU133<>AV133),"Rev Less Act Start 3rd",IF(AND(AT133>AF133,AE133<>AF133,AS133<>AT133),"Rev Over Act End 2nd",IF(AND(AS133<AE133,AE133<>AF133,AS133<>AT133),"Rev Less Act Start 2nd",IF(AND(AR133>AD133,AC133<>AD133,AQ133<>AR133),"Rev Over Act End 1st",IF(AND(AQ133<AC133,AC133<>AD133,AQ133<>AR133),"Rev Less Act Start 1st",IF(AND(AV133=AH133,AG133<>AH133,AU133<>AV133),"Same End 3rd",IF(AND(AU133=AG133,AG133<>AH133,AU133<>AV133),"Same Start 3rd",IF(AND(AT133=AF133,AE133<>AF133,AS133<>AT133),"Same End 2nd",IF(AND(AS133=AE133,AE133<>AF133,AS133<>AT133),"Same Start 2nd",IF(AND(AR133=AD133,AC133<>AD133,AQ133<>AR133),"Same End 1st",IF(AND(AQ133=AC133,AC133<>AD133,AQ133<>AR133),"Same Start 1st",""))))))))))))) -> 
A134: 2017-05-11 | H134: 0 | I134: 0.00 | M134: 0 | N134: 2017-05-11 | U134: 0 | V134: 0.00 | Z134: 0 | AB134: 2017-05-11 | AC134: 45,313 | AD134: 45,313 | AE134: =AD134 -> 45,313 | AF134: 45,313 | AG134: 45,313 | AH134: 45,313 | AI134: 45,313 | AJ134: 0 | AK134: 0 | AO134: 0 | AP134: 2017-05-11 | AQ134: 45,309 | AR134: 45,309 | AS134: 45,309 | AT134: 45,309 | AU134: 45,309 | AV134: 45,309 | AW134: 45,309 | AX134: 0 | AY134: 0 | BC134: 0
A135: 2017-05-12 | B135: 0.5833333333 | C135: 0.8125 | H135: 0.2291666667 | I135: 5.50 | M135: 1 | N135: 2017-05-12 | O135: 0.5833333333 | P135: 0.7951388889 | U135: 0.2118055556 | V135: 5.08 | Z135: 1 | AA135: Same Start 1st | AB135: 2017-05-12 | AC135: 45,322 | AD135: 45,391 | AE135: =AD135 -> 45,391 | AF135: 45,391 | AG135: 45,391 | AH135: 45,391 | AI135: 45,391 | AJ135: =IF(AC135=AI134, 0, AC135-AI134) -> 9 | AK135: 69 | AO135: 1 | AP135: 2017-05-12 | AQ135: 45,322 | AR135: 45,387 | AS135: 45,387 | AT135: 45,387 | AU135: 45,387 | AV135: 45,387 | AW135: 45,387 | AX135: 13 | AY135: 65 | BC135: 1 | BD135: Same Start 1st
A136: 2017-05-13 | H136: 0 | I136: 0.00 | M136: 0 | N136: 2017-05-13 | U136: 0 | V136: 0.00 | Z136: 0 | AB136: 2017-05-13 | AC136: 45,391 | AD136: 45,391 | AE136: =AD136 -> 45,391 | AF136: 45,391 | AG136: 45,391 | AH136: 45,391 | AI136: 45,391 | AJ136: 0 | AK136: 0 | AO136: 0 | AP136: 2017-05-13 | AQ136: 45,387 | AR136: 45,387 | AS136: 45,387 | AT136: 45,387 | AU136: 45,387 | AV136: 45,387 | AW136: 45,387 | AX136: 0 | AY136: 0 | BC136: 0
A137: 2017-05-14 | H137: 0 | I137: 0.00 | M137: 0 | N137: 2017-05-14 | U137: 0 | V137: 0.00 | Z137: 0 | AB137: 2017-05-14 | AC137: 45,391 | AD137: 45,391 | AE137: =AD137 -> 45,391 | AF137: 45,391 | AG137: 45,391 | AH137: 45,391 | AI137: 45,391 | AJ137: 0 | AK137: 0 | AO137: 0 | AP137: 2017-05-14 | AQ137: 45,387 | AR137: 45,387 | AS137: 45,387 | AT137: 45,387 | AU137: 45,387 | AV137: 45,387 | AW137: 45,387 | AX137: 0 | AY137: 0 | BC137: 0
A138: 2017-05-15 | B138: 0.2847222222 | C138: 0.5381944444 | D138: 0.5381944444 | E138: 0.8166666667 | H138: 0.5319444444 | I138: 12.77 | M138: 1 | N138: 2017-05-15 | O138: 0.2881944444 | P138: 0.5381944444 | Q138: 0.5381944444 | R138: 0.7881944444 | U138: =(P138-O138)+(R138-Q138)+(T138-S138) -> 0.5 | V138: 12.00 | Z138: 1 | AA138: Same Start 2nd | AB138: 2017-05-15 | AC138: 45,392 | AD138: 45,454 | AE138: =AD138 -> 45,454 | AF138: 45,520 | AG138: 45,520 | AH138: 45,520 | AI138: 45,520 | AJ138: 1 | AK138: =(AD138-AC138)+(AF138-AE138)+(AH138-AG138) -> 128 | AO138: 1 | AP138: 2017-05-15 | AQ138: 45,393 | AR138: 45,454 | AS138: 45,454 | AT138: 45,515 | AU138: 45,515 | AV138: 45,515 | AW138: 45,515 | AX138: 6 | AY138: =(AR138-AQ138)+(AT138-AS138)+(AV138-AU138) -> 122 | BC138: 1 | BD138: Same Start 2nd
A139: 2017-05-16 | B139: 0.2847222222 | C139: 0.5381944444 | D139: 0.5381944444 | E139: 0.8125 | H139: 0.5277777778 | I139: 12.67 | M139: 1 | N139: 2017-05-16 | O139: 0.2881944444 | P139: 0.5381944444 | Q139: 0.5381944444 | R139: 0.7951388889 | U139: 0.5069444444 | V139: 12.17 | Z139: 1 | AA139: Same Start 2nd | AB139: 2017-05-16 | AC139: 45,520 | AD139: 45,595 | AE139: =AD139 -> 45,595 | AF139: 45,673 | AG139: 45,673 | AH139: 45,673 | AI139: 45,673 | AJ139: 0 | AK139: 153 | AO139: 1 | AP139: 2017-05-16 | AQ139: 45,521 | AR139: 45,595 | AS139: 45,595 | AT139: 45,668 | AU139: 45,668 | AV139: 45,668 | AW139: 45,668 | AX139: 6 | AY139: 147 | BC139: 1 | BD139: Same Start 2nd
A140: 2017-05-17 | B140: 0.2847222222 | C140: 0.5381944444 | D140: 0.5381944444 | E140: 0.8125 | H140: 0.5277777778 | I140: 12.67 | M140: 1 | N140: 2017-05-17 | O140: 0.2881944444 | P140: 0.5381944444 | Q140: 0.5381944444 | R140: 0.7881944444 | U140: 0.5 | V140: 12.00 | Z140: 1 | AA140: Same Start 2nd | AB140: 2017-05-17 | AC140: 45,673 | AD140: 45,736 | AE140: =AD140 -> 45,736 | AF140: 45,801 | AG140: 45,801 | AH140: 45,801 | AI140: =MAX(AD140, AF140, AH140) -> 45,801 | AJ140: 0 | AK140: 128 | AO140: 1 | AP140: 2017-05-17 | AQ140: 45,674 | AR140: 45,736 | AS140: 45,736 | AT140: 45,799 | AU140: 45,799 | AV140: 45,799 | AW140: 45,799 | AX140: 6 | AY140: 125 | BC140: 1 | BD140: Same Start 2nd
A141: 2017-05-18 | H141: 0 | I141: 0.00 | M141: 0 | N141: 2017-05-18 | U141: 0 | V141: 0.00 | Z141: 0 | AB141: 2017-05-18 | AC141: =AI140 -> 45,801 | AD141: =AC141 -> 45,801 | AE141: =AD141 -> 45,801 | AF141: 45,801 | AG141: 45,801 | AH141: 45,801 | AI141: 45,801 | AJ141: 0 | AK141: 0 | AO141: 0 | AP141: 2017-05-18 | AQ141: =AW140 -> 45,799 | AR141: 45,799 | AS141: 45,799 | AT141: 45,799 | AU141: 45,799 | AV141: 45,799 | AW141: 45,799 | AX141: 0 | AY141: 0 | BC141: 0
A142: 2017-05-19 | H142: 0 | I142: 0.00 | M142: 0 | N142: 2017-05-19 | U142: 0 | V142: 0.00 | Z142: 0 | AB142: 2017-05-19 | AC142: 45,801 | AD142: 45,801 | AE142: =AD142 -> 45,801 | AF142: 45,801 | AG142: 45,801 | AH142: 45,801 | AI142: 45,801 | AJ142: 0 | AK142: 0 | AO142: 0 | AP142: 2017-05-19 | AQ142: 45,799 | AR142: 45,799 | AS142: 45,799 | AT142: 45,799 | AU142: 45,799 | AV142: 45,799 | AW142: 45,799 | AX142: 0 | AY142: 0 | BC142: 0
A143: 2017-05-20 | H143: 0 | I143: 0.00 | M143: 0 | N143: 2017-05-20 | U143: 0 | V143: 0.00 | Z143: 0 | AB143: 2017-05-20 | AC143: 45,801 | AD143: 45,801 | AE143: =AD143 -> 45,801 | AF143: 45,801 | AG143: 45,801 | AH143: 45,801 | AI143: 45,801 | AJ143: 0 | AK143: 0 | AO143: 0 | AP143: 2017-05-20 | AQ143: 45,799 | AR143: 45,799 | AS143: 45,799 | AT143: 45,799 | AU143: 45,799 | AV143: 45,799 | AW143: 45,799 | AX143: 0 | AY143: 0 | BC143: 0
A144: 2017-05-21 | H144: 0 | I144: 0.00 | M144: 0 | N144: 2017-05-21 | U144: 0 | V144: 0.00 | Z144: 0 | AB144: 2017-05-21 | AC144: 45,801 | AD144: 45,801 | AE144: =AD144 -> 45,801 | AF144: 45,801 | AG144: 45,801 | AH144: 45,801 | AI144: 45,801 | AJ144: 0 | AK144: 0 | AO144: 0 | AP144: 2017-05-21 | AQ144: 45,799 | AR144: 45,799 | AS144: 45,799 | AT144: 45,799 | AU144: 45,799 | AV144: 45,799 | AW144: 45,799 | AX144: 0 | AY144: 0 | BC144: 0
A145: 2017-05-22 | H145: 0 | I145: 0.00 | M145: 0 | N145: 2017-05-22 | U145: 0 | V145: 0.00 | Z145: 0 | AB145: 2017-05-22 | AC145: 45,801 | AD145: 45,801 | AE145: =AD145 -> 45,801 | AF145: 45,801 | AG145: 45,801 | AH145: 45,801 | AI145: 45,801 | AJ145: 0 | AK145: 0 | AO145: 0 | AP145: 2017-05-22 | AQ145: 45,799 | AR145: 45,799 | AS145: 45,799 | AT145: 45,799 | AU145: 45,799 | AV145: 45,799 | AW145: =MAX(AR145, AT145, AV145) -> 45,799 | AX145: 0 | AY145: 0 | BC145: 0
A146: 2017-05-23 | H146: 0 | I146: 0.00 | M146: 0 | N146: 2017-05-23 | U146: 0 | V146: 0.00 | Z146: 0 | AB146: 2017-05-23 | AC146: 45,801 | AD146: 45,801 | AE146: =AD146 -> 45,801 | AF146: 45,801 | AG146: 45,801 | AH146: 45,801 | AI146: 45,801 | AJ146: 0 | AK146: 0 | AO146: 0 | AP146: 2017-05-23 | AQ146: 45,799 | AR146: 45,799 | AS146: 45,799 | AT146: 45,799 | AU146: 45,799 | AV146: 45,799 | AW146: 45,799 | AX146: 0 | AY146: 0 | BC146: 0
A147: 2017-05-24 | H147: 0 | I147: 0.00 | M147: 0 | N147: 2017-05-24 | U147: 0 | V147: 0.00 | Z147: 0 | AB147: 2017-05-24 | AC147: 45,801 | AD147: 45,801 | AE147: =AD147 -> 45,801 | AF147: 45,801 | AG147: 45,801 | AH147: 45,801 | AI147: 45,801 | AJ147: 0 | AK147: 0 | AO147: 0 | AP147: 2017-05-24 | AQ147: 45,799 | AR147: 45,799 | AS147: 45,799 | AT147: 45,799 | AU147: 45,799 | AV147: 45,799 | AW147: 45,799 | AX147: 0 | AY147: 0 | BC147: 0
A148: 2017-05-25 | H148: 0 | I148: 0.00 | M148: 0 | N148: 2017-05-25 | U148: 0 | V148: 0.00 | Z148: 0 | AB148: 2017-05-25 | AC148: 45,801 | AD148: 45,801 | AE148: =AD148 -> 45,801 | AF148: 45,801 | AG148: 45,801 | AH148: 45,801 | AI148: 45,801 | AJ148: 0 | AK148: 0 | AO148: 0 | AP148: 2017-05-25 | AQ148: 45,799 | AR148: 45,799 | AS148: 45,799 | AT148: 45,799 | AU148: 45,799 | AV148: 45,799 | AW148: 45,799 | AX148: 0 | AY148: 0 | BC148: 0
A149: 2017-05-26 | H149: 0 | I149: 0.00 | M149: 0 | N149: 2017-05-26 | U149: 0 | V149: 0.00 | Z149: 0 | AB149: 2017-05-26 | AC149: 45,801 | AD149: 45,801 | AE149: =AD149 -> 45,801 | AF149: 45,801 | AG149: 45,801 | AH149: 45,801 | AI149: 45,801 | AJ149: 0 | AK149: 0 | AO149: 0 | AP149: 2017-05-26 | AQ149: 45,799 | AR149: 45,799 | AS149: 45,799 | AT149: 45,799 | AU149: 45,799 | AV149: 45,799 | AW149: 45,799 | AX149: 0 | AY149: 0 | BC149: 0
A150: 2017-05-27 | H150: 0 | I150: 0.00 | M150: 0 | N150: 2017-05-27 | U150: 0 | V150: 0.00 | Z150: 0 | AB150: 2017-05-27 | AC150: 45,801 | AD150: 45,801 | AE150: =AD150 -> 45,801 | AF150: 45,801 | AG150: 45,801 | AH150: 45,801 | AI150: 45,801 | AJ150: 0 | AK150: 0 | AO150: 0 | AP150: 2017-05-27 | AQ150: 45,799 | AR150: 45,799 | AS150: 45,799 | AT150: 45,799 | AU150: 45,799 | AV150: 45,799 | AW150: 45,799 | AX150: 0 | AY150: 0 | BC150: 0
A151: 2017-05-28 | H151: 0 | I151: 0.00 | M151: 0 | N151: 2017-05-28 | U151: 0 | V151: 0.00 | Z151: 0 | AB151: 2017-05-28 | AC151: 45,801 | AD151: 45,801 | AE151: =AD151 -> 45,801 | AF151: 45,801 | AG151: 45,801 | AH151: 45,801 | AI151: 45,801 | AJ151: 0 | AK151: 0 | AO151: 0 | AP151: 2017-05-28 | AQ151: 45,799 | AR151: 45,799 | AS151: 45,799 | AT151: 45,799 | AU151: 45,799 | AV151: 45,799 | AW151: 45,799 | AX151: 0 | AY151: 0 | BC151: 0
A152: 2017-05-29 | H152: 0 | I152: 0.00 | M152: 0 | N152: 2017-05-29 | U152: 0 | V152: 0.00 | Z152: 0 | AB152: 2017-05-29 | AC152: 45,801 | AD152: 45,801 | AE152: =AD152 -> 45,801 | AF152: 45,801 | AG152: 45,801 | AH152: 45,801 | AI152: 45,801 | AJ152: 0 | AK152: 0 | AO152: 0 | AP152: 2017-05-29 | AQ152: 45,799 | AR152: 45,799 | AS152: 45,799 | AT152: 45,799 | AU152: 45,799 | AV152: 45,799 | AW152: 45,799 | AX152: 0 | AY152: 0 | BC152: 0
A153: 2017-05-30 | B153: 0.2847222222 | C153: 0.5381944444 | D153: 0.5381944444 | E153: 0.8020833333 | H153: 0.5173611111 | I153: 12.42 | M153: 1 | N153: 2017-05-30 | O153: 0.2881944444 | P153: 0.5381944444 | Q153: 0.5381944444 | R153: 0.7881944444 | U153: 0.5 | V153: 12.00 | Z153: 1 | AA153: Same Start 2nd | AB153: 2017-05-30 | AC153: 45,804 | AD153: 45,867 | AE153: =AD153 -> 45,867 | AF153: 45,932 | AG153: 45,932 | AH153: 45,932 | AI153: 45,932 | AJ153: 3 | AK153: 128 | AO153: 1 | AP153: 2017-05-30 | AQ153: 45,805 | AR153: 45,867 | AS153: 45,867 | AT153: 45,928 | AU153: 45,928 | AV153: 45,928 | AW153: 45,928 | AX153: 6 | AY153: 123 | BC153: 1 | BD153: Same Start 2nd
A154: 2017-05-31 | B154: 0.2847222222 | C154: 0.5381944444 | H154: 0.2534722222 | I154: 6.08 | M154: 1 | N154: 2017-05-31 | O154: 0.2881944444 | P154: 0.5381944444 | U154: 0.25 | V154: 6.00 | Z154: 1 | AA154: Same End 1st | AB154: 2017-05-31 | AC154: 45,932 | AD154: 46,007 | AE154: =AD154 -> 46,007 | AF154: 46,007 | AG154: 46,007 | AH154: 46,007 | AI154: 46,007 | AJ154: 0 | AK154: 75 | AO154: 1 | AP154: 2017-05-31 | AQ154: 45,933 | AR154: 46,007 | AS154: 46,007 | AT154: 46,007 | AU154: 46,007 | AV154: 46,007 | AW154: 46,007 | AX154: 5 | AY154: 74 | BC154: 1 | BD154: Same End 1st
A155: 2017-06-01 | H155: =(C155-B155)+(E155-D155)+(G155-F155) -> 0 | I155: 0.00 | M155: 0 | N155: 2017-06-01 | U155: 0 | V155: 0.00 | Z155: 0 | AB155: 2017-06-01 | AC155: 46,007 | AD155: 46,007 | AE155: =AD155 -> 46,007 | AF155: 46,007 | AG155: 46,007 | AH155: 46,007 | AI155: 46,007 | AJ155: 0 | AK155: 0 | AO155: 0 | AP155: 2017-06-01 | AQ155: 46,007 | AR155: 46,007 | AS155: 46,007 | AT155: 46,007 | AU155: 46,007 | AV155: 46,007 | AW155: 46,007 | AX155: 0 | AY155: 0 | BC155: 0
A156: 2017-06-02 | H156: =(C156-B156)+(E156-D156)+(G156-F156) -> 0 | I156: =H156*24 -> 0.00 | M156: =IF(H156>0, 1, 0) -> 0 | N156: 2017-06-02 | U156: =(P156-O156)+(R156-Q156)+(T156-S156) -> 0 | V156: =U156*24 -> 0.00 | Z156: =IF(U156>0, 1, 0) -> 0 | AA156: =IF(H156<U156,"Actual less than Revenue",IF(AND(T156>G156,F156<>G156,S156<>T156),"Rev Over Act End 3rd", IF(AND(S156<F156,F156<>G156,S156<>T156),"Rev Less Act Start 3rd",IF(AND(R156>E156,D156<>E156,Q156<>R156),"Rev Over Act End 2nd",IF(AND(Q156<D156,D156<>E156,Q156<>R156),"Rev Less Act Start 2nd",IF(AND(P156>C156,B156<>C156,O156<>P156),"Rev Over Act End 1st",IF(AND(O156<B156,B156<>C156,O156<>P156),"Rev Less Act Start 1st",IF(AND(T156=G156,F156<>G156,S156<>T156),"Same End 3rd",IF(AND(S156=F156,F156<>G156,S156<>T156),"Same Start 3rd",IF(AND(R156=E156,D156<>E156,Q156<>R156),"Same End 2nd",IF(AND(Q156=D156,D156<>E156,Q156<>R156),"Same Start 2nd",IF(AND(P156=C156,B156<>C156,O156<>P156),"Same End 1st",IF(AND(O156=B156,B156<>C156,O156<>P156),"Same Start 1st",""))))))))))))) ->  | AB156: 2017-06-02 | AC156: 46,007 | AD156: 46,007 | AE156: =AD156 -> 46,007 | AF156: 46,007 | AG156: 46,007 | AH156: 46,007 | AI156: =MAX(AD156, AF156, AH156) -> 46,007 | AJ156: =IF(AC156=AI155, 0, AC156-AI155) -> 0 | AK156: =(AD156-AC156)+(AF156-AE156)+(AH156-AG156) -> 0 | AO156: =IF(AK156>0, 1, 0) -> 0 | AP156: 2017-06-02 | AQ156: 46,007 | AR156: 46,007 | AS156: 46,007 | AT156: 46,007 | AU156: 46,007 | AV156: 46,007 | AW156: =MAX(AR156, AT156, AV156) -> 46,007 | AX156: =IF(AQ156=AW155, 0, AQ156-AW155) -> 0 | AY156: =(AR156-AQ156)+(AT156-AS156)+(AV156-AU156) -> 0 | BC156: =IF(AY156>0, 1, 0) -> 0 | BD156: =IF(AK156<AY156,"Actual less than Revenue",IF(AND(AV156>AH156,AG156<>AH156,AU156<>AV156),"Rev Over Act End 3rd",IF(AND(AU156<AG156,AG156<>AH156,AU156<>AV156),"Rev Less Act Start 3rd",IF(AND(AT156>AF156,AE156<>AF156,AS156<>AT156),"Rev Over Act End 2nd",IF(AND(AS156<AE156,AE156<>AF156,AS156<>AT156),"Rev Less Act Start 2nd",IF(AND(AR156>AD156,AC156<>AD156,AQ156<>AR156),"Rev Over Act End 1st",IF(AND(AQ156<AC156,AC156<>AD156,AQ156<>AR156),"Rev Less Act Start 1st",IF(AND(AV156=AH156,AG156<>AH156,AU156<>AV156),"Same End 3rd",IF(AND(AU156=AG156,AG156<>AH156,AU156<>AV156),"Same Start 3rd",IF(AND(AT156=AF156,AE156<>AF156,AS156<>AT156),"Same End 2nd",IF(AND(AS156=AE156,AE156<>AF156,AS156<>AT156),"Same Start 2nd",IF(AND(AR156=AD156,AC156<>AD156,AQ156<>AR156),"Same End 1st",IF(AND(AQ156=AC156,AC156<>AD156,AQ156<>AR156),"Same Start 1st",""))))))))))))) -> 
A157: 2017-06-03 | H157: 0 | I157: 0.00 | M157: 0 | N157: 2017-06-03 | U157: 0 | V157: 0.00 | Z157: 0 | AB157: 2017-06-03 | AC157: 46,007 | AD157: 46,007 | AE157: =AD157 -> 46,007 | AF157: 46,007 | AG157: 46,007 | AH157: 46,007 | AI157: 46,007 | AJ157: 0 | AK157: 0 | AO157: 0 | AP157: 2017-06-03 | AQ157: 46,007 | AR157: 46,007 | AS157: 46,007 | AT157: 46,007 | AU157: 46,007 | AV157: 46,007 | AW157: 46,007 | AX157: 0 | AY157: 0 | BC157: 0
A158: 2017-06-04 | H158: 0 | I158: 0.00 | M158: 0 | N158: 2017-06-04 | U158: 0 | V158: 0.00 | Z158: 0 | AB158: 2017-06-04 | AC158: 46,007 | AD158: 46,007 | AE158: =AD158 -> 46,007 | AF158: 46,007 | AG158: 46,007 | AH158: 46,007 | AI158: 46,007 | AJ158: 0 | AK158: 0 | AO158: 0 | AP158: 2017-06-04 | AQ158: 46,007 | AR158: 46,007 | AS158: 46,007 | AT158: 46,007 | AU158: 46,007 | AV158: 46,007 | AW158: 46,007 | AX158: 0 | AY158: 0 | BC158: 0
A159: 2017-06-05 | H159: 0 | I159: 0.00 | M159: 0 | N159: 2017-06-05 | U159: 0 | V159: 0.00 | Z159: 0 | AB159: 2017-06-05 | AC159: 46,007 | AD159: 46,007 | AE159: =AD159 -> 46,007 | AF159: 46,007 | AG159: 46,007 | AH159: 46,007 | AI159: 46,007 | AJ159: 0 | AK159: 0 | AO159: 0 | AP159: 2017-06-05 | AQ159: 46,007 | AR159: 46,007 | AS159: 46,007 | AT159: 46,007 | AU159: 46,007 | AV159: 46,007 | AW159: 46,007 | AX159: 0 | AY159: 0 | BC159: 0
A160: 2017-06-06 | H160: 0 | I160: 0.00 | M160: 0 | N160: 2017-06-06 | U160: 0 | V160: 0.00 | Z160: 0 | AB160: 2017-06-06 | AC160: 46,007 | AD160: 46,007 | AE160: =AD160 -> 46,007 | AF160: 46,007 | AG160: 46,007 | AH160: 46,007 | AI160: 46,007 | AJ160: 0 | AK160: 0 | AO160: 0 | AP160: 2017-06-06 | AQ160: 46,007 | AR160: 46,007 | AS160: 46,007 | AT160: 46,007 | AU160: 46,007 | AV160: 46,007 | AW160: 46,007 | AX160: 0 | AY160: 0 | BC160: 0
A161: 2017-06-07 | H161: 0 | I161: 0.00 | M161: 0 | N161: 2017-06-07 | U161: 0 | V161: 0.00 | Z161: 0 | AB161: 2017-06-07 | AC161: 46,007 | AD161: 46,007 | AE161: =AD161 -> 46,007 | AF161: 46,007 | AG161: 46,007 | AH161: 46,007 | AI161: 46,007 | AJ161: 0 | AK161: 0 | AO161: 0 | AP161: 2017-06-07 | AQ161: 46,007 | AR161: 46,007 | AS161: 46,007 | AT161: 46,007 | AU161: 46,007 | AV161: 46,007 | AW161: 46,007 | AX161: 0 | AY161: 0 | BC161: 0
A162: 2017-06-08 | H162: 0 | I162: 0.00 | M162: 0 | N162: 2017-06-08 | U162: 0 | V162: 0.00 | Z162: 0 | AB162: 2017-06-08 | AC162: 46,007 | AD162: 46,007 | AE162: =AD162 -> 46,007 | AF162: 46,007 | AG162: 46,007 | AH162: 46,007 | AI162: 46,007 | AJ162: 0 | AK162: 0 | AO162: 0 | AP162: 2017-06-08 | AQ162: 46,007 | AR162: 46,007 | AS162: 46,007 | AT162: 46,007 | AU162: 46,007 | AV162: 46,007 | AW162: 46,007 | AX162: 0 | AY162: 0 | BC162: 0
A163: 2017-06-09 | H163: 0 | I163: 0.00 | M163: 0 | N163: 2017-06-09 | U163: 0 | V163: 0.00 | Z163: 0 | AB163: 2017-06-09 | AC163: 46,007 | AD163: 46,007 | AE163: =AD163 -> 46,007 | AF163: 46,007 | AG163: 46,007 | AH163: 46,007 | AI163: 46,007 | AJ163: 0 | AK163: 0 | AO163: 0 | AP163: 2017-06-09 | AQ163: 46,007 | AR163: 46,007 | AS163: 46,007 | AT163: 46,007 | AU163: 46,007 | AV163: 46,007 | AW163: 46,007 | AX163: 0 | AY163: 0 | BC163: 0
A164: 2017-06-10 | H164: 0 | I164: 0.00 | M164: 0 | N164: 2017-06-10 | U164: 0 | V164: 0.00 | Z164: 0 | AB164: 2017-06-10 | AC164: 46,007 | AD164: 46,007 | AE164: =AD164 -> 46,007 | AF164: 46,007 | AG164: 46,007 | AH164: 46,007 | AI164: 46,007 | AJ164: 0 | AK164: 0 | AO164: 0 | AP164: 2017-06-10 | AQ164: 46,007 | AR164: 46,007 | AS164: 46,007 | AT164: 46,007 | AU164: 46,007 | AV164: 46,007 | AW164: 46,007 | AX164: 0 | AY164: 0 | BC164: 0
A165: 2017-06-11 | H165: 0 | I165: 0.00 | M165: 0 | N165: 2017-06-11 | U165: 0 | V165: 0.00 | Z165: 0 | AB165: 2017-06-11 | AC165: 46,007 | AD165: 46,007 | AE165: =AD165 -> 46,007 | AF165: 46,007 | AG165: 46,007 | AH165: 46,007 | AI165: 46,007 | AJ165: 0 | AK165: 0 | AO165: 0 | AP165: 2017-06-11 | AQ165: 46,007 | AR165: 46,007 | AS165: 46,007 | AT165: 46,007 | AU165: 46,007 | AV165: 46,007 | AW165: 46,007 | AX165: 0 | AY165: 0 | BC165: 0
A166: 2017-06-12 | H166: 0 | I166: 0.00 | M166: 0 | N166: 2017-06-12 | U166: 0 | V166: 0.00 | Z166: 0 | AB166: 2017-06-12 | AC166: 46,007 | AD166: 46,007 | AE166: =AD166 -> 46,007 | AF166: 46,007 | AG166: 46,007 | AH166: 46,007 | AI166: 46,007 | AJ166: 0 | AK166: 0 | AO166: 0 | AP166: 2017-06-12 | AQ166: 46,007 | AR166: 46,007 | AS166: 46,007 | AT166: 46,007 | AU166: 46,007 | AV166: 46,007 | AW166: 46,007 | AX166: 0 | AY166: 0 | BC166: 0
A167: 2017-06-13 | H167: 0 | I167: 0.00 | M167: =IF(H167>0, 1, 0) -> 0 | N167: 2017-06-13 | U167: 0 | V167: 0.00 | Z167: 0 | AB167: 2017-06-13 | AC167: 46,007 | AD167: 46,007 | AE167: =AD167 -> 46,007 | AF167: 46,007 | AG167: 46,007 | AH167: 46,007 | AI167: 46,007 | AJ167: 0 | AK167: 0 | AO167: 0 | AP167: 2017-06-13 | AQ167: 46,007 | AR167: 46,007 | AS167: 46,007 | AT167: 46,007 | AU167: 46,007 | AV167: 46,007 | AW167: 46,007 | AX167: 0 | AY167: 0 | BC167: 0
A168: 2017-06-14 | H168: 0 | I168: 0.00 | M168: 0 | N168: 2017-06-14 | U168: 0 | V168: 0.00 | Z168: 0 | AB168: 2017-06-14 | AC168: 46,007 | AD168: 46,007 | AE168: =AD168 -> 46,007 | AF168: 46,007 | AG168: 46,007 | AH168: 46,007 | AI168: 46,007 | AJ168: 0 | AK168: 0 | AO168: 0 | AP168: 2017-06-14 | AQ168: 46,007 | AR168: 46,007 | AS168: 46,007 | AT168: 46,007 | AU168: 46,007 | AV168: 46,007 | AW168: 46,007 | AX168: 0 | AY168: 0 | BC168: 0
A169: 2017-06-15 | H169: 0 | I169: 0.00 | M169: 0 | N169: 2017-06-15 | U169: 0 | V169: 0.00 | Z169: 0 | AB169: 2017-06-15 | AC169: 46,007 | AD169: 46,007 | AE169: =AD169 -> 46,007 | AF169: 46,007 | AG169: 46,007 | AH169: 46,007 | AI169: 46,007 | AJ169: 0 | AK169: 0 | AO169: 0 | AP169: 2017-06-15 | AQ169: 46,007 | AR169: 46,007 | AS169: 46,007 | AT169: 46,007 | AU169: 46,007 | AV169: 46,007 | AW169: 46,007 | AX169: 0 | AY169: 0 | BC169: 0
A170: 2017-06-16 | H170: 0 | I170: 0.00 | M170: 0 | N170: 2017-06-16 | U170: 0 | V170: 0.00 | Z170: 0 | AB170: 2017-06-16 | AC170: 46,007 | AD170: 46,007 | AE170: =AD170 -> 46,007 | AF170: 46,007 | AG170: 46,007 | AH170: 46,007 | AI170: 46,007 | AJ170: 0 | AK170: 0 | AO170: 0 | AP170: 2017-06-16 | AQ170: 46,007 | AR170: 46,007 | AS170: 46,007 | AT170: 46,007 | AU170: 46,007 | AV170: 46,007 | AW170: 46,007 | AX170: 0 | AY170: 0 | BC170: 0
A171: 2017-06-17 | H171: 0 | I171: 0.00 | M171: 0 | N171: 2017-06-17 | U171: 0 | V171: 0.00 | Z171: 0 | AB171: 2017-06-17 | AC171: 46,007 | AD171: 46,007 | AE171: =AD171 -> 46,007 | AF171: 46,007 | AG171: 46,007 | AH171: 46,007 | AI171: 46,007 | AJ171: 0 | AK171: 0 | AO171: 0 | AP171: 2017-06-17 | AQ171: 46,007 | AR171: 46,007 | AS171: 46,007 | AT171: 46,007 | AU171: 46,007 | AV171: 46,007 | AW171: 46,007 | AX171: 0 | AY171: 0 | BC171: 0
A172: 2017-06-18 | H172: 0 | I172: 0.00 | M172: 0 | N172: 2017-06-18 | U172: 0 | V172: 0.00 | Z172: 0 | AB172: 2017-06-18 | AC172: 46,007 | AD172: 46,007 | AE172: =AD172 -> 46,007 | AF172: 46,007 | AG172: 46,007 | AH172: 46,007 | AI172: 46,007 | AJ172: 0 | AK172: 0 | AO172: 0 | AP172: 2017-06-18 | AQ172: 46,007 | AR172: 46,007 | AS172: 46,007 | AT172: 46,007 | AU172: 46,007 | AV172: 46,007 | AW172: 46,007 | AX172: 0 | AY172: 0 | BC172: 0
A173: 2017-06-19 | H173: 0 | I173: 0.00 | M173: 0 | N173: 2017-06-19 | U173: 0 | V173: 0.00 | Z173: 0 | AB173: 2017-06-19 | AC173: 46,007 | AD173: 46,007 | AE173: =AD173 -> 46,007 | AF173: 46,007 | AG173: 46,007 | AH173: 46,007 | AI173: 46,007 | AJ173: 0 | AK173: 0 | AO173: 0 | AP173: 2017-06-19 | AQ173: 46,007 | AR173: =AQ173 -> 46,007 | AS173: 46,007 | AT173: 46,007 | AU173: 46,007 | AV173: 46,007 | AW173: 46,007 | AX173: 0 | AY173: 0 | BC173: 0
A174: 2017-06-20 | H174: 0 | I174: 0.00 | M174: 0 | N174: 2017-06-20 | U174: 0 | V174: 0.00 | Z174: 0 | AB174: 2017-06-20 | AC174: 46,007 | AD174: 46,007 | AE174: =AD174 -> 46,007 | AF174: 46,007 | AG174: 46,007 | AH174: 46,007 | AI174: 46,007 | AJ174: 0 | AK174: 0 | AO174: 0 | AP174: 2017-06-20 | AQ174: 46,007 | AR174: 46,007 | AS174: 46,007 | AT174: 46,007 | AU174: 46,007 | AV174: 46,007 | AW174: 46,007 | AX174: 0 | AY174: 0 | BC174: 0
A175: 2017-06-21 | H175: 0 | I175: 0.00 | M175: 0 | N175: 2017-06-21 | U175: 0 | V175: 0.00 | Z175: 0 | AB175: 2017-06-21 | AC175: 46,007 | AD175: 46,007 | AE175: =AD175 -> 46,007 | AF175: 46,007 | AG175: 46,007 | AH175: 46,007 | AI175: 46,007 | AJ175: 0 | AK175: 0 | AO175: 0 | AP175: 2017-06-21 | AQ175: 46,007 | AR175: 46,007 | AS175: 46,007 | AT175: 46,007 | AU175: 46,007 | AV175: 46,007 | AW175: 46,007 | AX175: 0 | AY175: 0 | BC175: 0
A176: 2017-06-22 | H176: 0 | I176: 0.00 | M176: 0 | N176: 2017-06-22 | U176: 0 | V176: 0.00 | Z176: 0 | AB176: 2017-06-22 | AC176: 46,007 | AD176: 46,007 | AE176: =AD176 -> 46,007 | AF176: 46,007 | AG176: 46,007 | AH176: 46,007 | AI176: 46,007 | AJ176: 0 | AK176: 0 | AO176: 0 | AP176: 2017-06-22 | AQ176: 46,007 | AR176: 46,007 | AS176: 46,007 | AT176: 46,007 | AU176: 46,007 | AV176: 46,007 | AW176: 46,007 | AX176: 0 | AY176: 0 | BC176: 0
A177: 2017-06-23 | H177: 0 | I177: 0.00 | M177: 0 | N177: 2017-06-23 | U177: 0 | V177: 0.00 | Z177: 0 | AB177: 2017-06-23 | AC177: 46,007 | AD177: 46,007 | AE177: =AD177 -> 46,007 | AF177: 46,007 | AG177: 46,007 | AH177: 46,007 | AI177: 46,007 | AJ177: 0 | AK177: 0 | AO177: 0 | AP177: 2017-06-23 | AQ177: 46,007 | AR177: 46,007 | AS177: 46,007 | AT177: 46,007 | AU177: 46,007 | AV177: 46,007 | AW177: 46,007 | AX177: 0 | AY177: 0 | BC177: 0
A178: 2017-06-24 | H178: 0 | I178: 0.00 | M178: 0 | N178: 2017-06-24 | U178: 0 | V178: 0.00 | Z178: 0 | AB178: 2017-06-24 | AC178: 46,007 | AD178: 46,007 | AE178: =AD178 -> 46,007 | AF178: 46,007 | AG178: 46,007 | AH178: 46,007 | AI178: 46,007 | AJ178: 0 | AK178: 0 | AO178: 0 | AP178: 2017-06-24 | AQ178: 46,007 | AR178: 46,007 | AS178: 46,007 | AT178: 46,007 | AU178: 46,007 | AV178: 46,007 | AW178: 46,007 | AX178: 0 | AY178: 0 | BC178: 0
A179: 2017-06-25 | H179: 0 | I179: 0.00 | M179: 0 | N179: 2017-06-25 | U179: 0 | V179: 0.00 | Z179: 0 | AB179: 2017-06-25 | AC179: 46,007 | AD179: 46,007 | AE179: =AD179 -> 46,007 | AF179: 46,007 | AG179: 46,007 | AH179: 46,007 | AI179: 46,007 | AJ179: 0 | AK179: 0 | AO179: 0 | AP179: 2017-06-25 | AQ179: 46,007 | AR179: 46,007 | AS179: 46,007 | AT179: 46,007 | AU179: 46,007 | AV179: 46,007 | AW179: 46,007 | AX179: 0 | AY179: 0 | BC179: 0
A180: 2017-06-26 | H180: 0 | I180: 0.00 | M180: 0 | N180: 2017-06-26 | U180: 0 | V180: 0.00 | Z180: 0 | AB180: 2017-06-26 | AC180: 46,007 | AD180: 46,007 | AE180: =AD180 -> 46,007 | AF180: 46,007 | AG180: 46,007 | AH180: 46,007 | AI180: 46,007 | AJ180: 0 | AK180: 0 | AO180: 0 | AP180: 2017-06-26 | AQ180: 46,007 | AR180: 46,007 | AS180: 46,007 | AT180: 46,007 | AU180: 46,007 | AV180: 46,007 | AW180: 46,007 | AX180: 0 | AY180: 0 | BC180: 0
A181: 2017-06-27 | H181: 0 | I181: 0.00 | M181: 0 | N181: 2017-06-27 | U181: 0 | V181: 0.00 | Z181: 0 | AB181: 2017-06-27 | AC181: 46,007 | AD181: 46,007 | AE181: =AD181 -> 46,007 | AF181: 46,007 | AG181: 46,007 | AH181: 46,007 | AI181: 46,007 | AJ181: 0 | AK181: 0 | AO181: 0 | AP181: 2017-06-27 | AQ181: 46,007 | AR181: 46,007 | AS181: 46,007 | AT181: 46,007 | AU181: 46,007 | AV181: 46,007 | AW181: 46,007 | AX181: 0 | AY181: 0 | BC181: 0
A182: 2017-06-28 | H182: 0 | I182: 0.00 | M182: 0 | N182: 2017-06-28 | U182: 0 | V182: 0.00 | Z182: 0 | AB182: 2017-06-28 | AC182: 46,007 | AD182: 46,007 | AE182: =AD182 -> 46,007 | AF182: 46,007 | AG182: 46,007 | AH182: 46,007 | AI182: 46,007 | AJ182: 0 | AK182: 0 | AO182: 0 | AP182: 2017-06-28 | AQ182: 46,007 | AR182: 46,007 | AS182: 46,007 | AT182: 46,007 | AU182: 46,007 | AV182: 46,007 | AW182: 46,007 | AX182: 0 | AY182: 0 | BC182: 0
A183: 2017-06-29 | H183: 0 | I183: 0.00 | M183: 0 | N183: 2017-06-29 | U183: 0 | V183: 0.00 | Z183: 0 | AB183: 2017-06-29 | AC183: 46,007 | AD183: 46,007 | AE183: =AD183 -> 46,007 | AF183: 46,007 | AG183: 46,007 | AH183: 46,007 | AI183: 46,007 | AJ183: 0 | AK183: 0 | AO183: 0 | AP183: 2017-06-29 | AQ183: 46,007 | AR183: 46,007 | AS183: 46,007 | AT183: 46,007 | AU183: 46,007 | AV183: 46,007 | AW183: 46,007 | AX183: 0 | AY183: 0 | BC183: 0
A184: 2017-06-30 | H184: 0 | I184: 0.00 | M184: 0 | N184: 2017-06-30 | U184: 0 | V184: 0.00 | Z184: 0 | AB184: 2017-06-30 | AC184: 46,007 | AD184: 46,007 | AE184: =AD184 -> 46,007 | AF184: 46,007 | AG184: 46,007 | AH184: 46,007 | AI184: 46,007 | AJ184: 0 | AK184: 0 | AO184: 0 | AP184: 2017-06-30 | AQ184: 46,007 | AR184: 46,007 | AS184: 46,007 | AT184: 46,007 | AU184: 46,007 | AV184: 46,007 | AW184: 46,007 | AX184: 0 | AY184: 0 | BC184: 0
A185: 2017-07-01 | H185: 0 | I185: 0.00 | M185: 0 | N185: 2017-07-01 | U185: 0 | V185: 0.00 | Z185: 0 | AB185: 2017-07-01 | AC185: 46,007 | AD185: 46,007 | AE185: =AD185 -> 46,007 | AF185: 46,007 | AG185: 46,007 | AH185: 46,007 | AI185: 46,007 | AJ185: 0 | AK185: 0 | AO185: 0 | AP185: 2017-07-01 | AQ185: 46,007 | AR185: 46,007 | AS185: 46,007 | AT185: 46,007 | AU185: 46,007 | AV185: 46,007 | AW185: 46,007 | AX185: 0 | AY185: 0 | BC185: 0
A186: 2017-07-02 | H186: 0 | I186: 0.00 | M186: 0 | N186: 2017-07-02 | U186: 0 | V186: 0.00 | Z186: 0 | AB186: 2017-07-02 | AC186: 46,007 | AD186: 46,007 | AE186: =AD186 -> 46,007 | AF186: 46,007 | AG186: 46,007 | AH186: 46,007 | AI186: 46,007 | AJ186: 0 | AK186: 0 | AO186: 0 | AP186: 2017-07-02 | AQ186: 46,007 | AR186: 46,007 | AS186: 46,007 | AT186: 46,007 | AU186: 46,007 | AV186: 46,007 | AW186: 46,007 | AX186: 0 | AY186: 0 | BC186: 0
A187: 2017-07-03 | H187: 0 | I187: 0.00 | M187: 0 | N187: 2017-07-03 | U187: 0 | V187: 0.00 | Z187: 0 | AB187: 2017-07-03 | AC187: 46,007 | AD187: 46,007 | AE187: =AD187 -> 46,007 | AF187: 46,007 | AG187: 46,007 | AH187: 46,007 | AI187: 46,007 | AJ187: 0 | AK187: 0 | AO187: 0 | AP187: 2017-07-03 | AQ187: 46,007 | AR187: 46,007 | AS187: 46,007 | AT187: 46,007 | AU187: 46,007 | AV187: 46,007 | AW187: 46,007 | AX187: 0 | AY187: 0 | BC187: 0
A188: 2017-07-04 | H188: 0 | I188: 0.00 | M188: 0 | N188: 2017-07-04 | U188: 0 | V188: 0.00 | Z188: 0 | AB188: 2017-07-04 | AC188: 46,007 | AD188: 46,007 | AE188: =AD188 -> 46,007 | AF188: 46,007 | AG188: 46,007 | AH188: 46,007 | AI188: 46,007 | AJ188: 0 | AK188: 0 | AO188: 0 | AP188: 2017-07-04 | AQ188: 46,007 | AR188: 46,007 | AS188: 46,007 | AT188: 46,007 | AU188: 46,007 | AV188: 46,007 | AW188: 46,007 | AX188: 0 | AY188: 0 | BC188: 0
A189: 2017-07-05 | H189: 0 | I189: 0.00 | M189: 0 | N189: 2017-07-05 | U189: 0 | V189: 0.00 | Z189: 0 | AB189: 2017-07-05 | AC189: 46,007 | AD189: 46,007 | AE189: =AD189 -> 46,007 | AF189: 46,007 | AG189: 46,007 | AH189: 46,007 | AI189: 46,007 | AJ189: 0 | AK189: 0 | AO189: 0 | AP189: 2017-07-05 | AQ189: 46,007 | AR189: 46,007 | AS189: 46,007 | AT189: 46,007 | AU189: 46,007 | AV189: 46,007 | AW189: 46,007 | AX189: 0 | AY189: 0 | BC189: 0
A190: 2017-07-06 | H190: 0 | I190: 0.00 | M190: 0 | N190: 2017-07-06 | U190: 0 | V190: 0.00 | Z190: 0 | AB190: 2017-07-06 | AC190: 46,007 | AD190: 46,007 | AE190: =AD190 -> 46,007 | AF190: 46,007 | AG190: 46,007 | AH190: 46,007 | AI190: 46,007 | AJ190: 0 | AK190: 0 | AO190: 0 | AP190: 2017-07-06 | AQ190: 46,007 | AR190: 46,007 | AS190: 46,007 | AT190: 46,007 | AU190: 46,007 | AV190: 46,007 | AW190: 46,007 | AX190: 0 | AY190: 0 | BC190: 0
A191: 2017-07-07 | H191: 0 | I191: 0.00 | M191: 0 | N191: 2017-07-07 | U191: 0 | V191: 0.00 | Z191: 0 | AB191: 2017-07-07 | AC191: 46,007 | AD191: 46,007 | AE191: =AD191 -> 46,007 | AF191: 46,007 | AG191: 46,007 | AH191: 46,007 | AI191: 46,007 | AJ191: 0 | AK191: 0 | AO191: 0 | AP191: 2017-07-07 | AQ191: 46,007 | AR191: 46,007 | AS191: 46,007 | AT191: 46,007 | AU191: 46,007 | AV191: 46,007 | AW191: 46,007 | AX191: 0 | AY191: 0 | BC191: 0
A192: 2017-07-08 | H192: 0 | I192: 0.00 | M192: 0 | N192: 2017-07-08 | U192: 0 | V192: 0.00 | Z192: 0 | AB192: 2017-07-08 | AC192: 46,007 | AD192: 46,007 | AE192: =AD192 -> 46,007 | AF192: 46,007 | AG192: 46,007 | AH192: 46,007 | AI192: 46,007 | AJ192: 0 | AK192: 0 | AO192: 0 | AP192: 2017-07-08 | AQ192: 46,007 | AR192: 46,007 | AS192: 46,007 | AT192: 46,007 | AU192: 46,007 | AV192: 46,007 | AW192: 46,007 | AX192: 0 | AY192: 0 | BC192: 0
A193: 2017-07-09 | H193: 0 | I193: 0.00 | M193: 0 | N193: 2017-07-09 | U193: 0 | V193: 0.00 | Z193: 0 | AB193: 2017-07-09 | AC193: 46,007 | AD193: 46,007 | AE193: =AD193 -> 46,007 | AF193: 46,007 | AG193: 46,007 | AH193: 46,007 | AI193: 46,007 | AJ193: 0 | AK193: 0 | AO193: 0 | AP193: 2017-07-09 | AQ193: 46,007 | AR193: 46,007 | AS193: 46,007 | AT193: 46,007 | AU193: 46,007 | AV193: 46,007 | AW193: 46,007 | AX193: 0 | AY193: 0 | BC193: 0
A194: 2017-07-10 | H194: 0 | I194: 0.00 | M194: 0 | N194: 2017-07-10 | U194: 0 | V194: 0.00 | Z194: 0 | AB194: 2017-07-10 | AC194: 46,007 | AD194: 46,007 | AE194: =AD194 -> 46,007 | AF194: 46,007 | AG194: 46,007 | AH194: 46,007 | AI194: 46,007 | AJ194: 0 | AK194: 0 | AO194: 0 | AP194: 2017-07-10 | AQ194: 46,007 | AR194: 46,007 | AS194: 46,007 | AT194: 46,007 | AU194: 46,007 | AV194: 46,007 | AW194: 46,007 | AX194: 0 | AY194: 0 | BC194: 0
A195: 2017-07-11 | H195: 0 | I195: 0.00 | M195: 0 | N195: 2017-07-11 | U195: 0 | V195: 0.00 | Z195: 0 | AB195: 2017-07-11 | AC195: 46,007 | AD195: 46,007 | AE195: =AD195 -> 46,007 | AF195: 46,007 | AG195: 46,007 | AH195: 46,007 | AI195: 46,007 | AJ195: 0 | AK195: 0 | AO195: 0 | AP195: 2017-07-11 | AQ195: 46,007 | AR195: 46,007 | AS195: 46,007 | AT195: 46,007 | AU195: 46,007 | AV195: 46,007 | AW195: 46,007 | AX195: 0 | AY195: 0 | BC195: 0
A196: 2017-07-12 | H196: 0 | I196: 0.00 | M196: =IF(H196>0, 1, 0) -> 0 | N196: 2017-07-12 | U196: 0 | V196: 0.00 | Z196: =IF(U196>0, 1, 0) -> 0 | AB196: 2017-07-12 | AC196: 46,007 | AD196: 46,007 | AE196: =AD196 -> 46,007 | AF196: 46,007 | AG196: 46,007 | AH196: 46,007 | AI196: 46,007 | AJ196: 0 | AK196: 0 | AO196: 0 | AP196: 2017-07-12 | AQ196: 46,007 | AR196: 46,007 | AS196: 46,007 | AT196: 46,007 | AU196: 46,007 | AV196: 46,007 | AW196: 46,007 | AX196: 0 | AY196: 0 | BC196: =IF(AY196>0, 1, 0) -> 0
A197: 2017-07-13 | H197: 0 | I197: =H197*24 -> 0.00 | M197: 0 | N197: 2017-07-13 | U197: 0 | V197: =U197*24 -> 0.00 | Z197: 0 | AA197: =IF(H197<U197,"Actual less than Revenue",IF(AND(T197>G197,F197<>G197,S197<>T197),"Rev Over Act End 3rd", IF(AND(S197<F197,F197<>G197,S197<>T197),"Rev Less Act Start 3rd",IF(AND(R197>E197,D197<>E197,Q197<>R197),"Rev Over Act End 2nd",IF(AND(Q197<D197,D197<>E197,Q197<>R197),"Rev Less Act Start 2nd",IF(AND(P197>C197,B197<>C197,O197<>P197),"Rev Over Act End 1st",IF(AND(O197<B197,B197<>C197,O197<>P197),"Rev Less Act Start 1st",IF(AND(T197=G197,F197<>G197,S197<>T197),"Same End 3rd",IF(AND(S197=F197,F197<>G197,S197<>T197),"Same Start 3rd",IF(AND(R197=E197,D197<>E197,Q197<>R197),"Same End 2nd",IF(AND(Q197=D197,D197<>E197,Q197<>R197),"Same Start 2nd",IF(AND(P197=C197,B197<>C197,O197<>P197),"Same End 1st",IF(AND(O197=B197,B197<>C197,O197<>P197),"Same Start 1st",""))))))))))))) ->  | AB197: 2017-07-13 | AC197: 46,007 | AD197: 46,007 | AE197: =AD197 -> 46,007 | AF197: 46,007 | AG197: 46,007 | AH197: 46,007 | AI197: 46,007 | AJ197: 0 | AK197: 0 | AO197: =IF(AK197>0, 1, 0) -> 0 | AP197: 2017-07-13 | AQ197: 46,007 | AR197: 46,007 | AS197: 46,007 | AT197: 46,007 | AU197: 46,007 | AV197: 46,007 | AW197: 46,007 | AX197: =IF(AQ197=AW196, 0, AQ197-AW196) -> 0 | AY197: 0 | BC197: 0 | BD197: =IF(AK197<AY197,"Actual less than Revenue",IF(AND(AV197>AH197,AG197<>AH197,AU197<>AV197),"Rev Over Act End 3rd",IF(AND(AU197<AG197,AG197<>AH197,AU197<>AV197),"Rev Less Act Start 3rd",IF(AND(AT197>AF197,AE197<>AF197,AS197<>AT197),"Rev Over Act End 2nd",IF(AND(AS197<AE197,AE197<>AF197,AS197<>AT197),"Rev Less Act Start 2nd",IF(AND(AR197>AD197,AC197<>AD197,AQ197<>AR197),"Rev Over Act End 1st",IF(AND(AQ197<AC197,AC197<>AD197,AQ197<>AR197),"Rev Less Act Start 1st",IF(AND(AV197=AH197,AG197<>AH197,AU197<>AV197),"Same End 3rd",IF(AND(AU197=AG197,AG197<>AH197,AU197<>AV197),"Same Start 3rd",IF(AND(AT197=AF197,AE197<>AF197,AS197<>AT197),"Same End 2nd",IF(AND(AS197=AE197,AE197<>AF197,AS197<>AT197),"Same Start 2nd",IF(AND(AR197=AD197,AC197<>AD197,AQ197<>AR197),"Same End 1st",IF(AND(AQ197=AC197,AC197<>AD197,AQ197<>AR197),"Same Start 1st",""))))))))))))) -> 
A198: 2017-07-14 | H198: 0 | I198: 0.00 | M198: 0 | N198: 2017-07-14 | U198: 0 | V198: 0.00 | Z198: 0 | AB198: 2017-07-14 | AC198: 46,007 | AD198: 46,007 | AE198: =AD198 -> 46,007 | AF198: 46,007 | AG198: 46,007 | AH198: 46,007 | AI198: 46,007 | AJ198: 0 | AK198: 0 | AO198: 0 | AP198: 2017-07-14 | AQ198: 46,007 | AR198: 46,007 | AS198: 46,007 | AT198: 46,007 | AU198: 46,007 | AV198: 46,007 | AW198: 46,007 | AX198: 0 | AY198: 0 | BC198: 0
A199: 2017-07-15 | H199: 0 | I199: 0.00 | M199: 0 | N199: 2017-07-15 | U199: 0 | V199: 0.00 | Z199: 0 | AB199: 2017-07-15 | AC199: 46,007 | AD199: 46,007 | AE199: =AD199 -> 46,007 | AF199: 46,007 | AG199: 46,007 | AH199: 46,007 | AI199: 46,007 | AJ199: =IF(AC199=AI198, 0, AC199-AI198) -> 0 | AK199: 0 | AO199: 0 | AP199: 2017-07-15 | AQ199: 46,007 | AR199: 46,007 | AS199: 46,007 | AT199: 46,007 | AU199: 46,007 | AV199: 46,007 | AW199: 46,007 | AX199: 0 | AY199: 0 | BC199: 0
A200: 2017-07-16 | H200: 0 | I200: 0.00 | M200: 0 | N200: 2017-07-16 | U200: 0 | V200: 0.00 | Z200: 0 | AB200: 2017-07-16 | AC200: 46,007 | AD200: 46,007 | AE200: =AD200 -> 46,007 | AF200: 46,007 | AG200: 46,007 | AH200: 46,007 | AI200: 46,007 | AJ200: 0 | AK200: 0 | AO200: 0 | AP200: 2017-07-16 | AQ200: 46,007 | AR200: 46,007 | AS200: 46,007 | AT200: 46,007 | AU200: 46,007 | AV200: 46,007 | AW200: 46,007 | AX200: 0 | AY200: 0 | BC200: 0
... 169 more rows

Sheet 1474 FX
A1: 1474 Service Hours (Fixed Route) | AB1: 1474 Mileage (Fixed Route)
A2: ACTUAL (Fixed) | N2: REVENUE (Fixed) | AB2: ACTUAL (Fixed) | AP2: REVENUE (Fixed)
A3: Date | B3: 1st Start | C3: 1st End | D3: 2nd Start | E3: 2nd End | F3: 3rd Start | G3: 3rd End | H3: Difference | I3: Hours Converted | N3: Date | O3: 1st Start | P3: 1st End | Q3: 2nd Start | R3: 2nd End | S3: 3rd Start | T3: 3rd End | U3: Difference | V3: Hours Converted | AA3: Cross-Check | AB3: Date | AC3: 1st Start | AD3: 1st End | AE3: 2nd Start | AF3: 2nd End | AG3: 3rd Start | AH3: 3rd End | AI3: End of Day | AJ3: Extraneous | AK3: Difference | AP3: Date | AQ3: 1st Start | AR3: 1st End | AS3: 2nd Start | AT3: 2nd End | AU3: 3rd Start | AV3: 3rd End | AW3: End of Day | AX3: Extraneous | AY3: Difference | BD3: Cross-Check
A4: 2017-01-01 | H4: =(C4-B4)+(E4-D4)+(G4-F4) -> 0 | I4: =H4*24 -> 0.00 | M4: =IF(H4>0, 1, 0) -> 0 | N4: 2017-01-01 | U4: =(P4-O4)+(R4-Q4)+(T4-S4) -> 0 | V4: =U4*24 -> 0.00 | Z4: =IF(U4>0, 1, 0) -> 0 | AA4: =IF(H4<U4,"Actual less than Revenue",IF(AND(T4>G4,F4<>G4,S4<>T4),"Rev Over Act End 3rd", IF(AND(S4<F4,F4<>G4,S4<>T4),"Rev Less Act Start 3rd",IF(AND(R4>E4,D4<>E4,Q4<>R4),"Rev Over Act End 2nd",IF(AND(Q4<D4,D4<>E4,Q4<>R4),"Rev Less Act Start 2nd",IF(AND(P4>C4,B4<>C4,O4<>P4),"Rev Over Act End 1st",IF(AND(O4<B4,B4<>C4,O4<>P4),"Rev Less Act Start 1st",IF(AND(T4=G4,F4<>G4,S4<>T4),"Same End 3rd",IF(AND(S4=F4,F4<>G4,S4<>T4),"Same Start 3rd",IF(AND(R4=E4,D4<>E4,Q4<>R4),"Same End 2nd",IF(AND(Q4=D4,D4<>E4,Q4<>R4),"Same Start 2nd",IF(AND(P4=C4,B4<>C4,O4<>P4),"Same End 1st",IF(AND(O4=B4,B4<>C4,O4<>P4),"Same Start 1st",""))))))))))))) ->  | AB4: 2017-01-01 | AC4: 36,643 | AD4: =AC4 -> 36,643 | AE4: 36,643 | AF4: 36,643 | AG4: 36,643 | AH4: 36,643 | AI4: =MAX(AD4, AF4, AH4) -> 36,643 | AK4: =(AD4-AC4)+(AF4-AE4)+(AH4-AG4) -> 0 | AO4: =IF(AK4>0, 1, 0) -> 0 | AP4: 2017-01-01 | AQ4: 36,643 | AR4: =AQ4 -> 36,643 | AS4: 36,643 | AT4: 36,643 | AU4: 36,643 | AV4: 36,643 | AW4: =MAX(AR4, AT4, AV4) -> 36,643 | AY4: =(AR4-AQ4)+(AT4-AS4)+(AV4-AU4) -> 0 | BC4: =IF(AY4>0, 1, 0) -> 0 | BD4: =IF(AK4<AY4,"Actual less than Revenue",IF(AND(AV4>AH4,AG4<>AH4,AU4<>AV4),"Rev Over Act End 3rd",IF(AND(AU4<AG4,AG4<>AH4,AU4<>AV4),"Rev Less Act Start 3rd",IF(AND(AT4>AF4,AE4<>AF4,AS4<>AT4),"Rev Over Act End 2nd",IF(AND(AS4<AE4,AE4<>AF4,AS4<>AT4),"Rev Less Act Start 2nd",IF(AND(AR4>AD4,AC4<>AD4,AQ4<>AR4),"Rev Over Act End 1st",IF(AND(AQ4<AC4,AC4<>AD4,AQ4<>AR4),"Rev Less Act Start 1st",IF(AND(AV4=AH4,AG4<>AH4,AU4<>AV4),"Same End 3rd",IF(AND(AU4=AG4,AG4<>AH4,AU4<>AV4),"Same Start 3rd",IF(AND(AT4=AF4,AE4<>AF4,AS4<>AT4),"Same End 2nd",IF(AND(AS4=AE4,AE4<>AF4,AS4<>AT4),"Same Start 2nd",IF(AND(AR4=AD4,AC4<>AD4,AQ4<>AR4),"Same End 1st",IF(AND(AQ4=AC4,AC4<>AD4,AQ4<>AR4),"Same Start 1st",""))))))))))))) -> 
A5: 2017-01-02 | H5: 0 | I5: =H5*24 -> 0.00 | M5: 0 | N5: 2017-01-02 | U5: 0 | V5: =U5*24 -> 0.00 | Z5: 0 | AA5: =IF(H5<U5,"Actual less than Revenue",IF(AND(T5>G5,F5<>G5,S5<>T5),"Rev Over Act End 3rd", IF(AND(S5<F5,F5<>G5,S5<>T5),"Rev Less Act Start 3rd",IF(AND(R5>E5,D5<>E5,Q5<>R5),"Rev Over Act End 2nd",IF(AND(Q5<D5,D5<>E5,Q5<>R5),"Rev Less Act Start 2nd",IF(AND(P5>C5,B5<>C5,O5<>P5),"Rev Over Act End 1st",IF(AND(O5<B5,B5<>C5,O5<>P5),"Rev Less Act Start 1st",IF(AND(T5=G5,F5<>G5,S5<>T5),"Same End 3rd",IF(AND(S5=F5,F5<>G5,S5<>T5),"Same Start 3rd",IF(AND(R5=E5,D5<>E5,Q5<>R5),"Same End 2nd",IF(AND(Q5=D5,D5<>E5,Q5<>R5),"Same Start 2nd",IF(AND(P5=C5,B5<>C5,O5<>P5),"Same End 1st",IF(AND(O5=B5,B5<>C5,O5<>P5),"Same Start 1st",""))))))))))))) ->  | AB5: 2017-01-02 | AC5: =AI4 -> 36,643 | AD5: 36,643 | AE5: 36,643 | AF5: 36,643 | AG5: 36,643 | AH5: 36,643 | AI5: =MAX(AD5, AF5, AH5) -> 36,643 | AJ5: =IF(AC5=AI4, 0, AC5-AI4) -> 0 | AK5: 0 | AO5: =IF(AK5>0, 1, 0) -> 0 | AP5: 2017-01-02 | AQ5: =AW4 -> 36,643 | AR5: 36,643 | AS5: 36,643 | AT5: 36,643 | AU5: 36,643 | AV5: 36,643 | AW5: =MAX(AR5, AT5, AV5) -> 36,643 | AX5: =IF(AQ5=AW4, 0, AQ5-AW4) -> 0 | AY5: =(AR5-AQ5)+(AT5-AS5)+(AV5-AU5) -> 0 | BC5: 0 | BD5: =IF(AK5<AY5,"Actual less than Revenue",IF(AND(AV5>AH5,AG5<>AH5,AU5<>AV5),"Rev Over Act End 3rd",IF(AND(AU5<AG5,AG5<>AH5,AU5<>AV5),"Rev Less Act Start 3rd",IF(AND(AT5>AF5,AE5<>AF5,AS5<>AT5),"Rev Over Act End 2nd",IF(AND(AS5<AE5,AE5<>AF5,AS5<>AT5),"Rev Less Act Start 2nd",IF(AND(AR5>AD5,AC5<>AD5,AQ5<>AR5),"Rev Over Act End 1st",IF(AND(AQ5<AC5,AC5<>AD5,AQ5<>AR5),"Rev Less Act Start 1st",IF(AND(AV5=AH5,AG5<>AH5,AU5<>AV5),"Same End 3rd",IF(AND(AU5=AG5,AG5<>AH5,AU5<>AV5),"Same Start 3rd",IF(AND(AT5=AF5,AE5<>AF5,AS5<>AT5),"Same End 2nd",IF(AND(AS5=AE5,AE5<>AF5,AS5<>AT5),"Same Start 2nd",IF(AND(AR5=AD5,AC5<>AD5,AQ5<>AR5),"Same End 1st",IF(AND(AQ5=AC5,AC5<>AD5,AQ5<>AR5),"Same Start 1st",""))))))))))))) -> 
A6: 2017-01-03 | H6: 0 | I6: 0.00 | M6: 0 | N6: 2017-01-03 | U6: 0 | V6: 0.00 | Z6: 0 | AA6: =IF(H6<U6,"Actual less than Revenue",IF(AND(T6>G6,F6<>G6,S6<>T6),"Rev Over Act End 3rd", IF(AND(S6<F6,F6<>G6,S6<>T6),"Rev Less Act Start 3rd",IF(AND(R6>E6,D6<>E6,Q6<>R6),"Rev Over Act End 2nd",IF(AND(Q6<D6,D6<>E6,Q6<>R6),"Rev Less Act Start 2nd",IF(AND(P6>C6,B6<>C6,O6<>P6),"Rev Over Act End 1st",IF(AND(O6<B6,B6<>C6,O6<>P6),"Rev Less Act Start 1st",IF(AND(T6=G6,F6<>G6,S6<>T6),"Same End 3rd",IF(AND(S6=F6,F6<>G6,S6<>T6),"Same Start 3rd",IF(AND(R6=E6,D6<>E6,Q6<>R6),"Same End 2nd",IF(AND(Q6=D6,D6<>E6,Q6<>R6),"Same Start 2nd",IF(AND(P6=C6,B6<>C6,O6<>P6),"Same End 1st",IF(AND(O6=B6,B6<>C6,O6<>P6),"Same Start 1st",""))))))))))))) ->  | AB6: 2017-01-03 | AC6: 36,643 | AD6: 36,643 | AE6: 36,643 | AF6: 36,643 | AG6: 36,643 | AH6: 36,643 | AI6: 36,643 | AJ6: =IF(AC6=AI5, 0, AC6-AI5) -> 0 | AK6: 0 | AO6: 0 | AP6: 2017-01-03 | AQ6: 36,643 | AR6: 36,643 | AS6: 36,643 | AT6: 36,643 | AU6: 36,643 | AV6: 36,643 | AW6: 36,643 | AX6: 0 | AY6: 0 | BC6: 0
A7: 2017-01-04 | H7: 0 | I7: 0.00 | M7: 0 | N7: 2017-01-04 | U7: 0 | V7: 0.00 | Z7: 0 | AA7: =IF(H7<U7,"Actual less than Revenue",IF(AND(T7>G7,F7<>G7,S7<>T7),"Rev Over Act End 3rd", IF(AND(S7<F7,F7<>G7,S7<>T7),"Rev Less Act Start 3rd",IF(AND(R7>E7,D7<>E7,Q7<>R7),"Rev Over Act End 2nd",IF(AND(Q7<D7,D7<>E7,Q7<>R7),"Rev Less Act Start 2nd",IF(AND(P7>C7,B7<>C7,O7<>P7),"Rev Over Act End 1st",IF(AND(O7<B7,B7<>C7,O7<>P7),"Rev Less Act Start 1st",IF(AND(T7=G7,F7<>G7,S7<>T7),"Same End 3rd",IF(AND(S7=F7,F7<>G7,S7<>T7),"Same Start 3rd",IF(AND(R7=E7,D7<>E7,Q7<>R7),"Same End 2nd",IF(AND(Q7=D7,D7<>E7,Q7<>R7),"Same Start 2nd",IF(AND(P7=C7,B7<>C7,O7<>P7),"Same End 1st",IF(AND(O7=B7,B7<>C7,O7<>P7),"Same Start 1st",""))))))))))))) ->  | AB7: 2017-01-04 | AC7: 36,643 | AD7: 36,643 | AE7: 36,643 | AF7: 36,643 | AG7: 36,643 | AH7: 36,643 | AI7: 36,643 | AJ7: =IF(AC7=AI6, 0, AC7-AI6) -> 0 | AK7: 0 | AO7: 0 | AP7: 2017-01-04 | AQ7: 36,643 | AR7: 36,643 | AS7: 36,643 | AT7: 36,643 | AU7: 36,643 | AV7: 36,643 | AW7: 36,643 | AX7: 0 | AY7: 0 | BC7: =IF(AY7>0, 1, 0) -> 0
A8: 2017-01-05 | H8: 0 | I8: 0.00 | M8: 0 | N8: 2017-01-05 | U8: 0 | V8: 0.00 | Z8: 0 | AA8: =IF(H8<U8,"Actual less than Revenue",IF(AND(T8>G8,F8<>G8,S8<>T8),"Rev Over Act End 3rd", IF(AND(S8<F8,F8<>G8,S8<>T8),"Rev Less Act Start 3rd",IF(AND(R8>E8,D8<>E8,Q8<>R8),"Rev Over Act End 2nd",IF(AND(Q8<D8,D8<>E8,Q8<>R8),"Rev Less Act Start 2nd",IF(AND(P8>C8,B8<>C8,O8<>P8),"Rev Over Act End 1st",IF(AND(O8<B8,B8<>C8,O8<>P8),"Rev Less Act Start 1st",IF(AND(T8=G8,F8<>G8,S8<>T8),"Same End 3rd",IF(AND(S8=F8,F8<>G8,S8<>T8),"Same Start 3rd",IF(AND(R8=E8,D8<>E8,Q8<>R8),"Same End 2nd",IF(AND(Q8=D8,D8<>E8,Q8<>R8),"Same Start 2nd",IF(AND(P8=C8,B8<>C8,O8<>P8),"Same End 1st",IF(AND(O8=B8,B8<>C8,O8<>P8),"Same Start 1st",""))))))))))))) ->  | AB8: 2017-01-05 | AC8: 36,643 | AD8: 36,643 | AE8: 36,643 | AF8: 36,643 | AG8: 36,643 | AH8: 36,643 | AI8: 36,643 | AJ8: 0 | AK8: 0 | AO8: 0 | AP8: 2017-01-05 | AQ8: 36,643 | AR8: 36,643 | AS8: 36,643 | AT8: 36,643 | AU8: 36,643 | AV8: 36,643 | AW8: 36,643 | AX8: 0 | AY8: 0 | BC8: 0
A9: 2017-01-06 | H9: 0 | I9: 0.00 | M9: 0 | N9: 2017-01-06 | U9: 0 | V9: 0.00 | Z9: 0 | AB9: 2017-01-06 | AC9: 36,643 | AD9: 36,643 | AE9: 36,643 | AF9: 36,643 | AG9: 36,643 | AH9: 36,643 | AI9: 36,643 | AJ9: 0 | AK9: 0 | AO9: 0 | AP9: 2017-01-06 | AQ9: 36,643 | AR9: 36,643 | AS9: 36,643 | AT9: 36,643 | AU9: 36,643 | AV9: 36,643 | AW9: 36,643 | AX9: 0 | AY9: 0 | BC9: 0
A10: 2017-01-07 | H10: 0 | I10: =H10*24 -> 0.00 | M10: 0 | N10: 2017-01-07 | U10: 0 | V10: 0.00 | Z10: 0 | AA10: =IF(H10<U10,"Actual less than Revenue",IF(AND(T10>G10,F10<>G10,S10<>T10),"Rev Over Act End 3rd", IF(AND(S10<F10,F10<>G10,S10<>T10),"Rev Less Act Start 3rd",IF(AND(R10>E10,D10<>E10,Q10<>R10),"Rev Over Act End 2nd",IF(AND(Q10<D10,D10<>E10,Q10<>R10),"Rev Less Act Start 2nd",IF(AND(P10>C10,B10<>C10,O10<>P10),"Rev Over Act End 1st",IF(AND(O10<B10,B10<>C10,O10<>P10),"Rev Less Act Start 1st",IF(AND(T10=G10,F10<>G10,S10<>T10),"Same End 3rd",IF(AND(S10=F10,F10<>G10,S10<>T10),"Same Start 3rd",IF(AND(R10=E10,D10<>E10,Q10<>R10),"Same End 2nd",IF(AND(Q10=D10,D10<>E10,Q10<>R10),"Same Start 2nd",IF(AND(P10=C10,B10<>C10,O10<>P10),"Same End 1st",IF(AND(O10=B10,B10<>C10,O10<>P10),"Same Start 1st",""))))))))))))) ->  | AB10: 2017-01-07 | AC10: 36,643 | AD10: 36,643 | AE10: 36,643 | AF10: 36,643 | AG10: 36,643 | AH10: 36,643 | AI10: 36,643 | AJ10: 0 | AK10: 0 | AO10: 0 | AP10: 2017-01-07 | AQ10: 36,643 | AR10: 36,643 | AS10: 36,643 | AT10: 36,643 | AU10: 36,643 | AV10: 36,643 | AW10: 36,643 | AX10: 0 | AY10: 0 | BC10: 0
A11: 2017-01-08 | H11: 0 | I11: 0.00 | M11: 0 | N11: 2017-01-08 | U11: 0 | V11: 0.00 | Z11: 0 | AB11: 2017-01-08 | AC11: 36,643 | AD11: 36,643 | AE11: 36,643 | AF11: 36,643 | AG11: 36,643 | AH11: 36,643 | AI11: =MAX(AD11, AF11, AH11) -> 36,643 | AJ11: 0 | AK11: 0 | AO11: 0 | AP11: 2017-01-08 | AQ11: 36,643 | AR11: 36,643 | AS11: 36,643 | AT11: 36,643 | AU11: 36,643 | AV11: 36,643 | AW11: =MAX(AR11, AT11, AV11) -> 36,643 | AX11: 0 | AY11: 0 | BC11: 0
A12: 2017-01-09 | H12: 0 | I12: 0.00 | M12: 0 | N12: 2017-01-09 | U12: 0 | V12: 0.00 | Z12: 0 | AB12: 2017-01-09 | AC12: =AI11 -> 36,643 | AD12: 36,643 | AE12: =AD12 -> 36,643 | AF12: =AE12 -> 36,643 | AG12: =AF12 -> 36,643 | AH12: =AG12 -> 36,643 | AI12: =MAX(AD12, AF12, AH12) -> 36,643 | AJ12: 0 | AK12: 0 | AO12: 0 | AP12: 2017-01-09 | AQ12: =AW11 -> 36,643 | AR12: 36,643 | AS12: =AR12 -> 36,643 | AT12: =AS12 -> 36,643 | AU12: =AT12 -> 36,643 | AV12: =AU12 -> 36,643 | AW12: 36,643 | AX12: 0 | AY12: 0 | BC12: 0
A13: 2017-01-10 | H13: 0 | I13: 0.00 | M13: 0 | N13: 2017-01-10 | U13: 0 | V13: 0.00 | Z13: 0 | AA13: =IF(H13<U13,"Actual less than Revenue",IF(AND(T13>G13,F13<>G13,S13<>T13),"Rev Over Act End 3rd", IF(AND(S13<F13,F13<>G13,S13<>T13),"Rev Less Act Start 3rd",IF(AND(R13>E13,D13<>E13,Q13<>R13),"Rev Over Act End 2nd",IF(AND(Q13<D13,D13<>E13,Q13<>R13),"Rev Less Act Start 2nd",IF(AND(P13>C13,B13<>C13,O13<>P13),"Rev Over Act End 1st",IF(AND(O13<B13,B13<>C13,O13<>P13),"Rev Less Act Start 1st",IF(AND(T13=G13,F13<>G13,S13<>T13),"Same End 3rd",IF(AND(S13=F13,F13<>G13,S13<>T13),"Same Start 3rd",IF(AND(R13=E13,D13<>E13,Q13<>R13),"Same End 2nd",IF(AND(Q13=D13,D13<>E13,Q13<>R13),"Same Start 2nd",IF(AND(P13=C13,B13<>C13,O13<>P13),"Same End 1st",IF(AND(O13=B13,B13<>C13,O13<>P13),"Same Start 1st",""))))))))))))) ->  | AB13: 2017-01-10 | AC13: =AI12 -> 36,643 | AD13: 36,643 | AE13: 36,643 | AF13: 36,643 | AG13: 36,643 | AH13: 36,643 | AI13: 36,643 | AJ13: 0 | AK13: 0 | AO13: 0 | AP13: 2017-01-10 | AQ13: =AW12 -> 36,643 | AR13: 36,643 | AS13: 36,643 | AT13: 36,643 | AU13: 36,643 | AV13: 36,643 | AW13: 36,643 | AX13: 0 | AY13: 0 | BC13: 0
A14: 2017-01-11 | H14: 0 | I14: 0.00 | M14: 0 | N14: 2017-01-11 | U14: 0 | V14: 0.00 | Z14: 0 | AB14: 2017-01-11 | AC14: 36,643 | AD14: 36,643 | AE14: 36,643 | AF14: 36,643 | AG14: 36,643 | AH14: 36,643 | AI14: 36,643 | AJ14: 0 | AK14: 0 | AO14: 0 | AP14: 2017-01-11 | AQ14: 36,643 | AR14: 36,643 | AS14: 36,643 | AT14: 36,643 | AU14: 36,643 | AV14: 36,643 | AW14: 36,643 | AX14: 0 | AY14: 0 | BC14: 0
A15: 2017-01-12 | H15: 0 | I15: 0.00 | M15: 0 | N15: 2017-01-12 | U15: =(P15-O15)+(R15-Q15)+(T15-S15) -> 0 | V15: 0.00 | Z15: 0 | AA15: =IF(H15<U15,"Actual less than Revenue",IF(AND(T15>G15,F15<>G15,S15<>T15),"Rev Over Act End 3rd", IF(AND(S15<F15,F15<>G15,S15<>T15),"Rev Less Act Start 3rd",IF(AND(R15>E15,D15<>E15,Q15<>R15),"Rev Over Act End 2nd",IF(AND(Q15<D15,D15<>E15,Q15<>R15),"Rev Less Act Start 2nd",IF(AND(P15>C15,B15<>C15,O15<>P15),"Rev Over Act End 1st",IF(AND(O15<B15,B15<>C15,O15<>P15),"Rev Less Act Start 1st",IF(AND(T15=G15,F15<>G15,S15<>T15),"Same End 3rd",IF(AND(S15=F15,F15<>G15,S15<>T15),"Same Start 3rd",IF(AND(R15=E15,D15<>E15,Q15<>R15),"Same End 2nd",IF(AND(Q15=D15,D15<>E15,Q15<>R15),"Same Start 2nd",IF(AND(P15=C15,B15<>C15,O15<>P15),"Same End 1st",IF(AND(O15=B15,B15<>C15,O15<>P15),"Same Start 1st",""))))))))))))) ->  | AB15: 2017-01-12 | AC15: 36,643 | AD15: 36,643 | AE15: 36,643 | AF15: 36,643 | AG15: 36,643 | AH15: 36,643 | AI15: 36,643 | AJ15: 0 | AK15: 0 | AO15: 0 | AP15: 2017-01-12 | AQ15: 36,643 | AR15: 36,643 | AS15: 36,643 | AT15: 36,643 | AU15: 36,643 | AV15: 36,643 | AW15: 36,643 | AX15: 0 | AY15: 0 | BC15: 0
A16: 2017-01-13 | H16: 0 | I16: 0.00 | M16: 0 | N16: 2017-01-13 | U16: 0 | V16: 0.00 | Z16: 0 | AB16: 2017-01-13 | AC16: 36,643 | AD16: 36,643 | AE16: 36,643 | AF16: 36,643 | AG16: 36,643 | AH16: 36,643 | AI16: 36,643 | AJ16: 0 | AK16: 0 | AO16: 0 | AP16: 2017-01-13 | AQ16: 36,643 | AR16: 36,643 | AS16: 36,643 | AT16: 36,643 | AU16: 36,643 | AV16: 36,643 | AW16: 36,643 | AX16: 0 | AY16: 0 | BC16: 0
A17: 2017-01-14 | H17: 0 | I17: 0.00 | M17: 0 | N17: 2017-01-14 | U17: 0 | V17: 0.00 | Z17: 0 | AB17: 2017-01-14 | AC17: 36,643 | AD17: 36,643 | AE17: 36,643 | AF17: 36,643 | AG17: 36,643 | AH17: 36,643 | AI17: 36,643 | AJ17: 0 | AK17: 0 | AO17: 0 | AP17: 2017-01-14 | AQ17: 36,643 | AR17: 36,643 | AS17: 36,643 | AT17: 36,643 | AU17: 36,643 | AV17: 36,643 | AW17: 36,643 | AX17: 0 | AY17: 0 | BC17: 0
A18: 2017-01-15 | H18: 0 | I18: 0.00 | M18: 0 | N18: 2017-01-15 | U18: 0 | V18: 0.00 | Z18: 0 | AB18: 2017-01-15 | AC18: 36,643 | AD18: 36,643 | AE18: 36,643 | AF18: 36,643 | AG18: 36,643 | AH18: 36,643 | AI18: 36,643 | AJ18: 0 | AK18: 0 | AO18: 0 | AP18: 2017-01-15 | AQ18: 36,643 | AR18: 36,643 | AS18: 36,643 | AT18: 36,643 | AU18: 36,643 | AV18: 36,643 | AW18: 36,643 | AX18: 0 | AY18: =(AR18-AQ18)+(AT18-AS18)+(AV18-AU18) -> 0 | BC18: 0
A19: 2017-01-16 | H19: 0 | I19: 0.00 | M19: 0 | N19: 2017-01-16 | U19: 0 | V19: 0.00 | Z19: 0 | AB19: 2017-01-16 | AC19: 36,643 | AD19: 36,643 | AE19: 36,643 | AF19: 36,643 | AG19: 36,643 | AH19: 36,643 | AI19: 36,643 | AJ19: 0 | AK19: 0 | AO19: 0 | AP19: 2017-01-16 | AQ19: 36,643 | AR19: 36,643 | AS19: 36,643 | AT19: 36,643 | AU19: 36,643 | AV19: 36,643 | AW19: 36,643 | AX19: 0 | AY19: 0 | BC19: 0
A20: 2017-01-17 | H20: 0 | I20: 0.00 | M20: 0 | N20: 2017-01-17 | U20: 0 | V20: 0.00 | Z20: 0 | AB20: 2017-01-17 | AC20: 36,643 | AD20: =AC20 -> 36,643 | AE20: 36,643 | AF20: 36,643 | AG20: 36,643 | AH20: 36,643 | AI20: 36,643 | AJ20: 0 | AK20: 0 | AO20: 0 | AP20: 2017-01-17 | AQ20: 36,643 | AR20: =AQ20 -> 36,643 | AS20: 36,643 | AT20: 36,643 | AU20: 36,643 | AV20: 36,643 | AW20: 36,643 | AX20: 0 | AY20: 0 | BC20: 0
A21: 2017-01-18 | H21: 0 | I21: 0.00 | M21: 0 | N21: 2017-01-18 | U21: 0 | V21: 0.00 | Z21: 0 | AB21: 2017-01-18 | AC21: 36,643 | AD21: 36,643 | AE21: 36,643 | AF21: 36,643 | AG21: 36,643 | AH21: 36,643 | AI21: 36,643 | AJ21: 0 | AK21: 0 | AO21: 0 | AP21: 2017-01-18 | AQ21: 36,643 | AR21: 36,643 | AS21: 36,643 | AT21: 36,643 | AU21: 36,643 | AV21: 36,643 | AW21: 36,643 | AX21: 0 | AY21: 0 | BC21: 0
A22: 2017-01-19 | H22: 0 | I22: 0.00 | M22: 0 | N22: 2017-01-19 | U22: 0 | V22: 0.00 | Z22: 0 | AB22: 2017-01-19 | AC22: 36,643 | AD22: 36,643 | AE22: 36,643 | AF22: 36,643 | AG22: 36,643 | AH22: 36,643 | AI22: 36,643 | AJ22: 0 | AK22: 0 | AO22: 0 | AP22: 2017-01-19 | AQ22: 36,643 | AR22: 36,643 | AS22: 36,643 | AT22: 36,643 | AU22: 36,643 | AV22: 36,643 | AW22: 36,643 | AX22: 0 | AY22: 0 | BC22: 0
A23: 2017-01-20 | H23: 0 | I23: 0.00 | M23: 0 | N23: 2017-01-20 | U23: 0 | V23: 0.00 | Z23: 0 | AB23: 2017-01-20 | AC23: 36,643 | AD23: 36,643 | AE23: 36,643 | AF23: 36,643 | AG23: 36,643 | AH23: 36,643 | AI23: 36,643 | AJ23: 0 | AK23: 0 | AO23: 0 | AP23: 2017-01-20 | AQ23: 36,643 | AR23: 36,643 | AS23: 36,643 | AT23: 36,643 | AU23: 36,643 | AV23: 36,643 | AW23: 36,643 | AX23: 0 | AY23: 0 | BC23: 0
A24: 2017-01-21 | H24: 0 | I24: 0.00 | M24: 0 | N24: 2017-01-21 | U24: 0 | V24: 0.00 | Z24: 0 | AB24: 2017-01-21 | AC24: 36,643 | AD24: 36,643 | AE24: 36,643 | AF24: 36,643 | AG24: 36,643 | AH24: 36,643 | AI24: 36,643 | AJ24: 0 | AK24: 0 | AO24: 0 | AP24: 2017-01-21 | AQ24: 36,643 | AR24: 36,643 | AS24: 36,643 | AT24: 36,643 | AU24: 36,643 | AV24: 36,643 | AW24: 36,643 | AX24: 0 | AY24: 0 | BC24: 0
A25: 2017-01-22 | H25: 0 | I25: 0.00 | M25: 0 | N25: 2017-01-22 | U25: 0 | V25: 0.00 | Z25: 0 | AB25: 2017-01-22 | AC25: 36,643 | AD25: 36,643 | AE25: 36,643 | AF25: 36,643 | AG25: 36,643 | AH25: 36,643 | AI25: 36,643 | AJ25: 0 | AK25: 0 | AO25: 0 | AP25: 2017-01-22 | AQ25: 36,643 | AR25: 36,643 | AS25: 36,643 | AT25: 36,643 | AU25: 36,643 | AV25: 36,643 | AW25: 36,643 | AX25: 0 | AY25: 0 | BC25: 0
A26: 2017-01-23 | H26: =(C26-B26)+(E26-D26)+(G26-F26) -> 0 | I26: 0.00 | M26: 0 | N26: 2017-01-23 | U26: 0 | V26: 0.00 | Z26: 0 | AB26: 2017-01-23 | AC26: 36,643 | AD26: 36,643 | AE26: 36,643 | AF26: 36,643 | AG26: 36,643 | AH26: 36,643 | AI26: 36,643 | AJ26: 0 | AK26: 0 | AO26: 0 | AP26: 2017-01-23 | AQ26: 36,643 | AR26: 36,643 | AS26: 36,643 | AT26: 36,643 | AU26: 36,643 | AV26: 36,643 | AW26: 36,643 | AX26: 0 | AY26: 0 | BC26: 0
A27: 2017-01-24 | H27: =(C27-B27)+(E27-D27)+(G27-F27) -> 0 | I27: 0.00 | M27: 0 | N27: 2017-01-24 | U27: 0 | V27: 0.00 | Z27: 0 | AB27: 2017-01-24 | AC27: 36,643 | AD27: 36,643 | AE27: 36,643 | AF27: 36,643 | AG27: 36,643 | AH27: 36,643 | AI27: 36,643 | AJ27: 0 | AK27: 0 | AO27: 0 | AP27: 2017-01-24 | AQ27: 36,643 | AR27: 36,643 | AS27: 36,643 | AT27: 36,643 | AU27: 36,643 | AV27: 36,643 | AW27: 36,643 | AX27: 0 | AY27: 0 | BC27: 0
A28: 2017-01-25 | H28: 0 | I28: 0.00 | M28: 0 | N28: 2017-01-25 | U28: 0 | V28: 0.00 | Z28: 0 | AB28: 2017-01-25 | AC28: 36,643 | AD28: 36,643 | AE28: 36,643 | AF28: 36,643 | AG28: 36,643 | AH28: 36,643 | AI28: 36,643 | AJ28: 0 | AK28: 0 | AO28: 0 | AP28: 2017-01-25 | AQ28: 36,643 | AR28: 36,643 | AS28: 36,643 | AT28: 36,643 | AU28: 36,643 | AV28: 36,643 | AW28: 36,643 | AX28: 0 | AY28: 0 | BC28: 0
A29: 2017-01-26 | H29: 0 | I29: 0.00 | M29: 0 | N29: 2017-01-26 | U29: 0 | V29: 0.00 | Z29: 0 | AB29: 2017-01-26 | AC29: 36,643 | AD29: 36,643 | AE29: 36,643 | AF29: 36,643 | AG29: 36,643 | AH29: 36,643 | AI29: 36,643 | AJ29: 0 | AK29: 0 | AO29: 0 | AP29: 2017-01-26 | AQ29: 36,643 | AR29: 36,643 | AS29: 36,643 | AT29: 36,643 | AU29: 36,643 | AV29: 36,643 | AW29: 36,643 | AX29: 0 | AY29: 0 | BC29: 0
A30: 2017-01-27 | H30: 0 | I30: 0.00 | M30: 0 | N30: 2017-01-27 | U30: 0 | V30: 0.00 | Z30: 0 | AB30: 2017-01-27 | AC30: 36,643 | AD30: 36,643 | AE30: 36,643 | AF30: 36,643 | AG30: 36,643 | AH30: 36,643 | AI30: 36,643 | AJ30: 0 | AK30: 0 | AO30: 0 | AP30: 2017-01-27 | AQ30: 36,643 | AR30: 36,643 | AS30: 36,643 | AT30: 36,643 | AU30: 36,643 | AV30: 36,643 | AW30: 36,643 | AX30: 0 | AY30: 0 | BC30: 0
A31: 2017-01-28 | H31: 0 | I31: 0.00 | M31: 0 | N31: 2017-01-28 | U31: 0 | V31: 0.00 | Z31: 0 | AB31: 2017-01-28 | AC31: 36,643 | AD31: 36,643 | AE31: 36,643 | AF31: 36,643 | AG31: 36,643 | AH31: 36,643 | AI31: 36,643 | AJ31: 0 | AK31: 0 | AO31: 0 | AP31: 2017-01-28 | AQ31: 36,643 | AR31: 36,643 | AS31: 36,643 | AT31: 36,643 | AU31: 36,643 | AV31: 36,643 | AW31: 36,643 | AX31: 0 | AY31: 0 | BC31: 0
A32: 2017-01-29 | H32: 0 | I32: 0.00 | M32: 0 | N32: 2017-01-29 | U32: 0 | V32: 0.00 | Z32: 0 | AB32: 2017-01-29 | AC32: 36,643 | AD32: 36,643 | AE32: 36,643 | AF32: 36,643 | AG32: 36,643 | AH32: 36,643 | AI32: 36,643 | AJ32: 0 | AK32: 0 | AO32: 0 | AP32: 2017-01-29 | AQ32: 36,643 | AR32: 36,643 | AS32: 36,643 | AT32: 36,643 | AU32: 36,643 | AV32: 36,643 | AW32: 36,643 | AX32: 0 | AY32: 0 | BC32: 0
A33: 2017-01-30 | H33: 0 | I33: 0.00 | M33: 0 | N33: 2017-01-30 | U33: 0 | V33: 0.00 | Z33: 0 | AB33: 2017-01-30 | AC33: 36,643 | AD33: 36,643 | AE33: 36,643 | AF33: 36,643 | AG33: 36,643 | AH33: 36,643 | AI33: 36,643 | AJ33: 0 | AK33: 0 | AO33: 0 | AP33: 2017-01-30 | AQ33: 36,643 | AR33: 36,643 | AS33: 36,643 | AT33: 36,643 | AU33: 36,643 | AV33: 36,643 | AW33: 36,643 | AX33: 0 | AY33: 0 | BC33: 0
A34: 2017-01-31 | H34: 0 | I34: 0.00 | M34: 0 | N34: 2017-01-31 | U34: 0 | V34: 0.00 | Z34: 0 | AB34: 2017-01-31 | AC34: 36,643 | AD34: 36,643 | AE34: 36,643 | AF34: 36,643 | AG34: 36,643 | AH34: 36,643 | AI34: 36,643 | AJ34: 0 | AK34: 0 | AO34: 0 | AP34: 2017-01-31 | AQ34: 36,643 | AR34: 36,643 | AS34: 36,643 | AT34: 36,643 | AU34: 36,643 | AV34: 36,643 | AW34: 36,643 | AX34: 0 | AY34: 0 | BC34: 0
A35: 2017-02-01 | H35: 0 | I35: 0.00 | M35: 0 | N35: 2017-02-01 | U35: 0 | V35: 0.00 | Z35: 0 | AB35: 2017-02-01 | AC35: 36,643 | AD35: 36,643 | AE35: 36,643 | AF35: 36,643 | AG35: 36,643 | AH35: 36,643 | AI35: 36,643 | AJ35: 0 | AK35: 0 | AO35: 0 | AP35: 2017-02-01 | AQ35: 36,643 | AR35: 36,643 | AS35: 36,643 | AT35: 36,643 | AU35: 36,643 | AV35: 36,643 | AW35: 36,643 | AX35: 0 | AY35: 0 | BC35: 0
A36: 2017-02-02 | H36: 0 | I36: 0.00 | M36: 0 | N36: 2017-02-02 | U36: 0 | V36: 0.00 | Z36: 0 | AB36: 2017-02-02 | AC36: 36,643 | AD36: 36,643 | AE36: 36,643 | AF36: 36,643 | AG36: 36,643 | AH36: 36,643 | AI36: 36,643 | AJ36: 0 | AK36: 0 | AO36: 0 | AP36: 2017-02-02 | AQ36: 36,643 | AR36: 36,643 | AS36: 36,643 | AT36: 36,643 | AU36: 36,643 | AV36: 36,643 | AW36: 36,643 | AX36: 0 | AY36: 0 | BC36: 0
A37: 2017-02-03 | H37: 0 | I37: 0.00 | M37: 0 | N37: 2017-02-03 | U37: 0 | V37: 0.00 | Z37: 0 | AB37: 2017-02-03 | AC37: 36,643 | AD37: 36,643 | AE37: 36,643 | AF37: 36,643 | AG37: 36,643 | AH37: 36,643 | AI37: 36,643 | AJ37: 0 | AK37: 0 | AO37: 0 | AP37: 2017-02-03 | AQ37: 36,643 | AR37: 36,643 | AS37: 36,643 | AT37: 36,643 | AU37: 36,643 | AV37: 36,643 | AW37: 36,643 | AX37: 0 | AY37: 0 | BC37: 0
A38: 2017-02-04 | H38: 0 | I38: 0.00 | M38: 0 | N38: 2017-02-04 | U38: 0 | V38: 0.00 | Z38: 0 | AB38: 2017-02-04 | AC38: 36,643 | AD38: 36,643 | AE38: 36,643 | AF38: 36,643 | AG38: 36,643 | AH38: 36,643 | AI38: 36,643 | AJ38: 0 | AK38: 0 | AO38: 0 | AP38: 2017-02-04 | AQ38: 36,643 | AR38: 36,643 | AS38: 36,643 | AT38: 36,643 | AU38: 36,643 | AV38: 36,643 | AW38: 36,643 | AX38: 0 | AY38: 0 | BC38: 0
A39: 2017-02-05 | H39: 0 | I39: 0.00 | M39: 0 | N39: 2017-02-05 | U39: 0 | V39: 0.00 | Z39: 0 | AB39: 2017-02-05 | AC39: 36,643 | AD39: 36,643 | AE39: 36,643 | AF39: 36,643 | AG39: 36,643 | AH39: 36,643 | AI39: 36,643 | AJ39: 0 | AK39: 0 | AO39: 0 | AP39: 2017-02-05 | AQ39: 36,643 | AR39: 36,643 | AS39: 36,643 | AT39: 36,643 | AU39: 36,643 | AV39: 36,643 | AW39: 36,643 | AX39: 0 | AY39: 0 | BC39: 0
A40: 2017-02-06 | H40: 0 | I40: 0.00 | M40: 0 | N40: 2017-02-06 | U40: 0 | V40: 0.00 | Z40: 0 | AB40: 2017-02-06 | AC40: 36,643 | AD40: 36,643 | AE40: 36,643 | AF40: 36,643 | AG40: 36,643 | AH40: 36,643 | AI40: 36,643 | AJ40: 0 | AK40: 0 | AO40: 0 | AP40: 2017-02-06 | AQ40: 36,643 | AR40: 36,643 | AS40: 36,643 | AT40: 36,643 | AU40: 36,643 | AV40: 36,643 | AW40: 36,643 | AX40: 0 | AY40: 0 | BC40: 0
A41: 2017-02-07 | H41: 0 | I41: 0.00 | M41: 0 | N41: 2017-02-07 | U41: 0 | V41: 0.00 | Z41: 0 | AB41: 2017-02-07 | AC41: 36,643 | AD41: 36,643 | AE41: 36,643 | AF41: 36,643 | AG41: 36,643 | AH41: 36,643 | AI41: 36,643 | AJ41: 0 | AK41: 0 | AO41: 0 | AP41: 2017-02-07 | AQ41: 36,643 | AR41: 36,643 | AS41: 36,643 | AT41: 36,643 | AU41: 36,643 | AV41: 36,643 | AW41: 36,643 | AX41: 0 | AY41: 0 | BC41: 0
A42: 2017-02-08 | H42: 0 | I42: 0.00 | M42: 0 | N42: 2017-02-08 | U42: 0 | V42: 0.00 | Z42: 0 | AB42: 2017-02-08 | AC42: 36,643 | AD42: 36,643 | AE42: 36,643 | AF42: 36,643 | AG42: 36,643 | AH42: 36,643 | AI42: 36,643 | AJ42: 0 | AK42: 0 | AO42: 0 | AP42: 2017-02-08 | AQ42: 36,643 | AR42: 36,643 | AS42: 36,643 | AT42: 36,643 | AU42: 36,643 | AV42: 36,643 | AW42: 36,643 | AX42: 0 | AY42: 0 | BC42: 0
A43: 2017-02-09 | H43: 0 | I43: 0.00 | M43: 0 | N43: 2017-02-09 | U43: 0 | V43: 0.00 | Z43: 0 | AB43: 2017-02-09 | AC43: 36,643 | AD43: 36,643 | AE43: 36,643 | AF43: 36,643 | AG43: 36,643 | AH43: 36,643 | AI43: 36,643 | AJ43: 0 | AK43: 0 | AO43: 0 | AP43: 2017-02-09 | AQ43: 36,643 | AR43: 36,643 | AS43: 36,643 | AT43: 36,643 | AU43: 36,643 | AV43: 36,643 | AW43: 36,643 | AX43: 0 | AY43: 0 | BC43: 0
A44: 2017-02-10 | H44: 0 | I44: 0.00 | M44: 0 | N44: 2017-02-10 | U44: 0 | V44: 0.00 | Z44: 0 | AB44: 2017-02-10 | AC44: 36,643 | AD44: 36,643 | AE44: 36,643 | AF44: 36,643 | AG44: 36,643 | AH44: 36,643 | AI44: 36,643 | AJ44: 0 | AK44: 0 | AO44: 0 | AP44: 2017-02-10 | AQ44: 36,643 | AR44: 36,643 | AS44: 36,643 | AT44: 36,643 | AU44: 36,643 | AV44: 36,643 | AW44: 36,643 | AX44: 0 | AY44: 0 | BC44: 0
A45: 2017-02-11 | H45: 0 | I45: 0.00 | M45: 0 | N45: 2017-02-11 | U45: 0 | V45: 0.00 | Z45: 0 | AB45: 2017-02-11 | AC45: 36,643 | AD45: 36,643 | AE45: 36,643 | AF45: 36,643 | AG45: 36,643 | AH45: 36,643 | AI45: 36,643 | AJ45: 0 | AK45: 0 | AO45: 0 | AP45: 2017-02-11 | AQ45: 36,643 | AR45: 36,643 | AS45: 36,643 | AT45: 36,643 | AU45: 36,643 | AV45: 36,643 | AW45: 36,643 | AX45: 0 | AY45: 0 | BC45: 0
A46: 2017-02-12 | H46: 0 | I46: 0.00 | M46: 0 | N46: 2017-02-12 | U46: 0 | V46: 0.00 | Z46: 0 | AB46: 2017-02-12 | AC46: 36,643 | AD46: 36,643 | AE46: 36,643 | AF46: 36,643 | AG46: 36,643 | AH46: 36,643 | AI46: 36,643 | AJ46: 0 | AK46: 0 | AO46: 0 | AP46: 2017-02-12 | AQ46: 36,643 | AR46: 36,643 | AS46: 36,643 | AT46: 36,643 | AU46: 36,643 | AV46: 36,643 | AW46: 36,643 | AX46: 0 | AY46: 0 | BC46: 0
A47: 2017-02-13 | H47: 0 | I47: 0.00 | M47: 0 | N47: 2017-02-13 | U47: 0 | V47: 0.00 | Z47: 0 | AB47: 2017-02-13 | AC47: 36,643 | AD47: 36,643 | AE47: 36,643 | AF47: 36,643 | AG47: 36,643 | AH47: 36,643 | AI47: 36,643 | AJ47: 0 | AK47: 0 | AO47: 0 | AP47: 2017-02-13 | AQ47: 36,643 | AR47: 36,643 | AS47: 36,643 | AT47: 36,643 | AU47: 36,643 | AV47: 36,643 | AW47: 36,643 | AX47: 0 | AY47: 0 | BC47: 0
A48: 2017-02-14 | H48: 0 | I48: 0.00 | M48: 0 | N48: 2017-02-14 | U48: 0 | V48: 0.00 | Z48: 0 | AB48: 2017-02-14 | AC48: 36,643 | AD48: 36,643 | AE48: 36,643 | AF48: 36,643 | AG48: 36,643 | AH48: 36,643 | AI48: 36,643 | AJ48: 0 | AK48: 0 | AO48: 0 | AP48: 2017-02-14 | AQ48: 36,643 | AR48: 36,643 | AS48: 36,643 | AT48: 36,643 | AU48: 36,643 | AV48: 36,643 | AW48: 36,643 | AX48: 0 | AY48: 0 | BC48: 0
A49: 2017-02-15 | H49: 0 | I49: 0.00 | M49: 0 | N49: 2017-02-15 | U49: 0 | V49: 0.00 | Z49: 0 | AB49: 2017-02-15 | AC49: 36,643 | AD49: 36,643 | AE49: 36,643 | AF49: 36,643 | AG49: 36,643 | AH49: 36,643 | AI49: 36,643 | AJ49: 0 | AK49: 0 | AO49: 0 | AP49: 2017-02-15 | AQ49: 36,643 | AR49: 36,643 | AS49: 36,643 | AT49: 36,643 | AU49: 36,643 | AV49: 36,643 | AW49: 36,643 | AX49: 0 | AY49: 0 | BC49: 0
A50: 2017-02-16 | H50: 0 | I50: 0.00 | M50: 0 | N50: 2017-02-16 | U50: 0 | V50: 0.00 | Z50: 0 | AB50: 2017-02-16 | AC50: 36,643 | AD50: 36,643 | AE50: 36,643 | AF50: 36,643 | AG50: 36,643 | AH50: 36,643 | AI50: 36,643 | AJ50: 0 | AK50: 0 | AO50: 0 | AP50: 2017-02-16 | AQ50: 36,643 | AR50: 36,643 | AS50: 36,643 | AT50: 36,643 | AU50: 36,643 | AV50: 36,643 | AW50: 36,643 | AX50: 0 | AY50: 0 | BC50: 0
A51: 2017-02-17 | H51: 0 | I51: 0.00 | M51: 0 | N51: 2017-02-17 | U51: 0 | V51: 0.00 | Z51: 0 | AB51: 2017-02-17 | AC51: 36,643 | AD51: 36,643 | AE51: 36,643 | AF51: 36,643 | AG51: 36,643 | AH51: 36,643 | AI51: 36,643 | AJ51: 0 | AK51: 0 | AO51: 0 | AP51: 2017-02-17 | AQ51: 36,643 | AR51: 36,643 | AS51: 36,643 | AT51: 36,643 | AU51: 36,643 | AV51: 36,643 | AW51: 36,643 | AX51: 0 | AY51: 0 | BC51: 0
A52: 2017-02-18 | H52: 0 | I52: 0.00 | M52: 0 | N52: 2017-02-18 | U52: 0 | V52: 0.00 | Z52: 0 | AB52: 2017-02-18 | AC52: 36,643 | AD52: 36,643 | AE52: 36,643 | AF52: 36,643 | AG52: 36,643 | AH52: 36,643 | AI52: 36,643 | AJ52: 0 | AK52: 0 | AO52: 0 | AP52: 2017-02-18 | AQ52: 36,643 | AR52: 36,643 | AS52: 36,643 | AT52: 36,643 | AU52: 36,643 | AV52: 36,643 | AW52: 36,643 | AX52: 0 | AY52: 0 | BC52: 0
A53: 2017-02-19 | H53: 0 | I53: 0.00 | M53: 0 | N53: 2017-02-19 | U53: 0 | V53: 0.00 | Z53: 0 | AB53: 2017-02-19 | AC53: 36,643 | AD53: 36,643 | AE53: 36,643 | AF53: 36,643 | AG53: 36,643 | AH53: 36,643 | AI53: 36,643 | AJ53: 0 | AK53: 0 | AO53: 0 | AP53: 2017-02-19 | AQ53: 36,643 | AR53: 36,643 | AS53: 36,643 | AT53: 36,643 | AU53: 36,643 | AV53: 36,643 | AW53: 36,643 | AX53: 0 | AY53: 0 | BC53: 0
A54: 2017-02-20 | H54: 0 | I54: 0.00 | M54: 0 | N54: 2017-02-20 | U54: 0 | V54: 0.00 | Z54: 0 | AB54: 2017-02-20 | AC54: 36,643 | AD54: 36,643 | AE54: 36,643 | AF54: 36,643 | AG54: 36,643 | AH54: 36,643 | AI54: 36,643 | AJ54: 0 | AK54: 0 | AO54: 0 | AP54: 2017-02-20 | AQ54: 36,643 | AR54: 36,643 | AS54: 36,643 | AT54: 36,643 | AU54: 36,643 | AV54: 36,643 | AW54: 36,643 | AX54: 0 | AY54: 0 | BC54: 0
A55: 2017-02-21 | H55: 0 | I55: 0.00 | M55: 0 | N55: 2017-02-21 | U55: 0 | V55: 0.00 | Z55: 0 | AB55: 2017-02-21 | AC55: 36,643 | AD55: 36,643 | AE55: 36,643 | AF55: 36,643 | AG55: 36,643 | AH55: 36,643 | AI55: 36,643 | AJ55: 0 | AK55: 0 | AO55: 0 | AP55: 2017-02-21 | AQ55: 36,643 | AR55: 36,643 | AS55: 36,643 | AT55: 36,643 | AU55: 36,643 | AV55: 36,643 | AW55: 36,643 | AX55: 0 | AY55: 0 | BC55: 0
A56: 2017-02-22 | H56: 0 | I56: 0.00 | M56: 0 | N56: 2017-02-22 | U56: 0 | V56: 0.00 | Z56: 0 | AB56: 2017-02-22 | AC56: 36,643 | AD56: 36,643 | AE56: 36,643 | AF56: 36,643 | AG56: 36,643 | AH56: 36,643 | AI56: 36,643 | AJ56: 0 | AK56: 0 | AO56: 0 | AP56: 2017-02-22 | AQ56: 36,643 | AR56: 36,643 | AS56: 36,643 | AT56: 36,643 | AU56: 36,643 | AV56: 36,643 | AW56: 36,643 | AX56: 0 | AY56: 0 | BC56: 0
A57: 2017-02-23 | H57: 0 | I57: 0.00 | M57: 0 | N57: 2017-02-23 | U57: 0 | V57: 0.00 | Z57: 0 | AB57: 2017-02-23 | AC57: 36,643 | AD57: 36,643 | AE57: 36,643 | AF57: 36,643 | AG57: 36,643 | AH57: 36,643 | AI57: 36,643 | AJ57: 0 | AK57: 0 | AO57: 0 | AP57: 2017-02-23 | AQ57: 36,643 | AR57: 36,643 | AS57: 36,643 | AT57: 36,643 | AU57: 36,643 | AV57: 36,643 | AW57: 36,643 | AX57: 0 | AY57: 0 | BC57: 0
A58: 2017-02-24 | H58: 0 | I58: 0.00 | M58: 0 | N58: 2017-02-24 | U58: 0 | V58: 0.00 | Z58: 0 | AB58: 2017-02-24 | AC58: 36,643 | AD58: 36,643 | AE58: 36,643 | AF58: 36,643 | AG58: 36,643 | AH58: 36,643 | AI58: 36,643 | AJ58: 0 | AK58: 0 | AO58: 0 | AP58: 2017-02-24 | AQ58: 36,643 | AR58: 36,643 | AS58: 36,643 | AT58: 36,643 | AU58: 36,643 | AV58: 36,643 | AW58: 36,643 | AX58: 0 | AY58: 0 | BC58: 0
A59: 2017-02-25 | H59: 0 | I59: 0.00 | M59: 0 | N59: 2017-02-25 | U59: 0 | V59: 0.00 | Z59: 0 | AB59: 2017-02-25 | AC59: 36,643 | AD59: 36,643 | AE59: 36,643 | AF59: 36,643 | AG59: 36,643 | AH59: 36,643 | AI59: 36,643 | AJ59: 0 | AK59: 0 | AO59: 0 | AP59: 2017-02-25 | AQ59: 36,643 | AR59: 36,643 | AS59: 36,643 | AT59: 36,643 | AU59: 36,643 | AV59: 36,643 | AW59: 36,643 | AX59: 0 | AY59: 0 | BC59: 0
A60: 2017-02-26 | H60: 0 | I60: 0.00 | M60: 0 | N60: 2017-02-26 | U60: 0 | V60: 0.00 | Z60: 0 | AB60: 2017-02-26 | AC60: 36,643 | AD60: 36,643 | AE60: 36,643 | AF60: 36,643 | AG60: 36,643 | AH60: 36,643 | AI60: 36,643 | AJ60: 0 | AK60: 0 | AO60: 0 | AP60: 2017-02-26 | AQ60: 36,643 | AR60: 36,643 | AS60: 36,643 | AT60: 36,643 | AU60: 36,643 | AV60: 36,643 | AW60: =MAX(AR60, AT60, AV60) -> 36,643 | AX60: 0 | AY60: 0 | BC60: 0
A61: 2017-02-27 | H61: 0 | I61: 0.00 | M61: 0 | N61: 2017-02-27 | U61: 0 | V61: 0.00 | Z61: 0 | AB61: 2017-02-27 | AC61: 36,643 | AD61: 36,643 | AE61: 36,643 | AF61: 36,643 | AG61: 36,643 | AH61: 36,643 | AI61: 36,643 | AJ61: 0 | AK61: 0 | AO61: 0 | AP61: 2017-02-27 | AQ61: 36,643 | AR61: 36,643 | AS61: 36,643 | AT61: 36,643 | AU61: 36,643 | AV61: 36,643 | AW61: 36,643 | AX61: 0 | AY61: 0 | BC61: 0
A62: 2017-02-28 | H62: 0 | I62: 0.00 | M62: 0 | N62: 2017-02-28 | U62: 0 | V62: 0.00 | Z62: 0 | AB62: 2017-02-28 | AC62: 36,643 | AD62: 36,643 | AE62: 36,643 | AF62: 36,643 | AG62: 36,643 | AH62: 36,643 | AI62: 36,643 | AJ62: 0 | AK62: 0 | AO62: 0 | AP62: 2017-02-28 | AQ62: 36,643 | AR62: 36,643 | AS62: 36,643 | AT62: 36,643 | AU62: 36,643 | AV62: 36,643 | AW62: 36,643 | AX62: 0 | AY62: 0 | BC62: 0
A63: 2017-03-01 | H63: 0 | I63: 0.00 | M63: 0 | N63: 2017-03-01 | U63: 0 | V63: 0.00 | Z63: 0 | AB63: 2017-03-01 | AC63: 36,643 | AD63: 36,643 | AE63: 36,643 | AF63: 36,643 | AG63: 36,643 | AH63: 36,643 | AI63: 36,643 | AJ63: 0 | AK63: 0 | AO63: 0 | AP63: 2017-03-01 | AQ63: 36,643 | AR63: 36,643 | AS63: 36,643 | AT63: 36,643 | AU63: 36,643 | AV63: 36,643 | AW63: 36,643 | AX63: 0 | AY63: 0 | BC63: 0
A64: 2017-03-02 | H64: 0 | I64: 0.00 | M64: 0 | N64: 2017-03-02 | U64: 0 | V64: 0.00 | Z64: 0 | AB64: 2017-03-02 | AC64: 36,643 | AD64: 36,643 | AE64: 36,643 | AF64: 36,643 | AG64: 36,643 | AH64: 36,643 | AI64: 36,643 | AJ64: 0 | AK64: 0 | AO64: 0 | AP64: 2017-03-02 | AQ64: 36,643 | AR64: 36,643 | AS64: 36,643 | AT64: 36,643 | AU64: 36,643 | AV64: 36,643 | AW64: 36,643 | AX64: 0 | AY64: 0 | BC64: 0
A65: 2017-03-03 | H65: 0 | I65: 0.00 | M65: 0 | N65: 2017-03-03 | U65: 0 | V65: 0.00 | Z65: 0 | AB65: 2017-03-03 | AC65: 36,643 | AD65: 36,643 | AE65: 36,643 | AF65: 36,643 | AG65: 36,643 | AH65: 36,643 | AI65: 36,643 | AJ65: 0 | AK65: 0 | AO65: 0 | AP65: 2017-03-03 | AQ65: 36,643 | AR65: 36,643 | AS65: 36,643 | AT65: 36,643 | AU65: 36,643 | AV65: 36,643 | AW65: 36,643 | AX65: 0 | AY65: 0 | BC65: 0
A66: 2017-03-04 | H66: 0 | I66: 0.00 | M66: 0 | N66: 2017-03-04 | U66: 0 | V66: 0.00 | Z66: 0 | AB66: 2017-03-04 | AC66: 36,643 | AD66: 36,643 | AE66: 36,643 | AF66: 36,643 | AG66: 36,643 | AH66: 36,643 | AI66: 36,643 | AJ66: 0 | AK66: 0 | AO66: 0 | AP66: 2017-03-04 | AQ66: 36,643 | AR66: 36,643 | AS66: 36,643 | AT66: 36,643 | AU66: 36,643 | AV66: 36,643 | AW66: 36,643 | AX66: 0 | AY66: 0 | BC66: 0
A67: 2017-03-05 | H67: 0 | I67: 0.00 | M67: 0 | N67: 2017-03-05 | U67: 0 | V67: 0.00 | Z67: 0 | AB67: 2017-03-05 | AC67: 36,643 | AD67: 36,643 | AE67: 36,643 | AF67: 36,643 | AG67: 36,643 | AH67: 36,643 | AI67: 36,643 | AJ67: 0 | AK67: 0 | AO67: 0 | AP67: 2017-03-05 | AQ67: 36,643 | AR67: 36,643 | AS67: 36,643 | AT67: 36,643 | AU67: 36,643 | AV67: 36,643 | AW67: 36,643 | AX67: 0 | AY67: 0 | BC67: 0
A68: 2017-03-06 | H68: 0 | I68: 0.00 | M68: =IF(H68>0, 1, 0) -> 0 | N68: 2017-03-06 | U68: =(P68-O68)+(R68-Q68)+(T68-S68) -> 0 | V68: 0.00 | Z68: =IF(U68>0, 1, 0) -> 0 | AB68: 2017-03-06 | AC68: 36,643 | AD68: 36,643 | AE68: 36,643 | AF68: 36,643 | AG68: 36,643 | AH68: 36,643 | AI68: 36,643 | AJ68: 0 | AK68: =(AD68-AC68)+(AF68-AE68)+(AH68-AG68) -> 0 | AO68: 0 | AP68: 2017-03-06 | AQ68: 36,643 | AR68: 36,643 | AS68: 36,643 | AT68: 36,643 | AU68: 36,643 | AV68: 36,643 | AW68: 36,643 | AX68: 0 | AY68: 0 | BC68: =IF(AY68>0, 1, 0) -> 0
A69: 2017-03-07 | H69: 0 | I69: =H69*24 -> 0.00 | M69: 0 | N69: 2017-03-07 | U69: 0 | V69: =U69*24 -> 0.00 | Z69: 0 | AB69: 2017-03-07 | AC69: 36,643 | AD69: 36,643 | AE69: 36,643 | AF69: 36,643 | AG69: 36,643 | AH69: 36,643 | AI69: 36,643 | AJ69: 0 | AK69: 0 | AO69: =IF(AK69>0, 1, 0) -> 0 | AP69: 2017-03-07 | AQ69: 36,643 | AR69: 36,643 | AS69: 36,643 | AT69: 36,643 | AU69: 36,643 | AV69: 36,643 | AW69: =MAX(AR69, AT69, AV69) -> 36,643 | AX69: =IF(AQ69=AW68, 0, AQ69-AW68) -> 0 | AY69: =(AR69-AQ69)+(AT69-AS69)+(AV69-AU69) -> 0 | BC69: 0 | BD69: =IF(AK69<AY69,"Actual less than Revenue",IF(AND(AV69>AH69,AG69<>AH69,AU69<>AV69),"Rev Over Act End 3rd",IF(AND(AU69<AG69,AG69<>AH69,AU69<>AV69),"Rev Less Act Start 3rd",IF(AND(AT69>AF69,AE69<>AF69,AS69<>AT69),"Rev Over Act End 2nd",IF(AND(AS69<AE69,AE69<>AF69,AS69<>AT69),"Rev Less Act Start 2nd",IF(AND(AR69>AD69,AC69<>AD69,AQ69<>AR69),"Rev Over Act End 1st",IF(AND(AQ69<AC69,AC69<>AD69,AQ69<>AR69),"Rev Less Act Start 1st",IF(AND(AV69=AH69,AG69<>AH69,AU69<>AV69),"Same End 3rd",IF(AND(AU69=AG69,AG69<>AH69,AU69<>AV69),"Same Start 3rd",IF(AND(AT69=AF69,AE69<>AF69,AS69<>AT69),"Same End 2nd",IF(AND(AS69=AE69,AE69<>AF69,AS69<>AT69),"Same Start 2nd",IF(AND(AR69=AD69,AC69<>AD69,AQ69<>AR69),"Same End 1st",IF(AND(AQ69=AC69,AC69<>AD69,AQ69<>AR69),"Same Start 1st",""))))))))))))) -> 
A70: 2017-03-08 | B70: 0.2847222222 | C70: 0.5972222222 | H70: 0.3125 | I70: 7.50 | M70: 1 | N70: 2017-03-08 | O70: 0.2881944444 | P70: 0.5833333333 | U70: 0.2951388889 | V70: 7.08 | Z70: 1 | AA70: =IF(H70<U70,"Actual less than Revenue",IF(AND(T70>G70,F70<>G70,S70<>T70),"Rev Over Act End 3rd", IF(AND(S70<F70,F70<>G70,S70<>T70),"Rev Less Act Start 3rd",IF(AND(R70>E70,D70<>E70,Q70<>R70),"Rev Over Act End 2nd",IF(AND(Q70<D70,D70<>E70,Q70<>R70),"Rev Less Act Start 2nd",IF(AND(P70>C70,B70<>C70,O70<>P70),"Rev Over Act End 1st",IF(AND(O70<B70,B70<>C70,O70<>P70),"Rev Less Act Start 1st",IF(AND(T70=G70,F70<>G70,S70<>T70),"Same End 3rd",IF(AND(S70=F70,F70<>G70,S70<>T70),"Same Start 3rd",IF(AND(R70=E70,D70<>E70,Q70<>R70),"Same End 2nd",IF(AND(Q70=D70,D70<>E70,Q70<>R70),"Same Start 2nd",IF(AND(P70=C70,B70<>C70,O70<>P70),"Same End 1st",IF(AND(O70=B70,B70<>C70,O70<>P70),"Same Start 1st",""))))))))))))) ->  | AB70: 2017-03-08 | AC70: 36,657 | AD70: 36,730 | AE70: 36,730 | AF70: 36,730 | AG70: 36,730 | AH70: 36,730 | AI70: 36,730 | AJ70: 14 | AK70: 73 | AO70: 1 | AP70: 2017-03-08 | AQ70: 36,658 | AR70: 36,730 | AS70: 36,730 | AT70: 36,730 | AU70: 36,730 | AV70: 36,730 | AW70: 36,730 | AX70: 15 | AY70: 72 | BC70: 1 | BD70: Same End 1st
A71: 2017-03-09 | B71: 0.2847222222 | C71: 0.5798611111 | D71: 0.5798611111 | E71: 0.8159722222 | H71: 0.53125 | I71: 12.75 | M71: 1 | N71: 2017-03-09 | O71: 0.2881944444 | P71: 0.5798611111 | Q71: 0.5798611111 | R71: 0.7881944444 | U71: 0.5 | V71: 12.00 | Z71: 1 | AA71: Same Start 2nd | AB71: 2017-03-09 | AC71: 36,786 | AD71: 36,914 | AE71: =AD71 -> 36,914 | AF71: 36,914 | AG71: 36,914 | AH71: 36,914 | AI71: 36,914 | AJ71: =IF(AC71=AI70, 0, AC71-AI70) -> 56 | AK71: 128 | AO71: 1 | AP71: 2017-03-09 | AQ71: 36,787 | AR71: 36,909 | AS71: =AR71 -> 36,909 | AT71: 36,909 | AU71: 36,909 | AV71: 36,909 | AW71: 36,909 | AX71: 57 | AY71: 122 | BC71: 1
A72: 2017-03-10 | B72: 0.2847222222 | C72: 0.8159722222 | H72: 0.53125 | I72: 12.75 | M72: 1 | N72: 2017-03-10 | O72: 0.2881944444 | P72: 0.7881944444 | U72: 0.5 | V72: 12.00 | Z72: 1 | AB72: 2017-03-10 | AC72: 36,914 | AD72: 37,042 | AE72: 37,042 | AF72: 37,042 | AG72: 37,042 | AH72: 37,042 | AI72: 37,042 | AJ72: 0 | AK72: 128 | AO72: 1 | AP72: 2017-03-10 | AQ72: 36,915 | AR72: 37,038 | AS72: 37,038 | AT72: 37,038 | AU72: 37,038 | AV72: 37,038 | AW72: 37,038 | AX72: 6 | AY72: 123 | BC72: 1
A73: 2017-03-11 | H73: 0 | I73: 0.00 | M73: 0 | N73: 2017-03-11 | U73: 0 | V73: 0.00 | Z73: 0 | AB73: 2017-03-11 | AC73: 37,042 | AD73: 37,042 | AE73: 37,042 | AF73: 37,042 | AG73: 37,042 | AH73: 37,042 | AI73: 37,042 | AJ73: 0 | AK73: 0 | AO73: 0 | AP73: 2017-03-11 | AQ73: 37,038 | AR73: 37,038 | AS73: 37,038 | AT73: 37,038 | AU73: 37,038 | AV73: 37,038 | AW73: 37,038 | AX73: 0 | AY73: 0 | BC73: 0
A74: 2017-03-12 | H74: 0 | I74: 0.00 | M74: 0 | N74: 2017-03-12 | U74: 0 | V74: 0.00 | Z74: 0 | AB74: 2017-03-12 | AC74: 37,042 | AD74: 37,042 | AE74: 37,042 | AF74: 37,042 | AG74: 37,042 | AH74: 37,042 | AI74: 37,042 | AJ74: 0 | AK74: 0 | AO74: 0 | AP74: 2017-03-12 | AQ74: 37,038 | AR74: 37,038 | AS74: 37,038 | AT74: 37,038 | AU74: 37,038 | AV74: 37,038 | AW74: 37,038 | AX74: 0 | AY74: 0 | BC74: 0
A75: 2017-03-13 | B75: 0.2847222222 | C75: 0.8145833333 | H75: 0.5298611111 | I75: 12.72 | M75: 1 | N75: 2017-03-13 | O75: 0.2881944444 | P75: 0.7881944444 | U75: 0.5 | V75: 12.00 | Z75: 1 | AB75: 2017-03-13 | AC75: 37,042 | AD75: 37,172 | AE75: 37,172 | AF75: 37,172 | AG75: 37,172 | AH75: 37,172 | AI75: 37,172 | AJ75: 0 | AK75: 130 | AO75: 1 | AP75: 2017-03-13 | AQ75: 37,043 | AR75: 37,167 | AS75: 37,167 | AT75: 37,167 | AU75: 37,167 | AV75: 37,167 | AW75: 37,167 | AX75: 5 | AY75: 124 | BC75: 1
A76: 2017-03-14 | B76: 0.2847222222 | C76: 0.5381944444 | D76: 0.5381944444 | E76: 0.8131944444 | H76: 0.5284722222 | I76: 12.68 | M76: 1 | N76: 2017-03-14 | O76: 0.2881944444 | P76: 0.5381944444 | Q76: 0.5381944444 | R76: 0.7881944444 | U76: 0.5 | V76: 12.00 | Z76: 1 | AA76: Same Start 2nd | AB76: 2017-03-14 | AC76: 37,172 | AD76: 37,234 | AE76: 37,234 | AF76: 37,300 | AG76: 37,300 | AH76: 37,300 | AI76: =MAX(AD76, AF76, AH76) -> 37,300 | AJ76: 0 | AK76: 128 | AO76: 1 | AP76: 2017-03-14 | AQ76: 37,173 | AR76: 37,234 | AS76: 37,234 | AT76: 37,296 | AU76: 37,296 | AV76: 37,296 | AW76: 37,296 | AX76: 6 | AY76: 123 | BC76: 1 | BD76: Same Start 2nd
A77: 2017-03-15 | B77: 0.2847222222 | C77: 0.8097222222 | H77: 0.525 | I77: 12.60 | M77: 1 | N77: 2017-03-15 | O77: 0.2881944444 | P77: 0.7881944444 | U77: 0.5 | V77: 12.00 | Z77: 1 | AB77: 2017-03-15 | AC77: =AI76 -> 37,300 | AD77: 37,456 | AE77: 37,456 | AF77: 37,456 | AG77: 37,456 | AH77: 37,456 | AI77: 37,456 | AJ77: 0 | AK77: 156 | AO77: 1 | AP77: 2017-03-15 | AQ77: 37,301 | AR77: 37,451 | AS77: 37,451 | AT77: 37,451 | AU77: 37,451 | AV77: 37,451 | AW77: 37,451 | AX77: 5 | AY77: 150 | BC77: 1
A78: 2017-03-16 | H78: 0 | I78: 0.00 | M78: 0 | N78: 2017-03-16 | U78: 0 | V78: 0.00 | Z78: 0 | AB78: 2017-03-16 | AC78: 37,456 | AD78: 37,456 | AE78: 37,456 | AF78: 37,456 | AG78: 37,456 | AH78: 37,456 | AI78: 37,456 | AJ78: 0 | AK78: 0 | AO78: 0 | AP78: 2017-03-16 | AQ78: =AW77 -> 37,451 | AR78: 37,451 | AS78: 37,451 | AT78: 37,451 | AU78: 37,451 | AV78: 37,451 | AW78: 37,451 | AX78: 0 | AY78: 0 | BC78: 0
A79: 2017-03-17 | H79: 0 | I79: 0.00 | M79: 0 | N79: 2017-03-17 | U79: 0 | V79: 0.00 | Z79: 0 | AB79: 2017-03-17 | AC79: 37,456 | AD79: 37,456 | AE79: 37,456 | AF79: 37,456 | AG79: 37,456 | AH79: 37,456 | AI79: 37,456 | AJ79: 0 | AK79: 0 | AO79: 0 | AP79: 2017-03-17 | AQ79: 37,451 | AR79: 37,451 | AS79: 37,451 | AT79: 37,451 | AU79: 37,451 | AV79: 37,451 | AW79: 37,451 | AX79: 0 | AY79: 0 | BC79: 0
A80: 2017-03-18 | H80: 0 | I80: 0.00 | M80: 0 | N80: 2017-03-18 | U80: 0 | V80: 0.00 | Z80: 0 | AB80: 2017-03-18 | AC80: 37,456 | AD80: 37,456 | AE80: 37,456 | AF80: 37,456 | AG80: 37,456 | AH80: 37,456 | AI80: 37,456 | AJ80: 0 | AK80: 0 | AO80: 0 | AP80: 2017-03-18 | AQ80: 37,451 | AR80: 37,451 | AS80: 37,451 | AT80: 37,451 | AU80: 37,451 | AV80: 37,451 | AW80: 37,451 | AX80: 0 | AY80: 0 | BC80: 0
A81: 2017-03-19 | H81: 0 | I81: 0.00 | M81: 0 | N81: 2017-03-19 | U81: 0 | V81: 0.00 | Z81: 0 | AB81: 2017-03-19 | AC81: 37,456 | AD81: 37,456 | AE81: 37,456 | AF81: 37,456 | AG81: 37,456 | AH81: 37,456 | AI81: 37,456 | AJ81: 0 | AK81: 0 | AO81: 0 | AP81: 2017-03-19 | AQ81: 37,451 | AR81: 37,451 | AS81: 37,451 | AT81: 37,451 | AU81: 37,451 | AV81: 37,451 | AW81: 37,451 | AX81: 0 | AY81: 0 | BC81: 0
A82: 2017-03-20 | B82: 0.2979166667 | C82: 0.8097222222 | H82: 0.5118055556 | I82: 12.28 | M82: 1 | N82: 2017-03-20 | O82: 0.3027777778 | P82: 0.7951388889 | U82: 0.4923611111 | V82: 11.82 | Z82: 1 | AB82: 2017-03-20 | AC82: 37,458 | AD82: 37,602 | AE82: 37,602 | AF82: 37,602 | AG82: 37,602 | AH82: 37,602 | AI82: 37,602 | AJ82: 2 | AK82: 144 | AO82: 1 | AP82: 2017-03-20 | AQ82: 37,458 | AR82: 37,600 | AS82: 37,600 | AT82: 37,600 | AU82: 37,600 | AV82: 37,600 | AW82: 37,600 | AX82: 7 | AY82: 142 | BC82: 1 | BD82: Same Start 1st
A83: 2017-03-21 | B83: 0.4479166667 | C83: 0.8159722222 | H83: 0.3680555556 | I83: 8.83 | M83: 1 | N83: 2017-03-21 | O83: 0.4479166667 | P83: 0.8020833333 | U83: 0.3541666667 | V83: 8.50 | Z83: 1 | AA83: Same Start 1st | AB83: 2017-03-21 | AC83: 37,602 | AD83: 37,602 | AE83: 37,602 | AF83: 37,602 | AG83: 37,602 | AH83: 37,602 | AI83: 37,602 | AJ83: 0 | AK83: 0 | AO83: 0 | AP83: 2017-03-21 | AQ83: 37,600 | AR83: 37,600 | AS83: 37,600 | AT83: 37,600 | AU83: 37,600 | AV83: 37,600 | AW83: 37,600 | AX83: 0 | AY83: 0 | BC83: 0
A84: 2017-03-22 | B84: 0.2847222222 | C84: 0.8138888889 | H84: 0.5291666667 | I84: 12.70 | M84: 1 | N84: 2017-03-22 | O84: 0.2881944444 | P84: 0.7881944444 | U84: 0.5 | V84: 12.00 | Z84: 1 | AB84: 2017-03-22 | AC84: 37,756 | AD84: 37,908 | AE84: 37,908 | AF84: 37,908 | AG84: 37,908 | AH84: 37,908 | AI84: 37,908 | AJ84: 154 | AK84: 152 | AO84: 1 | AP84: 2017-03-22 | AQ84: 37,757 | AR84: 37,904 | AS84: 37,904 | AT84: 37,904 | AU84: 37,904 | AV84: 37,904 | AW84: 37,904 | AX84: 157 | AY84: 147 | BC84: 1
A85: 2017-03-23 | B85: 0.2847222222 | C85: 0.8104166667 | H85: 0.5256944444 | I85: 12.62 | M85: 1 | N85: 2017-03-23 | O85: 0.2881944444 | P85: 0.7881944444 | U85: 0.5 | V85: 12.00 | Z85: 1 | AB85: 2017-03-23 | AC85: 37,908 | AD85: 38,066 | AE85: 38,066 | AF85: 38,066 | AG85: 38,066 | AH85: 38,066 | AI85: 38,066 | AJ85: 0 | AK85: 158 | AO85: 1 | AP85: 2017-03-23 | AQ85: 37,910 | AR85: 38,059 | AS85: 38,059 | AT85: 38,059 | AU85: 38,059 | AV85: 38,059 | AW85: 38,059 | AX85: 6 | AY85: 149 | BC85: 1
A86: 2017-03-24 | B86: 0.2847222222 | C86: 0.5104166667 | D86: 0.4895833333 | E86: 0.8173611111 | H86: 0.5534722222 | I86: 13.28 | M86: 1 | N86: 2017-03-24 | O86: 0.2881944444 | P86: 0.5 | Q86: 0.5 | R86: 0.7881944444 | U86: 0.5 | V86: 12.00 | Z86: 1 | AB86: 2017-03-24 | AC86: 38,066 | AD86: 38,127 | AE86: 38,127 | AF86: 38,220 | AG86: 38,220 | AH86: 38,220 | AI86: 38,220 | AJ86: 0 | AK86: 154 | AO86: 1 | AP86: 2017-03-24 | AQ86: 38,067 | AR86: 38,127 | AS86: 38,127 | AT86: 38,216 | AU86: 38,216 | AV86: 38,216 | AW86: 38,216 | AX86: 8 | AY86: 149 | BC86: 1 | BD86: Same Start 2nd
A87: 2017-03-25 | H87: 0 | I87: 0.00 | M87: 0 | N87: 2017-03-25 | U87: 0 | V87: 0.00 | Z87: 0 | AB87: 2017-03-25 | AC87: 38,220 | AD87: 38,220 | AE87: 38,220 | AF87: 38,220 | AG87: 38,220 | AH87: 38,220 | AI87: 38,220 | AJ87: 0 | AK87: 0 | AO87: 0 | AP87: 2017-03-25 | AQ87: 38,216 | AR87: 38,216 | AS87: 38,216 | AT87: 38,216 | AU87: 38,216 | AV87: 38,216 | AW87: 38,216 | AX87: 0 | AY87: 0 | BC87: 0
A88: 2017-03-26 | H88: 0 | I88: 0.00 | M88: 0 | N88: 2017-03-26 | U88: 0 | V88: 0.00 | Z88: 0 | AB88: 2017-03-26 | AC88: 38,220 | AD88: 38,220 | AE88: 38,220 | AF88: 38,220 | AG88: 38,220 | AH88: 38,220 | AI88: 38,220 | AJ88: 0 | AK88: 0 | AO88: 0 | AP88: 2017-03-26 | AQ88: 38,216 | AR88: 38,216 | AS88: 38,216 | AT88: 38,216 | AU88: 38,216 | AV88: 38,216 | AW88: 38,216 | AX88: 0 | AY88: 0 | BC88: 0
A89: 2017-03-27 | B89: 0.2847222222 | C89: 0.5381944444 | D89: 0.5381944444 | E89: 0.8263888889 | H89: 0.5416666667 | I89: 13.00 | M89: 1 | N89: 2017-03-27 | O89: 0.2881944444 | P89: 0.5381944444 | Q89: 0.5381944444 | R89: 0.7916666667 | U89: 0.5034722222 | V89: 12.08 | Z89: 1 | AA89: Same Start 2nd | AB89: 2017-03-27 | AC89: 38,220 | AD89: 38,293 | AE89: 38,293 | AF89: 38,372 | AG89: 38,372 | AH89: 38,372 | AI89: 38,372 | AJ89: 0 | AK89: 152 | AO89: 1 | AP89: 2017-03-27 | AQ89: 38,221 | AR89: 38,293 | AS89: 38,293 | AT89: 38,368 | AU89: 38,368 | AV89: 38,368 | AW89: 38,368 | AX89: 5 | AY89: 147 | BC89: 1 | BD89: Same Start 2nd
A90: 2017-03-28 | B90: 0.2847222222 | C90: 0.8125 | H90: 0.5277777778 | I90: 12.67 | M90: 1 | N90: 2017-03-28 | O90: 0.2881944444 | P90: 0.7986111111 | U90: 0.5104166667 | V90: 12.25 | Z90: 1 | AB90: 2017-03-28 | AC90: 38,372 | AD90: 38,528 | AE90: 38,528 | AF90: 38,528 | AG90: 38,528 | AH90: 38,528 | AI90: 38,528 | AJ90: 0 | AK90: 156 | AO90: 1 | AP90: 2017-03-28 | AQ90: 38,373 | AR90: 38,524 | AS90: 38,524 | AT90: 38,524 | AU90: 38,524 | AV90: 38,524 | AW90: 38,524 | AX90: 5 | AY90: 151 | BC90: 1
A91: 2017-03-29 | B91: 0.2847222222 | C91: 0.5381944444 | D91: 0.5381944444 | E91: 0.8173611111 | H91: =(C91-B91)+(E91-D91)+(G91-F91) -> 0.5326388889 | I91: 12.78 | M91: 1 | N91: 2017-03-29 | O91: 0.2881944444 | P91: 0.5381944444 | Q91: 0.5381944444 | R91: 0.7951388889 | U91: 0.5069444444 | V91: 12.17 | Z91: 1 | AA91: Same Start 2nd | AB91: 2017-03-29 | AC91: 38,528 | AD91: 38,602 | AE91: 38,602 | AF91: 38,682 | AG91: 38,682 | AH91: 38,682 | AI91: 38,682 | AJ91: 0 | AK91: 154 | AO91: 1 | AP91: 2017-03-29 | AQ91: 38,529 | AR91: 38,602 | AS91: 38,602 | AT91: 38,678 | AU91: 38,678 | AV91: 38,678 | AW91: 38,678 | AX91: 5 | AY91: 149 | BC91: 1 | BD91: Same Start 2nd
A92: 2017-03-30 | B92: 0.2847222222 | C92: 0.8194444444 | H92: 0.5347222222 | I92: 12.83 | M92: 1 | N92: 2017-03-30 | O92: 0.2881944444 | P92: 0.7951388889 | U92: 0.5069444444 | V92: 12.17 | Z92: 1 | AB92: 2017-03-30 | AC92: 38,684 | AD92: 38,839 | AE92: 38,839 | AF92: 38,839 | AG92: 38,839 | AH92: 38,839 | AI92: 38,839 | AJ92: 2 | AK92: 155 | AO92: 1 | AP92: 2017-03-30 | AQ92: 38,684 | AR92: 38,834 | AS92: 38,834 | AT92: 38,834 | AU92: 38,834 | AV92: 38,834 | AW92: 38,834 | AX92: 6 | AY92: 150 | BC92: 1 | BD92: Same Start 1st
A93: 2017-03-31 | B93: 0.2847222222 | C93: 0.5381944444 | D93: 0.5381944444 | E93: 0.81875 | H93: 0.5340277778 | I93: 12.82 | M93: 1 | N93: 2017-03-31 | O93: 0.2881944444 | P93: 0.5381944444 | Q93: 0.5381944444 | R93: 0.7951388889 | U93: 0.5069444444 | V93: 12.17 | Z93: 1 | AA93: Same Start 2nd | AB93: 2017-03-31 | AC93: 38,839 | AD93: 38,912 | AE93: 38,912 | AF93: 38,993 | AG93: 38,993 | AH93: 38,993 | AI93: 38,993 | AJ93: 0 | AK93: 154 | AO93: 1 | AP93: 2017-03-31 | AQ93: 38,840 | AR93: 38,912 | AS93: 38,912 | AT93: 38,988 | AU93: 38,988 | AV93: 38,988 | AW93: 38,988 | AX93: 6 | AY93: 148 | BC93: 1 | BD93: Same Start 2nd
A94: 2017-04-01 | B94: 0.2847222222 | C94: 0.5972222222 | D94: 0.5972222222 | E94: 0.8138888889 | H94: 0.5291666667 | I94: 12.70 | M94: 1 | N94: 2017-04-01 | O94: 0.2881944444 | P94: 0.5972222222 | Q94: 0.5972222222 | R94: 0.7951388889 | U94: 0.5069444444 | V94: 12.17 | Z94: 1 | AA94: Same Start 2nd | AB94: 2017-04-01 | AC94: 38,993 | AD94: 39,082 | AE94: 39,082 | AF94: 39,147 | AG94: 39,147 | AH94: 39,147 | AI94: 39,147 | AJ94: 0 | AK94: 154 | AO94: 1 | AP94: 2017-04-01 | AQ94: 38,994 | AR94: 39,082 | AS94: 39,082 | AT94: 39,142 | AU94: 39,142 | AV94: 39,142 | AW94: 39,142 | AX94: 6 | AY94: 148 | BC94: 1 | BD94: Same Start 2nd
A95: 2017-04-02 | H95: 0 | I95: 0.00 | M95: 0 | N95: 2017-04-02 | U95: 0 | V95: 0.00 | Z95: 0 | AB95: 2017-04-02 | AC95: 39,147 | AD95: 39,147 | AE95: 39,147 | AF95: 39,147 | AG95: 39,147 | AH95: 39,147 | AI95: 39,147 | AJ95: 0 | AK95: 0 | AO95: 0 | AP95: 2017-04-02 | AQ95: 39,142 | AR95: 39,142 | AS95: 39,142 | AT95: 39,142 | AU95: 39,142 | AV95: 39,142 | AW95: 39,142 | AX95: 0 | AY95: 0 | BC95: 0
A96: 2017-04-03 | H96: 0 | I96: 0.00 | M96: 0 | N96: 2017-04-03 | U96: 0 | V96: 0.00 | Z96: 0 | AB96: 2017-04-03 | AC96: 39,147 | AD96: 39,147 | AE96: 39,147 | AF96: 39,147 | AG96: 39,147 | AH96: 39,147 | AI96: 39,147 | AJ96: 0 | AK96: 0 | AO96: 0 | AP96: 2017-04-03 | AQ96: 39,142 | AR96: 39,142 | AS96: 39,142 | AT96: 39,142 | AU96: 39,142 | AV96: 39,142 | AW96: 39,142 | AX96: 0 | AY96: 0 | BC96: 0
A97: 2017-04-04 | B97: 0.2847222222 | C97: 0.5381944444 | D97: 0.5381944444 | E97: 0.8125 | H97: 0.5277777778 | I97: 12.67 | M97: 1 | N97: 2017-04-04 | O97: 0.2881944444 | P97: 0.5381944444 | Q97: 0.5381944444 | R97: 0.7881944444 | U97: 0.5 | V97: 12.00 | Z97: 1 | AA97: Same Start 2nd | AB97: 2017-04-04 | AC97: 39,147 | AD97: 39,209 | AE97: 39,209 | AF97: 39,275 | AG97: 39,275 | AH97: 39,275 | AI97: 39,275 | AJ97: 0 | AK97: 128 | AO97: 1 | AP97: 2017-04-04 | AQ97: 39,148 | AR97: 39,209 | AS97: 39,209 | AT97: 39,271 | AU97: 39,271 | AV97: 39,271 | AW97: 39,271 | AX97: 6 | AY97: 123 | BC97: 1 | BD97: Same Start 2nd
A98: 2017-04-05 | B98: 0.2847222222 | C98: 0.8138888889 | H98: 0.5291666667 | I98: 12.70 | M98: 1 | N98: 2017-04-05 | O98: 0.2881944444 | P98: 0.7951388889 | U98: 0.5069444444 | V98: 12.17 | Z98: 1 | AB98: 2017-04-05 | AC98: 39,275 | AD98: 39,431 | AE98: 39,431 | AF98: 39,431 | AG98: 39,431 | AH98: 39,431 | AI98: 39,431 | AJ98: 0 | AK98: 156 | AO98: 1 | AP98: 2017-04-05 | AQ98: 39,276 | AR98: 39,426 | AS98: 39,426 | AT98: 39,426 | AU98: 39,426 | AV98: 39,426 | AW98: 39,426 | AX98: 5 | AY98: 150 | BC98: 1
A99: 2017-04-06 | B99: 0.2847222222 | C99: 0.5381944444 | D99: 0.5381944444 | E99: 0.8069444444 | H99: 0.5222222222 | I99: 12.53 | M99: 1 | N99: 2017-04-06 | O99: 0.2881944444 | P99: 0.5381944444 | Q99: 0.5381944444 | R99: 0.7881944444 | U99: 0.5 | V99: 12.00 | Z99: 1 | AA99: Same Start 2nd | AB99: 2017-04-06 | AC99: 39,431 | AD99: 39,493 | AE99: 39,493 | AF99: 39,559 | AG99: 39,559 | AH99: 39,559 | AI99: 39,559 | AJ99: 0 | AK99: 128 | AO99: 1 | AP99: 2017-04-06 | AQ99: 39,432 | AR99: 39,493 | AS99: 39,493 | AT99: 39,555 | AU99: 39,555 | AV99: 39,555 | AW99: 39,555 | AX99: 6 | AY99: 123 | BC99: 1 | BD99: Same Start 2nd
A100: 2017-04-07 | B100: 0.2847222222 | C100: 0.5381944444 | D100: 0.5381944444 | E100: 0.8069444444 | H100: 0.5222222222 | I100: 12.53 | M100: 1 | N100: 2017-04-07 | O100: 0.2881944444 | P100: 0.5381944444 | Q100: 0.5381944444 | R100: 0.7951388889 | U100: 0.5069444444 | V100: 12.17 | Z100: 1 | AA100: Same Start 2nd | AB100: 2017-04-07 | AC100: 39,559 | AD100: 39,632 | AE100: 39,632 | AF100: 39,713 | AG100: 39,713 | AH100: 39,713 | AI100: 39,713 | AJ100: 0 | AK100: 154 | AO100: 1 | AP100: 2017-04-07 | AQ100: 39,560 | AR100: 39,632 | AS100: 39,632 | AT100: 39,709 | AU100: 39,709 | AV100: 39,709 | AW100: 39,709 | AX100: 5 | AY100: 149 | BC100: 1 | BD100: Same Start 2nd
A101: 2017-04-08 | H101: 0 | I101: 0.00 | M101: 0 | N101: 2017-04-08 | U101: 0 | V101: 0.00 | Z101: 0 | AB101: 2017-04-08 | AC101: 39,713 | AD101: 39,713 | AE101: 39,713 | AF101: 39,713 | AG101: 39,713 | AH101: 39,713 | AI101: 39,713 | AJ101: 0 | AK101: 0 | AO101: 0 | AP101: 2017-04-08 | AQ101: 39,709 | AR101: 39,709 | AS101: 39,709 | AT101: 39,709 | AU101: 39,709 | AV101: 39,709 | AW101: 39,709 | AX101: 0 | AY101: 0 | BC101: 0
A102: 2017-04-09 | H102: 0 | I102: 0.00 | M102: 0 | N102: 2017-04-09 | U102: 0 | V102: 0.00 | Z102: 0 | AB102: 2017-04-09 | AC102: 39,713 | AD102: 39,713 | AE102: 39,713 | AF102: 39,713 | AG102: 39,713 | AH102: 39,713 | AI102: 39,713 | AJ102: 0 | AK102: 0 | AO102: 0 | AP102: 2017-04-09 | AQ102: 39,709 | AR102: 39,709 | AS102: 39,709 | AT102: 39,709 | AU102: 39,709 | AV102: 39,709 | AW102: 39,709 | AX102: 0 | AY102: 0 | BC102: 0
A103: 2017-04-10 | B103: 0.2847222222 | C103: 0.5381944444 | D103: 0.5381944444 | E103: 0.8069444444 | H103: 0.5222222222 | I103: 12.53 | M103: 1 | N103: 2017-04-10 | O103: 0.2881944444 | P103: 0.5381944444 | Q103: 0.5381944444 | R103: 0.7881944444 | U103: 0.5 | V103: 12.00 | Z103: 1 | AA103: Same Start 2nd | AB103: 2017-04-10 | AC103: 39,713 | AD103: 39,776 | AE103: 39,776 | AF103: 39,842 | AG103: 39,842 | AH103: 39,842 | AI103: 39,842 | AJ103: 0 | AK103: 129 | AO103: 1 | AP103: 2017-04-10 | AQ103: 39,714 | AR103: 39,776 | AS103: 39,776 | AT103: 39,837 | AU103: 39,837 | AV103: 39,837 | AW103: 39,837 | AX103: 5 | AY103: 123 | BC103: 1 | BD103: Same Start 2nd
A104: 2017-04-11 | B104: 0.2847222222 | C104: 0.5381944444 | D104: 0.5381944444 | E104: 0.8090277778 | H104: 0.5243055556 | I104: 12.58 | M104: 1 | N104: 2017-04-11 | O104: 0.2881944444 | P104: 0.5381944444 | Q104: 0.5381944444 | R104: 0.7951388889 | U104: 0.5069444444 | V104: 12.17 | Z104: 1 | AA104: Same Start 2nd | AB104: 2017-04-11 | AC104: 39,842 | AD104: 39,915 | AE104: 39,915 | AF104: 39,996 | AG104: 39,996 | AH104: 39,996 | AI104: 39,996 | AJ104: 0 | AK104: 154 | AO104: 1 | AP104: 2017-04-11 | AQ104: 39,843 | AR104: 39,915 | AS104: 39,915 | AT104: 39,991 | AU104: 39,991 | AV104: 39,991 | AW104: 39,991 | AX104: 6 | AY104: 148 | BC104: 1 | BD104: Same Start 2nd
A105: 2017-04-12 | B105: 0.2847222222 | C105: 0.5381944444 | D105: 0.5381944444 | E105: 0.8090277778 | H105: 0.5243055556 | I105: 12.58 | M105: 1 | N105: 2017-04-12 | O105: 0.2881944444 | P105: 0.5381944444 | Q105: 0.5381944444 | R105: 0.7881944444 | U105: 0.5 | V105: 12.00 | Z105: 1 | AA105: Same Start 2nd | AB105: 2017-04-12 | AC105: 39,996 | AD105: 40,058 | AE105: 40,058 | AF105: 40,124 | AG105: 40,124 | AH105: 40,124 | AI105: 40,124 | AJ105: 0 | AK105: 128 | AO105: 1 | AP105: 2017-04-12 | AQ105: 39,997 | AR105: 40,058 | AS105: 40,058 | AT105: 40,120 | AU105: 40,120 | AV105: 40,120 | AW105: 40,120 | AX105: 6 | AY105: 123 | BC105: 1 | BD105: Same Start 2nd
A106: 2017-04-13 | B106: 0.2847222222 | C106: 0.5381944444 | D106: 0.5381944444 | E106: 0.8159722222 | H106: 0.53125 | I106: 12.75 | M106: 1 | N106: 2017-04-13 | O106: 0.2881944444 | P106: 0.5381944444 | Q106: 0.5381944444 | R106: 0.7951388889 | U106: 0.5069444444 | V106: 12.17 | Z106: 1 | AA106: Same Start 2nd | AB106: 2017-04-13 | AC106: 40,124 | AD106: 40,198 | AE106: 40,198 | AF106: 40,278 | AG106: 40,278 | AH106: 40,278 | AI106: 40,278 | AJ106: 0 | AK106: 154 | AO106: 1 | AP106: 2017-04-13 | AQ106: 40,125 | AR106: 40,198 | AS106: 40,198 | AT106: 40,274 | AU106: 40,274 | AV106: 40,274 | AW106: 40,274 | AX106: 5 | AY106: 149 | BC106: 1 | BD106: Same Start 2nd
A107: 2017-04-14 | B107: 0.2847222222 | C107: 0.5381944444 | D107: 0.5381944444 | E107: 0.8055555556 | H107: 0.5208333333 | I107: 12.50 | M107: 1 | N107: 2017-04-14 | O107: 0.2881944444 | P107: 0.5381944444 | Q107: 0.5381944444 | R107: 0.7881944444 | U107: 0.5 | V107: 12.00 | Z107: 1 | AA107: Same Start 2nd | AB107: 2017-04-14 | AC107: 40,278 | AD107: 40,341 | AE107: 40,341 | AF107: 40,407 | AG107: 40,407 | AH107: 40,407 | AI107: 40,407 | AJ107: 0 | AK107: 129 | AO107: 1 | AP107: 2017-04-14 | AQ107: 40,279 | AR107: 40,341 | AS107: 40,341 | AT107: 40,403 | AU107: 40,403 | AV107: 40,403 | AW107: 40,403 | AX107: 5 | AY107: 124 | BC107: 1 | BD107: Same Start 2nd
A108: 2017-04-15 | H108: 0 | I108: 0.00 | M108: 0 | N108: 2017-04-15 | U108: 0 | V108: 0.00 | Z108: 0 | AB108: 2017-04-15 | AC108: 40,407 | AD108: 40,407 | AE108: 40,407 | AF108: 40,407 | AG108: 40,407 | AH108: 40,407 | AI108: 40,407 | AJ108: 0 | AK108: 0 | AO108: 0 | AP108: 2017-04-15 | AQ108: 40,403 | AR108: 40,403 | AS108: 40,403 | AT108: 40,403 | AU108: 40,403 | AV108: 40,403 | AW108: 40,403 | AX108: 0 | AY108: 0 | BC108: 0
A109: 2017-04-16 | H109: 0 | I109: 0.00 | M109: 0 | N109: 2017-04-16 | U109: 0 | V109: 0.00 | Z109: 0 | AB109: 2017-04-16 | AC109: 40,407 | AD109: 40,407 | AE109: 40,407 | AF109: 40,407 | AG109: 40,407 | AH109: 40,407 | AI109: 40,407 | AJ109: 0 | AK109: 0 | AO109: 0 | AP109: 2017-04-16 | AQ109: 40,403 | AR109: 40,403 | AS109: 40,403 | AT109: 40,403 | AU109: 40,403 | AV109: 40,403 | AW109: 40,403 | AX109: 0 | AY109: 0 | BC109: 0
A110: 2017-04-17 | B110: 0.2847222222 | C110: 0.5381944444 | D110: 0.5381944444 | E110: 0.8125 | H110: 0.5277777778 | I110: 12.67 | M110: 1 | N110: 2017-04-17 | O110: 0.2881944444 | P110: 0.5381944444 | Q110: 0.5381944444 | R110: 0.7951388889 | U110: 0.5069444444 | V110: 12.17 | Z110: 1 | AA110: Same Start 2nd | AB110: 2017-04-17 | AC110: 40,407 | AD110: 40,480 | AE110: 40,480 | AF110: 40,561 | AG110: 40,561 | AH110: 40,561 | AI110: 40,561 | AJ110: 0 | AK110: 154 | AO110: 1 | AP110: 2017-04-17 | AQ110: 40,408 | AR110: 40,480 | AS110: 40,480 | AT110: 40,557 | AU110: 40,557 | AV110: 40,557 | AW110: 40,557 | AX110: 5 | AY110: 149 | BC110: 1 | BD110: Same Start 2nd
A111: 2017-04-18 | B111: 0.2847222222 | C111: 0.5381944444 | D111: 0.5381944444 | E111: 0.8097222222 | H111: 0.525 | I111: 12.60 | M111: 1 | N111: 2017-04-18 | O111: 0.2881944444 | P111: 0.5381944444 | Q111: 0.5381944444 | R111: 0.7881944444 | U111: 0.5 | V111: 12.00 | Z111: 1 | AA111: Same Start 2nd | AB111: 2017-04-18 | AC111: 40,561 | AD111: 40,624 | AE111: 40,624 | AF111: 40,690 | AG111: 40,690 | AH111: 40,690 | AI111: 40,690 | AJ111: 0 | AK111: 129 | AO111: 1 | AP111: 2017-04-18 | AQ111: 40,561 | AR111: 40,624 | AS111: 40,624 | AT111: 40,685 | AU111: 40,685 | AV111: 40,685 | AW111: 40,685 | AX111: 4 | AY111: 124 | BC111: 1 | BD111: Same Start 2nd
A112: 2017-04-19 | B112: 0.2847222222 | C112: 0.5381944444 | D112: 0.5381944444 | E112: 0.8125 | H112: 0.5277777778 | I112: 12.67 | M112: 1 | N112: 2017-04-19 | O112: 0.2881944444 | P112: 0.5381944444 | Q112: 0.5381944444 | R112: 0.7951388889 | U112: 0.5069444444 | V112: 12.17 | Z112: 1 | AA112: Same Start 2nd | AB112: 2017-04-19 | AC112: 40,690 | AD112: 40,763 | AE112: 40,763 | AF112: 40,844 | AG112: 40,844 | AH112: 40,844 | AI112: 40,844 | AJ112: 0 | AK112: 154 | AO112: 1 | AP112: 2017-04-19 | AQ112: 40,691 | AR112: 40,763 | AS112: 40,763 | AT112: 40,840 | AU112: 40,840 | AV112: 40,840 | AW112: 40,840 | AX112: 6 | AY112: 149 | BC112: 1 | BD112: Same Start 2nd
A113: 2017-04-20 | B113: 0.2847222222 | C113: 0.5381944444 | H113: 0.2534722222 | I113: 6.08 | M113: 1 | N113: 2017-04-20 | O113: 0.2881944444 | P113: 0.5381944444 | U113: 0.25 | V113: 6.00 | Z113: 1 | AA113: Same End 1st | AB113: 2017-04-20 | AC113: 40,844 | AD113: 40,907 | AE113: 40,907 | AF113: 40,907 | AG113: 40,907 | AH113: 40,907 | AI113: 40,907 | AJ113: 0 | AK113: 63 | AO113: 1 | AP113: 2017-04-20 | AQ113: 40,845 | AR113: 40,907 | AS113: 40,907 | AT113: 40,907 | AU113: 40,907 | AV113: 40,907 | AW113: 40,907 | AX113: 5 | AY113: 62 | BC113: 1 | BD113: Same End 1st
A114: 2017-04-21 | B114: 0.2847222222 | C114: 0.5381944444 | D114: 0.5381944444 | E114: 0.8159722222 | H114: 0.53125 | I114: 12.75 | M114: 1 | N114: 2017-04-21 | O114: 0.2881944444 | P114: 0.5381944444 | Q114: 0.5381944444 | R114: 0.7951388889 | U114: 0.5069444444 | V114: 12.17 | Z114: 1 | AA114: Same Start 2nd | AB114: 2017-04-21 | AC114: 40,912 | AD114: 40,985 | AE114: 40,985 | AF114: 41,065 | AG114: 41,065 | AH114: 41,065 | AI114: 41,065 | AJ114: 5 | AK114: 153 | AO114: 1 | AP114: 2017-04-21 | AQ114: 40,913 | AR114: 40,985 | AS114: 40,985 | AT114: 41,060 | AU114: 41,060 | AV114: 41,060 | AW114: 41,060 | AX114: 6 | AY114: 147 | BC114: 1 | BD114: Same Start 2nd
A115: 2017-04-22 | H115: 0 | I115: 0.00 | M115: 0 | N115: 2017-04-22 | U115: 0 | V115: 0.00 | Z115: 0 | AB115: 2017-04-22 | AC115: 41,065 | AD115: 41,065 | AE115: 41,065 | AF115: 41,065 | AG115: 41,065 | AH115: 41,065 | AI115: 41,065 | AJ115: 0 | AK115: 0 | AO115: 0 | AP115: 2017-04-22 | AQ115: 41,060 | AR115: 41,060 | AS115: 41,060 | AT115: 41,060 | AU115: 41,060 | AV115: 41,060 | AW115: 41,060 | AX115: 0 | AY115: 0 | BC115: 0
A116: 2017-04-23 | H116: 0 | I116: 0.00 | M116: 0 | N116: 2017-04-23 | U116: 0 | V116: 0.00 | Z116: 0 | AB116: 2017-04-23 | AC116: 41,065 | AD116: 41,065 | AE116: 41,065 | AF116: 41,065 | AG116: 41,065 | AH116: 41,065 | AI116: 41,065 | AJ116: 0 | AK116: 0 | AO116: 0 | AP116: 2017-04-23 | AQ116: 41,060 | AR116: 41,060 | AS116: 41,060 | AT116: 41,060 | AU116: 41,060 | AV116: 41,060 | AW116: 41,060 | AX116: 0 | AY116: 0 | BC116: 0
A117: 2017-04-24 | B117: 0.2847222222 | C117: 0.5381944444 | D117: 0.5381944444 | E117: 0.8125 | H117: 0.5277777778 | I117: 12.67 | M117: 1 | N117: 2017-04-24 | O117: 0.2881944444 | P117: 0.5381944444 | Q117: 0.5381944444 | R117: 0.7881944444 | U117: 0.5 | V117: 12.00 | Z117: 1 | AA117: Same Start 2nd | AB117: 2017-04-24 | AC117: 41,065 | AD117: 41,127 | AE117: 41,127 | AF117: 41,194 | AG117: 41,194 | AH117: 41,194 | AI117: 41,194 | AJ117: 0 | AK117: 129 | AO117: 1 | AP117: 2017-04-24 | AQ117: 41,066 | AR117: 41,127 | AS117: 41,127 | AT117: 41,190 | AU117: 41,190 | AV117: 41,190 | AW117: 41,190 | AX117: 6 | AY117: 124 | BC117: 1 | BD117: Same Start 2nd
A118: 2017-04-25 | B118: 0.2847222222 | C118: 0.5381944444 | D118: 0.5381944444 | E118: 0.8125 | H118: 0.5277777778 | I118: 12.67 | M118: 1 | N118: 2017-04-25 | O118: 0.2881944444 | P118: 0.5381944444 | Q118: 0.5381944444 | R118: 0.7951388889 | U118: 0.5069444444 | V118: 12.17 | Z118: 1 | AA118: Same Start 2nd | AB118: 2017-04-25 | AC118: 41,194 | AD118: 41,267 | AE118: 41,267 | AF118: 41,348 | AG118: 41,348 | AH118: 41,348 | AI118: 41,348 | AJ118: 0 | AK118: 154 | AO118: 1 | AP118: 2017-04-25 | AQ118: 41,195 | AR118: 41,267 | AS118: 41,267 | AT118: 41,344 | AU118: 41,344 | AV118: 41,344 | AW118: 41,344 | AX118: 5 | AY118: 149 | BC118: 1 | BD118: Same Start 2nd
A119: 2017-04-26 | B119: 0.2847222222 | C119: 0.8055555556 | H119: 0.5208333333 | I119: 12.50 | M119: 1 | N119: 2017-04-26 | O119: 0.2881944444 | P119: 0.7881944444 | U119: 0.5 | V119: 12.00 | Z119: 1 | AB119: 2017-04-26 | AC119: 41,347 | AD119: 41,477 | AE119: 41,477 | AF119: 41,477 | AG119: 41,477 | AH119: 41,477 | AI119: 41,477 | AJ119: (1) | AK119: 130 | AO119: 1 | AP119: 2017-04-26 | AQ119: 41,349 | AR119: 41,473 | AS119: 41,473 | AT119: 41,473 | AU119: 41,473 | AV119: 41,473 | AW119: 41,473 | AX119: 5 | AY119: 124 | BC119: 1
A120: 2017-04-27 | B120: 0.2847222222 | C120: 0.5381944444 | D120: 0.5381944444 | E120: 0.8145833333 | H120: 0.5298611111 | I120: 12.72 | M120: 1 | N120: 2017-04-27 | O120: 0.2881944444 | P120: 0.5381944444 | Q120: 0.5381944444 | R120: 0.7951388889 | U120: 0.5069444444 | V120: 12.17 | Z120: 1 | AA120: Same Start 2nd | AB120: 2017-04-27 | AC120: 41,477 | AD120: 41,551 | AE120: 41,551 | AF120: 41,631 | AG120: 41,631 | AH120: 41,631 | AI120: 41,631 | AJ120: 0 | AK120: 154 | AO120: 1 | AP120: 2017-04-27 | AQ120: 41,478 | AR120: 41,551 | AS120: 41,551 | AT120: 41,627 | AU120: 41,627 | AV120: 41,627 | AW120: 41,627 | AX120: 5 | AY120: 149 | BC120: 1 | BD120: Same Start 2nd
A121: 2017-04-28 | B121: 0.2847222222 | C121: 0.5381944444 | D121: 0.5381944444 | E121: 0.8055555556 | H121: 0.5208333333 | I121: 12.50 | M121: 1 | N121: 2017-04-28 | O121: 0.2881944444 | P121: 0.5381944444 | Q121: 0.5381944444 | R121: 0.7881944444 | U121: 0.5 | V121: 12.00 | Z121: 1 | AA121: Same Start 2nd | AB121: 2017-04-28 | AC121: 41,632 | AD121: 41,695 | AE121: 41,695 | AF121: 41,760 | AG121: 41,760 | AH121: 41,760 | AI121: 41,760 | AJ121: 1 | AK121: 128 | AO121: 1 | AP121: 2017-04-28 | AQ121: 41,633 | AR121: 41,695 | AS121: 41,695 | AT121: 41,756 | AU121: 41,756 | AV121: 41,756 | AW121: 41,756 | AX121: 6 | AY121: 123 | BC121: 1 | BD121: Same Start 2nd
A122: 2017-04-29 | H122: 0 | I122: 0.00 | M122: 0 | N122: 2017-04-29 | U122: 0 | V122: 0.00 | Z122: 0 | AB122: 2017-04-29 | AC122: 41,760 | AD122: 41,695 | AE122: =AD122 -> 41,695 | AF122: 41,695 | AG122: 41,695 | AH122: 41,695 | AI122: 41,695 | AJ122: 0 | AK122: (65) | AO122: 0 | AP122: 2017-04-29 | AQ122: 41,756 | AR122: =AQ122 -> 41,756 | AS122: 41,756 | AT122: 41,756 | AU122: 41,756 | AV122: 41,756 | AW122: 41,756 | AX122: 0 | AY122: 0 | BC122: 0 | BD122: Actual less than Revenue
A123: 2017-04-30 | H123: 0 | I123: 0.00 | M123: 0 | N123: 2017-04-30 | U123: 0 | V123: 0.00 | Z123: 0 | AB123: 2017-04-30 | AC123: 41,695 | AD123: 41,695 | AE123: 41,695 | AF123: 41,695 | AG123: 41,695 | AH123: 41,695 | AI123: 41,695 | AJ123: 0 | AK123: 0 | AO123: 0 | AP123: 2017-04-30 | AQ123: 41,756 | AR123: 41,756 | AS123: 41,756 | AT123: 41,756 | AU123: 41,756 | AV123: 41,756 | AW123: 41,756 | AX123: 0 | AY123: 0 | BC123: 0
A124: 2017-05-01 | B124: 0.2847222222 | C124: 0.5381944444 | D124: 0.5381944444 | E124: 0.8125 | H124: 0.5277777778 | I124: 12.67 | M124: 1 | N124: 2017-05-01 | O124: 0.2881944444 | P124: 0.5381944444 | Q124: 0.5381944444 | R124: 0.7951388889 | U124: 0.5069444444 | V124: 12.17 | Z124: 1 | AA124: Same Start 2nd | AB124: 2017-05-01 | AC124: 41,761 | AD124: 41,834 | AE124: 41,834 | AF124: 41,915 | AG124: 41,915 | AH124: 41,915 | AI124: 41,915 | AJ124: 66 | AK124: 154 | AO124: 1 | AP124: 2017-05-01 | AQ124: 41,762 | AR124: 41,834 | AS124: 41,834 | AT124: 41,911 | AU124: 41,911 | AV124: 41,911 | AW124: 41,911 | AX124: 6 | AY124: 149 | BC124: 1 | BD124: Same Start 2nd
A125: 2017-05-02 | B125: 0.2847222222 | C125: 0.5381944444 | D125: 0.5381944444 | E125: 0.8090277778 | H125: 0.5243055556 | I125: 12.58 | M125: 1 | N125: 2017-05-02 | O125: 0.2881944444 | P125: 0.5381944444 | Q125: 0.5381944444 | R125: 0.7881944444 | U125: 0.5 | V125: 12.00 | Z125: 1 | AA125: Same Start 2nd | AB125: 2017-05-02 | AC125: 41,915 | AD125: 41,978 | AE125: 41,978 | AF125: 42,043 | AG125: 42,043 | AH125: 42,043 | AI125: 42,043 | AJ125: 0 | AK125: 128 | AO125: 1 | AP125: 2017-05-02 | AQ125: 41,916 | AR125: 41,978 | AS125: 41,978 | AT125: 42,043 | AU125: 42,043 | AV125: 42,043 | AW125: 42,043 | AX125: 5 | AY125: 127 | BC125: 1 | BD125: Same End 2nd
A126: 2017-05-03 | B126: 0.2847222222 | C126: 0.5381944444 | D126: 0.5381944444 | E126: 0.8006944444 | H126: 0.5159722222 | I126: 12.38 | M126: 1 | N126: 2017-05-03 | O126: 0.2881944444 | P126: 0.5381944444 | Q126: 0.5381944444 | R126: 0.7951388889 | U126: 0.5069444444 | V126: 12.17 | Z126: 1 | AA126: Same Start 2nd | AB126: 2017-05-03 | AC126: 42,043 | AD126: 42,117 | AE126: 42,117 | AF126: 42,195 | AG126: 42,195 | AH126: 42,195 | AI126: 42,195 | AJ126: 0 | AK126: 152 | AO126: 1 | AP126: 2017-05-03 | AQ126: 42,044 | AR126: 42,117 | AS126: 42,117 | AT126: 42,190 | AU126: 42,190 | AV126: 42,190 | AW126: 42,190 | AX126: 1 | AY126: 146 | BC126: 1 | BD126: Same Start 2nd
A127: 2017-05-04 | B127: 0.2847222222 | C127: 0.5381944444 | D127: 0.5381944444 | E127: 0.8090277778 | H127: 0.5243055556 | I127: 12.58 | M127: 1 | N127: 2017-05-04 | O127: 0.2881944444 | P127: 0.5381944444 | Q127: 0.5381944444 | R127: 0.7534722222 | U127: 0.4652777778 | V127: 11.17 | Z127: 1 | AA127: Same Start 2nd | AB127: 2017-05-04 | AC127: 42,195 | AD127: 42,258 | AE127: 42,258 | AF127: 42,324 | AG127: 42,324 | AH127: 42,324 | AI127: 42,324 | AJ127: 0 | AK127: 129 | AO127: 1 | AP127: 2017-05-04 | AQ127: 42,196 | AR127: 42,258 | AS127: 42,258 | AT127: 42,319 | AU127: 42,319 | AV127: 42,319 | AW127: 42,319 | AX127: 6 | AY127: 123 | BC127: 1 | BD127: Same Start 2nd
A128: 2017-05-05 | B128: 0.4326388889 | C128: 0.5381944444 | D128: 0.5381944444 | E128: 0.8069444444 | H128: 0.3743055556 | I128: 8.98 | M128: 1 | N128: 2017-05-05 | O128: 0.4326388889 | P128: 0.5381944444 | Q128: 0.5381944444 | R128: 0.7951388889 | U128: 0.3625 | V128: 8.70 | Z128: 1 | AA128: Same Start 2nd | AB128: 2017-05-05 | AC128: 42,328 | AD128: 42,360 | AE128: 42,360 | AF128: 42,439 | AG128: 42,439 | AH128: 42,439 | AI128: 42,439 | AJ128: 4 | AK128: 111 | AO128: 1 | AP128: 2017-05-05 | AQ128: 42,319 | AR128: 42,319 | AS128: 42,319 | AT128: 42,434 | AU128: 42,434 | AV128: 42,434 | AW128: 42,434 | AX128: 0 | AY128: 115 | BC128: 1 | BD128: Actual less than Revenue
A129: 2017-05-06 | H129: 0 | I129: 0.00 | M129: 0 | N129: 2017-05-06 | U129: 0 | V129: 0.00 | Z129: 0 | AB129: 2017-05-06 | AC129: 42,439 | AD129: 42,439 | AE129: 42,439 | AF129: 42,439 | AG129: 42,439 | AH129: 42,439 | AI129: 42,439 | AJ129: 0 | AK129: 0 | AO129: 0 | AP129: 2017-05-06 | AQ129: 42,328 | AR129: 42,360 | AS129: 42,360 | AT129: 42,360 | AU129: 42,360 | AV129: 42,360 | AW129: 42,360 | AX129: (106) | AY129: 32 | BC129: 1 | BD129: Actual less than Revenue
A130: 2017-05-07 | H130: 0 | I130: 0.00 | M130: 0 | N130: 2017-05-07 | U130: 0 | V130: 0.00 | Z130: 0 | AB130: 2017-05-07 | AC130: 42,439 | AD130: 42,439 | AE130: 42,439 | AF130: 42,439 | AG130: 42,439 | AH130: 42,439 | AI130: 42,439 | AJ130: 0 | AK130: 0 | AO130: 0 | AP130: 2017-05-07 | AQ130: 42,360 | AR130: 42,360 | AS130: 42,360 | AT130: 42,360 | AU130: 42,360 | AV130: 42,360 | AW130: 42,360 | AX130: 0 | AY130: 0 | BC130: 0
A131: 2017-05-08 | B131: 0.2847222222 | C131: 0.5381944444 | D131: 0.5381944444 | E131: 0.80625 | H131: 0.5215277778 | I131: 12.52 | M131: 1 | N131: 2017-05-08 | O131: 0.2881944444 | P131: 0.5381944444 | Q131: 0.5381944444 | R131: 0.7881944444 | U131: 0.5 | V131: 12.00 | Z131: 1 | AA131: Same Start 2nd | AB131: 2017-05-08 | AC131: 42,440 | AD131: 42,502 | AE131: 42,502 | AF131: 42,567 | AG131: 42,567 | AH131: 42,567 | AI131: 42,567 | AJ131: 1 | AK131: 127 | AO131: 1 | AP131: 2017-05-08 | AQ131: 42,441 | AR131: 42,502 | AS131: 42,502 | AT131: 42,563 | AU131: 42,563 | AV131: 42,563 | AW131: 42,563 | AX131: 81 | AY131: 122 | BC131: 1 | BD131: Same Start 2nd
A132: 2017-05-09 | B132: 0.2847222222 | C132: 0.5381944444 | D132: 0.5381944444 | E132: 0.8111111111 | H132: 0.5263888889 | I132: 12.63 | M132: =IF(H132>0, 1, 0) -> 1 | N132: 2017-05-09 | O132: 0.2881944444 | P132: 0.5381944444 | Q132: 0.5381944444 | R132: 0.7951388889 | U132: =(P132-O132)+(R132-Q132)+(T132-S132) -> 0.5069444444 | V132: 12.17 | Z132: =IF(U132>0, 1, 0) -> 1 | AA132: Same Start 2nd | AB132: 2017-05-09 | AC132: 42,568 | AD132: 42,643 | AE132: 42,643 | AF132: 42,723 | AG132: 42,723 | AH132: 42,723 | AI132: 42,723 | AJ132: 1 | AK132: =(AD132-AC132)+(AF132-AE132)+(AH132-AG132) -> 155 | AO132: 1 | AP132: 2017-05-09 | AQ132: 42,569 | AR132: 42,643 | AS132: 42,643 | AT132: 42,719 | AU132: 42,719 | AV132: 42,719 | AW132: 42,719 | AX132: 6 | AY132: 150 | BC132: =IF(AY132>0, 1, 0) -> 1 | BD132: Same Start 2nd
A133: 2017-05-10 | B133: 0.2847222222 | C133: 0.5381944444 | D133: 0.5381944444 | E133: 0.8229166667 | H133: 0.5381944444 | I133: =H133*24 -> 12.92 | M133: 1 | N133: 2017-05-10 | O133: 0.2881944444 | P133: 0.5381944444 | Q133: 0.5381944444 | R133: 0.7951388889 | U133: 0.5069444444 | V133: =U133*24 -> 12.17 | Z133: 1 | AA133: Same Start 2nd | AB133: 2017-05-10 | AC133: 42,723 | AD133: 42,785 | AE133: 42,785 | AF133: 42,851 | AG133: 42,851 | AH133: 42,851 | AI133: 42,851 | AJ133: 0 | AK133: 128 | AO133: =IF(AK133>0, 1, 0) -> 1 | AP133: 2017-05-10 | AQ133: 42,724 | AR133: 42,785 | AS133: 42,785 | AT133: 42,846 | AU133: 42,846 | AV133: 42,846 | AW133: =MAX(AR133, AT133, AV133) -> 42,846 | AX133: =IF(AQ133=AW132, 0, AQ133-AW132) -> 5 | AY133: =(AR133-AQ133)+(AT133-AS133)+(AV133-AU133) -> 122 | BC133: 1 | BD133: =IF(AK133<AY133,"Actual less than Revenue",IF(AND(AV133>AH133,AG133<>AH133,AU133<>AV133),"Rev Over Act End 3rd",IF(AND(AU133<AG133,AG133<>AH133,AU133<>AV133),"Rev Less Act Start 3rd",IF(AND(AT133>AF133,AE133<>AF133,AS133<>AT133),"Rev Over Act End 2nd",IF(AND(AS133<AE133,AE133<>AF133,AS133<>AT133),"Rev Less Act Start 2nd",IF(AND(AR133>AD133,AC133<>AD133,AQ133<>AR133),"Rev Over Act End 1st",IF(AND(AQ133<AC133,AC133<>AD133,AQ133<>AR133),"Rev Less Act Start 1st",IF(AND(AV133=AH133,AG133<>AH133,AU133<>AV133),"Same End 3rd",IF(AND(AU133=AG133,AG133<>AH133,AU133<>AV133),"Same Start 3rd",IF(AND(AT133=AF133,AE133<>AF133,AS133<>AT133),"Same End 2nd",IF(AND(AS133=AE133,AE133<>AF133,AS133<>AT133),"Same Start 2nd",IF(AND(AR133=AD133,AC133<>AD133,AQ133<>AR133),"Same End 1st",IF(AND(AQ133=AC133,AC133<>AD133,AQ133<>AR133),"Same Start 1st",""))))))))))))) -> Same Start 2nd
A134: 2017-05-11 | B134: 0.2847222222 | C134: 0.5381944444 | D134: 0.5381944444 | E134: 0.8104166667 | H134: 0.5256944444 | I134: 12.62 | M134: 1 | N134: 2017-05-11 | O134: 0.2881944444 | P134: 0.5381944444 | Q134: 0.5381944444 | R134: 0.7881944444 | U134: 0.5 | V134: 12.00 | Z134: 1 | AA134: =IF(H134<U134,"Actual less than Revenue",IF(AND(T134>G134,F134<>G134,S134<>T134),"Rev Over Act End 3rd", IF(AND(S134<F134,F134<>G134,S134<>T134),"Rev Less Act Start 3rd",IF(AND(R134>E134,D134<>E134,Q134<>R134),"Rev Over Act End 2nd",IF(AND(Q134<D134,D134<>E134,Q134<>R134),"Rev Less Act Start 2nd",IF(AND(P134>C134,B134<>C134,O134<>P134),"Rev Over Act End 1st",IF(AND(O134<B134,B134<>C134,O134<>P134),"Rev Less Act Start 1st",IF(AND(T134=G134,F134<>G134,S134<>T134),"Same End 3rd",IF(AND(S134=F134,F134<>G134,S134<>T134),"Same Start 3rd",IF(AND(R134=E134,D134<>E134,Q134<>R134),"Same End 2nd",IF(AND(Q134=D134,D134<>E134,Q134<>R134),"Same Start 2nd",IF(AND(P134=C134,B134<>C134,O134<>P134),"Same End 1st",IF(AND(O134=B134,B134<>C134,O134<>P134),"Same Start 1st",""))))))))))))) -> Same Start 2nd | AB134: 2017-05-11 | AC134: 42,851 | AD134: 42,851 | AE134: 42,851 | AF134: 42,851 | AG134: 42,851 | AH134: 42,851 | AI134: 42,851 | AJ134: 0 | AK134: 0 | AO134: 0 | AP134: 2017-05-11 | AQ134: 42,852 | AR134: 42,928 | AS134: 42,928 | AT134: 43,001 | AU134: 43,001 | AV134: 43,001 | AW134: 43,001 | AX134: 6 | AY134: 149 | BC134: 1 | BD134: Actual less than Revenue
A135: 2017-05-12 | B135: 0.2847222222 | C135: 0.5381944444 | D135: 0.5381944444 | E135: 0.8125 | H135: 0.5277777778 | I135: 12.67 | M135: 1 | N135: 2017-05-12 | O135: 0.2881944444 | P135: 0.5381944444 | Q135: 0.5381944444 | R135: 0.7951388889 | U135: 0.5069444444 | V135: 12.17 | Z135: 1 | AA135: Same Start 2nd | AB135: 2017-05-12 | AC135: 43,006 | AD135: 43,068 | AE135: 43,068 | AF135: 43,133 | AG135: 43,133 | AH135: 43,133 | AI135: 43,133 | AJ135: =IF(AC135=AI134, 0, AC135-AI134) -> 155 | AK135: 127 | AO135: 1 | AP135: 2017-05-12 | AQ135: 43,007 | AR135: 43,068 | AS135: 43,068 | AT135: 43,131 | AU135: 43,131 | AV135: 43,131 | AW135: 43,131 | AX135: 6 | AY135: 124 | BC135: 1 | BD135: Same Start 2nd
A136: 2017-05-13 | H136: 0 | I136: 0.00 | M136: 0 | N136: 2017-05-13 | U136: 0 | V136: 0.00 | Z136: 0 | AB136: 2017-05-13 | AC136: 43,133 | AD136: 43,133 | AE136: 43,133 | AF136: 43,133 | AG136: 43,133 | AH136: 43,133 | AI136: 43,133 | AJ136: 0 | AK136: 0 | AO136: 0 | AP136: 2017-05-13 | AQ136: 43,131 | AR136: 43,131 | AS136: 43,131 | AT136: 43,131 | AU136: 43,131 | AV136: 43,131 | AW136: 43,131 | AX136: 0 | AY136: 0 | BC136: 0
A137: 2017-05-14 | H137: 0 | I137: 0.00 | M137: 0 | N137: 2017-05-14 | U137: 0 | V137: 0.00 | Z137: 0 | AB137: 2017-05-14 | AC137: 43,133 | AD137: 43,133 | AE137: 43,133 | AF137: 43,133 | AG137: 43,133 | AH137: 43,133 | AI137: 43,133 | AJ137: 0 | AK137: 0 | AO137: 0 | AP137: 2017-05-14 | AQ137: 43,131 | AR137: 43,131 | AS137: 43,131 | AT137: 43,131 | AU137: 43,131 | AV137: 43,131 | AW137: 43,131 | AX137: 0 | AY137: 0 | BC137: 0
A138: 2017-05-15 | B138: 0.2847222222 | C138: 0.5381944444 | D138: 0.5381944444 | E138: 0.8145833333 | H138: 0.5298611111 | I138: 12.72 | M138: 1 | N138: 2017-05-15 | O138: 0.2881944444 | P138: 0.5381944444 | Q138: 0.5381944444 | R138: 0.7951388889 | U138: 0.5069444444 | V138: 12.17 | Z138: 1 | AA138: Same Start 2nd | AB138: 2017-05-15 | AC138: 43,141 | AD138: 43,208 | AE138: 43,208 | AF138: 43,289 | AG138: 43,289 | AH138: 43,289 | AI138: 43,289 | AJ138: 8 | AK138: 148 | AO138: 1 | AP138: 2017-05-15 | AQ138: 43,142 | AR138: 43,208 | AS138: 43,208 | AT138: 43,285 | AU138: 43,285 | AV138: 43,285 | AW138: 43,285 | AX138: 11 | AY138: 143 | BC138: 1 | BD138: Same Start 2nd
A139: 2017-05-16 | B139: 0.2847222222 | C139: 0.5381944444 | D139: 0.5381944444 | E139: 0.8055555556 | H139: 0.5208333333 | I139: 12.50 | M139: 1 | N139: 2017-05-16 | O139: 0.2881944444 | P139: 0.5381944444 | Q139: 0.5381944444 | R139: 0.7881944444 | U139: 0.5 | V139: 12.00 | Z139: 1 | AA139: Same Start 2nd | AB139: 2017-05-16 | AC139: 43,289 | AD139: 43,351 | AE139: 43,351 | AF139: 43,418 | AG139: 43,418 | AH139: 43,418 | AI139: 43,418 | AJ139: 0 | AK139: 129 | AO139: 1 | AP139: 2017-05-16 | AQ139: 43,290 | AR139: 43,351 | AS139: 43,351 | AT139: 43,413 | AU139: 43,413 | AV139: 43,413 | AW139: 43,413 | AX139: 5 | AY139: 123 | BC139: 1 | BD139: Same Start 2nd
A140: 2017-05-17 | B140: 0.2847222222 | C140: 0.5381944444 | D140: 0.5381944444 | E140: 0.8090277778 | H140: 0.5243055556 | I140: 12.58 | M140: 1 | N140: 2017-05-17 | O140: 0.2881944444 | P140: 0.5381944444 | Q140: 0.5381944444 | R140: 0.7951388889 | U140: 0.5069444444 | V140: 12.17 | Z140: 1 | AA140: Same Start 2nd | AB140: 2017-05-17 | AC140: 43,418 | AD140: 43,491 | AE140: 43,491 | AF140: 43,567 | AG140: 43,567 | AH140: 43,567 | AI140: =MAX(AD140, AF140, AH140) -> 43,567 | AJ140: 0 | AK140: 149 | AO140: 1 | AP140: 2017-05-17 | AQ140: 43,419 | AR140: 43,491 | AS140: 43,491 | AT140: 43,564 | AU140: 43,564 | AV140: 43,564 | AW140: 43,564 | AX140: 6 | AY140: 145 | BC140: 1 | BD140: Same Start 2nd
A141: 2017-05-18 | B141: 0.2847222222 | C141: 0.5381944444 | D141: 0.5381944444 | E141: 0.8055555556 | H141: 0.5208333333 | I141: 12.50 | M141: 1 | N141: 2017-05-18 | O141: 0.2881944444 | P141: 0.5381944444 | Q141: 0.5381944444 | R141: 0.7881944444 | U141: 0.5 | V141: 12.00 | Z141: 1 | AA141: Same Start 2nd | AB141: 2017-05-18 | AC141: =AI140 -> 43,567 | AD141: 43,631 | AE141: 43,631 | AF141: 43,697 | AG141: 43,697 | AH141: 43,697 | AI141: 43,697 | AJ141: 0 | AK141: 130 | AO141: 1 | AP141: 2017-05-18 | AQ141: 43,568 | AR141: 43,631 | AS141: 43,631 | AT141: 43,693 | AU141: 43,693 | AV141: 43,693 | AW141: 43,693 | AX141: 4 | AY141: 125 | BC141: 1 | BD141: Same Start 2nd
A142: 2017-05-19 | B142: 0.2847222222 | C142: 0.5381944444 | D142: 0.5381944444 | E142: 0.8145833333 | H142: 0.5298611111 | I142: 12.72 | M142: 1 | N142: 2017-05-19 | O142: 0.2881944444 | P142: 0.5381944444 | Q142: 0.5381944444 | R142: 0.7951388889 | U142: 0.5069444444 | V142: 12.17 | Z142: 1 | AA142: Same Start 2nd | AB142: 2017-05-19 | AC142: 43,697 | AD142: 43,771 | AE142: 43,771 | AF142: 43,852 | AG142: 43,852 | AH142: 43,852 | AI142: 43,852 | AJ142: 0 | AK142: 155 | AO142: 1 | AP142: 2017-05-19 | AQ142: 43,698 | AR142: 43,771 | AS142: 43,771 | AT142: 43,848 | AU142: 43,848 | AV142: 43,848 | AW142: 43,848 | AX142: 5 | AY142: 150 | BC142: 1 | BD142: Same Start 2nd
A143: 2017-05-20 | H143: 0 | I143: 0.00 | M143: 0 | N143: 2017-05-20 | U143: 0 | V143: 0.00 | Z143: 0 | AB143: 2017-05-20 | AC143: 43,852 | AD143: 43,852 | AE143: 43,852 | AF143: 43,852 | AG143: 43,852 | AH143: 43,852 | AI143: 43,852 | AJ143: 0 | AK143: 0 | AO143: 0 | AP143: 2017-05-20 | AQ143: 43,848 | AR143: 43,848 | AS143: 43,848 | AT143: 43,848 | AU143: 43,848 | AV143: 43,848 | AW143: 43,848 | AX143: 0 | AY143: 0 | BC143: 0
A144: 2017-05-21 | H144: 0 | I144: 0.00 | M144: 0 | N144: 2017-05-21 | U144: 0 | V144: 0.00 | Z144: 0 | AB144: 2017-05-21 | AC144: 43,852 | AD144: 43,852 | AE144: 43,852 | AF144: 43,852 | AG144: 43,852 | AH144: 43,852 | AI144: 43,852 | AJ144: 0 | AK144: 0 | AO144: 0 | AP144: 2017-05-21 | AQ144: =AW143 -> 43,848 | AR144: 43,848 | AS144: 43,848 | AT144: 43,848 | AU144: 43,848 | AV144: 43,848 | AW144: 43,848 | AX144: 0 | AY144: 0 | BC144: 0
A145: 2017-05-22 | B145: 0.2847222222 | C145: 0.5381944444 | D145: 0.5381944444 | E145: 0.8083333333 | H145: 0.5236111111 | I145: 12.57 | M145: 1 | N145: 2017-05-22 | O145: 0.2881944444 | P145: 0.5381944444 | Q145: 0.5381944444 | R145: 0.7881944444 | U145: 0.5 | V145: 12.00 | Z145: 1 | AA145: Same Start 2nd | AB145: 2017-05-22 | AC145: 43,852 | AD145: 43,915 | AE145: 43,915 | AF145: 43,981 | AG145: 43,981 | AH145: 43,981 | AI145: 43,981 | AJ145: 0 | AK145: 129 | AO145: 1 | AP145: 2017-05-22 | AQ145: 43,853 | AR145: 43,915 | AS145: 43,915 | AT145: 43,977 | AU145: 43,977 | AV145: 43,977 | AW145: 43,977 | AX145: 5 | AY145: 124 | BC145: 1 | BD145: Same Start 2nd
A146: 2017-05-23 | B146: 0.2847222222 | C146: 0.5381944444 | D146: 0.5381944444 | E146: 0.8041666667 | H146: 0.5194444444 | I146: 12.47 | M146: 1 | N146: 2017-05-23 | O146: 0.2881944444 | P146: 0.5381944444 | Q146: 0.5381944444 | R146: 0.7951388889 | U146: 0.5069444444 | V146: 12.17 | Z146: 1 | AA146: Same Start 2nd | AB146: 2017-05-23 | AC146: 43,981 | AD146: 44,056 | AE146: 44,056 | AF146: 44,134 | AG146: 44,134 | AH146: 44,134 | AI146: 44,134 | AJ146: 0 | AK146: 153 | AO146: 1 | AP146: 2017-05-23 | AQ146: 43,982 | AR146: 44,056 | AS146: 44,056 | AT146: 44,129 | AU146: 44,129 | AV146: 44,129 | AW146: 44,129 | AX146: 5 | AY146: 147 | BC146: 1 | BD146: Same Start 2nd
A147: 2017-05-24 | B147: 0.2847222222 | C147: 0.5381944444 | D147: 0.5381944444 | E147: 0.8069444444 | H147: 0.5222222222 | I147: 12.53 | M147: 1 | N147: 2017-05-24 | O147: 0.2881944444 | P147: 0.5381944444 | Q147: 0.5381944444 | R147: 0.7881944444 | U147: 0.5 | V147: 12.00 | Z147: 1 | AA147: Same Start 2nd | AB147: 2017-05-24 | AC147: 44,134 | AD147: 44,197 | AE147: 44,197 | AF147: 44,262 | AG147: 44,262 | AH147: 44,262 | AI147: 44,262 | AJ147: 0 | AK147: 128 | AO147: 1 | AP147: 2017-05-24 | AQ147: 44,135 | AR147: 44,197 | AS147: 44,197 | AT147: 44,258 | AU147: 44,258 | AV147: 44,258 | AW147: 44,258 | AX147: 6 | AY147: 123 | BC147: 1 | BD147: Same Start 2nd
A148: 2017-05-25 | B148: 0.2847222222 | C148: 0.5381944444 | D148: 0.5381944444 | E148: 0.8055555556 | H148: 0.5208333333 | I148: 12.50 | M148: 1 | N148: 2017-05-25 | O148: 0.2881944444 | P148: 0.5381944444 | Q148: 0.5381944444 | R148: 0.7951388889 | U148: 0.5069444444 | V148: 12.17 | Z148: 1 | AA148: Same Start 2nd | AB148: 2017-05-25 | AC148: 44,262 | AD148: 44,317 | AE148: 44,317 | AF148: 44,415 | AG148: 44,415 | AH148: 44,415 | AI148: 44,415 | AJ148: 0 | AK148: 153 | AO148: 1 | AP148: 2017-05-25 | AQ148: 44,263 | AR148: 44,317 | AS148: 44,317 | AT148: 44,411 | AU148: 44,411 | AV148: 44,411 | AW148: 44,411 | AX148: 5 | AY148: 148 | BC148: 1 | BD148: Same Start 2nd
A149: 2017-05-26 | B149: 0.2847222222 | C149: 0.5381944444 | D149: 0.5381944444 | E149: 0.8069444444 | H149: 0.5222222222 | I149: 12.53 | M149: 1 | N149: 2017-05-26 | O149: 0.2881944444 | P149: 0.5381944444 | Q149: 0.5381944444 | R149: 0.7881944444 | U149: 0.5 | V149: 12.00 | Z149: 1 | AA149: Same Start 2nd | AB149: 2017-05-26 | AC149: 44,415 | AD149: 44,478 | AE149: 44,478 | AF149: 44,543 | AG149: 44,543 | AH149: 44,543 | AI149: 44,543 | AJ149: 0 | AK149: 128 | AO149: 1 | AP149: 2017-05-26 | AQ149: 44,416 | AR149: 44,478 | AS149: 44,478 | AT149: 44,539 | AU149: 44,539 | AV149: 44,539 | AW149: 44,539 | AX149: 5 | AY149: 123 | BC149: 1 | BD149: Same Start 2nd
A150: 2017-05-27 | H150: 0 | I150: 0.00 | M150: 0 | N150: 2017-05-27 | U150: 0 | V150: 0.00 | Z150: 0 | AB150: 2017-05-27 | AC150: 44,543 | AD150: 44,543 | AE150: 44,543 | AF150: 44,543 | AG150: 44,543 | AH150: 44,543 | AI150: 44,543 | AJ150: 0 | AK150: 0 | AO150: 0 | AP150: 2017-05-27 | AQ150: 44,539 | AR150: 44,539 | AS150: 44,539 | AT150: 44,539 | AU150: 44,539 | AV150: 44,539 | AW150: 44,539 | AX150: 0 | AY150: 0 | BC150: 0
A151: 2017-05-28 | H151: 0 | I151: 0.00 | M151: 0 | N151: 2017-05-28 | U151: 0 | V151: 0.00 | Z151: 0 | AB151: 2017-05-28 | AC151: 44,543 | AD151: 44,543 | AE151: 44,543 | AF151: 44,543 | AG151: 44,543 | AH151: 44,543 | AI151: 44,543 | AJ151: 0 | AK151: 0 | AO151: 0 | AP151: 2017-05-28 | AQ151: 44,539 | AR151: 44,539 | AS151: 44,539 | AT151: 44,539 | AU151: 44,539 | AV151: 44,539 | AW151: 44,539 | AX151: 0 | AY151: 0 | BC151: 0
A152: 2017-05-29 | B152: 0.2847222222 | C152: 0.5381944444 | D152: 0.5381944444 | E152: 0.8041666667 | H152: 0.5194444444 | I152: 12.47 | M152: 1 | N152: 2017-05-29 | O152: 0.2881944444 | P152: 0.5381944444 | Q152: 0.5381944444 | R152: 0.7951388889 | U152: 0.5069444444 | V152: 12.17 | Z152: 1 | AA152: Same Start 2nd | AB152: 2017-05-29 | AC152: 44,544 | AD152: 44,618 | AE152: 44,618 | AF152: 44,696 | AG152: 44,696 | AH152: 44,696 | AI152: 44,696 | AJ152: 1 | AK152: 152 | AO152: 1 | AP152: 2017-05-29 | AQ152: 44,545 | AR152: 44,618 | AS152: 44,618 | AT152: 44,692 | AU152: 44,692 | AV152: 44,692 | AW152: 44,692 | AX152: 6 | AY152: 147 | BC152: 1 | BD152: Same Start 2nd
A153: 2017-05-30 | H153: 0 | I153: 0.00 | M153: 0 | N153: 2017-05-30 | U153: 0 | V153: 0.00 | Z153: 0 | AB153: 2017-05-30 | AC153: 44,696 | AD153: 44,696 | AE153: 44,696 | AF153: 44,696 | AG153: 44,696 | AH153: 44,696 | AI153: 44,696 | AJ153: 0 | AK153: 0 | AO153: 0 | AP153: 2017-05-30 | AQ153: 44,692 | AR153: 44,692 | AS153: 44,692 | AT153: 44,692 | AU153: 44,692 | AV153: 44,692 | AW153: 44,692 | AX153: 0 | AY153: 0 | BC153: 0
A154: 2017-05-31 | B154: 0.5381944444 | C154: 0.8041666667 | H154: 0.2659722222 | I154: 6.38 | M154: 1 | N154: 2017-05-31 | O154: 0.5381944444 | P154: 0.7951388889 | U154: 0.2569444444 | V154: 6.17 | Z154: 1 | AA154: Same Start 1st | AB154: 2017-05-31 | AC154: 44,697 | AD154: 44,775 | AE154: 44,775 | AF154: 44,775 | AG154: 44,775 | AH154: 44,775 | AI154: 44,775 | AJ154: 1 | AK154: 78 | AO154: 1 | AP154: 2017-05-31 | AQ154: 44,697 | AR154: 44,771 | AS154: 44,771 | AT154: 44,771 | AU154: 44,771 | AV154: 44,771 | AW154: 44,771 | AX154: 5 | AY154: 74 | BC154: 1 | BD154: Same Start 1st
A155: 2017-06-01 | B155: 0.2847222222 | C155: 0.5381944444 | D155: 0.5381944444 | E155: 0.8041666667 | H155: =(C155-B155)+(E155-D155)+(G155-F155) -> 0.5194444444 | I155: 12.47 | M155: 1 | N155: 2017-06-01 | O155: 0.2881944444 | P155: 0.5381944444 | Q155: 0.5381944444 | R155: 0.7881944444 | U155: 0.5 | V155: 12.00 | Z155: 1 | AA155: Same Start 2nd | AB155: 2017-06-01 | AC155: 44,775 | AD155: 44,838 | AE155: 44,838 | AF155: 44,903 | AG155: 44,903 | AH155: 44,903 | AI155: 44,903 | AJ155: 0 | AK155: 128 | AO155: 1 | AP155: 2017-06-01 | AQ155: 44,776 | AR155: 44,838 | AS155: 44,838 | AT155: 44,899 | AU155: 44,899 | AV155: 44,899 | AW155: 44,899 | AX155: 5 | AY155: 123 | BC155: 1 | BD155: Same Start 2nd
A156: 2017-06-02 | B156: 0.2847222222 | C156: 0.5381944444 | D156: 0.5381944444 | E156: 0.8020833333 | H156: 0.5173611111 | I156: 12.42 | M156: 1 | N156: 2017-06-02 | O156: 0.2881944444 | P156: 0.5381944444 | Q156: 0.5381944444 | R156: 19:05:00 | V156: 0.00 | Z156: 0 | AA156: Same Start 2nd | AB156: 2017-06-02 | AC156: 44,903 | AD156: 45,057 | AE156: 45,057 | AF156: 45,057 | AG156: 45,057 | AH156: 45,057 | AI156: 45,057 | AJ156: 0 | AK156: 154 | AO156: 1 | AP156: 2017-06-02 | AQ156: 44,904 | AR156: 45,052 | AS156: 45,052 | AT156: 45,052 | AU156: 45,052 | AV156: 45,052 | AW156: 45,052 | AX156: 5 | AY156: 148 | BC156: 1
A157: 2017-06-03 | H157: 0 | I157: 0.00 | M157: 0 | N157: 2017-06-03 | U157: 0 | V157: 0.00 | Z157: 0 | AB157: 2017-06-03 | AC157: 45,057 | AD157: 45,057 | AE157: 45,057 | AF157: 45,057 | AG157: 45,057 | AH157: 45,057 | AI157: 45,057 | AJ157: 0 | AK157: 0 | AO157: 0 | AP157: 2017-06-03 | AQ157: 45,052 | AR157: 45,052 | AS157: 45,052 | AT157: 45,052 | AU157: 45,052 | AV157: 45,052 | AW157: 45,052 | AX157: 0 | AY157: 0 | BC157: 0
A158: 2017-06-04 | H158: 0 | I158: 0.00 | M158: 0 | N158: 2017-06-04 | U158: 0 | V158: 0.00 | Z158: 0 | AB158: 2017-06-04 | AC158: 45,057 | AD158: 45,057 | AE158: 45,057 | AF158: 45,057 | AG158: 45,057 | AH158: 45,057 | AI158: 45,057 | AJ158: 0 | AK158: 0 | AO158: 0 | AP158: 2017-06-04 | AQ158: 45,052 | AR158: 45,052 | AS158: 45,052 | AT158: 45,052 | AU158: 45,052 | AV158: 45,052 | AW158: 45,052 | AX158: 0 | AY158: 0 | BC158: 0
A159: 2017-06-05 | B159: 0.2847222222 | C159: 0.5381944444 | D159: 0.5381944444 | E159: 0.8125 | H159: 0.5277777778 | I159: 12.67 | M159: 1 | N159: 2017-06-05 | O159: 0.2881944444 | P159: 0.5381944444 | Q159: 0.5381944444 | R159: 0.7881944444 | U159: 0.5 | V159: 12.00 | Z159: 1 | AA159: Same Start 2nd | AB159: 2017-06-05 | AC159: 45,057 | AD159: 45,119 | AE159: 45,119 | AF159: 45,185 | AG159: 45,185 | AH159: 45,185 | AI159: 45,185 | AJ159: 0 | AK159: 128 | AO159: 1 | AP159: 2017-06-05 | AQ159: 45,058 | AR159: 45,119 | AS159: 45,119 | AT159: 45,180 | AU159: 45,180 | AV159: 45,180 | AW159: 45,180 | AX159: 6 | AY159: 122 | BC159: 1 | BD159: Same Start 2nd
A160: 2017-06-06 | B160: 0.2847222222 | C160: 0.5381944444 | D160: 0.5381944444 | E160: 0.8055555556 | H160: 0.5208333333 | I160: 12.50 | M160: 1 | N160: 2017-06-06 | O160: 0.2881944444 | P160: 0.5381944444 | Q160: 0.5381944444 | R160: 0.7951388889 | U160: 0.5069444444 | V160: 12.17 | Z160: 1 | AA160: Same Start 2nd | AB160: 2017-06-06 | AC160: 45,185 | AD160: 45,260 | AE160: 45,260 | AF160: 45,338 | AG160: 45,338 | AH160: 45,338 | AI160: 45,338 | AJ160: 0 | AK160: 153 | AO160: 1 | AP160: 2017-06-06 | AQ160: 45,186 | AR160: 45,260 | AS160: 45,260 | AT160: 45,333 | AU160: 45,333 | AV160: 45,333 | AW160: 45,333 | AX160: 6 | AY160: 147 | BC160: 1 | BD160: Same Start 2nd
A161: 2017-06-07 | B161: 0.2847222222 | C161: 0.5381944444 | D161: 0.5381944444 | E161: 0.8041666667 | H161: 0.5194444444 | I161: 12.47 | M161: 1 | N161: 2017-06-07 | O161: 0.2881944444 | P161: 0.5381944444 | Q161: 0.5381944444 | R161: 0.7881944444 | U161: 0.5 | V161: 12.00 | Z161: 1 | AA161: Same Start 2nd | AB161: 2017-06-07 | AC161: 45,338 | AD161: 45,400 | AE161: 45,400 | AF161: 45,466 | AG161: 45,466 | AH161: 45,466 | AI161: 45,466 | AJ161: 0 | AK161: 128 | AO161: 1 | AP161: 2017-06-07 | AQ161: 45,339 | AR161: 45,400 | AS161: 45,400 | AT161: 45,461 | AU161: 45,461 | AV161: 45,461 | AW161: 45,461 | AX161: 6 | AY161: 122 | BC161: 1 | BD161: Same Start 2nd
A162: 2017-06-08 | B162: 0.2847222222 | C162: 0.5381944444 | D162: 0.5381944444 | E162: 0.8125 | H162: 0.5277777778 | I162: 12.67 | M162: 1 | N162: 2017-06-08 | O162: 0.2881944444 | P162: 0.5381944444 | Q162: 0.5381944444 | R162: 0.7951388889 | U162: 0.5069444444 | V162: 12.17 | Z162: 1 | AA162: Same Start 2nd | AB162: 2017-06-08 | AC162: 45,466 | AD162: 45,541 | AE162: 45,541 | AF162: 45,618 | AG162: 45,618 | AH162: 45,618 | AI162: 45,618 | AJ162: 0 | AK162: 152 | AO162: 1 | AP162: 2017-06-08 | AQ162: 45,467 | AR162: 45,541 | AS162: 45,541 | AT162: 45,614 | AU162: 45,614 | AV162: 45,614 | AW162: 45,614 | AX162: 6 | AY162: 147 | BC162: 1 | BD162: Same Start 2nd
A163: 2017-06-09 | B163: 0.2847222222 | C163: 0.5381944444 | D163: 0.5381944444 | E163: 0.8229166667 | H163: 0.5381944444 | I163: 12.92 | M163: 1 | N163: 2017-06-09 | O163: 0.2881944444 | P163: 0.5381944444 | Q163: 0.5381944444 | R163: 0.7881944444 | U163: 0.5 | V163: 12.00 | Z163: 1 | AA163: Same Start 2nd | AB163: 2017-06-09 | AC163: 45,619 | AD163: 45,681 | AE163: 45,681 | AF163: 45,681 | AG163: 45,681 | AH163: 45,681 | AI163: 45,681 | AJ163: 1 | AK163: 62 | AO163: 1 | AP163: 2017-06-09 | AQ163: 45,620 | AR163: 45,681 | AS163: 45,681 | AT163: 45,681 | AU163: 45,681 | AV163: 45,681 | AW163: 45,681 | AX163: 6 | AY163: 61 | BC163: 1 | BD163: Same End 1st
A164: 2017-06-10 | H164: 0 | I164: 0.00 | M164: 0 | N164: 2017-06-10 | U164: 0 | V164: 0.00 | Z164: 0 | AB164: 2017-06-10 | AC164: 45,681 | AD164: 45,681 | AE164: 45,681 | AF164: 45,681 | AG164: 45,681 | AH164: 45,681 | AI164: 45,681 | AJ164: 0 | AK164: 0 | AO164: 0 | AP164: 2017-06-10 | AQ164: 45,681 | AR164: 45,681 | AS164: 45,681 | AT164: 45,681 | AU164: 45,681 | AV164: 45,681 | AW164: 45,681 | AX164: 0 | AY164: 0 | BC164: 0
A165: 2017-06-11 | H165: 0 | I165: 0.00 | M165: 0 | N165: 2017-06-11 | U165: 0 | V165: 0.00 | Z165: 0 | AB165: 2017-06-11 | AC165: 45,681 | AD165: 45,681 | AE165: 45,681 | AF165: 45,681 | AG165: 45,681 | AH165: 45,681 | AI165: 45,681 | AJ165: 0 | AK165: 0 | AO165: 0 | AP165: 2017-06-11 | AQ165: 45,681 | AR165: 45,681 | AS165: 45,681 | AT165: 45,681 | AU165: 45,681 | AV165: 45,681 | AW165: 45,681 | AX165: 0 | AY165: 0 | BC165: 0
A166: 2017-06-12 | B166: 0.2847222222 | C166: 0.5381944444 | D166: 0.5381944444 | E166: 0.8083333333 | H166: 0.5236111111 | I166: 12.57 | M166: 1 | N166: 2017-06-12 | O166: 0.2881944444 | P166: 0.5381944444 | Q166: 0.5381944444 | R166: 0.7951388889 | U166: 0.5069444444 | V166: 12.17 | Z166: 1 | AA166: Same Start 2nd | AB166: 2017-06-12 | AC166: 45,747 | AD166: 45,821 | AE166: 45,821 | AF166: 45,899 | AG166: 45,899 | AH166: 45,899 | AI166: 45,899 | AJ166: 66 | AK166: 152 | AO166: 1 | AP166: 2017-06-12 | AQ166: 45,748 | AR166: 45,821 | AS166: 45,821 | AT166: 45,899 | AU166: 45,899 | AV166: 45,899 | AW166: 45,899 | AX166: 67 | AY166: 151 | BC166: 1 | BD166: Same End 2nd
A167: 2017-06-13 | H167: 0 | I167: 0.00 | M167: =IF(H167>0, 1, 0) -> 0 | N167: 2017-06-13 | U167: 0 | V167: 0.00 | Z167: 0 | AB167: 2017-06-13 | AC167: 45,899 | AD167: 45,899 | AE167: 45,899 | AF167: 45,899 | AG167: 45,899 | AH167: 45,899 | AI167: 45,899 | AJ167: 0 | AK167: 0 | AO167: 0 | AP167: 2017-06-13 | AQ167: 45,899 | AR167: 45,899 | AS167: 45,899 | AT167: 45,899 | AU167: 45,899 | AV167: 45,899 | AW167: 45,899 | AX167: 0 | AY167: 0 | BC167: 0
A168: 2017-06-14 | H168: 0 | I168: 0.00 | M168: 0 | N168: 2017-06-14 | U168: 0 | V168: 0.00 | Z168: 0 | AB168: 2017-06-14 | AC168: 45,899 | AD168: 45,899 | AE168: 45,899 | AF168: 45,899 | AG168: 45,899 | AH168: 45,899 | AI168: 45,899 | AJ168: 0 | AK168: 0 | AO168: 0 | AP168: 2017-06-14 | AQ168: 45,899 | AR168: 45,899 | AS168: 45,899 | AT168: 45,899 | AU168: 45,899 | AV168: 45,899 | AW168: 45,899 | AX168: 0 | AY168: 0 | BC168: 0
A169: 2017-06-15 | H169: 0 | I169: 0.00 | M169: 0 | N169: 2017-06-15 | U169: 0 | V169: 0.00 | Z169: 0 | AB169: 2017-06-15 | AC169: 45,899 | AD169: 45,899 | AE169: 45,899 | AF169: 45,899 | AG169: 45,899 | AH169: 45,899 | AI169: 45,899 | AJ169: 0 | AK169: 0 | AO169: 0 | AP169: 2017-06-15 | AQ169: 45,899 | AR169: 45,899 | AS169: 45,894 | AT169: 45,894 | AU169: 45,894 | AV169: 45,894 | AW169: 45,899 | AX169: 0 | AY169: 0 | BC169: 0
A170: 2017-06-16 | H170: 0 | I170: 0.00 | M170: 0 | N170: 2017-06-16 | U170: 0 | V170: 0.00 | Z170: 0 | AB170: 2017-06-16 | AC170: 45,899 | AD170: 45,899 | AE170: 45,899 | AF170: 45,899 | AG170: 45,899 | AH170: 45,899 | AI170: 45,899 | AJ170: 0 | AK170: 0 | AO170: 0 | AP170: 2017-06-16 | AQ170: 45,899 | AR170: 45,899 | AS170: 45,899 | AT170: 45,899 | AU170: 45,899 | AV170: 45,899 | AW170: 45,899 | AX170: 0 | AY170: 0 | BC170: 0
A171: 2017-06-17 | H171: 0 | I171: 0.00 | M171: 0 | N171: 2017-06-17 | U171: 0 | V171: 0.00 | Z171: 0 | AB171: 2017-06-17 | AC171: 45,899 | AD171: 45,899 | AE171: 45,899 | AF171: 45,899 | AG171: 45,899 | AH171: 45,899 | AI171: 45,899 | AJ171: 0 | AK171: 0 | AO171: 0 | AP171: 2017-06-17 | AQ171: 45,899 | AR171: 45,899 | AS171: 45,899 | AT171: 45,899 | AU171: 45,899 | AV171: 45,899 | AW171: 45,899 | AX171: 0 | AY171: 0 | BC171: 0
A172: 2017-06-18 | H172: 0 | I172: 0.00 | M172: 0 | N172: 2017-06-18 | U172: 0 | V172: 0.00 | Z172: 0 | AB172: 2017-06-18 | AC172: 45,899 | AD172: 45,899 | AE172: 45,899 | AF172: 45,899 | AG172: 45,899 | AH172: 45,899 | AI172: 45,899 | AJ172: 0 | AK172: 0 | AO172: 0 | AP172: 2017-06-18 | AQ172: 45,899 | AR172: 45,899 | AS172: 45,899 | AT172: 45,899 | AU172: 45,899 | AV172: 45,899 | AW172: 45,899 | AX172: 0 | AY172: 0 | BC172: 0
A173: 2017-06-19 | H173: 0 | I173: 0.00 | M173: 0 | N173: 2017-06-19 | U173: 0 | V173: 0.00 | Z173: 0 | AB173: 2017-06-19 | AC173: 45,899 | AD173: =AC173 -> 45,899 | AE173: 45,899 | AF173: 45,899 | AG173: 45,899 | AH173: 45,899 | AI173: 45,899 | AJ173: 0 | AK173: 0 | AO173: 0 | AP173: 2017-06-19 | AQ173: 45,899 | AR173: =AQ173 -> 45,899 | AS173: 45,899 | AT173: 45,899 | AU173: 45,899 | AV173: 45,899 | AW173: 45,899 | AX173: 0 | AY173: 0 | BC173: 0
A174: 2017-06-20 | H174: 0 | I174: 0.00 | M174: 0 | N174: 2017-06-20 | U174: 0 | V174: 0.00 | Z174: 0 | AB174: 2017-06-20 | AC174: 45,899 | AD174: 45,899 | AE174: 45,899 | AF174: 45,899 | AG174: 45,899 | AH174: 45,899 | AI174: 45,899 | AJ174: 0 | AK174: 0 | AO174: 0 | AP174: 2017-06-20 | AQ174: 45,899 | AR174: 45,899 | AS174: 45,899 | AT174: 45,899 | AU174: 45,899 | AV174: 45,899 | AW174: 45,899 | AX174: 0 | AY174: 0 | BC174: 0
A175: 2017-06-21 | H175: 0 | I175: 0.00 | M175: 0 | N175: 2017-06-21 | U175: 0 | V175: 0.00 | Z175: 0 | AB175: 2017-06-21 | AC175: 45,899 | AD175: 45,899 | AE175: 45,899 | AF175: 45,899 | AG175: 45,899 | AH175: 45,899 | AI175: 45,899 | AJ175: 0 | AK175: 0 | AO175: 0 | AP175: 2017-06-21 | AQ175: 45,899 | AR175: 45,899 | AS175: 45,899 | AT175: 45,899 | AU175: 45,899 | AV175: 45,899 | AW175: 45,899 | AX175: 0 | AY175: 0 | BC175: 0
A176: 2017-06-22 | H176: 0 | I176: 0.00 | M176: 0 | N176: 2017-06-22 | U176: 0 | V176: 0.00 | Z176: 0 | AB176: 2017-06-22 | AC176: 45,899 | AD176: 45,899 | AE176: 45,899 | AF176: 45,899 | AG176: 45,899 | AH176: 45,899 | AI176: 45,899 | AJ176: 0 | AK176: 0 | AO176: 0 | AP176: 2017-06-22 | AQ176: 45,899 | AR176: 45,899 | AS176: 45,899 | AT176: 45,899 | AU176: 45,899 | AV176: 45,899 | AW176: 45,899 | AX176: 0 | AY176: 0 | BC176: 0
A177: 2017-06-23 | H177: 0 | I177: 0.00 | M177: 0 | N177: 2017-06-23 | U177: 0 | V177: 0.00 | Z177: 0 | AB177: 2017-06-23 | AC177: 45,899 | AD177: 45,899 | AE177: 45,899 | AF177: 45,899 | AG177: 45,899 | AH177: 45,899 | AI177: 45,899 | AJ177: 0 | AK177: 0 | AO177: 0 | AP177: 2017-06-23 | AQ177: 45,899 | AR177: 45,899 | AS177: 45,899 | AT177: 45,899 | AU177: 45,899 | AV177: 45,899 | AW177: 45,899 | AX177: 0 | AY177: 0 | BC177: 0
A178: 2017-06-24 | H178: 0 | I178: 0.00 | M178: 0 | N178: 2017-06-24 | U178: 0 | V178: 0.00 | Z178: 0 | AB178: 2017-06-24 | AC178: 45,899 | AD178: 45,899 | AE178: 45,899 | AF178: 45,899 | AG178: 45,899 | AH178: 45,899 | AI178: 45,899 | AJ178: 0 | AK178: 0 | AO178: 0 | AP178: 2017-06-24 | AQ178: 45,899 | AR178: 45,899 | AS178: 45,899 | AT178: 45,899 | AU178: 45,899 | AV178: 45,899 | AW178: 45,899 | AX178: 0 | AY178: 0 | BC178: 0
A179: 2017-06-25 | H179: 0 | I179: 0.00 | M179: 0 | N179: 2017-06-25 | U179: 0 | V179: 0.00 | Z179: 0 | AB179: 2017-06-25 | AC179: 45,899 | AD179: 45,899 | AE179: 45,899 | AF179: 45,899 | AG179: 45,899 | AH179: 45,899 | AI179: 45,899 | AJ179: 0 | AK179: 0 | AO179: 0 | AP179: 2017-06-25 | AQ179: 45,899 | AR179: 45,899 | AS179: 45,899 | AT179: 45,899 | AU179: 45,899 | AV179: 45,899 | AW179: 45,899 | AX179: 0 | AY179: 0 | BC179: 0
A180: 2017-06-26 | H180: 0 | I180: 0.00 | M180: 0 | N180: 2017-06-26 | U180: 0 | V180: 0.00 | Z180: 0 | AB180: 2017-06-26 | AC180: 45,899 | AD180: 45,899 | AE180: 45,899 | AF180: 45,899 | AG180: 45,899 | AH180: 45,899 | AI180: 45,899 | AJ180: 0 | AK180: 0 | AO180: 0 | AP180: 2017-06-26 | AQ180: 45,899 | AR180: 45,899 | AS180: 45,899 | AT180: 45,899 | AU180: 45,899 | AV180: 45,899 | AW180: 45,899 | AX180: 0 | AY180: 0 | BC180: 0
A181: 2017-06-27 | H181: 0 | I181: 0.00 | M181: 0 | N181: 2017-06-27 | U181: 0 | V181: 0.00 | Z181: 0 | AB181: 2017-06-27 | AC181: 45,899 | AD181: 45,899 | AE181: 45,899 | AF181: 45,899 | AG181: 45,899 | AH181: 45,899 | AI181: 45,899 | AJ181: 0 | AK181: 0 | AO181: 0 | AP181: 2017-06-27 | AQ181: 45,899 | AR181: 45,899 | AS181: 45,899 | AT181: 45,899 | AU181: 45,899 | AV181: 45,899 | AW181: 45,899 | AX181: 0 | AY181: 0 | BC181: 0
A182: 2017-06-28 | H182: 0 | I182: 0.00 | M182: 0 | N182: 2017-06-28 | U182: 0 | V182: 0.00 | Z182: 0 | AB182: 2017-06-28 | AC182: 45,899 | AD182: 45,899 | AE182: 45,899 | AF182: 45,899 | AG182: 45,899 | AH182: 45,899 | AI182: 45,899 | AJ182: 0 | AK182: 0 | AO182: 0 | AP182: 2017-06-28 | AQ182: 45,899 | AR182: 45,899 | AS182: 45,899 | AT182: 45,899 | AU182: 45,899 | AV182: 45,899 | AW182: 45,899 | AX182: 0 | AY182: 0 | BC182: 0
A183: 2017-06-29 | H183: 0 | I183: 0.00 | M183: 0 | N183: 2017-06-29 | U183: 0 | V183: 0.00 | Z183: 0 | AB183: 2017-06-29 | AC183: 45,899 | AD183: 45,899 | AE183: 45,899 | AF183: 45,899 | AG183: 45,899 | AH183: 45,899 | AI183: 45,899 | AJ183: 0 | AK183: 0 | AO183: 0 | AP183: 2017-06-29 | AQ183: 45,899 | AR183: 45,899 | AS183: 45,899 | AT183: 45,899 | AU183: 45,899 | AV183: 45,899 | AW183: 45,899 | AX183: 0 | AY183: 0 | BC183: 0
A184: 2017-06-30 | H184: 0 | I184: 0.00 | M184: 0 | N184: 2017-06-30 | U184: 0 | V184: 0.00 | Z184: 0 | AB184: 2017-06-30 | AC184: 45,899 | AD184: 45,899 | AE184: 45,899 | AF184: 45,899 | AG184: 45,899 | AH184: 45,899 | AI184: 45,899 | AJ184: 0 | AK184: 0 | AO184: 0 | AP184: 2017-06-30 | AQ184: 45,899 | AR184: 45,899 | AS184: 45,899 | AT184: 45,899 | AU184: 45,899 | AV184: 45,899 | AW184: 45,899 | AX184: 0 | AY184: 0 | BC184: 0
A185: 2017-07-01 | H185: 0 | I185: 0.00 | M185: 0 | N185: 2017-07-01 | U185: 0 | V185: 0.00 | Z185: 0 | AB185: 2017-07-01 | AC185: 45,899 | AD185: 45,899 | AE185: 45,899 | AF185: 45,899 | AG185: 45,899 | AH185: 45,899 | AI185: 45,899 | AJ185: 0 | AK185: 0 | AO185: 0 | AP185: 2017-07-01 | AQ185: 45,899 | AR185: 45,899 | AS185: 45,899 | AT185: 45,899 | AU185: 45,899 | AV185: 45,899 | AW185: 45,899 | AX185: 0 | AY185: 0 | BC185: 0
A186: 2017-07-02 | H186: 0 | I186: 0.00 | M186: 0 | N186: 2017-07-02 | U186: 0 | V186: 0.00 | Z186: 0 | AB186: 2017-07-02 | AC186: 45,899 | AD186: 45,899 | AE186: 45,899 | AF186: 45,899 | AG186: 45,899 | AH186: 45,899 | AI186: 45,899 | AJ186: 0 | AK186: 0 | AO186: 0 | AP186: 2017-07-02 | AQ186: 45,899 | AR186: 45,899 | AS186: 45,899 | AT186: 45,899 | AU186: 45,899 | AV186: 45,899 | AW186: 45,899 | AX186: 0 | AY186: 0 | BC186: 0
A187: 2017-07-03 | H187: 0 | I187: 0.00 | M187: 0 | N187: 2017-07-03 | U187: 0 | V187: 0.00 | Z187: 0 | AB187: 2017-07-03 | AC187: 45,899 | AD187: 45,899 | AE187: 45,899 | AF187: 45,899 | AG187: 45,899 | AH187: 45,899 | AI187: 45,899 | AJ187: 0 | AK187: 0 | AO187: 0 | AP187: 2017-07-03 | AQ187: 45,899 | AR187: 45,899 | AS187: 45,899 | AT187: 45,899 | AU187: 45,899 | AV187: 45,899 | AW187: 45,899 | AX187: 0 | AY187: 0 | BC187: 0
A188: 2017-07-04 | H188: 0 | I188: 0.00 | M188: 0 | N188: 2017-07-04 | U188: 0 | V188: 0.00 | Z188: 0 | AB188: 2017-07-04 | AC188: 45,899 | AD188: 45,899 | AE188: 45,899 | AF188: 45,899 | AG188: 45,899 | AH188: 45,899 | AI188: 45,899 | AJ188: 0 | AK188: 0 | AO188: 0 | AP188: 2017-07-04 | AQ188: 45,899 | AR188: 45,899 | AS188: 45,899 | AT188: 45,899 | AU188: 45,899 | AV188: 45,899 | AW188: 45,899 | AX188: 0 | AY188: 0 | BC188: 0
A189: 2017-07-05 | H189: 0 | I189: 0.00 | M189: 0 | N189: 2017-07-05 | U189: 0 | V189: 0.00 | Z189: 0 | AB189: 2017-07-05 | AC189: 45,899 | AD189: 45,899 | AE189: 45,899 | AF189: 45,899 | AG189: 45,899 | AH189: 45,899 | AI189: 45,899 | AJ189: 0 | AK189: 0 | AO189: 0 | AP189: 2017-07-05 | AQ189: 45,899 | AR189: 45,899 | AS189: 45,899 | AT189: 45,899 | AU189: 45,899 | AV189: 45,899 | AW189: 45,899 | AX189: 0 | AY189: 0 | BC189: 0
A190: 2017-07-06 | H190: 0 | I190: 0.00 | M190: 0 | N190: 2017-07-06 | U190: 0 | V190: 0.00 | Z190: 0 | AB190: 2017-07-06 | AC190: 45,899 | AD190: 45,899 | AE190: 45,899 | AF190: 45,899 | AG190: 45,899 | AH190: 45,899 | AI190: 45,899 | AJ190: 0 | AK190: 0 | AO190: 0 | AP190: 2017-07-06 | AQ190: 45,899 | AR190: 45,899 | AS190: 45,899 | AT190: 45,899 | AU190: 45,899 | AV190: 45,899 | AW190: 45,899 | AX190: 0 | AY190: 0 | BC190: 0
A191: 2017-07-07 | H191: 0 | I191: 0.00 | M191: 0 | N191: 2017-07-07 | U191: 0 | V191: 0.00 | Z191: 0 | AB191: 2017-07-07 | AC191: 45,899 | AD191: 45,899 | AE191: 45,899 | AF191: 45,899 | AG191: 45,899 | AH191: 45,899 | AI191: 45,899 | AJ191: 0 | AK191: 0 | AO191: 0 | AP191: 2017-07-07 | AQ191: 45,899 | AR191: 45,899 | AS191: 45,899 | AT191: 45,899 | AU191: 45,899 | AV191: 45,899 | AW191: 45,899 | AX191: 0 | AY191: 0 | BC191: 0
A192: 2017-07-08 | H192: 0 | I192: 0.00 | M192: 0 | N192: 2017-07-08 | U192: 0 | V192: 0.00 | Z192: 0 | AB192: 2017-07-08 | AC192: 45,899 | AD192: 45,899 | AE192: 45,899 | AF192: 45,899 | AG192: 45,899 | AH192: 45,899 | AI192: 45,899 | AJ192: 0 | AK192: 0 | AO192: 0 | AP192: 2017-07-08 | AQ192: 45,899 | AR192: 45,899 | AS192: 45,899 | AT192: 45,899 | AU192: 45,899 | AV192: 45,899 | AW192: 45,899 | AX192: 0 | AY192: 0 | BC192: 0
A193: 2017-07-09 | H193: 0 | I193: 0.00 | M193: 0 | N193: 2017-07-09 | U193: 0 | V193: 0.00 | Z193: 0 | AB193: 2017-07-09 | AC193: 45,899 | AD193: 45,899 | AE193: 45,899 | AF193: 45,899 | AG193: 45,899 | AH193: 45,899 | AI193: 45,899 | AJ193: 0 | AK193: 0 | AO193: 0 | AP193: 2017-07-09 | AQ193: 45,899 | AR193: 45,899 | AS193: 45,899 | AT193: 45,899 | AU193: 45,899 | AV193: 45,899 | AW193: 45,899 | AX193: 0 | AY193: 0 | BC193: 0
A194: 2017-07-10 | H194: 0 | I194: 0.00 | M194: 0 | N194: 2017-07-10 | U194: 0 | V194: 0.00 | Z194: 0 | AB194: 2017-07-10 | AC194: 45,899 | AD194: 45,899 | AE194: 45,899 | AF194: 45,899 | AG194: 45,899 | AH194: 45,899 | AI194: 45,899 | AJ194: 0 | AK194: 0 | AO194: 0 | AP194: 2017-07-10 | AQ194: 45,899 | AR194: 45,899 | AS194: 45,899 | AT194: 45,899 | AU194: 45,899 | AV194: 45,899 | AW194: 45,899 | AX194: 0 | AY194: 0 | BC194: 0
A195: 2017-07-11 | H195: 0 | I195: 0.00 | M195: 0 | N195: 2017-07-11 | U195: 0 | V195: 0.00 | Z195: 0 | AB195: 2017-07-11 | AC195: 45,899 | AD195: 45,899 | AE195: 45,899 | AF195: 45,899 | AG195: 45,899 | AH195: 45,899 | AI195: 45,899 | AJ195: 0 | AK195: 0 | AO195: 0 | AP195: 2017-07-11 | AQ195: 45,899 | AR195: 45,899 | AS195: 45,899 | AT195: 45,899 | AU195: 45,899 | AV195: 45,899 | AW195: 45,899 | AX195: 0 | AY195: 0 | BC195: 0
A196: 2017-07-12 | H196: 0 | I196: 0.00 | M196: =IF(H196>0, 1, 0) -> 0 | N196: 2017-07-12 | U196: =(P196-O196)+(R196-Q196)+(T196-S196) -> 0 | V196: 0.00 | Z196: =IF(U196>0, 1, 0) -> 0 | AB196: 2017-07-12 | AC196: 45,899 | AD196: 45,899 | AE196: 45,899 | AF196: 45,899 | AG196: 45,899 | AH196: 45,899 | AI196: 45,899 | AJ196: 0 | AK196: =(AD196-AC196)+(AF196-AE196)+(AH196-AG196) -> 0 | AO196: 0 | AP196: 2017-07-12 | AQ196: 45,899 | AR196: 45,899 | AS196: 45,899 | AT196: 45,899 | AU196: 45,899 | AV196: 45,899 | AW196: 45,899 | AX196: 0 | AY196: 0 | BC196: =IF(AY196>0, 1, 0) -> 0
A197: 2017-07-13 | H197: 0 | I197: =H197*24 -> 0.00 | M197: 0 | N197: 2017-07-13 | U197: 0 | V197: =U197*24 -> 0.00 | Z197: 0 | AB197: 2017-07-13 | AC197: 45,899 | AD197: 45,899 | AE197: 45,899 | AF197: 45,899 | AG197: 45,899 | AH197: 45,899 | AI197: 45,899 | AJ197: 0 | AK197: 0 | AO197: =IF(AK197>0, 1, 0) -> 0 | AP197: 2017-07-13 | AQ197: 45,899 | AR197: 45,899 | AS197: 45,899 | AT197: 45,899 | AU197: 45,899 | AV197: 45,899 | AW197: =MAX(AR197, AT197, AV197) -> 45,899 | AX197: =IF(AQ197=AW196, 0, AQ197-AW196) -> 0 | AY197: =(AR197-AQ197)+(AT197-AS197)+(AV197-AU197) -> 0 | BC197: 0 | BD197: =IF(AK197<AY197,"Actual less than Revenue",IF(AND(AV197>AH197,AG197<>AH197,AU197<>AV197),"Rev Over Act End 3rd",IF(AND(AU197<AG197,AG197<>AH197,AU197<>AV197),"Rev Less Act Start 3rd",IF(AND(AT197>AF197,AE197<>AF197,AS197<>AT197),"Rev Over Act End 2nd",IF(AND(AS197<AE197,AE197<>AF197,AS197<>AT197),"Rev Less Act Start 2nd",IF(AND(AR197>AD197,AC197<>AD197,AQ197<>AR197),"Rev Over Act End 1st",IF(AND(AQ197<AC197,AC197<>AD197,AQ197<>AR197),"Rev Less Act Start 1st",IF(AND(AV197=AH197,AG197<>AH197,AU197<>AV197),"Same End 3rd",IF(AND(AU197=AG197,AG197<>AH197,AU197<>AV197),"Same Start 3rd",IF(AND(AT197=AF197,AE197<>AF197,AS197<>AT197),"Same End 2nd",IF(AND(AS197=AE197,AE197<>AF197,AS197<>AT197),"Same Start 2nd",IF(AND(AR197=AD197,AC197<>AD197,AQ197<>AR197),"Same End 1st",IF(AND(AQ197=AC197,AC197<>AD197,AQ197<>AR197),"Same Start 1st",""))))))))))))) -> 
A198: 2017-07-14 | H198: 0 | I198: 0.00 | M198: 0 | N198: 2017-07-14 | U198: 0 | V198: 0.00 | Z198: 0 | AA198: =IF(H198<U198,"Actual less than Revenue",IF(AND(T198>G198,F198<>G198,S198<>T198),"Rev Over Act End 3rd", IF(AND(S198<F198,F198<>G198,S198<>T198),"Rev Less Act Start 3rd",IF(AND(R198>E198,D198<>E198,Q198<>R198),"Rev Over Act End 2nd",IF(AND(Q198<D198,D198<>E198,Q198<>R198),"Rev Less Act Start 2nd",IF(AND(P198>C198,B198<>C198,O198<>P198),"Rev Over Act End 1st",IF(AND(O198<B198,B198<>C198,O198<>P198),"Rev Less Act Start 1st",IF(AND(T198=G198,F198<>G198,S198<>T198),"Same End 3rd",IF(AND(S198=F198,F198<>G198,S198<>T198),"Same Start 3rd",IF(AND(R198=E198,D198<>E198,Q198<>R198),"Same End 2nd",IF(AND(Q198=D198,D198<>E198,Q198<>R198),"Same Start 2nd",IF(AND(P198=C198,B198<>C198,O198<>P198),"Same End 1st",IF(AND(O198=B198,B198<>C198,O198<>P198),"Same Start 1st",""))))))))))))) ->  | AB198: 2017-07-14 | AC198: 45,899 | AD198: 45,899 | AE198: 45,899 | AF198: 45,899 | AG198: 45,899 | AH198: 45,899 | AI198: 45,899 | AJ198: 0 | AK198: 0 | AO198: 0 | AP198: 2017-07-14 | AQ198: 45,899 | AR198: 45,899 | AS198: 45,899 | AT198: 45,899 | AU198: 45,899 | AV198: 45,899 | AW198: 45,899 | AX198: 0 | AY198: 0 | BC198: 0
A199: 2017-07-15 | H199: 0 | I199: 0.00 | M199: 0 | N199: 2017-07-15 | U199: 0 | V199: 0.00 | Z199: 0 | AB199: 2017-07-15 | AC199: 45,899 | AD199: 45,899 | AE199: 45,899 | AF199: 45,899 | AG199: 45,899 | AH199: 45,899 | AI199: 45,899 | AJ199: =IF(AC199=AI198, 0, AC199-AI198) -> 0 | AK199: 0 | AO199: 0 | AP199: 2017-07-15 | AQ199: 45,899 | AR199: 45,899 | AS199: 45,899 | AT199: 45,899 | AU199: 45,899 | AV199: 45,899 | AW199: 45,899 | AX199: 0 | AY199: 0 | BC199: 0
A200: 2017-07-16 | H200: 0 | I200: 0.00 | M200: 0 | N200: 2017-07-16 | U200: 0 | V200: 0.00 | Z200: 0 | AB200: 2017-07-16 | AC200: 45,899 | AD200: 45,899 | AE200: 45,899 | AF200: 45,899 | AG200: 45,899 | AH200: 45,899 | AI200: 45,899 | AJ200: 0 | AK200: 0 | AO200: 0 | AP200: 2017-07-16 | AQ200: 45,899 | AR200: 45,899 | AS200: 45,899 | AT200: 45,899 | AU200: 45,899 | AV200: 45,899 | AW200: 45,899 | AX200: 0 | AY200: 0 | BC200: 0
... 169 more rows

Sheet 1475 FX
A1: 1475 Service Hours (Fixed Route) | AB1: 1475 Mileage (Fixed Route)
A2: ACTUAL (Fixed) | N2: REVENUE (Fixed) | AB2: ACTUAL (Fixed) | AP2: REVENUE (Fixed)
A3: Date | B3: 1st Start | C3: 1st End | D3: 2nd Start | E3: 2nd End | F3: 3rd Start | G3: 3rd End | H3: Difference | I3: Hours Converted | N3: Date | O3: 1st Start | P3: 1st End | Q3: 2nd Start | R3: 2nd End | S3: 3rd Start | T3: 3rd End | U3: Difference | V3: Hours Converted | AA3: Cross-Check | AB3: Date | AC3: 1st Start | AD3: 1st End | AE3: 2nd Start | AF3: 2nd End | AG3: 3rd Start | AH3: 3rd End | AI3: End of Day | AJ3: Extraneous | AK3: Difference | AP3: Date | AQ3: 1st Start | AR3: 1st End | AS3: 2nd Start | AT3: 2nd End | AU3: 3rd Start | AV3: 3rd End | AW3: End of Day | AX3: Extraneous | AY3: Difference | BD3: Cross-Check
A4: 2017-01-01 | H4: =(C4-B4)+(E4-D4)+(G4-F4) -> 0 | I4: =H4*24 -> 0.00 | M4: =IF(H4>0, 1, 0) -> 0 | N4: 2017-01-01 | U4: =(P4-O4)+(R4-Q4)+(T4-S4) -> 0 | V4: =U4*24 -> 0.00 | Z4: =IF(U4>0, 1, 0) -> 0 | AA4: =IF(H4<U4,"Actual less than Revenue",IF(AND(T4>G4,F4<>G4,S4<>T4),"Rev Over Act End 3rd", IF(AND(S4<F4,F4<>G4,S4<>T4),"Rev Less Act Start 3rd",IF(AND(R4>E4,D4<>E4,Q4<>R4),"Rev Over Act End 2nd",IF(AND(Q4<D4,D4<>E4,Q4<>R4),"Rev Less Act Start 2nd",IF(AND(P4>C4,B4<>C4,O4<>P4),"Rev Over Act End 1st",IF(AND(O4<B4,B4<>C4,O4<>P4),"Rev Less Act Start 1st",IF(AND(T4=G4,F4<>G4,S4<>T4),"Same End 3rd",IF(AND(S4=F4,F4<>G4,S4<>T4),"Same Start 3rd",IF(AND(R4=E4,D4<>E4,Q4<>R4),"Same End 2nd",IF(AND(Q4=D4,D4<>E4,Q4<>R4),"Same Start 2nd",IF(AND(P4=C4,B4<>C4,O4<>P4),"Same End 1st",IF(AND(O4=B4,B4<>C4,O4<>P4),"Same Start 1st",""))))))))))))) ->  | AB4: 2017-01-01 | AC4: 37,365 | AD4: =AC4 -> 37,365 | AE4: 37,365 | AF4: 37,365 | AG4: 37,365 | AH4: 37,365 | AI4: =MAX(AD4, AF4, AH4) -> 37,365 | AK4: =(AD4-AC4)+(AF4-AE4)+(AH4-AG4) -> 0 | AO4: =IF(AK4>0, 1, 0) -> 0 | AP4: 2017-01-01 | AQ4: 37,365 | AR4: =AQ4 -> 37,365 | AS4: 37,365 | AT4: 37,365 | AU4: 37,365 | AV4: 37,365 | AW4: =MAX(AR4, AT4, AV4) -> 37,365 | AY4: =(AR4-AQ4)+(AT4-AS4)+(AV4-AU4) -> 0 | BC4: =IF(AY4>0, 1, 0) -> 0 | BD4: =IF(AK4<AY4,"Actual less than Revenue",IF(AND(AV4>AH4,AG4<>AH4,AU4<>AV4),"Rev Over Act End 3rd",IF(AND(AU4<AG4,AG4<>AH4,AU4<>AV4),"Rev Less Act Start 3rd",IF(AND(AT4>AF4,AE4<>AF4,AS4<>AT4),"Rev Over Act End 2nd",IF(AND(AS4<AE4,AE4<>AF4,AS4<>AT4),"Rev Less Act Start 2nd",IF(AND(AR4>AD4,AC4<>AD4,AQ4<>AR4),"Rev Over Act End 1st",IF(AND(AQ4<AC4,AC4<>AD4,AQ4<>AR4),"Rev Less Act Start 1st",IF(AND(AV4=AH4,AG4<>AH4,AU4<>AV4),"Same End 3rd",IF(AND(AU4=AG4,AG4<>AH4,AU4<>AV4),"Same Start 3rd",IF(AND(AT4=AF4,AE4<>AF4,AS4<>AT4),"Same End 2nd",IF(AND(AS4=AE4,AE4<>AF4,AS4<>AT4),"Same Start 2nd",IF(AND(AR4=AD4,AC4<>AD4,AQ4<>AR4),"Same End 1st",IF(AND(AQ4=AC4,AC4<>AD4,AQ4<>AR4),"Same Start 1st",""))))))))))))) -> 
A5: 2017-01-02 | B5: 0.2847222222 | C5: 0.5381944444 | D5: 0.5381944444 | E5: 0.8125 | H5: 0.5277777778 | I5: =H5*24 -> 12.67 | M5: 1 | N5: 2017-01-02 | O5: 0.2881944444 | P5: 0.5381944444 | Q5: 0.5381944444 | R5: 0.7951388889 | U5: 0.5069444444 | V5: =U5*24 -> 12.17 | Z5: 1 | AA5: =IF(H5<U5,"Actual less than Revenue",IF(AND(T5>G5,F5<>G5,S5<>T5),"Rev Over Act End 3rd", IF(AND(S5<F5,F5<>G5,S5<>T5),"Rev Less Act Start 3rd",IF(AND(R5>E5,D5<>E5,Q5<>R5),"Rev Over Act End 2nd",IF(AND(Q5<D5,D5<>E5,Q5<>R5),"Rev Less Act Start 2nd",IF(AND(P5>C5,B5<>C5,O5<>P5),"Rev Over Act End 1st",IF(AND(O5<B5,B5<>C5,O5<>P5),"Rev Less Act Start 1st",IF(AND(T5=G5,F5<>G5,S5<>T5),"Same End 3rd",IF(AND(S5=F5,F5<>G5,S5<>T5),"Same Start 3rd",IF(AND(R5=E5,D5<>E5,Q5<>R5),"Same End 2nd",IF(AND(Q5=D5,D5<>E5,Q5<>R5),"Same Start 2nd",IF(AND(P5=C5,B5<>C5,O5<>P5),"Same End 1st",IF(AND(O5=B5,B5<>C5,O5<>P5),"Same Start 1st",""))))))))))))) -> Same Start 2nd | AB5: 2017-01-02 | AC5: 37,365 | AD5: 37,440 | AE5: 37,440 | AF5: 37,521 | AG5: 37,521 | AH5: 37,521 | AI5: =MAX(AD5, AF5, AH5) -> 37,521 | AJ5: =IF(AC5=AI4, 0, AC5-AI4) -> 0 | AK5: 156 | AO5: =IF(AK5>0, 1, 0) -> 1 | AP5: 2017-01-02 | AQ5: 37,366 | AR5: 37,440 | AS5: 37,440 | AT5: 37,516 | AU5: 37,516 | AV5: 37,516 | AW5: =MAX(AR5, AT5, AV5) -> 37,516 | AX5: =IF(AQ5=AW4, 0, AQ5-AW4) -> 1 | AY5: =(AR5-AQ5)+(AT5-AS5)+(AV5-AU5) -> 150 | BC5: 1 | BD5: =IF(AK5<AY5,"Actual less than Revenue",IF(AND(AV5>AH5,AG5<>AH5,AU5<>AV5),"Rev Over Act End 3rd",IF(AND(AU5<AG5,AG5<>AH5,AU5<>AV5),"Rev Less Act Start 3rd",IF(AND(AT5>AF5,AE5<>AF5,AS5<>AT5),"Rev Over Act End 2nd",IF(AND(AS5<AE5,AE5<>AF5,AS5<>AT5),"Rev Less Act Start 2nd",IF(AND(AR5>AD5,AC5<>AD5,AQ5<>AR5),"Rev Over Act End 1st",IF(AND(AQ5<AC5,AC5<>AD5,AQ5<>AR5),"Rev Less Act Start 1st",IF(AND(AV5=AH5,AG5<>AH5,AU5<>AV5),"Same End 3rd",IF(AND(AU5=AG5,AG5<>AH5,AU5<>AV5),"Same Start 3rd",IF(AND(AT5=AF5,AE5<>AF5,AS5<>AT5),"Same End 2nd",IF(AND(AS5=AE5,AE5<>AF5,AS5<>AT5),"Same Start 2nd",IF(AND(AR5=AD5,AC5<>AD5,AQ5<>AR5),"Same End 1st",IF(AND(AQ5=AC5,AC5<>AD5,AQ5<>AR5),"Same Start 1st",""))))))))))))) -> Same Start 2nd
A6: 2017-01-03 | B6: 0.2847222222 | C6: 0.5381944444 | D6: 0.5381944444 | E6: 0.80625 | H6: 0.5215277778 | I6: 12.52 | M6: 1 | N6: 2017-01-03 | O6: 0.2881944444 | P6: 0.5381944444 | Q6: 0.5381944444 | R6: 0.7881944444 | U6: 0.5 | V6: 12.00 | Z6: 1 | AA6: Same Start 2nd | AB6: 2017-01-03 | AC6: =AI5 -> 37,521 | AD6: 37,583 | AE6: 37,583 | AF6: 37,648 | AG6: 37,648 | AH6: 37,648 | AI6: 37,648 | AJ6: =IF(AC6=AI5, 0, AC6-AI5) -> 0 | AK6: 127 | AO6: 1 | AP6: 2017-01-03 | AQ6: 37,522 | AR6: 37,583 | AS6: 37,583 | AT6: 37,644 | AU6: 37,644 | AV6: 37,644 | AW6: 37,644 | AX6: 6 | AY6: 122 | BC6: 1 | BD6: Same Start 2nd
A7: 2017-01-04 | B7: 0.2847222222 | C7: 0.5381944444 | D7: 0.5381944444 | E7: 0.7083333333 | H7: 0.4236111111 | I7: 10.17 | M7: 1 | N7: 2017-01-04 | O7: 0.2881944444 | P7: 0.5381944444 | Q7: 0.5381944444 | R7: 0.7083333333 | U7: 0.4201388889 | V7: 10.08 | Z7: 1 | AA7: Same End 2nd | AB7: 2017-01-04 | AC7: 37,648 | AD7: 37,723 | AE7: 37,723 | AF7: 37,770 | AG7: 37,770 | AH7: 37,770 | AI7: 37,770 | AJ7: =IF(AC7=AI6, 0, AC7-AI6) -> 0 | AK7: 122 | AO7: 1 | AP7: 2017-01-04 | AQ7: 37,650 | AR7: 37,723 | AS7: 37,723 | AT7: 37,770 | AU7: 37,770 | AV7: 37,770 | AW7: 37,770 | AX7: 6 | AY7: 120 | BC7: =IF(AY7>0, 1, 0) -> 1 | BD7: Same End 2nd
A8: 2017-01-05 | H8: 0 | I8: 0.00 | M8: 0 | N8: 2017-01-05 | U8: 0 | V8: 0.00 | Z8: 0 | AB8: 2017-01-05 | AC8: 37,770 | AD8: 37,770 | AE8: 37,770 | AF8: 37,770 | AG8: 37,770 | AH8: 37,770 | AI8: 37,770 | AJ8: 0 | AK8: 0 | AO8: 0 | AP8: 2017-01-05 | AQ8: =AW7 -> 37,770 | AR8: 37,770 | AS8: 37,770 | AT8: 37,770 | AU8: 37,770 | AV8: 37,770 | AW8: 37,770 | AX8: 0 | AY8: 0 | BC8: 0
A9: 2017-01-06 | H9: 0 | I9: 0.00 | M9: 0 | N9: 2017-01-06 | U9: 0 | V9: 0.00 | Z9: 0 | AB9: 2017-01-06 | AC9: 37,770 | AD9: 37,770 | AE9: 37,770 | AF9: 37,770 | AG9: 37,770 | AH9: 37,770 | AI9: 37,770 | AJ9: 0 | AK9: 0 | AO9: 0 | AP9: 2017-01-06 | AQ9: 37,770 | AR9: 37,770 | AS9: 37,770 | AT9: 37,770 | AU9: 37,770 | AV9: 37,770 | AW9: 37,770 | AX9: 0 | AY9: 0 | BC9: 0
A10: 2017-01-07 | H10: 0 | I10: =H10*24 -> 0.00 | M10: 0 | N10: 2017-01-07 | U10: 0 | V10: 0.00 | Z10: 0 | AA10: =IF(H10<U10,"Actual less than Revenue",IF(AND(T10>G10,F10<>G10,S10<>T10),"Rev Over Act End 3rd", IF(AND(S10<F10,F10<>G10,S10<>T10),"Rev Less Act Start 3rd",IF(AND(R10>E10,D10<>E10,Q10<>R10),"Rev Over Act End 2nd",IF(AND(Q10<D10,D10<>E10,Q10<>R10),"Rev Less Act Start 2nd",IF(AND(P10>C10,B10<>C10,O10<>P10),"Rev Over Act End 1st",IF(AND(O10<B10,B10<>C10,O10<>P10),"Rev Less Act Start 1st",IF(AND(T10=G10,F10<>G10,S10<>T10),"Same End 3rd",IF(AND(S10=F10,F10<>G10,S10<>T10),"Same Start 3rd",IF(AND(R10=E10,D10<>E10,Q10<>R10),"Same End 2nd",IF(AND(Q10=D10,D10<>E10,Q10<>R10),"Same Start 2nd",IF(AND(P10=C10,B10<>C10,O10<>P10),"Same End 1st",IF(AND(O10=B10,B10<>C10,O10<>P10),"Same Start 1st",""))))))))))))) ->  | AB10: 2017-01-07 | AC10: 37,770 | AD10: 37,770 | AE10: 37,770 | AF10: 37,770 | AG10: 37,770 | AH10: 37,770 | AI10: 37,770 | AJ10: 0 | AK10: 0 | AO10: 0 | AP10: 2017-01-07 | AQ10: 37,770 | AR10: 37,770 | AS10: 37,770 | AT10: 37,770 | AU10: 37,770 | AV10: 37,770 | AW10: 37,770 | AX10: 0 | AY10: 0 | BC10: 0
A11: 2017-01-08 | H11: 0 | I11: 0.00 | M11: 0 | N11: 2017-01-08 | U11: 0 | V11: 0.00 | Z11: 0 | AB11: 2017-01-08 | AC11: 37,770 | AD11: 37,770 | AE11: 37,770 | AF11: 37,770 | AG11: 37,770 | AH11: 37,770 | AI11: =MAX(AD11, AF11, AH11) -> 37,770 | AJ11: 0 | AK11: 0 | AO11: 0 | AP11: 2017-01-08 | AQ11: 37,770 | AR11: 37,770 | AS11: 37,770 | AT11: 37,770 | AU11: 37,770 | AV11: 37,770 | AW11: =MAX(AR11, AT11, AV11) -> 37,770 | AX11: 0 | AY11: 0 | BC11: 0
A12: 2017-01-09 | H12: 0 | I12: 0.00 | M12: 0 | N12: 2017-01-09 | U12: 0 | V12: 0.00 | Z12: 0 | AB12: 2017-01-09 | AC12: =AI11 -> 37,770 | AD12: 37,770 | AE12: =AD12 -> 37,770 | AF12: =AE12 -> 37,770 | AG12: =AF12 -> 37,770 | AH12: =AG12 -> 37,770 | AI12: =MAX(AD12, AF12, AH12) -> 37,770 | AJ12: 0 | AK12: 0 | AO12: 0 | AP12: 2017-01-09 | AQ12: =AW11 -> 37,770 | AR12: 37,770 | AS12: =AR12 -> 37,770 | AT12: =AS12 -> 37,770 | AU12: =AT12 -> 37,770 | AV12: =AU12 -> 37,770 | AW12: 37,770 | AX12: 0 | AY12: 0 | BC12: 0
A13: 2017-01-10 | H13: 0 | I13: 0.00 | M13: 0 | N13: 2017-01-10 | U13: 0 | V13: 0.00 | Z13: 0 | AB13: 2017-01-10 | AC13: =AI12 -> 37,770 | AD13: 37,770 | AE13: 37,770 | AF13: 37,770 | AG13: 37,770 | AH13: 37,770 | AI13: 37,770 | AJ13: 0 | AK13: 0 | AO13: 0 | AP13: 2017-01-10 | AQ13: =AW12 -> 37,770 | AR13: 37,770 | AS13: 37,770 | AT13: 37,770 | AU13: 37,770 | AV13: 37,770 | AW13: 37,770 | AX13: 0 | AY13: 0 | BC13: 0
A14: 2017-01-11 | H14: 0 | I14: 0.00 | M14: 0 | N14: 2017-01-11 | U14: 0 | V14: 0.00 | Z14: 0 | AB14: 2017-01-11 | AC14: 37,770 | AD14: 37,770 | AE14: 37,770 | AF14: 37,770 | AG14: 37,770 | AH14: 37,770 | AI14: 37,770 | AJ14: 0 | AK14: 0 | AO14: 0 | AP14: 2017-01-11 | AQ14: 37,770 | AR14: 37,770 | AS14: 37,770 | AT14: 37,770 | AU14: 37,770 | AV14: 37,770 | AW14: 37,770 | AX14: 0 | AY14: 0 | BC14: 0
A15: 2017-01-12 | H15: 0 | I15: 0.00 | M15: 0 | N15: 2017-01-12 | U15: =(P15-O15)+(R15-Q15)+(T15-S15) -> 0 | V15: 0.00 | Z15: 0 | AA15: =IF(H15<U15,"Actual less than Revenue",IF(AND(T15>G15,F15<>G15,S15<>T15),"Rev Over Act End 3rd", IF(AND(S15<F15,F15<>G15,S15<>T15),"Rev Less Act Start 3rd",IF(AND(R15>E15,D15<>E15,Q15<>R15),"Rev Over Act End 2nd",IF(AND(Q15<D15,D15<>E15,Q15<>R15),"Rev Less Act Start 2nd",IF(AND(P15>C15,B15<>C15,O15<>P15),"Rev Over Act End 1st",IF(AND(O15<B15,B15<>C15,O15<>P15),"Rev Less Act Start 1st",IF(AND(T15=G15,F15<>G15,S15<>T15),"Same End 3rd",IF(AND(S15=F15,F15<>G15,S15<>T15),"Same Start 3rd",IF(AND(R15=E15,D15<>E15,Q15<>R15),"Same End 2nd",IF(AND(Q15=D15,D15<>E15,Q15<>R15),"Same Start 2nd",IF(AND(P15=C15,B15<>C15,O15<>P15),"Same End 1st",IF(AND(O15=B15,B15<>C15,O15<>P15),"Same Start 1st",""))))))))))))) ->  | AB15: 2017-01-12 | AC15: 37,770 | AD15: 37,770 | AE15: 37,770 | AF15: 37,770 | AG15: 37,770 | AH15: 37,770 | AI15: 37,770 | AJ15: 0 | AK15: 0 | AO15: 0 | AP15: 2017-01-12 | AQ15: 37,770 | AR15: 37,770 | AS15: 37,770 | AT15: 37,770 | AU15: 37,770 | AV15: 37,770 | AW15: 37,770 | AX15: 0 | AY15: 0 | BC15: 0
A16: 2017-01-13 | H16: 0 | I16: 0.00 | M16: 0 | N16: 2017-01-13 | U16: 0 | V16: 0.00 | Z16: 0 | AB16: 2017-01-13 | AC16: 37,770 | AD16: 37,770 | AE16: 37,770 | AF16: 37,770 | AG16: 37,770 | AH16: 37,770 | AI16: 37,770 | AJ16: 0 | AK16: 0 | AO16: 0 | AP16: 2017-01-13 | AQ16: 37,770 | AR16: 37,770 | AS16: 37,770 | AT16: 37,770 | AU16: 37,770 | AV16: 37,770 | AW16: 37,770 | AX16: 0 | AY16: 0 | BC16: 0
A17: 2017-01-14 | H17: 0 | I17: 0.00 | M17: 0 | N17: 2017-01-14 | U17: 0 | V17: 0.00 | Z17: 0 | AB17: 2017-01-14 | AC17: 37,770 | AD17: 37,770 | AE17: 37,770 | AF17: 37,770 | AG17: 37,770 | AH17: 37,770 | AI17: 37,770 | AJ17: 0 | AK17: 0 | AO17: 0 | AP17: 2017-01-14 | AQ17: 37,770 | AR17: 37,770 | AS17: 37,770 | AT17: 37,770 | AU17: 37,770 | AV17: 37,770 | AW17: 37,770 | AX17: 0 | AY17: 0 | BC17: 0
A18: 2017-01-15 | H18: 0 | I18: 0.00 | M18: 0 | N18: 2017-01-15 | U18: 0 | V18: 0.00 | Z18: 0 | AB18: 2017-01-15 | AC18: 37,770 | AD18: 37,770 | AE18: 37,770 | AF18: 37,770 | AG18: 37,770 | AH18: 37,770 | AI18: 37,770 | AJ18: 0 | AK18: 0 | AO18: 0 | AP18: 2017-01-15 | AQ18: 37,770 | AR18: 37,770 | AS18: 37,770 | AT18: 37,770 | AU18: 37,770 | AV18: 37,770 | AW18: 37,770 | AX18: 0 | AY18: =(AR18-AQ18)+(AT18-AS18)+(AV18-AU18) -> 0 | BC18: 0
A19: 2017-01-16 | H19: 0 | I19: 0.00 | M19: 0 | N19: 2017-01-16 | U19: 0 | V19: 0.00 | Z19: 0 | AB19: 2017-01-16 | AC19: 37,770 | AD19: 37,770 | AE19: 37,770 | AF19: 37,770 | AG19: 37,770 | AH19: 37,770 | AI19: 37,770 | AJ19: 0 | AK19: 0 | AO19: 0 | AP19: 2017-01-16 | AQ19: 37,770 | AR19: 37,770 | AS19: 37,770 | AT19: 37,770 | AU19: 37,770 | AV19: 37,770 | AW19: 37,770 | AX19: 0 | AY19: 0 | BC19: 0
A20: 2017-01-17 | H20: 0 | I20: 0.00 | M20: 0 | N20: 2017-01-17 | U20: 0 | V20: 0.00 | Z20: 0 | AB20: 2017-01-17 | AC20: 37,770 | AD20: =AC20 -> 37,770 | AE20: 37,770 | AF20: 37,770 | AG20: 37,770 | AH20: 37,770 | AI20: 37,770 | AJ20: 0 | AK20: 0 | AO20: 0 | AP20: 2017-01-17 | AQ20: 37,770 | AR20: =AQ20 -> 37,770 | AS20: 37,770 | AT20: 37,770 | AU20: 37,770 | AV20: 37,770 | AW20: 37,770 | AX20: 0 | AY20: 0 | BC20: 0
A21: 2017-01-18 | H21: 0 | I21: 0.00 | M21: 0 | N21: 2017-01-18 | U21: 0 | V21: 0.00 | Z21: 0 | AB21: 2017-01-18 | AC21: 37,770 | AD21: 37,770 | AE21: 37,770 | AF21: 37,770 | AG21: 37,770 | AH21: 37,770 | AI21: 37,770 | AJ21: 0 | AK21: 0 | AO21: 0 | AP21: 2017-01-18 | AQ21: 37,770 | AR21: 37,770 | AS21: 37,770 | AT21: 37,770 | AU21: 37,770 | AV21: 37,770 | AW21: 37,770 | AX21: 0 | AY21: 0 | BC21: 0
A22: 2017-01-19 | H22: 0 | I22: 0.00 | M22: 0 | N22: 2017-01-19 | U22: 0 | V22: 0.00 | Z22: 0 | AB22: 2017-01-19 | AC22: 37,770 | AD22: 37,770 | AE22: 37,770 | AF22: 37,770 | AG22: 37,770 | AH22: 37,770 | AI22: 37,770 | AJ22: 0 | AK22: 0 | AO22: 0 | AP22: 2017-01-19 | AQ22: 37,770 | AR22: 37,770 | AS22: 37,770 | AT22: 37,770 | AU22: 37,770 | AV22: 37,770 | AW22: 37,770 | AX22: 0 | AY22: 0 | BC22: 0
A23: 2017-01-20 | H23: 0 | I23: 0.00 | M23: 0 | N23: 2017-01-20 | U23: 0 | V23: 0.00 | Z23: 0 | AB23: 2017-01-20 | AC23: 37,770 | AD23: 37,770 | AE23: 37,770 | AF23: 37,770 | AG23: 37,770 | AH23: 37,770 | AI23: 37,770 | AJ23: 0 | AK23: 0 | AO23: 0 | AP23: 2017-01-20 | AQ23: 37,770 | AR23: 37,770 | AS23: 37,770 | AT23: 37,770 | AU23: 37,770 | AV23: 37,770 | AW23: 37,770 | AX23: 0 | AY23: 0 | BC23: 0
A24: 2017-01-21 | H24: 0 | I24: 0.00 | M24: 0 | N24: 2017-01-21 | U24: 0 | V24: 0.00 | Z24: 0 | AB24: 2017-01-21 | AC24: 37,770 | AD24: 37,770 | AE24: 37,770 | AF24: 37,770 | AG24: 37,770 | AH24: 37,770 | AI24: 37,770 | AJ24: 0 | AK24: 0 | AO24: 0 | AP24: 2017-01-21 | AQ24: 37,770 | AR24: 37,770 | AS24: 37,770 | AT24: 37,770 | AU24: 37,770 | AV24: 37,770 | AW24: 37,770 | AX24: 0 | AY24: 0 | BC24: 0
A25: 2017-01-22 | H25: 0 | I25: 0.00 | M25: 0 | N25: 2017-01-22 | U25: 0 | V25: 0.00 | Z25: 0 | AB25: 2017-01-22 | AC25: 37,770 | AD25: 37,770 | AE25: 37,770 | AF25: 37,770 | AG25: 37,770 | AH25: 37,770 | AI25: 37,770 | AJ25: 0 | AK25: 0 | AO25: 0 | AP25: 2017-01-22 | AQ25: 37,770 | AR25: 37,770 | AS25: 37,770 | AT25: 37,770 | AU25: 37,770 | AV25: 37,770 | AW25: 37,770 | AX25: 0 | AY25: 0 | BC25: 0
A26: 2017-01-23 | B26: 0.2847222222 | C26: 0.5381944444 | D26: 0.5381944444 | E26: 0.8125 | H26: =(C26-B26)+(E26-D26)+(G26-F26) -> 0.5277777778 | I26: 12.67 | M26: 1 | N26: 2017-01-23 | O26: 0.2881944444 | P26: 0.5381944444 | Q26: 0.5381944444 | R26: 0.7951388889 | U26: 0.5069444444 | V26: 12.17 | Z26: 1 | AA26: Same Start 2nd | AB26: 2017-01-23 | AC26: 37,777 | AD26: 37,861 | AE26: 37,861 | AF26: 37,861 | AG26: 37,861 | AH26: 37,861 | AI26: 37,861 | AJ26: 7 | AK26: 84 | AO26: 1 | AP26: 2017-01-23 | AQ26: 37,778 | AR26: 37,861 | AS26: 37,861 | AT26: 37,861 | AU26: 37,861 | AV26: 37,861 | AW26: 37,861 | AX26: 8 | AY26: 83 | BC26: 1 | BD26: Same End 1st
A27: 2017-01-24 | H27: =(C27-B27)+(E27-D27)+(G27-F27) -> 0 | I27: 0.00 | M27: 0 | N27: 2017-01-24 | U27: 0 | V27: 0.00 | Z27: 0 | AB27: 2017-01-24 | AC27: 37,861 | AD27: 37,861 | AE27: 37,861 | AF27: 37,861 | AG27: 37,861 | AH27: 37,861 | AI27: 37,861 | AJ27: 0 | AK27: 0 | AO27: 0 | AP27: 2017-01-24 | AQ27: 37,861 | AR27: 37,861 | AS27: 37,861 | AT27: 37,861 | AU27: 37,861 | AV27: 37,861 | AW27: 37,861 | AX27: 0 | AY27: 0 | BC27: 0
A28: 2017-01-25 | H28: 0 | I28: 0.00 | M28: 0 | N28: 2017-01-25 | U28: 0 | V28: 0.00 | Z28: 0 | AB28: 2017-01-25 | AC28: 37,861 | AD28: 37,861 | AE28: 37,861 | AF28: 37,861 | AG28: 37,861 | AH28: 37,861 | AI28: 37,861 | AJ28: 0 | AK28: 0 | AO28: 0 | AP28: 2017-01-25 | AQ28: 37,861 | AR28: 37,861 | AS28: 37,861 | AT28: 37,861 | AU28: 37,861 | AV28: 37,861 | AW28: 37,861 | AX28: 0 | AY28: 0 | BC28: 0
A29: 2017-01-26 | H29: 0 | I29: 0.00 | M29: 0 | N29: 2017-01-26 | U29: 0 | V29: 0.00 | Z29: 0 | AB29: 2017-01-26 | AC29: 37,861 | AD29: 37,861 | AE29: 37,970 | AF29: 38,036 | AG29: 38,036 | AH29: 38,036 | AI29: 38,036 | AJ29: 0 | AK29: 66 | AO29: 1 | AP29: 2017-01-26 | AQ29: 37,861 | AR29: 37,861 | AS29: 37,970 | AT29: 38,031 | AU29: 38,031 | AV29: 38,031 | AW29: 38,031 | AX29: 0 | AY29: 61 | BC29: 1 | BD29: Same Start 2nd
A30: 2017-01-27 | B30: 0.2847222222 | C30: 0.5381944444 | D30: 0.5381944444 | E30: 0.8215277778 | H30: 0.5368055556 | I30: 12.88 | M30: 1 | N30: 2017-01-27 | O30: 0.2881944444 | P30: 0.5381944444 | Q30: 0.5381944444 | R30: 0.7951388889 | U30: 0.5069444444 | V30: 12.17 | Z30: 1 | AA30: Same Start 2nd | AB30: 2017-01-27 | AC30: 38,036 | AD30: 38,109 | AE30: 38,109 | AF30: 38,190 | AG30: 38,190 | AH30: 38,190 | AI30: 38,190 | AJ30: 0 | AK30: 154 | AO30: 1 | AP30: 2017-01-27 | AQ30: 38,037 | AR30: 38,109 | AS30: 38,109 | AT30: 38,186 | AU30: 38,186 | AV30: 38,186 | AW30: 38,186 | AX30: 6 | AY30: 149 | BC30: 1 | BD30: Same Start 2nd
A31: 2017-01-28 | H31: 0 | I31: 0.00 | M31: 0 | N31: 2017-01-28 | U31: 0 | V31: 0.00 | Z31: 0 | AB31: 2017-01-28 | AC31: 38,190 | AD31: 38,190 | AE31: 38,190 | AF31: 38,190 | AG31: 38,190 | AH31: 38,190 | AI31: 38,190 | AJ31: 0 | AK31: 0 | AO31: 0 | AP31: 2017-01-28 | AQ31: 38,186 | AR31: 38,186 | AS31: 38,186 | AT31: 38,186 | AU31: 38,186 | AV31: 38,186 | AW31: 38,186 | AX31: 0 | AY31: 0 | BC31: 0
A32: 2017-01-29 | H32: 0 | I32: 0.00 | M32: 0 | N32: 2017-01-29 | U32: 0 | V32: 0.00 | Z32: 0 | AB32: 2017-01-29 | AC32: 38,190 | AD32: 38,190 | AE32: 38,190 | AF32: 38,190 | AG32: 38,190 | AH32: 38,190 | AI32: 38,190 | AJ32: 0 | AK32: 0 | AO32: 0 | AP32: 2017-01-29 | AQ32: 38,186 | AR32: 38,186 | AS32: 38,186 | AT32: 38,186 | AU32: 38,186 | AV32: 38,186 | AW32: 38,186 | AX32: 0 | AY32: 0 | BC32: 0
A33: 2017-01-30 | B33: 0.2847222222 | C33: 0.5381944444 | D33: 0.5381944444 | E33: 0.8166666667 | H33: 0.5319444444 | I33: 12.77 | M33: 1 | N33: 2017-01-30 | O33: 0.2881944444 | P33: 0.5381944444 | Q33: 0.5381944444 | R33: 0.7881944444 | U33: 0.5 | V33: 12.00 | Z33: 1 | AA33: Same Start 2nd | AB33: 2017-01-30 | AC33: 38,190 | AD33: 38,253 | AE33: 38,253 | AF33: 38,318 | AG33: 38,318 | AH33: 38,318 | AI33: 38,318 | AJ33: 0 | AK33: 128 | AO33: 1 | AP33: 2017-01-30 | AQ33: 38,191 | AR33: 38,253 | AS33: 38,253 | AT33: 38,314 | AU33: 38,314 | AV33: 38,314 | AW33: 38,314 | AX33: 5 | AY33: 123 | BC33: 1 | BD33: Same Start 2nd
A34: 2017-01-31 | B34: 0.2847222222 | C34: 0.5381944444 | D34: 0.5381944444 | E34: 0.8208333333 | H34: 0.5361111111 | I34: 12.87 | M34: 1 | N34: 2017-01-31 | O34: 0.2881944444 | P34: 0.5381944444 | Q34: 0.5381944444 | R34: 0.7951388889 | U34: 0.5069444444 | V34: 12.17 | Z34: 1 | AA34: Same Start 2nd | AB34: 2017-01-31 | AC34: 38,318 | AD34: 38,391 | AE34: 38,391 | AF34: 38,470 | AG34: 38,470 | AH34: 38,470 | AI34: 38,470 | AJ34: 0 | AK34: 152 | AO34: 1 | AP34: 2017-01-31 | AQ34: 38,319 | AR34: 38,391 | AS34: 38,391 | AT34: 38,467 | AU34: 38,467 | AV34: 38,467 | AW34: 38,467 | AX34: 5 | AY34: 148 | BC34: 1 | BD34: Same Start 2nd
A35: 2017-02-01 | B35: 0.2847222222 | C35: 0.8159722222 | H35: 0.53125 | I35: 12.75 | M35: 1 | N35: 2017-02-01 | O35: 0.2881944444 | P35: 0.7881944444 | U35: 0.5 | V35: 12.00 | Z35: 1 | AB35: 2017-02-01 | AC35: 38,470 | AD35: 38,470 | AE35: 38,470 | AF35: 38,601 | AG35: 38,601 | AH35: 38,601 | AI35: 38,601 | AJ35: 0 | AK35: 131 | AO35: 1 | AP35: 2017-02-01 | AQ35: 38,467 | AR35: 38,467 | AS35: 38,467 | AT35: 38,597 | AU35: 38,597 | AV35: 38,597 | AW35: 38,597 | AX35: 0 | AY35: 130 | BC35: 1 | BD35: Rev Less Act Start 2nd
A36: 2017-02-02 | B36: 0.2847222222 | C36: 0.5381944444 | D36: 0.5381944444 | E36: 0.8236111111 | H36: 0.5388888889 | I36: 12.93 | M36: 1 | N36: 2017-02-02 | O36: 0.2881944444 | P36: 0.5381944444 | Q36: 0.5381944444 | R36: 0.7951388889 | U36: 0.5069444444 | V36: 12.17 | Z36: 1 | AA36: Same Start 2nd | AB36: 2017-02-02 | AC36: 34,601 | AD36: 38,674 | AE36: 38,674 | AF36: 38,755 | AG36: 38,755 | AH36: 38,755 | AI36: 38,755 | AJ36: (4000) | AK36: 4154 | AO36: 1 | AP36: 2017-02-02 | AQ36: 38,602 | AR36: 38,674 | AS36: 38,674 | AT36: 38,753 | AU36: 38,753 | AV36: 38,753 | AW36: 38,753 | AX36: 5 | AY36: 151 | BC36: 1 | BD36: Same Start 2nd
A37: 2017-02-03 | B37: 0.2847222222 | C37: 0.5381944444 | D37: 0.5381944444 | E37: 0.8097222222 | H37: 0.525 | I37: 12.60 | M37: 1 | N37: 2017-02-03 | O37: 0.2881944444 | P37: 0.5381944444 | Q37: 0.5381944444 | R37: 0.7881944444 | U37: 0.5 | V37: 12.00 | Z37: 1 | AA37: Same Start 2nd | AB37: 2017-02-03 | AC37: 38,755 | AD37: 38,819 | AE37: 38,819 | AF37: 38,885 | AG37: 38,885 | AH37: 38,885 | AI37: 38,885 | AJ37: 0 | AK37: 130 | AO37: 1 | AP37: 2017-02-03 | AQ37: 38,756 | AR37: 38,819 | AS37: 38,819 | AT37: 38,880 | AU37: 38,880 | AV37: 38,880 | AW37: 38,880 | AX37: 3 | AY37: 124 | BC37: 1 | BD37: Same Start 2nd
A38: 2017-02-04 | H38: 0 | I38: 0.00 | M38: 0 | N38: 2017-02-04 | U38: 0 | V38: 0.00 | Z38: 0 | AB38: 2017-02-04 | AC38: 38,885 | AD38: 38,885 | AE38: 38,885 | AF38: 38,885 | AG38: 38,885 | AH38: 38,885 | AI38: 38,885 | AJ38: 0 | AK38: 0 | AO38: 0 | AP38: 2017-02-04 | AQ38: 38,880 | AR38: 38,880 | AS38: 38,880 | AT38: 38,880 | AU38: 38,880 | AV38: 38,880 | AW38: 38,880 | AX38: 0 | AY38: 0 | BC38: 0
A39: 2017-02-05 | H39: 0 | I39: 0.00 | M39: 0 | N39: 2017-02-05 | U39: 0 | V39: 0.00 | Z39: 0 | AB39: 2017-02-05 | AC39: 38,885 | AD39: 38,885 | AE39: 38,885 | AF39: 38,885 | AG39: 38,885 | AH39: 38,885 | AI39: 38,885 | AJ39: 0 | AK39: 0 | AO39: 0 | AP39: 2017-02-05 | AQ39: 38,880 | AR39: 38,880 | AS39: 38,880 | AT39: 38,880 | AU39: 38,880 | AV39: 38,880 | AW39: 38,880 | AX39: 0 | AY39: 0 | BC39: 0
A40: 2017-02-06 | B40: 0.2847222222 | C40: 0.5381944444 | D40: 0.5381944444 | E40: 0.8201388889 | H40: 0.5354166667 | I40: 12.85 | M40: 1 | N40: 2017-02-06 | O40: 0.2881944444 | P40: 0.5381944444 | Q40: 0.5381944444 | R40: 0.7951388889 | U40: 0.5069444444 | V40: 12.17 | Z40: 1 | AA40: Same Start 2nd | AB40: 2017-02-06 | AC40: 38,885 | AD40: 38,958 | AE40: 38,958 | AF40: 39,038 | AG40: 39,038 | AH40: 39,038 | AI40: 39,038 | AJ40: 0 | AK40: 153 | AO40: 1 | AP40: 2017-02-06 | AQ40: 38,886 | AR40: 38,958 | AS40: 38,958 | AT40: 39,036 | AU40: 39,036 | AV40: 39,036 | AW40: 39,036 | AX40: 6 | AY40: 150 | BC40: 1 | BD40: Same Start 2nd
A41: 2017-02-07 | B41: 0.2847222222 | C41: 0.5381944444 | D41: 0.5381944444 | E41: 0.8229166667 | H41: 0.5381944444 | I41: 12.92 | M41: 1 | N41: 2017-02-07 | O41: 0.2881944444 | P41: 0.5381944444 | Q41: 0.5381944444 | R41: 0.7881944444 | U41: 0.5 | V41: 12.00 | Z41: 1 | AA41: Same Start 2nd | AB41: 2017-02-07 | AC41: 39,038 | AD41: 39,101 | AE41: 39,101 | AF41: 39,168 | AG41: 39,168 | AH41: 39,168 | AI41: 39,168 | AJ41: 0 | AK41: 130 | AO41: 1 | AP41: 2017-02-07 | AQ41: 39,084 | AR41: 39,101 | AS41: 39,101 | AT41: 39,164 | AU41: 39,164 | AV41: 39,164 | AW41: 39,164 | AX41: 48 | AY41: 80 | BC41: 1 | BD41: Same Start 2nd
A42: 2017-02-08 | B42: 0.2847222222 | C42: 0.5381944444 | D42: 0.5381944444 | E42: 0.8222222222 | H42: 0.5375 | I42: 12.90 | M42: 1 | N42: 2017-02-08 | O42: 0.2881944444 | P42: 0.5381944444 | Q42: 0.5381944444 | R42: 0.7951388889 | U42: 0.5069444444 | V42: 12.17 | Z42: 1 | AA42: Same Start 2nd | AB42: 2017-02-08 | AC42: 39,168 | AD42: 39,229 | AE42: 39,229 | AF42: 39,322 | AG42: 39,322 | AH42: 39,322 | AI42: 39,322 | AJ42: 0 | AK42: 154 | AO42: 1 | AP42: 2017-02-08 | AQ42: 39,169 | AR42: 39,229 | AS42: 39,229 | AT42: 39,318 | AU42: 39,318 | AV42: 39,318 | AW42: 39,318 | AX42: 5 | AY42: 149 | BC42: 1 | BD42: Same Start 2nd
A43: 2017-02-09 | H43: 0 | I43: 0.00 | M43: 0 | N43: 2017-02-09 | U43: 0 | V43: 0.00 | Z43: 0 | AB43: 2017-02-09 | AC43: 39,322 | AD43: 39,322 | AE43: 39,322 | AF43: 39,322 | AG43: 39,322 | AH43: 39,322 | AI43: 39,322 | AJ43: 0 | AK43: 0 | AO43: 0 | AP43: 2017-02-09 | AQ43: 39,318 | AR43: 39,318 | AS43: 39,318 | AT43: 39,318 | AU43: 39,318 | AV43: 39,318 | AW43: 39,318 | AX43: 0 | AY43: 0 | BC43: 0
A44: 2017-02-10 | H44: 0 | I44: 0.00 | M44: 0 | N44: 2017-02-10 | U44: 0 | V44: 0.00 | Z44: 0 | AB44: 2017-02-10 | AC44: 39,322 | AD44: 39,322 | AE44: 39,322 | AF44: 39,322 | AG44: 39,322 | AH44: 39,322 | AI44: 39,322 | AJ44: 0 | AK44: 0 | AO44: 0 | AP44: 2017-02-10 | AQ44: 39,318 | AR44: 39,318 | AS44: 39,318 | AT44: 39,318 | AU44: 39,318 | AV44: 39,318 | AW44: 39,318 | AX44: 0 | AY44: 0 | BC44: 0
A45: 2017-02-11 | H45: 0 | I45: 0.00 | M45: 0 | N45: 2017-02-11 | U45: 0 | V45: 0.00 | Z45: 0 | AB45: 2017-02-11 | AC45: 39,322 | AD45: 39,322 | AE45: 39,322 | AF45: 39,322 | AG45: 39,322 | AH45: 39,322 | AI45: 39,322 | AJ45: 0 | AK45: 0 | AO45: 0 | AP45: 2017-02-11 | AQ45: 39,318 | AR45: 39,318 | AS45: 39,318 | AT45: 39,318 | AU45: 39,318 | AV45: 39,318 | AW45: 39,318 | AX45: 0 | AY45: 0 | BC45: 0
A46: 2017-02-12 | H46: 0 | I46: 0.00 | M46: 0 | N46: 2017-02-12 | U46: 0 | V46: 0.00 | Z46: 0 | AB46: 2017-02-12 | AC46: 39,322 | AD46: 39,322 | AE46: 39,322 | AF46: 39,322 | AG46: 39,322 | AH46: 39,322 | AI46: 39,322 | AJ46: 0 | AK46: 0 | AO46: 0 | AP46: 2017-02-12 | AQ46: 39,318 | AR46: 39,318 | AS46: 39,318 | AT46: 39,318 | AU46: 39,318 | AV46: 39,318 | AW46: 39,318 | AX46: 0 | AY46: 0 | BC46: 0
A47: 2017-02-13 | H47: 0 | I47: 0.00 | M47: 0 | N47: 2017-02-13 | U47: 0 | V47: 0.00 | Z47: 0 | AB47: 2017-02-13 | AC47: 39,322 | AD47: 39,322 | AE47: 39,322 | AF47: 39,322 | AG47: 39,322 | AH47: 39,322 | AI47: 39,322 | AJ47: 0 | AK47: 0 | AO47: 0 | AP47: 2017-02-13 | AQ47: 39,318 | AR47: 39,318 | AS47: 39,318 | AT47: 39,318 | AU47: 39,318 | AV47: 39,318 | AW47: 39,318 | AX47: 0 | AY47: 0 | BC47: 0
A48: 2017-02-14 | H48: 0 | I48: 0.00 | M48: 0 | N48: 2017-02-14 | U48: 0 | V48: 0.00 | Z48: 0 | AB48: 2017-02-14 | AC48: 39,322 | AD48: 39,322 | AE48: 39,322 | AF48: 39,322 | AG48: 39,322 | AH48: 39,322 | AI48: 39,322 | AJ48: 0 | AK48: 0 | AO48: 0 | AP48: 2017-02-14 | AQ48: 39,318 | AR48: 39,318 | AS48: 39,318 | AT48: 39,318 | AU48: 39,318 | AV48: 39,318 | AW48: 39,318 | AX48: 0 | AY48: 0 | BC48: 0
A49: 2017-02-15 | H49: 0 | I49: 0.00 | M49: 0 | N49: 2017-02-15 | U49: 0 | V49: 0.00 | Z49: 0 | AB49: 2017-02-15 | AC49: 39,322 | AD49: 39,322 | AE49: 39,322 | AF49: 39,322 | AG49: 39,322 | AH49: 39,322 | AI49: 39,322 | AJ49: 0 | AK49: 0 | AO49: 0 | AP49: 2017-02-15 | AQ49: 39,318 | AR49: 39,318 | AS49: 39,318 | AT49: 39,318 | AU49: 39,318 | AV49: 39,318 | AW49: 39,318 | AX49: 0 | AY49: 0 | BC49: 0
A50: 2017-02-16 | H50: 0 | I50: 0.00 | M50: 0 | N50: 2017-02-16 | U50: 0 | V50: 0.00 | Z50: 0 | AB50: 2017-02-16 | AC50: 39,322 | AD50: 39,322 | AE50: 39,322 | AF50: 39,322 | AG50: 39,322 | AH50: 39,322 | AI50: 39,322 | AJ50: 0 | AK50: 0 | AO50: 0 | AP50: 2017-02-16 | AQ50: 39,318 | AR50: 39,318 | AS50: 39,318 | AT50: 39,318 | AU50: 39,318 | AV50: 39,318 | AW50: 39,318 | AX50: 0 | AY50: 0 | BC50: 0
A51: 2017-02-17 | H51: 0 | I51: 0.00 | M51: 0 | N51: 2017-02-17 | U51: 0 | V51: 0.00 | Z51: 0 | AB51: 2017-02-17 | AC51: 39,322 | AD51: 39,322 | AE51: 39,322 | AF51: 39,322 | AG51: 39,322 | AH51: 39,322 | AI51: 39,322 | AJ51: 0 | AK51: 0 | AO51: 0 | AP51: 2017-02-17 | AQ51: 39,318 | AR51: 39,318 | AS51: 39,318 | AT51: 39,318 | AU51: 39,318 | AV51: 39,318 | AW51: 39,318 | AX51: 0 | AY51: 0 | BC51: 0
A52: 2017-02-18 | H52: 0 | I52: 0.00 | M52: 0 | N52: 2017-02-18 | U52: 0 | V52: 0.00 | Z52: 0 | AB52: 2017-02-18 | AC52: 39,322 | AD52: 39,322 | AE52: 39,322 | AF52: 39,322 | AG52: 39,322 | AH52: 39,322 | AI52: 39,322 | AJ52: 0 | AK52: 0 | AO52: 0 | AP52: 2017-02-18 | AQ52: 39,318 | AR52: 39,318 | AS52: 39,318 | AT52: 39,318 | AU52: 39,318 | AV52: 39,318 | AW52: 39,318 | AX52: 0 | AY52: 0 | BC52: 0
A53: 2017-02-19 | H53: 0 | I53: 0.00 | M53: 0 | N53: 2017-02-19 | U53: 0 | V53: 0.00 | Z53: 0 | AB53: 2017-02-19 | AC53: 39,322 | AD53: 39,322 | AE53: 39,322 | AF53: 39,322 | AG53: 39,322 | AH53: 39,322 | AI53: 39,322 | AJ53: 0 | AK53: 0 | AO53: 0 | AP53: 2017-02-19 | AQ53: 39,318 | AR53: 39,318 | AS53: 39,318 | AT53: 39,318 | AU53: 39,318 | AV53: 39,318 | AW53: 39,318 | AX53: 0 | AY53: 0 | BC53: 0
A54: 2017-02-20 | H54: 0 | I54: 0.00 | M54: 0 | N54: 2017-02-20 | U54: 0 | V54: 0.00 | Z54: 0 | AB54: 2017-02-20 | AC54: 39,322 | AD54: 39,322 | AE54: 39,322 | AF54: 39,322 | AG54: 39,322 | AH54: 39,322 | AI54: 39,322 | AJ54: 0 | AK54: 0 | AO54: 0 | AP54: 2017-02-20 | AQ54: 39,318 | AR54: 39,318 | AS54: 39,318 | AT54: 39,318 | AU54: 39,318 | AV54: 39,318 | AW54: 39,318 | AX54: 0 | AY54: 0 | BC54: 0
A55: 2017-02-21 | H55: 0 | I55: 0.00 | M55: 0 | N55: 2017-02-21 | U55: 0 | V55: 0.00 | Z55: 0 | AB55: 2017-02-21 | AC55: 39,322 | AD55: 39,322 | AE55: 39,322 | AF55: 39,322 | AG55: 39,322 | AH55: 39,322 | AI55: 39,322 | AJ55: 0 | AK55: 0 | AO55: 0 | AP55: 2017-02-21 | AQ55: 39,318 | AR55: 39,318 | AS55: 39,318 | AT55: 39,318 | AU55: 39,318 | AV55: 39,318 | AW55: 39,318 | AX55: 0 | AY55: 0 | BC55: 0
A56: 2017-02-22 | B56: 0.2847222222 | C56: 0.5381944444 | D56: 0.5381944444 | E56: 0.8055555556 | H56: 0.5208333333 | I56: 12.50 | M56: 1 | N56: 2017-02-22 | O56: 0.2881944444 | P56: 0.5381944444 | Q56: 0.5381944444 | R56: 0.7881944444 | U56: 0.5 | V56: 12.00 | Z56: 1 | AA56: Same Start 2nd | AB56: 2017-02-22 | AC56: 39,322 | AD56: 39,374 | AE56: 39,374 | AF56: 39,450 | AG56: 39,450 | AH56: 39,450 | AI56: 39,450 | AJ56: 0 | AK56: 128 | AO56: 1 | AP56: 2017-02-22 | AQ56: 39,323 | AR56: 39,374 | AS56: 39,374 | AT56: 39,448 | AU56: 39,448 | AV56: 39,448 | AW56: 39,448 | AX56: 5 | AY56: 125 | BC56: 1 | BD56: Same Start 2nd
A57: 2017-02-23 | B57: 0.2847222222 | C57: 0.8173611111 | H57: 0.5326388889 | I57: 12.78 | M57: 1 | N57: 2017-02-23 | O57: 0.2881944444 | P57: 0.7881944444 | U57: 0.5 | V57: 12.00 | Z57: 1 | AB57: 2017-02-23 | AC57: 39,450 | AD57: 39,578 | AE57: 39,578 | AF57: 39,578 | AG57: 39,578 | AH57: 39,578 | AI57: 39,578 | AJ57: 0 | AK57: 128 | AO57: 1 | AP57: 2017-02-23 | AQ57: 39,451 | AR57: 39,574 | AS57: 39,574 | AT57: 39,574 | AU57: 39,574 | AV57: 39,574 | AW57: 39,574 | AX57: 3 | AY57: 123 | BC57: 1
A58: 2017-02-24 | B58: 0.2847222222 | C58: 0.8152777778 | H58: 0.5305555556 | I58: 12.73 | M58: 1 | N58: 2017-02-24 | O58: 0.2881944444 | P58: 0.7951388889 | U58: 0.5069444444 | V58: 12.17 | Z58: 1 | AB58: 2017-02-24 | AC58: 39,578 | AD58: 39,706 | AE58: 39,706 | AF58: 39,706 | AG58: 39,706 | AH58: 39,706 | AI58: 39,706 | AJ58: 0 | AK58: 128 | AO58: 1 | AP58: 2017-02-24 | AQ58: 39,579 | AR58: 39,702 | AS58: 39,702 | AT58: 39,702 | AU58: 39,702 | AV58: 39,702 | AW58: 39,702 | AX58: 5 | AY58: 123 | BC58: 1
A59: 2017-02-25 | H59: 0 | I59: 0.00 | M59: 0 | N59: 2017-02-25 | U59: 0 | V59: 0.00 | Z59: 0 | AB59: 2017-02-25 | AC59: 39,706 | AD59: 39,706 | AE59: 39,706 | AF59: 39,706 | AG59: 39,706 | AH59: 39,706 | AI59: 39,706 | AJ59: 0 | AK59: 0 | AO59: 0 | AP59: 2017-02-25 | AQ59: 39,702 | AR59: 39,702 | AS59: 39,702 | AT59: 39,702 | AU59: 39,702 | AV59: 39,702 | AW59: 39,702 | AX59: 0 | AY59: 0 | BC59: 0
A60: 2017-02-26 | H60: 0 | I60: 0.00 | M60: 0 | N60: 2017-02-26 | U60: 0 | V60: 0.00 | Z60: 0 | AB60: 2017-02-26 | AC60: 39,706 | AD60: 39,706 | AE60: 39,706 | AF60: 39,706 | AG60: 39,706 | AH60: 39,706 | AI60: 39,706 | AJ60: 0 | AK60: 0 | AO60: 0 | AP60: 2017-02-26 | AQ60: 39,702 | AR60: 39,702 | AS60: 39,702 | AT60: 39,702 | AU60: 39,702 | AV60: 39,702 | AW60: =MAX(AR60, AT60, AV60) -> 39,702 | AX60: 0 | AY60: 0 | BC60: 0
A61: 2017-02-27 | H61: 0 | I61: 0.00 | M61: 0 | N61: 2017-02-27 | U61: 0 | V61: 0.00 | Z61: 0 | AB61: 2017-02-27 | AC61: 39,706 | AD61: 39,706 | AE61: 39,706 | AF61: 39,706 | AG61: 39,706 | AH61: 39,706 | AI61: 39,706 | AJ61: 0 | AK61: 0 | AO61: 0 | AP61: 2017-02-27 | AQ61: 39,702 | AR61: 39,702 | AS61: 39,702 | AT61: 39,702 | AU61: 39,702 | AV61: 39,702 | AW61: 39,702 | AX61: 0 | AY61: 0 | BC61: 0
A62: 2017-02-28 | H62: 0 | I62: 0.00 | M62: 0 | N62: 2017-02-28 | U62: 0 | V62: 0.00 | Z62: 0 | AB62: 2017-02-28 | AC62: 39,706 | AD62: 39,706 | AE62: 39,706 | AF62: 39,706 | AG62: 39,706 | AH62: 39,706 | AI62: 39,706 | AJ62: 0 | AK62: 0 | AO62: 0 | AP62: 2017-02-28 | AQ62: 39,702 | AR62: 39,702 | AS62: 39,702 | AT62: 39,702 | AU62: 39,702 | AV62: 39,702 | AW62: 39,702 | AX62: 0 | AY62: 0 | BC62: 0
A63: 2017-03-01 | H63: 0 | I63: 0.00 | M63: 0 | N63: 2017-03-01 | U63: 0 | V63: 0.00 | Z63: 0 | AB63: 2017-03-01 | AC63: 39,706 | AD63: 39,706 | AE63: 39,706 | AF63: 39,706 | AG63: 39,706 | AH63: 39,706 | AI63: 39,706 | AJ63: 0 | AK63: 0 | AO63: 0 | AP63: 2017-03-01 | AQ63: 39,702 | AR63: 39,702 | AS63: 39,702 | AT63: 39,702 | AU63: 39,702 | AV63: 39,702 | AW63: 39,702 | AX63: 0 | AY63: 0 | BC63: 0
A64: 2017-03-02 | H64: 0 | I64: 0.00 | M64: 0 | N64: 2017-03-02 | U64: 0 | V64: 0.00 | Z64: 0 | AB64: 2017-03-02 | AC64: 39,706 | AD64: 39,706 | AE64: 39,706 | AF64: 39,706 | AG64: 39,706 | AH64: 39,706 | AI64: 39,706 | AJ64: 0 | AK64: 0 | AO64: 0 | AP64: 2017-03-02 | AQ64: 39,702 | AR64: 39,702 | AS64: 39,702 | AT64: 39,702 | AU64: 39,702 | AV64: 39,702 | AW64: 39,702 | AX64: 0 | AY64: 0 | BC64: 0
A65: 2017-03-03 | H65: 0 | I65: 0.00 | M65: 0 | N65: 2017-03-03 | U65: 0 | V65: 0.00 | Z65: 0 | AB65: 2017-03-03 | AC65: 39,706 | AD65: 39,706 | AE65: 39,706 | AF65: 39,706 | AG65: 39,706 | AH65: 39,706 | AI65: 39,706 | AJ65: 0 | AK65: 0 | AO65: 0 | AP65: 2017-03-03 | AQ65: 39,702 | AR65: 39,702 | AS65: 39,702 | AT65: 39,702 | AU65: 39,702 | AV65: 39,702 | AW65: 39,702 | AX65: 0 | AY65: 0 | BC65: 0
A66: 2017-03-04 | H66: 0 | I66: 0.00 | M66: 0 | N66: 2017-03-04 | U66: 0 | V66: 0.00 | Z66: 0 | AB66: 2017-03-04 | AC66: 39,706 | AD66: 39,706 | AE66: 39,706 | AF66: 39,706 | AG66: 39,706 | AH66: 39,706 | AI66: 39,706 | AJ66: 0 | AK66: 0 | AO66: 0 | AP66: 2017-03-04 | AQ66: 39,702 | AR66: 39,702 | AS66: 39,702 | AT66: 39,702 | AU66: 39,702 | AV66: 39,702 | AW66: 39,702 | AX66: 0 | AY66: 0 | BC66: 0
A67: 2017-03-05 | H67: 0 | I67: 0.00 | M67: 0 | N67: 2017-03-05 | U67: 0 | V67: 0.00 | Z67: 0 | AB67: 2017-03-05 | AC67: 39,706 | AD67: 39,706 | AE67: 39,706 | AF67: 39,706 | AG67: 39,706 | AH67: 39,706 | AI67: 39,706 | AJ67: 0 | AK67: 0 | AO67: 0 | AP67: 2017-03-05 | AQ67: 39,702 | AR67: 39,702 | AS67: 39,702 | AT67: 39,702 | AU67: 39,702 | AV67: 39,702 | AW67: 39,702 | AX67: 0 | AY67: 0 | BC67: 0
A68: 2017-03-06 | H68: 0 | I68: 0.00 | M68: =IF(H68>0, 1, 0) -> 0 | N68: 2017-03-06 | U68: =(P68-O68)+(R68-Q68)+(T68-S68) -> 0 | V68: 0.00 | Z68: =IF(U68>0, 1, 0) -> 0 | AB68: 2017-03-06 | AC68: 39,706 | AD68: 39,706 | AE68: 39,706 | AF68: 39,706 | AG68: 39,706 | AH68: 39,706 | AI68: 39,706 | AJ68: 0 | AK68: =(AD68-AC68)+(AF68-AE68)+(AH68-AG68) -> 0 | AO68: 0 | AP68: 2017-03-06 | AQ68: 39,702 | AR68: 39,702 | AS68: 39,702 | AT68: 39,702 | AU68: 39,702 | AV68: 39,702 | AW68: 39,702 | AX68: 0 | AY68: 0 | BC68: =IF(AY68>0, 1, 0) -> 0
A69: 2017-03-07 | B69: 0.2847222222 | C69: 0.5381944444 | D69: 0.5381944444 | E69: 0.81875 | H69: 0.5340277778 | I69: =H69*24 -> 12.82 | M69: 1 | N69: 2017-03-07 | O69: 0.2881944444 | P69: 0.5381944444 | Q69: 0.5381944444 | R69: 0.7881944444 | U69: 0.5 | V69: =U69*24 -> 12.00 | Z69: 1 | AA69: =IF(H69<U69,"Actual less than Revenue",IF(AND(T69>G69,F69<>G69,S69<>T69),"Rev Over Act End 3rd", IF(AND(S69<F69,F69<>G69,S69<>T69),"Rev Less Act Start 3rd",IF(AND(R69>E69,D69<>E69,Q69<>R69),"Rev Over Act End 2nd",IF(AND(Q69<D69,D69<>E69,Q69<>R69),"Rev Less Act Start 2nd",IF(AND(P69>C69,B69<>C69,O69<>P69),"Rev Over Act End 1st",IF(AND(O69<B69,B69<>C69,O69<>P69),"Rev Less Act Start 1st",IF(AND(T69=G69,F69<>G69,S69<>T69),"Same End 3rd",IF(AND(S69=F69,F69<>G69,S69<>T69),"Same Start 3rd",IF(AND(R69=E69,D69<>E69,Q69<>R69),"Same End 2nd",IF(AND(Q69=D69,D69<>E69,Q69<>R69),"Same Start 2nd",IF(AND(P69=C69,B69<>C69,O69<>P69),"Same End 1st",IF(AND(O69=B69,B69<>C69,O69<>P69),"Same Start 1st",""))))))))))))) -> Same Start 2nd | AB69: 2017-03-07 | AC69: 39,707 | AD69: 39,792 | AE69: 39,792 | AF69: 39,860 | AG69: 39,860 | AH69: 39,860 | AI69: 39,860 | AJ69: 1 | AK69: 153 | AO69: =IF(AK69>0, 1, 0) -> 1 | AP69: 2017-03-07 | AQ69: 39,708 | AR69: 39,792 | AS69: 39,792 | AT69: 39,853 | AU69: 39,853 | AV69: 39,853 | AW69: =MAX(AR69, AT69, AV69) -> 39,853 | AX69: =IF(AQ69=AW68, 0, AQ69-AW68) -> 6 | AY69: =(AR69-AQ69)+(AT69-AS69)+(AV69-AU69) -> 145 | BC69: 1 | BD69: =IF(AK69<AY69,"Actual less than Revenue",IF(AND(AV69>AH69,AG69<>AH69,AU69<>AV69),"Rev Over Act End 3rd",IF(AND(AU69<AG69,AG69<>AH69,AU69<>AV69),"Rev Less Act Start 3rd",IF(AND(AT69>AF69,AE69<>AF69,AS69<>AT69),"Rev Over Act End 2nd",IF(AND(AS69<AE69,AE69<>AF69,AS69<>AT69),"Rev Less Act Start 2nd",IF(AND(AR69>AD69,AC69<>AD69,AQ69<>AR69),"Rev Over Act End 1st",IF(AND(AQ69<AC69,AC69<>AD69,AQ69<>AR69),"Rev Less Act Start 1st",IF(AND(AV69=AH69,AG69<>AH69,AU69<>AV69),"Same End 3rd",IF(AND(AU69=AG69,AG69<>AH69,AU69<>AV69),"Same Start 3rd",IF(AND(AT69=AF69,AE69<>AF69,AS69<>AT69),"Same End 2nd",IF(AND(AS69=AE69,AE69<>AF69,AS69<>AT69),"Same Start 2nd",IF(AND(AR69=AD69,AC69<>AD69,AQ69<>AR69),"Same End 1st",IF(AND(AQ69=AC69,AC69<>AD69,AQ69<>AR69),"Same Start 1st",""))))))))))))) -> Same Start 2nd
A70: 2017-03-08 | H70: 0 | I70: 0.00 | M70: 0 | N70: 2017-03-08 | U70: 0 | V70: 0.00 | Z70: 0 | AB70: 2017-03-08 | AC70: 39,860 | AD70: 39,860 | AE70: 39,860 | AF70: 39,860 | AG70: 39,860 | AH70: 39,860 | AI70: 39,860 | AJ70: 0 | AK70: 0 | AO70: 0 | AP70: 2017-03-08 | AQ70: 39,853 | AR70: 39,853 | AS70: 39,853 | AT70: 39,853 | AU70: 39,853 | AV70: 39,853 | AW70: 39,853 | AX70: 0 | AY70: 0 | BC70: 0
A71: 2017-03-09 | H71: 0 | I71: 0.00 | M71: 0 | N71: 2017-03-09 | U71: 0 | V71: 0.00 | Z71: 0 | AB71: 2017-03-09 | AC71: 39,860 | AD71: =AC71 -> 39,860 | AE71: 39,860 | AF71: 39,860 | AG71: 39,860 | AH71: 39,860 | AI71: 39,860 | AJ71: =IF(AC71=AI70, 0, AC71-AI70) -> 0 | AK71: 0 | AO71: 0 | AP71: 2017-03-09 | AQ71: 39,853 | AR71: =AQ71 -> 39,853 | AS71: 39,853 | AT71: 39,853 | AU71: 39,853 | AV71: 39,853 | AW71: 39,853 | AX71: 0 | AY71: 0 | BC71: 0
A72: 2017-03-10 | H72: 0 | I72: 0.00 | M72: 0 | N72: 2017-03-10 | U72: 0 | V72: 0.00 | Z72: 0 | AB72: 2017-03-10 | AC72: 39,860 | AD72: 39,860 | AE72: 39,860 | AF72: 39,860 | AG72: 39,860 | AH72: 39,860 | AI72: 39,860 | AJ72: 0 | AK72: 0 | AO72: 0 | AP72: 2017-03-10 | AQ72: 39,853 | AR72: 39,853 | AS72: 39,853 | AT72: 39,853 | AU72: 39,853 | AV72: 39,853 | AW72: 39,853 | AX72: 0 | AY72: 0 | BC72: 0
A73: 2017-03-11 | H73: 0 | I73: 0.00 | M73: 0 | N73: 2017-03-11 | U73: 0 | V73: 0.00 | Z73: 0 | AB73: 2017-03-11 | AC73: 39,860 | AD73: 39,860 | AE73: 39,860 | AF73: 39,860 | AG73: 39,860 | AH73: 39,860 | AI73: 39,860 | AJ73: 0 | AK73: 0 | AO73: 0 | AP73: 2017-03-11 | AQ73: 39,853 | AR73: 39,853 | AS73: 39,853 | AT73: 39,853 | AU73: 39,853 | AV73: 39,853 | AW73: 39,853 | AX73: 0 | AY73: 0 | BC73: 0
A74: 2017-03-12 | H74: 0 | I74: 0.00 | M74: 0 | N74: 2017-03-12 | U74: 0 | V74: 0.00 | Z74: 0 | AB74: 2017-03-12 | AC74: 39,860 | AD74: 39,860 | AE74: 39,860 | AF74: 39,860 | AG74: 39,860 | AH74: 39,860 | AI74: 39,860 | AJ74: 0 | AK74: 0 | AO74: 0 | AP74: 2017-03-12 | AQ74: 39,853 | AR74: 39,853 | AS74: 39,853 | AT74: 39,853 | AU74: 39,853 | AV74: 39,853 | AW74: 39,853 | AX74: 0 | AY74: 0 | BC74: 0
A75: 2017-03-13 | H75: 0 | I75: 0.00 | M75: 0 | N75: 2017-03-13 | U75: 0 | V75: 0.00 | Z75: 0 | AB75: 2017-03-13 | AC75: 39,860 | AD75: 39,860 | AE75: 39,860 | AF75: 39,860 | AG75: 39,860 | AH75: 39,860 | AI75: 39,860 | AJ75: 0 | AK75: 0 | AO75: 0 | AP75: 2017-03-13 | AQ75: 39,853 | AR75: 39,853 | AS75: 39,853 | AT75: 39,853 | AU75: 39,853 | AV75: 39,853 | AW75: 39,853 | AX75: 0 | AY75: 0 | BC75: 0
A76: 2017-03-14 | H76: 0 | I76: 0.00 | M76: 0 | N76: 2017-03-14 | U76: 0 | V76: 0.00 | Z76: 0 | AB76: 2017-03-14 | AC76: 39,860 | AD76: 39,860 | AE76: 39,860 | AF76: 39,860 | AG76: 39,860 | AH76: 39,860 | AI76: =MAX(AD76, AF76, AH76) -> 39,860 | AJ76: 0 | AK76: 0 | AO76: 0 | AP76: 2017-03-14 | AQ76: 39,853 | AR76: 39,853 | AS76: 39,853 | AT76: 39,853 | AU76: 39,853 | AV76: 39,853 | AW76: 39,853 | AX76: 0 | AY76: 0 | BC76: 0
A77: 2017-03-15 | H77: 0 | I77: 0.00 | M77: 0 | N77: 2017-03-15 | U77: 0 | V77: 0.00 | Z77: 0 | AB77: 2017-03-15 | AC77: =AI76 -> 39,860 | AD77: 39,860 | AE77: 39,860 | AF77: 39,860 | AG77: 39,860 | AH77: 39,860 | AI77: 39,860 | AJ77: 0 | AK77: 0 | AO77: 0 | AP77: 2017-03-15 | AQ77: =AW76 -> 39,853 | AR77: 39,853 | AS77: 39,853 | AT77: 39,853 | AU77: 39,853 | AV77: 39,853 | AW77: 39,853 | AX77: 0 | AY77: 0 | BC77: 0
A78: 2017-03-16 | H78: 0 | I78: 0.00 | M78: 0 | N78: 2017-03-16 | U78: 0 | V78: 0.00 | Z78: 0 | AB78: 2017-03-16 | AC78: 39,860 | AD78: 39,860 | AE78: 39,860 | AF78: 39,860 | AG78: 39,860 | AH78: 39,860 | AI78: 39,860 | AJ78: 0 | AK78: 0 | AO78: 0 | AP78: 2017-03-16 | AQ78: 39,853 | AR78: 39,853 | AS78: 39,853 | AT78: 39,853 | AU78: 39,853 | AV78: 39,853 | AW78: 39,853 | AX78: 0 | AY78: 0 | BC78: 0
A79: 2017-03-17 | H79: 0 | I79: 0.00 | M79: 0 | N79: 2017-03-17 | U79: 0 | V79: 0.00 | Z79: 0 | AB79: 2017-03-17 | AC79: 39,860 | AD79: 39,860 | AE79: 39,860 | AF79: 39,860 | AG79: 39,860 | AH79: 39,860 | AI79: 39,860 | AJ79: 0 | AK79: 0 | AO79: 0 | AP79: 2017-03-17 | AQ79: 39,853 | AR79: 39,853 | AS79: 39,853 | AT79: 39,853 | AU79: 39,853 | AV79: 39,853 | AW79: 39,853 | AX79: 0 | AY79: 0 | BC79: 0
A80: 2017-03-18 | H80: 0 | I80: 0.00 | M80: 0 | N80: 2017-03-18 | U80: 0 | V80: 0.00 | Z80: 0 | AB80: 2017-03-18 | AC80: 39,860 | AD80: 39,860 | AE80: 39,860 | AF80: 39,860 | AG80: 39,860 | AH80: 39,860 | AI80: 39,860 | AJ80: 0 | AK80: 0 | AO80: 0 | AP80: 2017-03-18 | AQ80: 39,853 | AR80: 39,853 | AS80: 39,853 | AT80: 39,853 | AU80: 39,853 | AV80: 39,853 | AW80: 39,853 | AX80: 0 | AY80: 0 | BC80: 0
A81: 2017-03-19 | H81: 0 | I81: 0.00 | M81: 0 | N81: 2017-03-19 | U81: 0 | V81: 0.00 | Z81: 0 | AB81: 2017-03-19 | AC81: 39,860 | AD81: 39,860 | AE81: 39,860 | AF81: 39,860 | AG81: 39,860 | AH81: 39,860 | AI81: 39,860 | AJ81: 0 | AK81: 0 | AO81: 0 | AP81: 2017-03-19 | AQ81: 39,853 | AR81: 39,853 | AS81: 39,853 | AT81: 39,853 | AU81: 39,853 | AV81: 39,853 | AW81: 39,853 | AX81: 0 | AY81: 0 | BC81: 0
A82: 2017-03-20 | H82: 0 | I82: 0.00 | M82: 0 | N82: 2017-03-20 | U82: 0 | V82: 0.00 | Z82: 0 | AB82: 2017-03-20 | AC82: 39,860 | AD82: 39,860 | AE82: 39,860 | AF82: 39,860 | AG82: 39,860 | AH82: 39,860 | AI82: 39,860 | AJ82: 0 | AK82: 0 | AO82: 0 | AP82: 2017-03-20 | AQ82: 39,853 | AR82: 39,853 | AS82: 39,853 | AT82: 39,853 | AU82: 39,853 | AV82: 39,853 | AW82: 39,853 | AX82: 0 | AY82: 0 | BC82: 0
A83: 2017-03-21 | H83: 0 | I83: 0.00 | M83: 0 | N83: 2017-03-21 | U83: 0 | V83: 0.00 | Z83: 0 | AB83: 2017-03-21 | AC83: 39,860 | AD83: 39,860 | AE83: 39,860 | AF83: 39,860 | AG83: 39,860 | AH83: 39,860 | AI83: 39,860 | AJ83: 0 | AK83: 0 | AO83: 0 | AP83: 2017-03-21 | AQ83: 39,853 | AR83: 39,853 | AS83: 39,853 | AT83: 39,853 | AU83: 39,853 | AV83: 39,853 | AW83: 39,853 | AX83: 0 | AY83: 0 | BC83: 0
A84: 2017-03-22 | H84: 0 | I84: 0.00 | M84: 0 | N84: 2017-03-22 | U84: 0 | V84: 0.00 | Z84: 0 | AB84: 2017-03-22 | AC84: 39,860 | AD84: 39,860 | AE84: 39,860 | AF84: 39,860 | AG84: 39,860 | AH84: 39,860 | AI84: 39,860 | AJ84: 0 | AK84: 0 | AO84: 0 | AP84: 2017-03-22 | AQ84: 39,853 | AR84: 39,853 | AS84: 39,853 | AT84: 39,853 | AU84: 39,853 | AV84: 39,853 | AW84: 39,853 | AX84: 0 | AY84: 0 | BC84: 0
A85: 2017-03-23 | H85: 0 | I85: 0.00 | M85: 0 | N85: 2017-03-23 | U85: 0 | V85: 0.00 | Z85: 0 | AB85: 2017-03-23 | AC85: 39,860 | AD85: 39,860 | AE85: 39,860 | AF85: 39,860 | AG85: 39,860 | AH85: 39,860 | AI85: 39,860 | AJ85: 0 | AK85: 0 | AO85: 0 | AP85: 2017-03-23 | AQ85: 39,853 | AR85: 39,853 | AS85: 39,853 | AT85: 39,853 | AU85: 39,853 | AV85: 39,853 | AW85: 39,853 | AX85: 0 | AY85: 0 | BC85: 0
A86: 2017-03-24 | H86: 0 | I86: 0.00 | M86: 0 | N86: 2017-03-24 | U86: 0 | V86: 0.00 | Z86: 0 | AB86: 2017-03-24 | AC86: 39,860 | AD86: 39,860 | AE86: 39,860 | AF86: 39,860 | AG86: 39,860 | AH86: 39,860 | AI86: 39,860 | AJ86: 0 | AK86: 0 | AO86: 0 | AP86: 2017-03-24 | AQ86: 39,853 | AR86: 39,853 | AS86: 39,853 | AT86: 39,853 | AU86: 39,853 | AV86: 39,853 | AW86: 39,853 | AX86: 0 | AY86: 0 | BC86: 0
A87: 2017-03-25 | H87: 0 | I87: 0.00 | M87: 0 | N87: 2017-03-25 | U87: 0 | V87: 0.00 | Z87: 0 | AB87: 2017-03-25 | AC87: 39,860 | AD87: 39,860 | AE87: 39,860 | AF87: 39,860 | AG87: 39,860 | AH87: 39,860 | AI87: 39,860 | AJ87: 0 | AK87: 0 | AO87: 0 | AP87: 2017-03-25 | AQ87: 39,853 | AR87: 39,853 | AS87: 39,853 | AT87: 39,853 | AU87: 39,853 | AV87: 39,853 | AW87: 39,853 | AX87: 0 | AY87: 0 | BC87: 0
A88: 2017-03-26 | H88: 0 | I88: 0.00 | M88: 0 | N88: 2017-03-26 | U88: 0 | V88: 0.00 | Z88: 0 | AB88: 2017-03-26 | AC88: 39,860 | AD88: 39,860 | AE88: 39,860 | AF88: 39,860 | AG88: 39,860 | AH88: 39,860 | AI88: 39,860 | AJ88: 0 | AK88: 0 | AO88: 0 | AP88: 2017-03-26 | AQ88: 39,853 | AR88: 39,853 | AS88: 39,853 | AT88: 39,853 | AU88: 39,853 | AV88: 39,853 | AW88: 39,853 | AX88: 0 | AY88: 0 | BC88: 0
A89: 2017-03-27 | H89: 0 | I89: 0.00 | M89: 0 | N89: 2017-03-27 | U89: 0 | V89: 0.00 | Z89: 0 | AB89: 2017-03-27 | AC89: 39,860 | AD89: 39,860 | AE89: 39,860 | AF89: 39,860 | AG89: 39,860 | AH89: 39,860 | AI89: 39,860 | AJ89: 0 | AK89: 0 | AO89: 0 | AP89: 2017-03-27 | AQ89: 39,853 | AR89: 39,853 | AS89: 39,853 | AT89: 39,853 | AU89: 39,853 | AV89: 39,853 | AW89: 39,853 | AX89: 0 | AY89: 0 | BC89: 0
A90: 2017-03-28 | H90: 0 | I90: 0.00 | M90: 0 | N90: 2017-03-28 | U90: 0 | V90: 0.00 | Z90: 0 | AB90: 2017-03-28 | AC90: 39,860 | AD90: 39,860 | AE90: 39,860 | AF90: 39,860 | AG90: 39,860 | AH90: 39,860 | AI90: 39,860 | AJ90: 0 | AK90: 0 | AO90: 0 | AP90: 2017-03-28 | AQ90: 39,853 | AR90: 39,853 | AS90: 39,853 | AT90: 39,853 | AU90: 39,853 | AV90: 39,853 | AW90: 39,853 | AX90: 0 | AY90: 0 | BC90: 0
A91: 2017-03-29 | H91: =(C91-B91)+(E91-D91)+(G91-F91) -> 0 | I91: 0.00 | M91: 0 | N91: 2017-03-29 | U91: 0 | V91: 0.00 | Z91: 0 | AB91: 2017-03-29 | AC91: 39,860 | AD91: 39,860 | AE91: 39,860 | AF91: 39,860 | AG91: 39,860 | AH91: 39,860 | AI91: 39,860 | AJ91: 0 | AK91: 0 | AO91: 0 | AP91: 2017-03-29 | AQ91: 39,853 | AR91: 39,853 | AS91: 39,853 | AT91: 39,853 | AU91: 39,853 | AV91: 39,853 | AW91: 39,853 | AX91: 0 | AY91: 0 | BC91: 0
A92: 2017-03-30 | H92: 0 | I92: 0.00 | M92: 0 | N92: 2017-03-30 | U92: 0 | V92: 0.00 | Z92: 0 | AB92: 2017-03-30 | AC92: 39,860 | AD92: 39,860 | AE92: 39,860 | AF92: 39,860 | AG92: 39,860 | AH92: 39,860 | AI92: 39,860 | AJ92: 0 | AK92: 0 | AO92: 0 | AP92: 2017-03-30 | AQ92: 39,853 | AR92: 39,853 | AS92: 39,853 | AT92: 39,853 | AU92: 39,853 | AV92: 39,853 | AW92: 39,853 | AX92: 0 | AY92: 0 | BC92: 0
A93: 2017-03-31 | H93: 0 | I93: 0.00 | M93: 0 | N93: 2017-03-31 | U93: 0 | V93: 0.00 | Z93: 0 | AB93: 2017-03-31 | AC93: 39,860 | AD93: 39,860 | AE93: 39,860 | AF93: 39,860 | AG93: 39,860 | AH93: 39,860 | AI93: 39,860 | AJ93: 0 | AK93: 0 | AO93: 0 | AP93: 2017-03-31 | AQ93: 39,853 | AR93: 39,853 | AS93: 39,853 | AT93: 39,853 | AU93: 39,853 | AV93: 39,853 | AW93: 39,853 | AX93: 0 | AY93: 0 | BC93: 0
A94: 2017-04-01 | H94: 0 | I94: 0.00 | M94: 0 | N94: 2017-04-01 | U94: 0 | V94: 0.00 | Z94: 0 | AB94: 2017-04-01 | AC94: 39,860 | AD94: 39,860 | AE94: 39,860 | AF94: 39,860 | AG94: 39,860 | AH94: 39,860 | AI94: 39,860 | AJ94: 0 | AK94: 0 | AO94: 0 | AP94: 2017-04-01 | AQ94: 39,853 | AR94: 39,853 | AS94: 39,853 | AT94: 39,853 | AU94: 39,853 | AV94: 39,853 | AW94: 39,853 | AX94: 0 | AY94: 0 | BC94: 0
A95: 2017-04-02 | H95: 0 | I95: 0.00 | M95: 0 | N95: 2017-04-02 | U95: 0 | V95: 0.00 | Z95: 0 | AB95: 2017-04-02 | AC95: 39,860 | AD95: 39,860 | AE95: 39,860 | AF95: 39,860 | AG95: 39,860 | AH95: 39,860 | AI95: 39,860 | AJ95: 0 | AK95: 0 | AO95: 0 | AP95: 2017-04-02 | AQ95: 39,853 | AR95: 39,853 | AS95: 39,853 | AT95: 39,853 | AU95: 39,853 | AV95: 39,853 | AW95: 39,853 | AX95: 0 | AY95: 0 | BC95: 0
A96: 2017-04-03 | H96: 0 | I96: 0.00 | M96: 0 | N96: 2017-04-03 | U96: 0 | V96: 0.00 | Z96: 0 | AB96: 2017-04-03 | AC96: 39,860 | AD96: 39,860 | AE96: 39,860 | AF96: 39,860 | AG96: 39,860 | AH96: 39,860 | AI96: 39,860 | AJ96: 0 | AK96: 0 | AO96: 0 | AP96: 2017-04-03 | AQ96: 39,853 | AR96: 39,853 | AS96: 39,853 | AT96: 39,853 | AU96: 39,853 | AV96: 39,853 | AW96: 39,853 | AX96: 0 | AY96: 0 | BC96: 0
A97: 2017-04-04 | H97: 0 | I97: 0.00 | M97: 0 | N97: 2017-04-04 | U97: 0 | V97: 0.00 | Z97: 0 | AB97: 2017-04-04 | AC97: 39,860 | AD97: 39,860 | AE97: 39,860 | AF97: 39,860 | AG97: 39,860 | AH97: 39,860 | AI97: 39,860 | AJ97: 0 | AK97: 0 | AO97: 0 | AP97: 2017-04-04 | AQ97: 39,853 | AR97: 39,853 | AS97: 39,853 | AT97: 39,853 | AU97: 39,853 | AV97: 39,853 | AW97: 39,853 | AX97: 0 | AY97: 0 | BC97: 0
A98: 2017-04-05 | H98: 0 | I98: 0.00 | M98: 0 | N98: 2017-04-05 | U98: 0 | V98: 0.00 | Z98: 0 | AB98: 2017-04-05 | AC98: 39,860 | AD98: 39,860 | AE98: 39,860 | AF98: 39,860 | AG98: 39,860 | AH98: 39,860 | AI98: 39,860 | AJ98: 0 | AK98: 0 | AO98: 0 | AP98: 2017-04-05 | AQ98: 39,853 | AR98: 39,853 | AS98: 39,853 | AT98: 39,853 | AU98: 39,853 | AV98: 39,853 | AW98: 39,853 | AX98: 0 | AY98: 0 | BC98: 0
A99: 2017-04-06 | H99: 0 | I99: 0.00 | M99: 0 | N99: 2017-04-06 | U99: 0 | V99: 0.00 | Z99: 0 | AB99: 2017-04-06 | AC99: 39,860 | AD99: 39,860 | AE99: 39,860 | AF99: 39,860 | AG99: 39,860 | AH99: 39,860 | AI99: 39,860 | AJ99: 0 | AK99: 0 | AO99: 0 | AP99: 2017-04-06 | AQ99: 39,853 | AR99: 39,853 | AS99: 39,853 | AT99: 39,853 | AU99: 39,853 | AV99: 39,853 | AW99: 39,853 | AX99: 0 | AY99: 0 | BC99: 0
A100: 2017-04-07 | H100: 0 | I100: 0.00 | M100: 0 | N100: 2017-04-07 | U100: 0 | V100: 0.00 | Z100: 0 | AB100: 2017-04-07 | AC100: 39,860 | AD100: 39,860 | AE100: 39,860 | AF100: 39,860 | AG100: 39,860 | AH100: 39,860 | AI100: 39,860 | AJ100: 0 | AK100: 0 | AO100: 0 | AP100: 2017-04-07 | AQ100: 39,853 | AR100: 39,853 | AS100: 39,853 | AT100: 39,853 | AU100: 39,853 | AV100: 39,853 | AW100: 39,853 | AX100: 0 | AY100: 0 | BC100: 0
A101: 2017-04-08 | H101: 0 | I101: 0.00 | M101: 0 | N101: 2017-04-08 | U101: 0 | V101: 0.00 | Z101: 0 | AB101: 2017-04-08 | AC101: 39,860 | AD101: 39,860 | AE101: 39,860 | AF101: 39,860 | AG101: 39,860 | AH101: 39,860 | AI101: 39,860 | AJ101: 0 | AK101: 0 | AO101: 0 | AP101: 2017-04-08 | AQ101: 39,853 | AR101: 39,853 | AS101: 39,853 | AT101: 39,853 | AU101: 39,853 | AV101: 39,853 | AW101: 39,853 | AX101: 0 | AY101: 0 | BC101: 0
A102: 2017-04-09 | H102: 0 | I102: 0.00 | M102: 0 | N102: 2017-04-09 | U102: 0 | V102: 0.00 | Z102: 0 | AB102: 2017-04-09 | AC102: 39,860 | AD102: 39,860 | AE102: 39,860 | AF102: 39,860 | AG102: 39,860 | AH102: 39,860 | AI102: 39,860 | AJ102: 0 | AK102: 0 | AO102: 0 | AP102: 2017-04-09 | AQ102: 39,853 | AR102: 39,853 | AS102: 39,853 | AT102: 39,853 | AU102: 39,853 | AV102: 39,853 | AW102: 39,853 | AX102: 0 | AY102: 0 | BC102: 0
A103: 2017-04-10 | H103: 0 | I103: 0.00 | M103: 0 | N103: 2017-04-10 | U103: 0 | V103: 0.00 | Z103: 0 | AB103: 2017-04-10 | AC103: 39,860 | AD103: 39,860 | AE103: 39,860 | AF103: 39,860 | AG103: 39,860 | AH103: 39,860 | AI103: 39,860 | AJ103: 0 | AK103: 0 | AO103: 0 | AP103: 2017-04-10 | AQ103: 39,853 | AR103: 39,853 | AS103: 39,853 | AT103: 39,853 | AU103: 39,853 | AV103: 39,853 | AW103: 39,853 | AX103: 0 | AY103: 0 | BC103: 0
A104: 2017-04-11 | B104: 0.2847222222 | C104: 0.8055555556 | H104: 0.5208333333 | I104: 12.50 | M104: 1 | N104: 2017-04-11 | O104: 0.2881944444 | P104: 0.7881944444 | U104: 0.5 | V104: 12.00 | Z104: 1 | AB104: 2017-04-11 | AC104: 39,866 | AD104: 39,993 | AE104: 39,993 | AF104: 39,993 | AG104: 39,993 | AH104: 39,993 | AI104: 39,993 | AJ104: 6 | AK104: 127 | AO104: 1 | AP104: 2017-04-11 | AQ104: 39,867 | AR104: 39,989 | AS104: 39,989 | AT104: 39,989 | AU104: 39,989 | AV104: 39,989 | AW104: 39,989 | AX104: 14 | AY104: 122 | BC104: 1
A105: 2017-04-12 | H105: 0 | I105: 0.00 | M105: 0 | N105: 2017-04-12 | U105: 0 | V105: 0.00 | Z105: 0 | AB105: 2017-04-12 | AC105: 39,993 | AD105: 39,993 | AE105: 39,993 | AF105: 39,993 | AG105: 39,993 | AH105: 39,993 | AI105: 39,993 | AJ105: 0 | AK105: 0 | AO105: 0 | AP105: 2017-04-12 | AQ105: 39,989 | AR105: 39,989 | AS105: 39,989 | AT105: 39,989 | AU105: 39,989 | AV105: 39,989 | AW105: 39,989 | AX105: 0 | AY105: 0 | BC105: 0
A106: 2017-04-13 | H106: 0 | I106: 0.00 | M106: 0 | N106: 2017-04-13 | U106: 0 | V106: 0.00 | Z106: 0 | AB106: 2017-04-13 | AC106: 39,993 | AD106: 39,993 | AE106: 39,993 | AF106: 39,993 | AG106: 39,993 | AH106: 39,993 | AI106: 39,993 | AJ106: 0 | AK106: 0 | AO106: 0 | AP106: 2017-04-13 | AQ106: 39,989 | AR106: 39,989 | AS106: 39,989 | AT106: 39,989 | AU106: 39,989 | AV106: 39,989 | AW106: 39,989 | AX106: 0 | AY106: 0 | BC106: 0
A107: 2017-04-14 | H107: 0 | I107: 0.00 | M107: 0 | N107: 2017-04-14 | U107: 0 | V107: 0.00 | Z107: 0 | AB107: 2017-04-14 | AC107: 39,993 | AD107: 39,993 | AE107: 39,993 | AF107: 39,993 | AG107: 39,993 | AH107: 39,993 | AI107: 39,993 | AJ107: 0 | AK107: 0 | AO107: 0 | AP107: 2017-04-14 | AQ107: 39,989 | AR107: 39,989 | AS107: 39,989 | AT107: 39,989 | AU107: 39,989 | AV107: 39,989 | AW107: 39,989 | AX107: 0 | AY107: 0 | BC107: 0
A108: 2017-04-15 | H108: 0 | I108: 0.00 | M108: 0 | N108: 2017-04-15 | U108: 0 | V108: 0.00 | Z108: 0 | AB108: 2017-04-15 | AC108: 39,993 | AD108: 39,993 | AE108: 39,993 | AF108: 39,993 | AG108: 39,993 | AH108: 39,993 | AI108: 39,993 | AJ108: 0 | AK108: 0 | AO108: 0 | AP108: 2017-04-15 | AQ108: 39,989 | AR108: 39,989 | AS108: 39,989 | AT108: 39,989 | AU108: 39,989 | AV108: 39,989 | AW108: 39,989 | AX108: 0 | AY108: 0 | BC108: 0
A109: 2017-04-16 | H109: 0 | I109: 0.00 | M109: 0 | N109: 2017-04-16 | U109: 0 | V109: 0.00 | Z109: 0 | AB109: 2017-04-16 | AC109: 39,993 | AD109: 39,993 | AE109: 39,993 | AF109: 39,993 | AG109: 39,993 | AH109: 39,993 | AI109: 39,993 | AJ109: 0 | AK109: 0 | AO109: 0 | AP109: 2017-04-16 | AQ109: 39,989 | AR109: 39,989 | AS109: 39,989 | AT109: 39,989 | AU109: 39,989 | AV109: 39,989 | AW109: 39,989 | AX109: 0 | AY109: 0 | BC109: 0
A110: 2017-04-17 | H110: 0 | I110: 0.00 | M110: 0 | N110: 2017-04-17 | U110: 0 | V110: 0.00 | Z110: 0 | AB110: 2017-04-17 | AC110: 39,993 | AD110: 39,993 | AE110: 39,993 | AF110: 39,993 | AG110: 39,993 | AH110: 39,993 | AI110: 39,993 | AJ110: 0 | AK110: 0 | AO110: 0 | AP110: 2017-04-17 | AQ110: 39,989 | AR110: 39,989 | AS110: 39,989 | AT110: 39,989 | AU110: 39,989 | AV110: 39,989 | AW110: 39,989 | AX110: 0 | AY110: 0 | BC110: 0
A111: 2017-04-18 | H111: 0 | I111: 0.00 | M111: 0 | N111: 2017-04-18 | U111: 0 | V111: 0.00 | Z111: 0 | AB111: 2017-04-18 | AC111: 39,993 | AD111: 39,993 | AE111: 39,993 | AF111: 39,993 | AG111: 39,993 | AH111: 39,993 | AI111: 39,993 | AJ111: 0 | AK111: 0 | AO111: 0 | AP111: 2017-04-18 | AQ111: 39,989 | AR111: 39,989 | AS111: 39,989 | AT111: 39,989 | AU111: 39,989 | AV111: 39,989 | AW111: 39,989 | AX111: 0 | AY111: 0 | BC111: 0
A112: 2017-04-19 | H112: 0 | I112: 0.00 | M112: 0 | N112: 2017-04-19 | U112: 0 | V112: 0.00 | Z112: 0 | AB112: 2017-04-19 | AC112: 39,993 | AD112: 39,993 | AE112: 39,993 | AF112: 39,993 | AG112: 39,993 | AH112: 39,993 | AI112: 39,993 | AJ112: 0 | AK112: 0 | AO112: 0 | AP112: 2017-04-19 | AQ112: 39,989 | AR112: 39,989 | AS112: 39,989 | AT112: 39,989 | AU112: 39,989 | AV112: 39,989 | AW112: 39,989 | AX112: 0 | AY112: 0 | BC112: 0
A113: 2017-04-20 | H113: 0 | I113: 0.00 | M113: 0 | N113: 2017-04-20 | U113: 0 | V113: 0.00 | Z113: 0 | AB113: 2017-04-20 | AC113: 39,993 | AD113: 39,993 | AE113: 39,993 | AF113: 39,993 | AG113: 39,993 | AH113: 39,993 | AI113: 39,993 | AJ113: 0 | AK113: 0 | AO113: 0 | AP113: 2017-04-20 | AQ113: 39,989 | AR113: 39,989 | AS113: 39,989 | AT113: 39,989 | AU113: 39,989 | AV113: 39,989 | AW113: 39,989 | AX113: 0 | AY113: 0 | BC113: 0
A114: 2017-04-21 | H114: 0 | I114: 0.00 | M114: 0 | N114: 2017-04-21 | U114: 0 | V114: 0.00 | Z114: 0 | AB114: 2017-04-21 | AC114: 39,993 | AD114: 39,993 | AE114: 39,993 | AF114: 39,993 | AG114: 39,993 | AH114: 39,993 | AI114: 39,993 | AJ114: 0 | AK114: 0 | AO114: 0 | AP114: 2017-04-21 | AQ114: 39,989 | AR114: 39,989 | AS114: 39,989 | AT114: 39,989 | AU114: 39,989 | AV114: 39,989 | AW114: 39,989 | AX114: 0 | AY114: 0 | BC114: 0
A115: 2017-04-22 | H115: 0 | I115: 0.00 | M115: 0 | N115: 2017-04-22 | U115: 0 | V115: 0.00 | Z115: 0 | AB115: 2017-04-22 | AC115: 39,993 | AD115: 39,993 | AE115: 39,993 | AF115: 39,993 | AG115: 39,993 | AH115: 39,993 | AI115: 39,993 | AJ115: 0 | AK115: 0 | AO115: 0 | AP115: 2017-04-22 | AQ115: 39,989 | AR115: 39,989 | AS115: 39,989 | AT115: 39,989 | AU115: 39,989 | AV115: 39,989 | AW115: 39,989 | AX115: 0 | AY115: 0 | BC115: 0
A116: 2017-04-23 | H116: 0 | I116: 0.00 | M116: 0 | N116: 2017-04-23 | U116: 0 | V116: 0.00 | Z116: 0 | AB116: 2017-04-23 | AC116: 39,993 | AD116: 39,993 | AE116: 39,993 | AF116: 39,993 | AG116: 39,993 | AH116: 39,993 | AI116: 39,993 | AJ116: 0 | AK116: 0 | AO116: 0 | AP116: 2017-04-23 | AQ116: 39,989 | AR116: 39,989 | AS116: 39,989 | AT116: 39,989 | AU116: 39,989 | AV116: 39,989 | AW116: 39,989 | AX116: 0 | AY116: 0 | BC116: 0
A117: 2017-04-24 | H117: 0 | I117: 0.00 | M117: 0 | N117: 2017-04-24 | U117: 0 | V117: 0.00 | Z117: 0 | AB117: 2017-04-24 | AC117: 39,993 | AD117: 39,993 | AE117: 39,993 | AF117: 39,993 | AG117: 39,993 | AH117: 39,993 | AI117: 39,993 | AJ117: 0 | AK117: 0 | AO117: 0 | AP117: 2017-04-24 | AQ117: 39,989 | AR117: 39,989 | AS117: 39,989 | AT117: 39,989 | AU117: 39,989 | AV117: 39,989 | AW117: 39,989 | AX117: 0 | AY117: 0 | BC117: 0
A118: 2017-04-25 | H118: 0 | I118: 0.00 | M118: 0 | N118: 2017-04-25 | U118: 0 | V118: 0.00 | Z118: 0 | AB118: 2017-04-25 | AC118: 39,993 | AD118: 39,993 | AE118: 39,993 | AF118: 39,993 | AG118: 39,993 | AH118: 39,993 | AI118: 39,993 | AJ118: 0 | AK118: 0 | AO118: 0 | AP118: 2017-04-25 | AQ118: 39,989 | AR118: 39,989 | AS118: 39,989 | AT118: 39,989 | AU118: 39,989 | AV118: 39,989 | AW118: 39,989 | AX118: 0 | AY118: 0 | BC118: 0
A119: 2017-04-26 | H119: 0 | I119: 0.00 | M119: 0 | N119: 2017-04-26 | U119: 0 | V119: 0.00 | Z119: 0 | AB119: 2017-04-26 | AC119: 39,993 | AD119: 39,993 | AE119: 39,993 | AF119: 39,993 | AG119: 39,993 | AH119: 39,993 | AI119: 39,993 | AJ119: 0 | AK119: 0 | AO119: 0 | AP119: 2017-04-26 | AQ119: 39,989 | AR119: 39,989 | AS119: 39,989 | AT119: 39,989 | AU119: 39,989 | AV119: 39,989 | AW119: 39,989 | AX119: 0 | AY119: 0 | BC119: 0
A120: 2017-04-27 | H120: 0 | I120: 0.00 | M120: 0 | N120: 2017-04-27 | U120: 0 | V120: 0.00 | Z120: 0 | AB120: 2017-04-27 | AC120: 39,993 | AD120: 39,993 | AE120: 39,993 | AF120: 39,993 | AG120: 39,993 | AH120: 39,993 | AI120: 39,993 | AJ120: 0 | AK120: 0 | AO120: 0 | AP120: 2017-04-27 | AQ120: 39,989 | AR120: 39,989 | AS120: 39,989 | AT120: 39,989 | AU120: 39,989 | AV120: 39,989 | AW120: 39,989 | AX120: 0 | AY120: 0 | BC120: 0
A121: 2017-04-28 | H121: 0 | I121: 0.00 | M121: 0 | N121: 2017-04-28 | U121: 0 | V121: 0.00 | Z121: 0 | AB121: 2017-04-28 | AC121: 39,993 | AD121: 39,993 | AE121: 39,993 | AF121: 39,993 | AG121: 39,993 | AH121: 39,993 | AI121: 39,993 | AJ121: 0 | AK121: 0 | AO121: 0 | AP121: 2017-04-28 | AQ121: 39,989 | AR121: 39,989 | AS121: 39,989 | AT121: 39,989 | AU121: 39,989 | AV121: 39,989 | AW121: 39,989 | AX121: 0 | AY121: 0 | BC121: 0
A122: 2017-04-29 | H122: 0 | I122: 0.00 | M122: 0 | N122: 2017-04-29 | U122: 0 | V122: 0.00 | Z122: 0 | AB122: 2017-04-29 | AC122: 39,993 | AD122: =AC122 -> 39,993 | AE122: 39,993 | AF122: 39,993 | AG122: 39,993 | AH122: 39,993 | AI122: 39,993 | AJ122: 0 | AK122: 0 | AO122: 0 | AP122: 2017-04-29 | AQ122: 39,989 | AR122: =AQ122 -> 39,989 | AS122: 39,989 | AT122: 39,989 | AU122: 39,989 | AV122: 39,989 | AW122: 39,989 | AX122: 0 | AY122: 0 | BC122: 0
A123: 2017-04-30 | H123: 0 | I123: 0.00 | M123: 0 | N123: 2017-04-30 | U123: 0 | V123: 0.00 | Z123: 0 | AB123: 2017-04-30 | AC123: 39,993 | AD123: 39,993 | AE123: 39,993 | AF123: 39,993 | AG123: 39,993 | AH123: 39,993 | AI123: 39,993 | AJ123: 0 | AK123: 0 | AO123: 0 | AP123: 2017-04-30 | AQ123: 39,989 | AR123: 39,989 | AS123: 39,989 | AT123: 39,989 | AU123: 39,989 | AV123: 39,989 | AW123: 39,989 | AX123: 0 | AY123: 0 | BC123: 0
A124: 2017-05-01 | H124: 0 | I124: 0.00 | M124: 0 | N124: 2017-05-01 | U124: 0 | V124: 0.00 | Z124: 0 | AB124: 2017-05-01 | AC124: 39,993 | AD124: 39,993 | AE124: 39,993 | AF124: 39,993 | AG124: 39,993 | AH124: 39,993 | AI124: 39,993 | AJ124: 0 | AK124: 0 | AO124: 0 | AP124: 2017-05-01 | AQ124: 39,989 | AR124: 39,989 | AS124: 39,989 | AT124: 39,989 | AU124: 39,989 | AV124: 39,989 | AW124: 39,989 | AX124: 0 | AY124: 0 | BC124: 0
A125: 2017-05-02 | H125: 0 | I125: 0.00 | M125: 0 | N125: 2017-05-02 | U125: 0 | V125: 0.00 | Z125: 0 | AB125: 2017-05-02 | AC125: 39,993 | AD125: 39,993 | AE125: 39,993 | AF125: 39,993 | AG125: 39,993 | AH125: 39,993 | AI125: 39,993 | AJ125: 0 | AK125: 0 | AO125: 0 | AP125: 2017-05-02 | AQ125: 39,989 | AR125: 39,989 | AS125: 39,989 | AT125: 39,989 | AU125: 39,989 | AV125: 39,989 | AW125: 39,989 | AX125: 0 | AY125: 0 | BC125: 0
A126: 2017-05-03 | H126: 0 | I126: 0.00 | M126: 0 | N126: 2017-05-03 | U126: 0 | V126: 0.00 | Z126: 0 | AB126: 2017-05-03 | AC126: 39,993 | AD126: 39,993 | AE126: 39,993 | AF126: 39,993 | AG126: 39,993 | AH126: 39,993 | AI126: 39,993 | AJ126: 0 | AK126: 0 | AO126: 0 | AP126: 2017-05-03 | AQ126: 39,989 | AR126: 39,989 | AS126: 39,989 | AT126: 39,989 | AU126: 39,989 | AV126: 39,989 | AW126: 39,989 | AX126: 0 | AY126: 0 | BC126: 0
A127: 2017-05-04 | H127: 0 | I127: 0.00 | M127: 0 | N127: 2017-05-04 | U127: 0 | V127: 0.00 | Z127: 0 | AB127: 2017-05-04 | AC127: 39,993 | AD127: 39,993 | AE127: 39,993 | AF127: 39,993 | AG127: 39,993 | AH127: 39,993 | AI127: 39,993 | AJ127: 0 | AK127: 0 | AO127: 0 | AP127: 2017-05-04 | AQ127: 39,989 | AR127: 39,989 | AS127: 39,989 | AT127: 39,989 | AU127: 39,989 | AV127: 39,989 | AW127: 39,989 | AX127: 0 | AY127: 0 | BC127: 0
A128: 2017-05-05 | H128: 0 | I128: 0.00 | M128: 0 | N128: 2017-05-05 | U128: 0 | V128: 0.00 | Z128: 0 | AB128: 2017-05-05 | AC128: 39,993 | AD128: 39,993 | AE128: 39,993 | AF128: 39,993 | AG128: 39,993 | AH128: 39,993 | AI128: 39,993 | AJ128: 0 | AK128: 0 | AO128: 0 | AP128: 2017-05-05 | AQ128: 39,989 | AR128: 39,989 | AS128: 39,989 | AT128: 39,989 | AU128: 39,989 | AV128: 39,989 | AW128: 39,989 | AX128: 0 | AY128: 0 | BC128: 0
A129: 2017-05-06 | H129: 0 | I129: 0.00 | M129: 0 | N129: 2017-05-06 | U129: 0 | V129: 0.00 | Z129: 0 | AB129: 2017-05-06 | AC129: 39,993 | AD129: 39,993 | AE129: 39,993 | AF129: 39,993 | AG129: 39,993 | AH129: 39,993 | AI129: 39,993 | AJ129: 0 | AK129: 0 | AO129: 0 | AP129: 2017-05-06 | AQ129: 39,989 | AR129: 39,989 | AS129: 39,989 | AT129: 39,989 | AU129: 39,989 | AV129: 39,989 | AW129: 39,989 | AX129: 0 | AY129: 0 | BC129: 0
A130: 2017-05-07 | H130: 0 | I130: 0.00 | M130: 0 | N130: 2017-05-07 | U130: 0 | V130: 0.00 | Z130: 0 | AB130: 2017-05-07 | AC130: 39,993 | AD130: 39,993 | AE130: 39,993 | AF130: 39,993 | AG130: 39,993 | AH130: 39,993 | AI130: 39,993 | AJ130: 0 | AK130: 0 | AO130: 0 | AP130: 2017-05-07 | AQ130: 39,989 | AR130: 39,989 | AS130: 39,989 | AT130: 39,989 | AU130: 39,989 | AV130: 39,989 | AW130: 39,989 | AX130: 0 | AY130: 0 | BC130: 0
A131: 2017-05-08 | H131: 0 | I131: 0.00 | M131: 0 | N131: 2017-05-08 | U131: 0 | V131: 0.00 | Z131: 0 | AB131: 2017-05-08 | AC131: 39,993 | AD131: 39,993 | AE131: 39,993 | AF131: 39,993 | AG131: 39,993 | AH131: 39,993 | AI131: 39,993 | AJ131: 0 | AK131: 0 | AO131: 0 | AP131: 2017-05-08 | AQ131: 39,989 | AR131: 39,989 | AS131: 39,989 | AT131: 39,989 | AU131: 39,989 | AV131: 39,989 | AW131: 39,989 | AX131: 0 | AY131: 0 | BC131: 0
A132: 2017-05-09 | H132: 0 | I132: 0.00 | M132: =IF(H132>0, 1, 0) -> 0 | N132: 2017-05-09 | U132: =(P132-O132)+(R132-Q132)+(T132-S132) -> 0 | V132: 0.00 | Z132: =IF(U132>0, 1, 0) -> 0 | AB132: 2017-05-09 | AC132: 39,993 | AD132: 39,993 | AE132: 39,993 | AF132: 39,993 | AG132: 39,993 | AH132: 39,993 | AI132: 39,993 | AJ132: 0 | AK132: =(AD132-AC132)+(AF132-AE132)+(AH132-AG132) -> 0 | AO132: 0 | AP132: 2017-05-09 | AQ132: 39,989 | AR132: 39,989 | AS132: 39,989 | AT132: 39,989 | AU132: 39,989 | AV132: 39,989 | AW132: 39,989 | AX132: 0 | AY132: 0 | BC132: =IF(AY132>0, 1, 0) -> 0
A133: 2017-05-10 | H133: 0 | I133: =H133*24 -> 0.00 | M133: 0 | N133: 2017-05-10 | U133: 0 | V133: =U133*24 -> 0.00 | Z133: 0 | AA133: =IF(H133<U133,"Actual less than Revenue",IF(AND(T133>G133,F133<>G133,S133<>T133),"Rev Over Act End 3rd", IF(AND(S133<F133,F133<>G133,S133<>T133),"Rev Less Act Start 3rd",IF(AND(R133>E133,D133<>E133,Q133<>R133),"Rev Over Act End 2nd",IF(AND(Q133<D133,D133<>E133,Q133<>R133),"Rev Less Act Start 2nd",IF(AND(P133>C133,B133<>C133,O133<>P133),"Rev Over Act End 1st",IF(AND(O133<B133,B133<>C133,O133<>P133),"Rev Less Act Start 1st",IF(AND(T133=G133,F133<>G133,S133<>T133),"Same End 3rd",IF(AND(S133=F133,F133<>G133,S133<>T133),"Same Start 3rd",IF(AND(R133=E133,D133<>E133,Q133<>R133),"Same End 2nd",IF(AND(Q133=D133,D133<>E133,Q133<>R133),"Same Start 2nd",IF(AND(P133=C133,B133<>C133,O133<>P133),"Same End 1st",IF(AND(O133=B133,B133<>C133,O133<>P133),"Same Start 1st",""))))))))))))) ->  | AB133: 2017-05-10 | AC133: 39,993 | AD133: 39,993 | AE133: 39,993 | AF133: 39,993 | AG133: 39,993 | AH133: 39,993 | AI133: 39,993 | AJ133: 0 | AK133: 0 | AO133: =IF(AK133>0, 1, 0) -> 0 | AP133: 2017-05-10 | AQ133: 39,989 | AR133: 39,989 | AS133: 39,989 | AT133: 39,989 | AU133: 39,989 | AV133: 39,989 | AW133: =MAX(AR133, AT133, AV133) -> 39,989 | AX133: =IF(AQ133=AW132, 0, AQ133-AW132) -> 0 | AY133: =(AR133-AQ133)+(AT133-AS133)+(AV133-AU133) -> 0 | BC133: 0 | BD133: =IF(AK133<AY133,"Actual less than Revenue",IF(AND(AV133>AH133,AG133<>AH133,AU133<>AV133),"Rev Over Act End 3rd",IF(AND(AU133<AG133,AG133<>AH133,AU133<>AV133),"Rev Less Act Start 3rd",IF(AND(AT133>AF133,AE133<>AF133,AS133<>AT133),"Rev Over Act End 2nd",IF(AND(AS133<AE133,AE133<>AF133,AS133<>AT133),"Rev Less Act Start 2nd",IF(AND(AR133>AD133,AC133<>AD133,AQ133<>AR133),"Rev Over Act End 1st",IF(AND(AQ133<AC133,AC133<>AD133,AQ133<>AR133),"Rev Less Act Start 1st",IF(AND(AV133=AH133,AG133<>AH133,AU133<>AV133),"Same End 3rd",IF(AND(AU133=AG133,AG133<>AH133,AU133<>AV133),"Same Start 3rd",IF(AND(AT133=AF133,AE133<>AF133,AS133<>AT133),"Same End 2nd",IF(AND(AS133=AE133,AE133<>AF133,AS133<>AT133),"Same Start 2nd",IF(AND(AR133=AD133,AC133<>AD133,AQ133<>AR133),"Same End 1st",IF(AND(AQ133=AC133,AC133<>AD133,AQ133<>AR133),"Same Start 1st",""))))))))))))) -> 
A134: 2017-05-11 | H134: 0 | I134: 0.00 | M134: 0 | N134: 2017-05-11 | U134: 0 | V134: 0.00 | Z134: 0 | AB134: 2017-05-11 | AC134: 39,993 | AD134: 39,993 | AE134: 39,993 | AF134: 39,993 | AG134: 39,993 | AH134: 39,993 | AI134: 39,993 | AJ134: 0 | AK134: 0 | AO134: 0 | AP134: 2017-05-11 | AQ134: 39,989 | AR134: 39,989 | AS134: 39,989 | AT134: 39,989 | AU134: 39,989 | AV134: 39,989 | AW134: 39,989 | AX134: 0 | AY134: 0 | BC134: 0
A135: 2017-05-12 | H135: 0 | I135: 0.00 | M135: 0 | N135: 2017-05-12 | U135: 0 | V135: 0.00 | Z135: 0 | AB135: 2017-05-12 | AC135: 39,993 | AD135: 39,993 | AE135: 39,993 | AF135: 39,993 | AG135: 39,993 | AH135: 39,993 | AI135: 39,993 | AJ135: =IF(AC135=AI134, 0, AC135-AI134) -> 0 | AK135: 0 | AO135: 0 | AP135: 2017-05-12 | AQ135: 39,989 | AR135: 39,989 | AS135: 39,989 | AT135: 39,989 | AU135: 39,989 | AV135: 39,989 | AW135: 39,989 | AX135: 0 | AY135: 0 | BC135: 0
A136: 2017-05-13 | H136: 0 | I136: 0.00 | M136: 0 | N136: 2017-05-13 | U136: 0 | V136: 0.00 | Z136: 0 | AB136: 2017-05-13 | AC136: 39,993 | AD136: 39,993 | AE136: 39,993 | AF136: 39,993 | AG136: 39,993 | AH136: 39,993 | AI136: 39,993 | AJ136: 0 | AK136: 0 | AO136: 0 | AP136: 2017-05-13 | AQ136: 39,989 | AR136: 39,989 | AS136: 39,989 | AT136: 39,989 | AU136: 39,989 | AV136: 39,989 | AW136: 39,989 | AX136: 0 | AY136: 0 | BC136: 0
A137: 2017-05-14 | H137: 0 | I137: 0.00 | M137: 0 | N137: 2017-05-14 | U137: 0 | V137: 0.00 | Z137: 0 | AB137: 2017-05-14 | AC137: 39,993 | AD137: 39,993 | AE137: 39,993 | AF137: 39,993 | AG137: 39,993 | AH137: 39,993 | AI137: 39,993 | AJ137: 0 | AK137: 0 | AO137: 0 | AP137: 2017-05-14 | AQ137: 39,989 | AR137: 39,989 | AS137: 39,989 | AT137: 39,989 | AU137: 39,989 | AV137: 39,989 | AW137: 39,989 | AX137: 0 | AY137: 0 | BC137: 0
A138: 2017-05-15 | H138: 0 | I138: 0.00 | M138: 0 | N138: 2017-05-15 | U138: 0 | V138: 0.00 | Z138: 0 | AB138: 2017-05-15 | AC138: 39,993 | AD138: 39,993 | AE138: 39,993 | AF138: 39,993 | AG138: 39,993 | AH138: 39,993 | AI138: 39,993 | AJ138: 0 | AK138: 0 | AO138: 0 | AP138: 2017-05-15 | AQ138: 39,989 | AR138: 39,989 | AS138: 39,989 | AT138: 39,989 | AU138: 39,989 | AV138: 39,989 | AW138: 39,989 | AX138: 0 | AY138: 0 | BC138: 0
A139: 2017-05-16 | H139: 0 | I139: 0.00 | M139: 0 | N139: 2017-05-16 | U139: 0 | V139: 0.00 | Z139: 0 | AB139: 2017-05-16 | AC139: 39,993 | AD139: 39,993 | AE139: 39,993 | AF139: 39,993 | AG139: 39,993 | AH139: 39,993 | AI139: 39,993 | AJ139: 0 | AK139: 0 | AO139: 0 | AP139: 2017-05-16 | AQ139: 39,989 | AR139: 39,989 | AS139: 39,989 | AT139: 39,989 | AU139: 39,989 | AV139: 39,989 | AW139: 39,989 | AX139: 0 | AY139: 0 | BC139: 0
A140: 2017-05-17 | H140: 0 | I140: 0.00 | M140: 0 | N140: 2017-05-17 | U140: 0 | V140: 0.00 | Z140: 0 | AB140: 2017-05-17 | AC140: 39,993 | AD140: 39,993 | AE140: 39,993 | AF140: 39,993 | AG140: 39,993 | AH140: 39,993 | AI140: =MAX(AD140, AF140, AH140) -> 39,993 | AJ140: 0 | AK140: 0 | AO140: 0 | AP140: 2017-05-17 | AQ140: 39,989 | AR140: 39,989 | AS140: 39,989 | AT140: 39,989 | AU140: 39,989 | AV140: 39,989 | AW140: 39,989 | AX140: 0 | AY140: 0 | BC140: 0
A141: 2017-05-18 | B141: 0.2847222222 | C141: 0.5381944444 | D141: 0.5381944444 | E141: 0.8048611111 | H141: 0.5201388889 | I141: 12.48 | M141: 1 | N141: 2017-05-18 | O141: 0.2881944444 | P141: 0.5381944444 | Q141: 0.5381944444 | R141: 0.7951388889 | U141: 0.5069444444 | V141: 12.17 | Z141: 1 | AA141: Same Start 2nd | AB141: 2017-05-18 | AC141: 40,000 | AD141: 40,076 | AE141: 40,076 | AF141: 40,154 | AG141: 40,154 | AH141: 40,154 | AI141: 40,154 | AJ141: 7 | AK141: 154 | AO141: 1 | AP141: 2017-05-18 | AQ141: 40,001 | AR141: 40,076 | AS141: 40,076 | AT141: 40,149 | AU141: 40,149 | AV141: 40,149 | AW141: 40,149 | AX141: 12 | AY141: 148 | BC141: 1 | BD141: Same Start 2nd
A142: 2017-05-19 | B142: 0.2847222222 | C142: 0.5381944444 | D142: 0.5381944444 | E142: 0.8111111111 | H142: 0.5263888889 | I142: 12.63 | M142: 1 | N142: 2017-05-19 | O142: 0.2881944444 | P142: 0.5381944444 | Q142: 0.5381944444 | R142: 0.7881944444 | U142: 0.5 | V142: 12.00 | Z142: 1 | AA142: Same Start 2nd | AB142: 2017-05-19 | AC142: =AI141 -> 40,154 | AD142: 40,216 | AE142: 40,216 | AF142: 40,281 | AG142: 40,281 | AH142: 40,281 | AI142: 40,281 | AJ142: 0 | AK142: 127 | AO142: 1 | AP142: 2017-05-19 | AQ142: 40,155 | AR142: 40,216 | AS142: 40,216 | AT142: 40,277 | AU142: 40,277 | AV142: 40,277 | AW142: 40,277 | AX142: 6 | AY142: 122 | BC142: 1 | BD142: Same Start 2nd
A143: 2017-05-20 | H143: 0 | I143: 0.00 | M143: 0 | N143: 2017-05-20 | U143: 0 | V143: 0.00 | Z143: 0 | AB143: 2017-05-20 | AC143: 40,281 | AD143: 40,281 | AE143: 40,281 | AF143: 40,281 | AG143: 40,281 | AH143: 40,281 | AI143: 40,281 | AJ143: 0 | AK143: 0 | AO143: 0 | AP143: 2017-05-20 | AQ143: 40,277 | AR143: 40,277 | AS143: 40,277 | AT143: 40,277 | AU143: 40,277 | AV143: 40,277 | AW143: 40,277 | AX143: 0 | AY143: 0 | BC143: 0
A144: 2017-05-21 | H144: 0 | I144: 0.00 | M144: 0 | N144: 2017-05-21 | U144: 0 | V144: 0.00 | Z144: 0 | AB144: 2017-05-21 | AC144: 40,281 | AD144: 40,281 | AE144: 40,281 | AF144: 40,281 | AG144: 40,281 | AH144: 40,281 | AI144: 40,281 | AJ144: 0 | AK144: 0 | AO144: 0 | AP144: 2017-05-21 | AQ144: =AW143 -> 40,277 | AR144: 40,277 | AS144: 40,277 | AT144: 40,277 | AU144: 40,277 | AV144: 40,277 | AW144: 40,277 | AX144: 0 | AY144: 0 | BC144: 0
A145: 2017-05-22 | B145: 0.2847222222 | C145: 0.5381944444 | D145: 0.5381944444 | E145: 0.8173611111 | H145: 0.5326388889 | I145: 12.78 | M145: 1 | N145: 2017-05-22 | O145: 0.2881944444 | P145: 0.5381944444 | Q145: 0.5381944444 | R145: 0.7881944444 | U145: 0.5 | V145: 12.00 | Z145: 1 | AA145: Same Start 2nd | AB145: 2017-05-22 | AC145: 40,281 | AD145: 40,356 | AE145: 40,356 | AF145: 40,438 | AG145: 40,438 | AH145: 40,438 | AI145: 40,438 | AJ145: 0 | AK145: 157 | AO145: 1 | AP145: 2017-05-22 | AQ145: 40,283 | AR145: 40,356 | AS145: 40,356 | AT145: 40,431 | AU145: 40,431 | AV145: 40,431 | AW145: 40,431 | AX145: 6 | AY145: 148 | BC145: 1 | BD145: Same Start 2nd
A146: 2017-05-23 | B146: 0.2847222222 | C146: 0.5381944444 | D146: 0.5381944444 | E146: 0.8125 | H146: 0.5277777778 | I146: 12.67 | M146: 1 | N146: 2017-05-23 | O146: 0.2881944444 | P146: 0.5381944444 | Q146: 0.5381944444 | R146: 0.7951388889 | U146: 0.5069444444 | V146: 12.17 | Z146: 1 | AA146: Same Start 2nd | AB146: 2017-05-23 | AC146: 40,438 | AD146: 40,501 | AE146: 40,501 | AF146: 40,566 | AG146: 40,566 | AH146: 40,566 | AI146: 40,566 | AJ146: 0 | AK146: 128 | AO146: 1 | AP146: 2017-05-23 | AQ146: 40,439 | AR146: 40,501 | AS146: 40,501 | AT146: 40,562 | AU146: 40,562 | AV146: 40,562 | AW146: 40,562 | AX146: 8 | AY146: 123 | BC146: 1 | BD146: Same Start 2nd
A147: 2017-05-24 | B147: 0.2847222222 | C147: 0.5381944444 | D147: 0.5381944444 | E147: 0.8125 | H147: 0.5277777778 | I147: 12.67 | M147: 1 | N147: 2017-05-24 | O147: 0.2881944444 | P147: 0.5381944444 | Q147: 0.5381944444 | R147: 0.7881944444 | U147: 0.5 | V147: 12.00 | Z147: 1 | AA147: Same Start 2nd | AB147: 2017-05-24 | AC147: 40,566 | AD147: 40,641 | AE147: 40,641 | AF147: 40,719 | AG147: 40,719 | AH147: 40,719 | AI147: 40,719 | AJ147: 0 | AK147: 153 | AO147: 1 | AP147: 2017-05-24 | AQ147: 40,568 | AR147: 40,641 | AS147: 40,641 | AT147: 40,717 | AU147: 40,717 | AV147: 40,717 | AW147: 40,717 | AX147: 6 | AY147: 149 | BC147: 1 | BD147: Same Start 2nd
A148: 2017-05-25 | B148: 0.2847222222 | C148: 0.5381944444 | D148: 0.5381944444 | E148: 0.8125 | H148: 0.5277777778 | I148: 12.67 | M148: 1 | N148: 2017-05-25 | O148: 0.2881944444 | P148: 0.5381944444 | Q148: 0.5381944444 | R148: 0.7951388889 | U148: 0.5069444444 | V148: 12.17 | Z148: 1 | AA148: Same Start 2nd | AB148: 2017-05-25 | AC148: 40,719 | AD148: 40,782 | AE148: 40,782 | AF148: 40,847 | AG148: 40,847 | AH148: 40,847 | AI148: 40,847 | AJ148: 0 | AK148: 128 | AO148: 1 | AP148: 2017-05-25 | AQ148: 40,721 | AR148: 40,782 | AS148: 40,782 | AT148: 40,843 | AU148: 40,843 | AV148: 40,843 | AW148: 40,843 | AX148: 4 | AY148: 122 | BC148: 1 | BD148: Same Start 2nd
A149: 2017-05-26 | B149: 0.2847222222 | C149: 0.5381944444 | D149: 0.5381944444 | E149: 0.8125 | H149: 0.5277777778 | I149: 12.67 | M149: 1 | N149: 2017-05-26 | O149: 0.2881944444 | P149: 0.5381944444 | Q149: 0.5381944444 | R149: 0.7881944444 | U149: 0.5 | V149: 12.00 | Z149: 1 | AA149: Same Start 2nd | AB149: 2017-05-26 | AC149: 40,847 | AD149: 40,922 | AE149: 40,922 | AF149: 40,997 | AG149: 40,997 | AH149: 40,997 | AI149: 40,997 | AJ149: 0 | AK149: 150 | AO149: 1 | AP149: 2017-05-26 | AQ149: 40,848 | AR149: 40,922 | AS149: 40,922 | AT149: 40,993 | AU149: 40,993 | AV149: 40,993 | AW149: 40,993 | AX149: 5 | AY149: 145 | BC149: 1 | BD149: Same Start 2nd
A150: 2017-05-27 | H150: 0 | I150: 0.00 | M150: 0 | N150: 2017-05-27 | U150: 0 | V150: 0.00 | Z150: 0 | AB150: 2017-05-27 | AC150: 40,997 | AD150: 40,997 | AE150: 40,997 | AF150: 40,997 | AG150: 40,997 | AH150: 40,997 | AI150: 40,997 | AJ150: 0 | AK150: 0 | AO150: 0 | AP150: 2017-05-27 | AQ150: 40,993 | AR150: 40,993 | AS150: 40,993 | AT150: 40,993 | AU150: 40,993 | AV150: 40,993 | AW150: 40,993 | AX150: 0 | AY150: 0 | BC150: 0
A151: 2017-05-28 | H151: 0 | I151: 0.00 | M151: 0 | N151: 2017-05-28 | U151: 0 | V151: 0.00 | Z151: 0 | AB151: 2017-05-28 | AC151: 40,997 | AD151: 40,997 | AE151: 40,997 | AF151: 40,997 | AG151: 40,997 | AH151: 40,997 | AI151: 40,997 | AJ151: 0 | AK151: 0 | AO151: 0 | AP151: 2017-05-28 | AQ151: 40,993 | AR151: 40,993 | AS151: 40,993 | AT151: 40,993 | AU151: 40,993 | AV151: 40,993 | AW151: 40,993 | AX151: 0 | AY151: 0 | BC151: 0
A152: 2017-05-29 | B152: 0.2847222222 | C152: 0.5381944444 | D152: 0.5381944444 | E152: 0.8055555556 | H152: 0.5208333333 | I152: 12.50 | M152: 1 | N152: 2017-05-29 | O152: 0.2881944444 | P152: 0.5381944444 | Q152: 0.5381944444 | R152: 0.7881944444 | U152: 0.5 | V152: 12.00 | Z152: 1 | AA152: Same Start 2nd | AB152: 2017-05-29 | AC152: 40,997 | AD152: 41,059 | AE152: 41,059 | AF152: 41,125 | AG152: 41,125 | AH152: 41,125 | AI152: 41,125 | AJ152: 0 | AK152: 128 | AO152: 1 | AP152: 2017-05-29 | AQ152: 40,998 | AR152: 41,059 | AS152: 41,059 | AT152: 41,120 | AU152: 41,120 | AV152: 41,120 | AW152: 41,120 | AX152: 5 | AY152: 122 | BC152: 1 | BD152: Same Start 2nd
A153: 2017-05-30 | B153: 0.2847222222 | C153: 0.5381944444 | D153: 0.5381944444 | E153: 0.8125 | H153: 0.5277777778 | I153: 12.67 | M153: 1 | N153: 2017-05-30 | O153: 0.2881944444 | P153: 0.5381944444 | Q153: 0.5381944444 | R153: 0.7951388889 | U153: 0.5069444444 | V153: 12.17 | Z153: 1 | AA153: Same Start 2nd | AB153: 2017-05-30 | AC153: 41,125 | AD153: 41,200 | AE153: 41,200 | AF153: 41,280 | AG153: 41,280 | AH153: 41,280 | AI153: 41,280 | AJ153: 0 | AK153: 155 | AO153: 1 | AP153: 2017-05-30 | AQ153: 41,126 | AR153: 41,200 | AS153: 41,200 | AT153: 41,275 | AU153: 41,275 | AV153: 41,275 | AW153: 41,275 | AX153: 6 | AY153: 149 | BC153: 1 | BD153: Same Start 2nd
A154: 2017-05-31 | B154: 0.2847222222 | C154: 0.5381944444 | D154: 0.5381944444 | E154: 0.8125 | H154: 0.5277777778 | I154: 12.67 | M154: 1 | N154: 2017-05-31 | O154: 0.2881944444 | P154: 0.5381944444 | Q154: 0.5381944444 | R154: 0.7881944444 | U154: 0.5 | V154: 12.00 | Z154: 1 | AA154: Same Start 2nd | AB154: 2017-05-31 | AC154: 41,280 | AD154: 41,342 | AE154: 41,342 | AF154: 41,408 | AG154: 41,408 | AH154: 41,408 | AI154: 41,408 | AJ154: 0 | AK154: 128 | AO154: 1 | AP154: 2017-05-31 | AQ154: 41,281 | AR154: 41,342 | AS154: 41,342 | AT154: 41,403 | AU154: 41,403 | AV154: 41,403 | AW154: 41,403 | AX154: 6 | AY154: 122 | BC154: 1 | BD154: Same Start 2nd
